{"text_format":"1","workbook":"xlsx","n_sheets":5,"sheets":["Update","MRS","300","Videos","Bilder"],"not_rendered":{"charts":0,"images":0,"macros":1,"external_links":0,"defined_names":0,"comments":0,"pivot_tables":0},"unopened":[],"bounds":{"document_bytes":16777216,"sheet_cells":100000,"rows_first":2000,"rows_last":500,"rows_between":2000,"halvings":0,"cell_chars":16384,"cell_head_chars":4096},"cells_cut":0,"cells_raw":0,"read":"whole","date_system":"1900"}

{"sheet":"Update","index":0,"n_rows":0,"n_cols":0,"rows_kept":0,"cut":false,"hidden":false,"merged":[]}

{"sheet":"MRS","index":1,"n_rows":300,"n_cols":3,"rows_kept":300,"cut":false,"hidden":false,"merged":[]}
["nm12937054","Deva Cassel","2004-09-12"]
["nm8165602","Bella Ramsey","2003-09-25"]
["nm4911194","Jenna Ortega","2002-09-27"]
["nm5097044","Isabela Merced","2001-07-10"]
["nm4599455","Niamh McCormack","2001-01-17"]
["nm3886028","Angourie Rice","2001-01-01"]
["nm5057169","Thomasin McKenzie","2000-07-26"]
["nm5570560","Odessa A'zion","2000-06-17"]
["nm2215143","Kiernan Shipka","1999-11-10"]
["nm3160752","Emma Kenney","1999-09-14"]
["nm6675440","Lily-Rose Depp","1999-05-27"]
["nm4248775","Sabrina Carpenter","1999-05-11"]
["nm5700898","Mikey Madison","1999-03-25"]
["nm7193146","Erana James","1999-02-16"]
["nm9476408","Hunter Schafer","1998-12-31"]
["nm3353780","Katie Douglas","1998-10-19"]
["nm10058940","Emma Laird","1998-09-08"]
["nm8314228","Cailee Spaeny","1998-07-24"]
["nm1638321","Maya Hawke","1998-07-08"]
["nm8402992","Daisy Edgar-Jones","1998-05-24"]
["nm5021372","Ramona Young","1998-05-23"]
["nm1102577","Elle Fanning","1998-04-09"]
["nm2572554","Peyton List","1998-04-06"]
["nm10566839","Jessica Reynolds","1998-03-25"]
["nm3747611","Odessa Young","1998-03-06"]
["nm4854961","Ivanna Sakhno","1997-11-14"]
["nm2247732","Christina Robinson","1997-11-08"]
["nm2254074","Bella Thorne","1997-10-08"]
["nm4502102","Elena Kampouris","1997-09-16"]
["nm2858875","Sydney Sweeney","1997-09-12"]
["nm8948296","Michelle Randolph","1997-09-11"]
["nm2519720","Alison Oliver","1997-06-03"]
["nm3586035","Maisie Williams","1997-04-15"]
["nm6550677","Abigail Lawrie","1997-03-01"]
["nm5589690","Madison Iseman","1997-02-14"]
["nm5674649","London Thor","1997-02-09"]
["nm3239803","Kaitlyn Dever","1996-12-21"]
["nm3312312","Marisa Abela","1996-12-07"]
["nm2665105","Grace Van Patten","1996-11-21"]
["nm3480246","Ella Purnell","1996-09-17"]
["nm3929887","Lili Reinhart","1996-09-13"]
["nm3918035","Zendaya","1996-09-01"]
["nm8357122","Synnove Karlsen","1996-07-30"]
["nm4911086","Gabrielle Creevy","1996-07-24"]
["nm7210025","Maria Bakalova","1996-06-04"]
["nm3681769","Chase Sui Wonders","1996-05-21"]
["nm6556997","Violett Beane","1996-05-18"]
["nm5896355","Anya Taylor-Joy","1996-04-16"]
["nm8158424","Emily Kimball","1996-04-16"]
["nm1113550","Abigail Breslin","1996-04-14"]
["nm3849842","Sophie Turner","1996-02-21"]
["nm7584896","Sydney Chandler","1996-02-13"]
["nm8076281","Emma Mackey","1996-01-04"]
["nm6073955","Florence Pugh","1996-01-03"]
["nm7509200","Reina Hardesty","1996-01-03"]
["nm10128408","Emma Corrin","1995-12-13"]
["nm6976735","Rachel Sennott","1995-09-19"]
["nm7006860","Matilda De Angelis","1995-09-11"]
["nm9923141","Anya Chalotra","1995-07-28"]
["nm5465683","Serayah","1995-06-20"]
["nm6543093","Geraldine Viswanathan","1995-06-20"]
["nm5709972","Hannah Einbinder","1995-05-21"]
["nm7511512","Sarah Catherine Hook","1995-04-21"]
["nm3697443","Phoebe Dynevor","1995-04-17"]
["nm6442992","Victoria Pedretti","1995-03-23"]
["nm7879234","Julia Schlaepfer","1995-03-03"]
["nm2836740","Danielle Campbell","1995-01-30"]
["nm1094137","Molly Gordon","1994-12-06"]
["nm9980137","Harriet Slater","1994-11-28"]
["nm3614913","Zoey Deutch","1994-11-10"]
["nm4960279","Margaret Qualley","1994-10-23"]
["nm7214498","Halsey","1994-09-29"]
["nm4563780","Aurora Perrineau","1994-09-23"]
["nm7230577","Mathilde Ollivier","1994-09-20"]
["nm5363417","Wallis Day","1994-09-20"]
["nm5828485","Maddie Phillips","1994-09-06"]
["nm6663708","Madelaine Petsch","1994-08-18"]
["nm5647934","Shalom Brune-Franklin","1994-08-18"]
["nm8706994","Carla Sehn","1994-08-01"]
["nm3596959","Jaz Sinclair","1994-07-22"]
["nm5347988","Taylor Russell","1994-07-18"]
["nm3929195","Erin Moriarty","1994-06-24"]
["nm8180163","Lily Newmark","1994-05-24"]
["nm1519680","Saoirse Ronan","1994-04-12"]
["nm0266824","Dakota Fanning","1994-02-23"]
["nm3400186","Julia Garner","1994-02-01"]
["nm4972453","Olivia Cooke","1993-12-27"]
["nm5795508","Hermione Corfield","1993-12-19"]
["nm5301405","Mia Goth","1993-10-25"]
["nm3419668","Aisha Dee","1993-09-13"]
["nm4591498","Lily Sullivan","1993-09-08"]
["nm1551130","Keke Palmer","1993-08-26"]
["nm0597410","Taylor Momsen","1993-07-26"]
["nm3827455","Lili Simmons","1993-07-23"]
["nm4578161","Luciane Buchanan","1993-07-18"]
["nm3812858","Ariana Grande","1993-06-26"]
["nm2788156","Beanie Feldstein","1993-06-24"]
["nm2140860","Maika Monroe","1993-05-29"]
["nm2913275","Debby Ryan","1993-05-13"]
["nm3069650","Jodie Comer","1993-03-11"]
["nm3101617","Shioli Kutsuna","1992-12-22"]
["nm10603736","Lera Abova","1992-11-04"]
["nm5353321","Cara Delevingne","1992-08-12"]
["nm1411125","Selena Gomez","1992-07-22"]
["nm6609666","Billie Lourd","1992-07-17"]
["nm4862056","Niamh Algar","1992-06-28"]
["nm8458664","Emma D'Arcy","1992-06-27"]
["nm1390614","Jennette McCurdy","1992-06-26"]
["nm3660091","Anna Sawai","1992-06-11"]
["nm5094628","Olivia Culpo","1992-05-08"]
["nm5245722","Adria Arjona","1992-04-25"]
["nm5397459","Daisy Ridley","1992-04-10"]
["nm7004595","Elena Rusconi","1992-04-09"]
["nm4563953","Jess Bush","1992-03-26"]
["nm5634768","Elizabeth Lail","1992-03-25"]
["nm5772354","Leila George","1992-03-20"]
["nm0652089","Emily Osment","1992-03-10"]
["nm2525790","Bel Powley","1992-03-07"]
["nm3034977","Samara Weaving","1992-02-23"]
["nm2103508","Paulina Gaitan","1992-02-19"]
["nm5315658","Laysla De Oliveira","1992-01-11"]
["nm0940362","Shailene Woodley","1991-11-15"]
["nm4634945","Emily Barber","1991-09-26"]
["nm6301068","Sabrina Bartlett","1991-09-12"]
["nm2080328","Kelsey Asbille","1991-09-09"]
["nm7609875","Naomi Ackie","1991-08-22"]
["nm2016723","Eve Hewson","1991-07-07"]
["nm1789970","Addison Timlin","1991-06-29"]
["nm1186061","Sarah Ramos","1991-05-21"]
["nm0731075","Emma Roberts","1991-02-10"]
["nm3663196","Ariana DeBose","1991-01-25"]
["nm2560618","Willa Fitzgerald","1991-01-17"]
["nm3692520","Teyana Taylor","1990-12-10"]
["nm0405103","Sarah Hyland","1990-11-24"]
["nm1270095","Allison Scagliotti","1990-09-21"]
["nm11005835","Megan Stalter","1990-09-15"]
["nm3999319","Dianne Doan","1990-09-08"]
["nm4456120","Elizabeth Debicki","1990-08-24"]
["nm2225369","Jennifer Lawrence","1990-08-15"]
["nm3014031","Rachel Brosnahan","1990-07-12"]
["nm4574440","Melissa Barrera","1990-07-04"]
["nm3053338","Margot Robbie","1990-07-02"]
["nm1429380","Britt Robertson","1990-04-18"]
["nm0829576","Kristen Stewart","1990-04-09"]
["nm6076950","Hassie Harrison","1990-03-20"]
["nm9681752","Julia Fox","1990-02-02"]
["nm5536223","Natalie Palamides","1990-01-06"]
["nm2976580","Jessie Buckley","1989-12-28"]
["nm1985859","Mia Wasikowska","1989-10-25"]
["nm0424848","Dakota Johnson","1989-10-04"]
["nm0488953","Brie Larson","1989-10-01"]
["nm4140727","Dina Shihabi","1989-09-22"]
["nm4448022","Lorenza Izzo","1989-09-19"]
["nm5335029","Danielle Brooks","1989-09-17"]
["nm3726887","Jessica Brown Findlay","1989-09-14"]
["nm4789912","Hannah John-Kamen","1989-09-07"]
["nm2492359","Charlotte Ritchie","1989-08-29"]
["nm0659363","Hayden Panettiere","1989-08-21"]
["nm1017334","Juno Temple","1989-07-21"]
["nm1423955","Lucy Hale","1989-06-14"]
["nm1782299","Imogen Poots","1989-06-03"]
["nm2142336","Riley Keough","1989-05-29"]
["nm0790057","Alia Shawkat","1989-04-18"]
["nm4141252","Lily James","1989-04-05"]
["nm2934314","Lily Collins","1989-03-18"]
["nm2812026","Nathalie Emmanuel","1989-03-02"]
["nm0647634","Elizabeth Olsen","1989-02-16"]
["nm6884042","Katy O'Brian","1989-02-12"]
["nm1227814","Vanessa Hudgens","1988-12-14"]
["nm0115161","Emily Browning","1988-12-07"]
["nm1297015","Emma Stone","1988-11-06"]
["nm9448841","May Hong","1988-10-24"]
["nm0570860","Rose McIver","1988-10-10"]
["nm2552034","Melissa Benoist","1988-10-04"]
["nm2539953","Alicia Vikander","1988-10-03"]
["nm2197298","Katrina Bowden","1988-09-19"]
["nm5709125","Ritu Arya","1988-09-17"]
["nm3612908","Clara Paget","1988-09-12"]
["nm2047780","Melissa O'Neil","1988-07-12"]
["nm1869101","Ana de Armas","1988-04-30"]
["nm0668139","Sara Paxton","1988-04-25"]
["nm0334441","Holliday Grainger","1988-03-27"]
["nm0713389","Tania Raymonde","1988-03-22"]
["nm0541082","Zosia Mamet","1988-02-02"]
["nm2247245","Haley Bennett","1988-01-07"]
["nm3647676","Charlie Murphy","1987-11-30"]
["nm2394794","Karen Gillan","1987-11-28"]
["nm4561559","Renate Reinsve","1987-11-24"]
["nm2929682","Aimee-Ffion Edwards","1987-11-21"]
["nm1684744","Jennifer Holland","1987-11-09"]
["nm1671147","Cleopatra Coleman","1987-10-29"]
["nm0240381","Hilary Duff","1987-09-28"]
["nm0939697","Evan Rachel Wood","1987-09-07"]
["nm0515116","Blake Lively","1987-08-25"]
["nm4006608","Chloe Pirrie","1987-08-25"]
["nm3880181","Abbey Lee","1987-06-12"]
["nm4124560","Javicia Leslie","1987-05-30"]
["nm2757333","Bella Heathcote","1987-05-27"]
["nm4224109","Maya Erskine","1987-05-07"]
["nm1543343","Mae Martin","1987-05-02"]
["nm3948952","Vanessa Kirby","1987-04-18"]
["nm4555381","Phoebe Fox","1987-04-16"]
["nm0300589","Sarah Gadon","1987-04-04"]
["nm4496875","Mackenzie Davis","1987-04-01"]
["nm2230865","Ashley Greene","1987-02-21"]
["nm3310211","Rose Leslie","1987-02-09"]
["nm4624730","Kirby Howell-Baptiste","1987-02-07"]
["nm1094112","Ruth Bradley","1987-01-24"]
["nm7248827","Cynthia Erivo","1987-01-08"]
["nm3849670","Faye Marsay","1986-12-30"]
["nm1556320","Katie Cassidy","1986-11-25"]
["nm1503416","Kaniehtiio Horn","1986-11-08"]
["nm3592338","Emilia Clarke","1986-10-23"]
["nm1931742","Keeley Hazell","1986-09-18"]
["nm1043338","Michelle Jenner","1986-09-14"]
["nm0002536","Emmy Rossum","1986-09-12"]
["nm2148911","Wunmi Mosaku","1986-07-31"]
["nm2365811","Betty Gilpin","1986-07-21"]
["nm0517820","Lindsay Lohan","1986-07-02"]
["nm2772105","Oona Chaplin","1986-06-04"]
["nm1454378","Molly Ephraim","1986-05-22"]
["nm1083271","Megan Fox","1986-05-16"]
["nm3204288","Karen Pittman","1986-05-12"]
["nm3501146","Grace Gummer","1986-05-09"]
["nm2962353","Pom Klementieff","1986-05-03"]
["nm1872698","Dianna Agron","1986-04-30"]
["nm1720028","Amber Heard","1986-04-22"]
["nm1015262","Leighton Meester","1986-04-09"]
["nm3078932","Lady Gaga","1986-03-28"]
["nm3199307","Ruby Rose","1986-03-20"]
["nm1275259","Alexandra Daddario","1986-03-16"]
["nm0811242","Brittany Snow","1986-03-09"]
["nm1954240","Teresa Palmer","1986-02-26"]
["nm2605345","Gemma Arterton","1986-02-02"]
["nm1086543","Amanda Seyfried","1985-12-03"]
["nm3947644","Ilfenesh Hadera","1985-12-01"]
["nm0192505","Kaley Cuoco","1985-11-30"]
["nm0683467","Alison Pill","1985-11-27"]
["nm0005502","Michelle Trachtenberg","1985-10-11"]
["nm0492345","Katrina Law","1985-09-30"]
["nm2632878","Kimberley Nixon","1985-09-24"]
["nm1137209","Tatiana Maslany","1985-09-22"]
["nm4209180","Sepideh Moafi","1985-09-18"]
["nm0956526","Madeline Zima","1985-09-16"]
["nm1137028","Elyse Levesque","1985-09-10"]
["nm1595801","Alyssa Diaz","1985-09-07"]
["nm2652095","Laura Haddock","1985-08-21"]
["nm2129662","Cristin Milioti","1985-08-16"]
["nm0447695","Anna Kendrick","1985-08-09"]
["nm3138882","Britt Lower","1985-08-02"]
["nm0320812","Sara Giraudeau","1985-08-01"]
["nm1416900","Shantel VanSanten","1985-07-25"]
["nm4023073","Rosa Salazar","1985-07-16"]
["nm3564817","Phoebe Waller-Bridge","1985-07-14"]
["nm1659547","Carey Mulligan","1985-05-28"]
["nm0951148","Odette Annable","1985-05-10"]
["nm2933757","Gal Gadot","1985-04-30"]
["nm1913734","Rooney Mara","1985-04-17"]
["nm0461136","Keira Knightley","1985-03-26"]
["nm0444223","Arielle Kebbel","1985-02-19"]
["nm2295540","Natalie Morales","1985-02-15"]
["nm2832695","Deborah Ann Woll","1985-02-07"]
["nm3371346","Tattiawna Jones","1984-11-30"]
["nm0935541","Mary Elizabeth Winstead","1984-11-28"]
["nm0424060","Scarlett Johansson","1984-11-22"]
["nm0540441","Jena Malone","1984-11-21"]
["nm1834115","Annabelle Wallis","1984-09-05"]
["nm4291609","Melissa Navia","1984-08-24"]
["nm2497366","Sarah Greene","1984-07-24"]
["nm2201555","Aubrey Plaza","1984-06-26"]
["nm2387806","Emily Beecham","1984-05-12"]
["nm2946516","Claire Foy","1984-04-16"]
["nm0601553","Mandy Moore","1984-04-10"]
["nm1526352","Jaimie Alexander","1984-03-12"]
["nm1312575","Olivia Wilde","1984-03-10"]
["nm0503060","Stephanie Leonidas","1984-02-14"]
["nm2316017","Mickey Sumner","1984-01-19"]
["nm0571952","Kate McKinnon","1984-01-06"]
["nm0272581","Rebecca Ferguson","1983-10-19"]
["nm0428065","Felicity Jones","1983-10-17"]
["nm1935086","Tessa Thompson","1983-10-03"]
["nm1192254","Maggie Grace","1983-09-21"]
["nm1443740","Zoe Kazan","1983-09-09"]
["nm0005109","Mila Kunis","1983-08-14"]
["nm1950086","Greta Gerwig","1983-08-04"]
["nm1352218","Carmen Villalobos","1983-07-13"]
["nm0267042","Golshifteh Farahani","1983-07-10"]
["nm1494168","Angela Sarafyan","1983-06-30"]
["nm0848554","Amber Tamblyn","1983-05-14"]
["nm1813221","Gugu Mbatha-Raw","1983-04-21"]
["nm2336966","Greta Lee","1983-03-07"]
["nm2143282","Lupita Nyong'o","1983-03-01"]
["nm0544718","Kate Mara","1983-02-27"]
["nm1289434","Emily Blunt","1983-02-23"]
["nm0174403","Kerry Condon","1983-01-09"]
["nm0098378","Kate Bosworth","1983-01-02"]
["nm1555340","Alison Brie","1982-12-29"]
["nm0193846","Elisha Cuthbert","1982-11-30"]
["nm2110418","Gemma Chan","1982-11-29"]
["nm0004266","Anne Hathaway","1982-11-12"]

{"sheet":"300","index":2,"n_rows":300,"n_cols":3,"rows_kept":300,"cut":false,"hidden":false,"merged":[]}
["nm5085683","Mckenna Grace","2006-06-25"]
["nm6748436","Dafne Keen","2005-01-04"]
["nm11008562","Miku Martineau","2004-09-13"]
["nm12937054","Deva Cassel","2004-09-12"]
["nm5611121","Millie Bobby Brown","2004-02-19"]
["nm8165602","Bella Ramsey","2003-09-25"]
["nm4068901","Madison Wolfe","2002-10-16"]
["nm14242752","Aneet Padda","2002-10-14"]
["nm4911194","Jenna Ortega","2002-09-27"]
["nm5988570","Chiara Aurelia","2002-09-13"]
["nm11940123","Iman Vellani","2002-08-12"]
["nm3014840","Emily Alyn Lind","2002-05-06"]
["nm5584750","Sadie Sink","2002-04-16"]
["nm4454223","Emilia Jones","2002-02-23"]
["nm8463347","Freya Allan","2001-09-20"]
["nm5097044","Isabela Merced","2001-07-10"]
["nm10399505","Rachel Zegler","2001-05-03"]
["nm4599455","Niamh McCormack","2001-01-17"]
["nm3886028","Angourie Rice","2001-01-01"]
["nm5057169","Thomasin McKenzie","2000-07-26"]
["nm5570560","Odessa A'zion","2000-06-17"]
["nm13538126","Mariah Moss","2000-04-21"]
["nm6854116","Milly Alcock","2000-04-11"]
["nm2215143","Kiernan Shipka","1999-11-10"]
["nm1933128","Bailee Madison","1999-10-15"]
["nm3160752","Emma Kenney","1999-09-14"]
["nm6675440","Lily-Rose Depp","1999-05-27"]
["nm4248775","Sabrina Carpenter","1999-05-11"]
["nm5700898","Mikey Madison","1999-03-25"]
["nm7193146","Erana James","1999-02-16"]
["nm9476408","Hunter Schafer","1998-12-31"]
["nm3353780","Katie Douglas","1998-10-19"]
["nm10058940","Emma Laird","1998-09-08"]
["nm8314228","Cailee Spaeny","1998-07-24"]
["nm2202521","Madison Pettis","1998-07-22"]
["nm1638321","Maya Hawke","1998-07-08"]
["nm8402992","Daisy Edgar-Jones","1998-05-24"]
["nm5021372","Ramona Young","1998-05-23"]
["nm10574444","Mainei Kinimaka","1998-04-15"]
["nm1102577","Elle Fanning","1998-04-09"]
["nm2572554","Peyton List","1998-04-06"]
["nm10566839","Jessica Reynolds","1998-03-25"]
["nm6792464","Abigail Cowen","1998-03-18"]
["nm3747611","Odessa Young","1998-03-06"]
["nm3835303","Lizze Broadway","1998-02-16"]
["nm1736769","Ariel Winter","1998-01-28"]
["nm3218692","Madelyn Cline","1997-12-21"]
["nm2654829","Maude Apatow","1997-12-15"]
["nm4854961","Ivanna Sakhno","1997-11-14"]
["nm2247732","Christina Robinson","1997-11-08"]
["nm6672431","Raye","1997-10-24"]
["nm2254074","Bella Thorne","1997-10-08"]
["nm7228705","Antonia Gentry","1997-09-25"]
["nm4502102","Elena Kampouris","1997-09-16"]
["nm2858875","Sydney Sweeney","1997-09-12"]
["nm8948296","Michelle Randolph","1997-09-11"]
["nm9681735","Amita Suman","1997-07-19"]
["nm2519720","Alison Oliver","1997-06-03"]
["nm3586035","Maisie Williams","1997-04-15"]
["nm6550677","Abigail Lawrie","1997-03-01"]
["nm5589690","Madison Iseman","1997-02-14"]
["nm5674649","London Thor","1997-02-09"]
["nm3239803","Kaitlyn Dever","1996-12-21"]
["nm3312312","Marisa Abela","1996-12-07"]
["nm7024798","Ann Skelly","1996-12-06"]
["nm2665105","Grace Van Patten","1996-11-21"]
["nm6403016","Daniela Melchior","1996-11-01"]
["nm3480246","Ella Purnell","1996-09-17"]
["nm3929887","Lili Reinhart","1996-09-13"]
["nm3918035","Zendaya","1996-09-01"]
["nm8357122","Synnove Karlsen","1996-07-30"]
["nm4911086","Gabrielle Creevy","1996-07-24"]
["nm7210025","Maria Bakalova","1996-06-04"]
["nm3681769","Chase Sui Wonders","1996-05-21"]
["nm6556997","Violett Beane","1996-05-18"]
["nm5896355","Anya Taylor-Joy","1996-04-16"]
["nm8158424","Emily Kimball","1996-04-16"]
["nm1113550","Abigail Breslin","1996-04-14"]
["nm7862639","Liza Koshy","1996-03-31"]
["nm3849842","Sophie Turner","1996-02-21"]
["nm7584896","Sydney Chandler","1996-02-13"]
["nm4874651","Dove Cameron","1996-01-15"]
["nm8076281","Emma Mackey","1996-01-04"]
["nm6073955","Florence Pugh","1996-01-03"]
["nm7509200","Reina Hardesty","1996-01-03"]
["nm10128408","Emma Corrin","1995-12-13"]
["nm3031063","Katherine McNamara","1995-11-22"]
["nm8109082","Kristine Froseth","1995-09-21"]
["nm6976735","Rachel Sennott","1995-09-19"]
["nm7006860","Matilda De Angelis","1995-09-11"]
["nm9923141","Anya Chalotra","1995-07-28"]
["nm5465683","Serayah","1995-06-20"]
["nm6543093","Geraldine Viswanathan","1995-06-20"]
["nm12011449","Mia Tomlinson","1995-05-31"]
["nm5709972","Hannah Einbinder","1995-05-21"]
["nm7511512","Sarah Catherine Hook","1995-04-21"]
["nm3697443","Phoebe Dynevor","1995-04-17"]
["nm6442992","Victoria Pedretti","1995-03-23"]
["nm7879234","Julia Schlaepfer","1995-03-03"]
["nm2836740","Danielle Campbell","1995-01-30"]
["nm3034501","Natalia Dyer","1995-01-13"]
["nm4487976","Maddie Hasson","1995-01-04"]
["nm1094137","Molly Gordon","1994-12-06"]
["nm9980137","Harriet Slater","1994-11-28"]
["nm3614913","Zoey Deutch","1994-11-10"]
["nm4960279","Margaret Qualley","1994-10-23"]
["nm7214498","Halsey","1994-09-29"]
["nm4563780","Aurora Perrineau","1994-09-23"]
["nm5923287","Philippa Northeast","1994-09-23"]
["nm7230577","Mathilde Ollivier","1994-09-20"]
["nm5363417","Wallis Day","1994-09-20"]
["nm5828485","Maddie Phillips","1994-09-06"]
["nm6663708","Madelaine Petsch","1994-08-18"]
["nm5647934","Shalom Brune-Franklin","1994-08-18"]
["nm8706994","Carla Sehn","1994-08-01"]
["nm3596959","Jaz Sinclair","1994-07-22"]
["nm5347988","Taylor Russell","1994-07-18"]
["nm3929195","Erin Moriarty","1994-06-24"]
["nm8180163","Lily Newmark","1994-05-24"]
["nm1519680","Saoirse Ronan","1994-04-12"]
["nm0266824","Dakota Fanning","1994-02-23"]
["nm3400186","Julia Garner","1994-02-01"]
["nm6411959","Anne-Marie Waldeck","1994-01-01"]
["nm4972453","Olivia Cooke","1993-12-27"]
["nm5795508","Hermione Corfield","1993-12-19"]
["nm5301405","Mia Goth","1993-10-25"]
["nm0703939","Molly C. Quinn","1993-10-08"]
["nm3419668","Aisha Dee","1993-09-13"]
["nm4591498","Lily Sullivan","1993-09-08"]
["nm1551130","Keke Palmer","1993-08-26"]
["nm0597410","Taylor Momsen","1993-07-26"]
["nm3827455","Lili Simmons","1993-07-23"]
["nm4578161","Luciane Buchanan","1993-07-18"]
["nm3812858","Ariana Grande","1993-06-26"]
["nm2788156","Beanie Feldstein","1993-06-24"]
["nm2140860","Maika Monroe","1993-05-29"]
["nm1388927","Miranda Cosgrove","1993-05-14"]
["nm2913275","Debby Ryan","1993-05-13"]
["nm4305463","Naomi Scott","1993-05-06"]
["nm6259860","Sofia Carson","1993-04-10"]
["nm9219502","Kalyani Priyadarshan","1993-04-05"]
["nm3069650","Jodie Comer","1993-03-11"]
["nm1842439","Victoria Justice","1993-02-19"]
["nm8387572","Anya Singh","1992-12-29"]
["nm3101617","Shioli Kutsuna","1992-12-22"]
["nm4612692","Melissa Roxburgh","1992-12-10"]
["nm10603736","Lera Abova","1992-11-04"]
["nm3725055","Jessica Henwick","1992-08-30"]
["nm5353321","Cara Delevingne","1992-08-12"]
["nm1411125","Selena Gomez","1992-07-22"]
["nm6609666","Billie Lourd","1992-07-17"]
["nm4862056","Niamh Algar","1992-06-28"]
["nm8458664","Emma D'Arcy","1992-06-27"]
["nm1390614","Jennette McCurdy","1992-06-26"]
["nm3660091","Anna Sawai","1992-06-11"]
["nm5094628","Olivia Culpo","1992-05-08"]
["nm5245722","Adria Arjona","1992-04-25"]
["nm5397459","Daisy Ridley","1992-04-10"]
["nm7004595","Elena Rusconi","1992-04-09"]
["nm4563953","Jess Bush","1992-03-26"]
["nm5634768","Elizabeth Lail","1992-03-25"]
["nm5772354","Leila George","1992-03-20"]
["nm2546012","Kaya Scodelario","1992-03-13"]
["nm0652089","Emily Osment","1992-03-10"]
["nm2525790","Bel Powley","1992-03-07"]
["nm3034977","Samara Weaving","1992-02-23"]
["nm2103508","Paulina Gaitan","1992-02-19"]
["nm5315658","Laysla De Oliveira","1992-01-11"]
["nm0940362","Shailene Woodley","1991-11-15"]
["nm4634945","Emily Barber","1991-09-26"]
["nm6301068","Sabrina Bartlett","1991-09-12"]
["nm2080328","Kelsey Asbille","1991-09-09"]
["nm7609875","Naomi Ackie","1991-08-22"]
["nm2016723","Eve Hewson","1991-07-07"]
["nm1789970","Addison Timlin","1991-06-29"]
["nm5939164","Zazie Beetz","1991-06-01"]
["nm1186061","Sarah Ramos","1991-05-21"]
["nm0731075","Emma Roberts","1991-02-10"]
["nm3663196","Ariana DeBose","1991-01-25"]
["nm2560618","Willa Fitzgerald","1991-01-17"]
["nm3692520","Teyana Taylor","1990-12-10"]
["nm0405103","Sarah Hyland","1990-11-24"]
["nm1270095","Allison Scagliotti","1990-09-21"]
["nm1589312","Christian Serratos","1990-09-21"]
["nm11005835","Megan Stalter","1990-09-15"]
["nm4168062","Christina Wolfe","1990-09-08"]
["nm3999319","Dianne Doan","1990-09-08"]
["nm4456120","Elizabeth Debicki","1990-08-24"]
["nm2225369","Jennifer Lawrence","1990-08-15"]
["nm3014031","Rachel Brosnahan","1990-07-12"]
["nm4574440","Melissa Barrera","1990-07-04"]
["nm3053338","Margot Robbie","1990-07-02"]
["nm3627601","Meghann Fahy","1990-04-25"]
["nm1429380","Britt Robertson","1990-04-18"]
["nm0914612","Emma Watson","1990-04-15"]
["nm0829576","Kristen Stewart","1990-04-09"]
["nm6076950","Hassie Harrison","1990-03-20"]
["nm9681752","Julia Fox","1990-02-02"]
["nm2311411","MacKenzie Porter","1990-01-29"]
["nm5536223","Natalie Palamides","1990-01-06"]
["nm2976580","Jessie Buckley","1989-12-28"]
["nm2357847","Taylor Swift","1989-12-13"]
["nm1985859","Mia Wasikowska","1989-10-25"]
["nm0424848","Dakota Johnson","1989-10-04"]
["nm0488953","Brie Larson","1989-10-01"]
["nm4140727","Dina Shihabi","1989-09-22"]
["nm4448022","Lorenza Izzo","1989-09-19"]
["nm5335029","Danielle Brooks","1989-09-17"]
["nm3726887","Jessica Brown Findlay","1989-09-14"]
["nm3948902","Sophie Colquhoun","1989-09-12"]
["nm4789912","Hannah John-Kamen","1989-09-07"]
["nm2492359","Charlotte Ritchie","1989-08-29"]
["nm0659363","Hayden Panettiere","1989-08-21"]
["nm1017334","Juno Temple","1989-07-21"]
["nm4834815","Monica Barbaro","1989-06-17"]
["nm1423955","Lucy Hale","1989-06-14"]
["nm1782299","Imogen Poots","1989-06-03"]
["nm4419771","Justine Lupe","1989-05-31"]
["nm2142336","Riley Keough","1989-05-29"]
["nm3526370","Brianne Howey","1989-05-24"]
["nm0790057","Alia Shawkat","1989-04-18"]
["nm4141252","Lily James","1989-04-05"]
["nm2934314","Lily Collins","1989-03-18"]
["nm2812026","Nathalie Emmanuel","1989-03-02"]
["nm0647634","Elizabeth Olsen","1989-02-16"]
["nm6884042","Katy O'Brian","1989-02-12"]
["nm2400045","Nina Dobrev","1989-01-09"]
["nm1227814","Vanessa Hudgens","1988-12-14"]
["nm0115161","Emily Browning","1988-12-07"]
["nm1297015","Emma Stone","1988-11-06"]
["nm9448841","May Hong","1988-10-24"]
["nm0570860","Rose McIver","1988-10-10"]
["nm2552034","Melissa Benoist","1988-10-04"]
["nm2539953","Alicia Vikander","1988-10-03"]
["nm2197298","Katrina Bowden","1988-09-19"]
["nm5709125","Ritu Arya","1988-09-17"]
["nm3612908","Clara Paget","1988-09-12"]
["nm2047780","Melissa O'Neil","1988-07-12"]
["nm1869101","Ana de Armas","1988-04-30"]
["nm0668139","Sara Paxton","1988-04-25"]
["nm3769827","Allegra Edwards","1988-04-19"]
["nm0814259","Brenda Song","1988-03-27"]
["nm0334441","Holliday Grainger","1988-03-27"]
["nm0713389","Tania Raymonde","1988-03-22"]
["nm0541082","Zosia Mamet","1988-02-02"]
["nm2247245","Haley Bennett","1988-01-07"]
["nm3647676","Charlie Murphy","1987-11-30"]
["nm2394794","Karen Gillan","1987-11-28"]
["nm4561559","Renate Reinsve","1987-11-24"]
["nm2929682","Aimee-Ffion Edwards","1987-11-21"]
["nm1684744","Jennifer Holland","1987-11-09"]
["nm1671147","Cleopatra Coleman","1987-10-29"]
["nm0240381","Hilary Duff","1987-09-28"]
["nm2694584","Brit Morgan","1987-09-24"]
["nm1263939","Danielle Panabaker","1987-09-19"]
["nm0939697","Evan Rachel Wood","1987-09-07"]
["nm1715189","Johanna Braddy","1987-08-30"]
["nm0515116","Blake Lively","1987-08-25"]
["nm4006608","Chloe Pirrie","1987-08-25"]
["nm3880181","Abbey Lee","1987-06-12"]
["nm4124560","Javicia Leslie","1987-05-30"]
["nm2757333","Bella Heathcote","1987-05-27"]
["nm4224109","Maya Erskine","1987-05-07"]
["nm1543343","Mae Martin","1987-05-02"]
["nm3948952","Vanessa Kirby","1987-04-18"]
["nm4555381","Phoebe Fox","1987-04-16"]
["nm2395937","Brooklyn Decker","1987-04-12"]
["nm0300589","Sarah Gadon","1987-04-04"]
["nm4496875","Mackenzie Davis","1987-04-01"]
["nm2230865","Ashley Greene","1987-02-21"]
["nm3310211","Rose Leslie","1987-02-09"]
["nm4624730","Kirby Howell-Baptiste","1987-02-07"]
["nm1094112","Ruth Bradley","1987-01-24"]
["nm7248827","Cynthia Erivo","1987-01-08"]
["nm3849670","Faye Marsay","1986-12-30"]
["nm2251884","Annie Murphy","1986-12-19"]
["nm1556320","Katie Cassidy","1986-11-25"]
["nm1503416","Kaniehtiio Horn","1986-11-08"]
["nm3592338","Emilia Clarke","1986-10-23"]
["nm1931742","Keeley Hazell","1986-09-18"]
["nm1043338","Michelle Jenner","1986-09-14"]
["nm0002536","Emmy Rossum","1986-09-12"]
["nm3853652","Jodie Turner-Smith","1986-09-07"]
["nm3114649","Charlotte Le Bon","1986-09-04"]
["nm2148911","Wunmi Mosaku","1986-07-31"]
["nm2365811","Betty Gilpin","1986-07-21"]
["nm0517820","Lindsay Lohan","1986-07-02"]
["nm0993507","Kat Dennings","1986-06-13"]
["nm2772105","Oona Chaplin","1986-06-04"]
["nm1454378","Molly Ephraim","1986-05-22"]
["nm1083271","Megan Fox","1986-05-16"]
["nm3204288","Karen Pittman","1986-05-12"]
["nm3501146","Grace Gummer","1986-05-09"]
["nm2962353","Pom Klementieff","1986-05-03"]
["nm1872698","Dianna Agron","1986-04-30"]
["nm1982510","Jenna Coleman","1986-04-27"]
["nm1720028","Amber Heard","1986-04-22"]
["nm1015262","Leighton Meester","1986-04-09"]
["nm0004789","Amanda Bynes","1986-04-03"]
["nm6858110","Valeria Nemchenko","1986-03-29"]

{"sheet":"Videos","index":3,"n_rows":3110,"n_cols":3,"rows_kept":3110,"cut":false,"hidden":false,"merged":[]}
[{"$f":"\"TEXT\"&ROW()","v":"TEXT1"},"MCKENNA GRACE",{"$f":"\"TEXT\"&ROW()","v":"TEXT1"}]
[{"$f":"\"TEXT\"&ROW()","v":"TEXT2"},"MCKENNA GRACE","TEXT2"]
["TEXT3","MCKENNA GRACE","TEXT3"]
["TEXT4","MCKENNA GRACE","TEXT4"]
["TEXT5","MCKENNA GRACE","TEXT5"]
["TEXT6","MCKENNA GRACE","TEXT6"]
["TEXT7","MCKENNA GRACE","TEXT7"]
["TEXT8","MCKENNA GRACE","TEXT8"]
["TEXT9","MCKENNA GRACE","TEXT9"]
["TEXT10","MCKENNA GRACE","TEXT10"]
["TEXT11","MCKENNA GRACE","TEXT11"]
["TEXT12","MCKENNA GRACE","TEXT12"]
["TEXT13","MCKENNA GRACE","TEXT13"]
["TEXT14","MCKENNA GRACE","TEXT14"]
["TEXT15","MCKENNA GRACE","TEXT15"]
["TEXT16","MCKENNA GRACE","TEXT16"]
["TEXT17","MCKENNA GRACE","TEXT17"]
["TEXT18","MCKENNA GRACE","TEXT18"]
["TEXT19","MCKENNA GRACE","TEXT19"]
["TEXT20","MCKENNA GRACE","TEXT20"]
["TEXT21","MCKENNA GRACE","TEXT21"]
["TEXT22","MCKENNA GRACE","TEXT22"]
["TEXT23","MCKENNA GRACE","TEXT23"]
["TEXT24","MCKENNA GRACE","TEXT24"]
["TEXT25","MCKENNA GRACE","TEXT25"]
["TEXT26","MCKENNA GRACE","TEXT26"]
["TEXT27","MCKENNA GRACE","TEXT27"]
["TEXT28","MCKENNA GRACE","TEXT28"]
["TEXT29","MCKENNA GRACE","TEXT29"]
["TEXT30","MCKENNA GRACE","TEXT30"]
["TEXT31","MCKENNA GRACE","TEXT31"]
["TEXT32","MCKENNA GRACE","TEXT32"]
["TEXT33","MCKENNA GRACE","TEXT33"]
["TEXT34","MCKENNA GRACE","TEXT34"]
["TEXT35","MCKENNA GRACE","TEXT35"]
["TEXT36","MCKENNA GRACE","TEXT36"]
["TEXT37","MCKENNA GRACE","TEXT37"]
["TEXT38","MCKENNA GRACE","TEXT38"]
["TEXT39","MCKENNA GRACE","TEXT39"]
["TEXT40","MCKENNA GRACE","TEXT40"]
["TEXT41","MCKENNA GRACE","TEXT41"]
["TEXT42","MCKENNA GRACE","TEXT42"]
["TEXT43","MCKENNA GRACE","TEXT43"]
["TEXT44","MCKENNA GRACE","TEXT44"]
["TEXT45","MCKENNA GRACE","TEXT45"]
["TEXT46","MCKENNA GRACE","TEXT46"]
["TEXT47","MCKENNA GRACE","TEXT47"]
["TEXT48","MCKENNA GRACE","TEXT48"]
["TEXT49","MCKENNA GRACE","TEXT49"]
["TEXT50","MCKENNA GRACE","TEXT50"]
["TEXT51","MCKENNA GRACE","TEXT51"]
["TEXT52","MCKENNA GRACE","TEXT52"]
["TEXT53","MCKENNA GRACE","TEXT53"]
["TEXT54","MCKENNA GRACE","TEXT54"]
["TEXT55","MCKENNA GRACE","TEXT55"]
["TEXT56","MCKENNA GRACE","TEXT56"]
["TEXT57","MCKENNA GRACE","TEXT57"]
["TEXT58","MCKENNA GRACE","TEXT58"]
["TEXT59","MCKENNA GRACE","TEXT59"]
["TEXT60","MCKENNA GRACE","TEXT60"]
["TEXT61","MCKENNA GRACE","TEXT61"]
["TEXT62","MCKENNA GRACE","TEXT62"]
["TEXT63","MCKENNA GRACE","TEXT63"]
["TEXT64","MCKENNA GRACE","TEXT64"]
["TEXT65","MCKENNA GRACE","TEXT65"]
[{"$f":"\"TEXT\"&ROW()","v":"TEXT66"},"MCKENNA GRACE","TEXT66"]
["TEXT67","MCKENNA GRACE","TEXT67"]
["TEXT68","MCKENNA GRACE","TEXT68"]
["TEXT69","MCKENNA GRACE","TEXT69"]
["TEXT70","MCKENNA GRACE","TEXT70"]
["TEXT71","MCKENNA GRACE","TEXT71"]
["TEXT72","MCKENNA GRACE","TEXT72"]
["TEXT73","MCKENNA GRACE","TEXT73"]
["TEXT74","MCKENNA GRACE","TEXT74"]
["TEXT75","MCKENNA GRACE","TEXT75"]
["TEXT76","MCKENNA GRACE","TEXT76"]
["TEXT77","MCKENNA GRACE","TEXT77"]
["TEXT78","MCKENNA GRACE","TEXT78"]
["TEXT79","MCKENNA GRACE","TEXT79"]
["TEXT80","MCKENNA GRACE","TEXT80"]
["TEXT81","MCKENNA GRACE","TEXT81"]
["TEXT82","MCKENNA GRACE","TEXT82"]
["TEXT83","MCKENNA GRACE","TEXT83"]
["TEXT84","MCKENNA GRACE","TEXT84"]
["TEXT85","MCKENNA GRACE","TEXT85"]
["TEXT86","MCKENNA GRACE","TEXT86"]
["TEXT87","MCKENNA GRACE","TEXT87"]
["TEXT88","MCKENNA GRACE","TEXT88"]
["TEXT89","MCKENNA GRACE","TEXT89"]
["TEXT90","MCKENNA GRACE","TEXT90"]
["TEXT91","MCKENNA GRACE","TEXT91"]
["TEXT92","MCKENNA GRACE","TEXT92"]
["TEXT93","MCKENNA GRACE","TEXT93"]
["TEXT94","MCKENNA GRACE","TEXT94"]
["TEXT95","MCKENNA GRACE","TEXT95"]
["TEXT96","MCKENNA GRACE","TEXT96"]
["TEXT97","MCKENNA GRACE","TEXT97"]
["TEXT98","MCKENNA GRACE","TEXT98"]
["TEXT99","MCKENNA GRACE","TEXT99"]
["TEXT100","MCKENNA GRACE","TEXT100"]
["TEXT101","MCKENNA GRACE","TEXT101"]
["TEXT102","MCKENNA GRACE","TEXT102"]
["TEXT103","MCKENNA GRACE","TEXT103"]
["TEXT104","MCKENNA GRACE","TEXT104"]
["TEXT105","MCKENNA GRACE","TEXT105"]
["TEXT106","MCKENNA GRACE","TEXT106"]
["TEXT107","MCKENNA GRACE","TEXT107"]
["TEXT108","MCKENNA GRACE","TEXT108"]
["TEXT109","MCKENNA GRACE","TEXT109"]
["TEXT110","MCKENNA GRACE","TEXT110"]
["TEXT111","MCKENNA GRACE","TEXT111"]
["TEXT112","MCKENNA GRACE","TEXT112"]
["TEXT113","MCKENNA GRACE","TEXT113"]
["TEXT114","MCKENNA GRACE","TEXT114"]
["TEXT115","MCKENNA GRACE","TEXT115"]
["TEXT116","MCKENNA GRACE","TEXT116"]
["TEXT117","MCKENNA GRACE","TEXT117"]
["TEXT118","MCKENNA GRACE","TEXT118"]
["TEXT119","MCKENNA GRACE","TEXT119"]
["TEXT120","MCKENNA GRACE","TEXT120"]
["TEXT121","MCKENNA GRACE","TEXT121"]
["TEXT122","MCKENNA GRACE","TEXT122"]
["TEXT123","MCKENNA GRACE","TEXT123"]
["TEXT124","MCKENNA GRACE","TEXT124"]
["TEXT125","MCKENNA GRACE","TEXT125"]
["TEXT126","MCKENNA GRACE","TEXT126"]
["TEXT127","MCKENNA GRACE","TEXT127"]
["TEXT128","MCKENNA GRACE","TEXT128"]
["TEXT129","MCKENNA GRACE","TEXT129"]
[{"$f":"\"TEXT\"&ROW()","v":"TEXT130"},"MCKENNA GRACE","TEXT130"]
["TEXT131","MCKENNA GRACE","TEXT131"]
["TEXT132","MCKENNA GRACE","TEXT132"]
["TEXT133","MCKENNA GRACE","TEXT133"]
["TEXT134","MCKENNA GRACE","TEXT134"]
["TEXT135","MCKENNA GRACE","TEXT135"]
["TEXT136","MCKENNA GRACE","TEXT136"]
["TEXT137","MCKENNA GRACE","TEXT137"]
["TEXT138","MCKENNA GRACE","TEXT138"]
["TEXT139","MCKENNA GRACE","TEXT139"]
["TEXT140","MCKENNA GRACE","TEXT140"]
["TEXT141","MCKENNA GRACE","TEXT141"]
["TEXT142","MCKENNA GRACE","TEXT142"]
["TEXT143","MCKENNA GRACE","TEXT143"]
["TEXT144","MCKENNA GRACE","TEXT144"]
["TEXT145","MCKENNA GRACE","TEXT145"]
["TEXT146","MCKENNA GRACE","TEXT146"]
["TEXT147","MCKENNA GRACE","TEXT147"]
["TEXT148","MCKENNA GRACE","TEXT148"]
["TEXT149","MCKENNA GRACE","TEXT149"]
["TEXT150","MCKENNA GRACE","TEXT150"]
["TEXT151","MCKENNA GRACE","TEXT151"]
["TEXT152","MCKENNA GRACE","TEXT152"]
["TEXT153","MCKENNA GRACE","TEXT153"]
["TEXT154","MCKENNA GRACE","TEXT154"]
["TEXT155","MCKENNA GRACE","TEXT155"]
["TEXT156","MCKENNA GRACE","TEXT156"]
["TEXT157","MCKENNA GRACE","TEXT157"]
["TEXT158","MCKENNA GRACE","TEXT158"]
["TEXT159","MCKENNA GRACE","TEXT159"]
["TEXT160","MCKENNA GRACE","TEXT160"]
["TEXT161","MCKENNA GRACE","TEXT161"]
["TEXT162","MCKENNA GRACE","TEXT162"]
["TEXT163","MCKENNA GRACE","TEXT163"]
["TEXT164","MCKENNA GRACE","TEXT164"]
["TEXT165","MCKENNA GRACE","TEXT165"]
["TEXT166","MCKENNA GRACE","TEXT166"]
["TEXT167","MCKENNA GRACE","TEXT167"]
["TEXT168","MCKENNA GRACE","TEXT168"]
["TEXT169","MCKENNA GRACE","TEXT169"]
["TEXT170","MCKENNA GRACE","TEXT170"]
["TEXT171","MCKENNA GRACE","TEXT171"]
["TEXT172","MCKENNA GRACE","TEXT172"]
["TEXT173","MCKENNA GRACE","TEXT173"]
["TEXT174","MCKENNA GRACE","TEXT174"]
["TEXT175","MCKENNA GRACE","TEXT175"]
["TEXT176","MCKENNA GRACE","TEXT176"]
["TEXT177","MCKENNA GRACE","TEXT177"]
["TEXT178","MCKENNA GRACE","TEXT178"]
["TEXT179","MCKENNA GRACE","TEXT179"]
["TEXT180","DAFNE KEEN","TEXT180"]
["TEXT181","DAFNE KEEN","TEXT181"]
["TEXT182","DAFNE KEEN","TEXT182"]
["TEXT183","DAFNE KEEN","TEXT183"]
["TEXT184","MIKU MARTINEAU","TEXT184"]
["TEXT185","DEVA CASSEL","TEXT185"]
["TEXT186","DEVA CASSEL","TEXT186"]
["TEXT187","DEVA CASSEL","TEXT187"]
["TEXT188","DEVA CASSEL","TEXT188"]
["TEXT189","MILLIE BOBBY BROWN","TEXT189"]
["TEXT190","MILLIE BOBBY BROWN","TEXT190"]
["TEXT191","MILLIE BOBBY BROWN","TEXT191"]
["TEXT192","MILLIE BOBBY BROWN","TEXT192"]
["TEXT193","MILLIE BOBBY BROWN","TEXT193"]
[{"$f":"\"TEXT\"&ROW()","v":"TEXT194"},"MILLIE BOBBY BROWN","TEXT194"]
["TEXT195","MILLIE BOBBY BROWN","TEXT195"]
["TEXT196","MILLIE BOBBY BROWN","TEXT196"]
["TEXT197","MILLIE BOBBY BROWN","TEXT197"]
["TEXT198","BELLA RAMSEY","TEXT198"]
["TEXT199","BELLA RAMSEY","TEXT199"]
["TEXT200","BELLA RAMSEY","TEXT200"]
["TEXT201","BELLA RAMSEY","TEXT201"]
["TEXT202","BELLA RAMSEY","TEXT202"]
["TEXT203","MADISON WOLFE","TEXT203"]
["TEXT204","ANEET PADDA","TEXT204"]
["TEXT205","JENNA ORTEGA","TEXT205"]
["TEXT206","JENNA ORTEGA","TEXT206"]
["TEXT207","JENNA ORTEGA","TEXT207"]
["TEXT208","JENNA ORTEGA","TEXT208"]
["TEXT209","JENNA ORTEGA","TEXT209"]
["TEXT210","JENNA ORTEGA","TEXT210"]
["TEXT211","JENNA ORTEGA","TEXT211"]
["TEXT212","JENNA ORTEGA","TEXT212"]
["TEXT213","JENNA ORTEGA","TEXT213"]
["TEXT214","JENNA ORTEGA","TEXT214"]
["TEXT215","JENNA ORTEGA","TEXT215"]
["TEXT216","CHIARA AURELIA","TEXT216"]
["TEXT217","IMAN VELLANI","TEXT217"]
["TEXT218","EMILY ALYN LIND","TEXT218"]
["TEXT219","EMILY ALYN LIND","TEXT219"]
["TEXT220","EMILY ALYN LIND","TEXT220"]
["TEXT221","EMILY ALYN LIND","TEXT221"]
["TEXT222","EMILY ALYN LIND","TEXT222"]
["TEXT223","EMILY ALYN LIND","TEXT223"]
["TEXT224","EMILY ALYN LIND","TEXT224"]
["TEXT225","EMILY ALYN LIND","TEXT225"]
["TEXT226","EMILY ALYN LIND","TEXT226"]
["TEXT227","SADIE SINK","TEXT227"]
["TEXT228","EMILIA JONES","TEXT228"]
["TEXT229","FREYA ALLAN","TEXT229"]
["TEXT230","FREYA ALLAN","TEXT230"]
["TEXT231","FREYA ALLAN","TEXT231"]
["TEXT232","ISABELA MERCED","TEXT232"]
["TEXT233","ISABELA MERCED","TEXT233"]
["TEXT234","ISABELA MERCED","TEXT234"]
["TEXT235","ISABELA MERCED","TEXT235"]
["TEXT236","ISABELA MERCED","TEXT236"]
["TEXT237","ISABELA MERCED","TEXT237"]
["TEXT238","ISABELA MERCED","TEXT238"]
["TEXT239","RACHEL ZEGLER","TEXT239"]
["TEXT240","RACHEL ZEGLER","TEXT240"]
["TEXT241","RACHEL ZEGLER","TEXT241"]
["TEXT242","NIAMH MCCORMACK","TEXT242"]
["TEXT243","NIAMH MCCORMACK","TEXT243"]
["TEXT244","NIAMH MCCORMACK","TEXT244"]
["TEXT245","NIAMH MCCORMACK","TEXT245"]
["TEXT246","NIAMH MCCORMACK","TEXT246"]
["TEXT247","ANGOURIE RICE","TEXT247"]
["TEXT248","ANGOURIE RICE","TEXT248"]
["TEXT249","ANGOURIE RICE","TEXT249"]
["TEXT250","ANGOURIE RICE","TEXT250"]
["TEXT251","ANGOURIE RICE","TEXT251"]
["TEXT252","ANGOURIE RICE","TEXT252"]
["TEXT253","THOMASIN MCKENZIE","TEXT253"]
["TEXT254","THOMASIN MCKENZIE","TEXT254"]
["TEXT255","THOMASIN MCKENZIE","TEXT255"]
["TEXT256","THOMASIN MCKENZIE","TEXT256"]
["TEXT257","THOMASIN MCKENZIE","TEXT257"]
[{"$f":"\"TEXT\"&ROW()","v":"TEXT258"},"ODESSA A'ZION","TEXT258"]
["TEXT259","ODESSA A'ZION","TEXT259"]
["TEXT260","ODESSA A'ZION","TEXT260"]
["TEXT261","ODESSA A'ZION","TEXT261"]
["TEXT262","MARIAH MOSS","TEXT262"]
["TEXT263","MILLY ALCOCK","TEXT263"]
["TEXT264","MILLY ALCOCK","TEXT264"]
["TEXT265","MILLY ALCOCK","TEXT265"]
["TEXT266","MILLY ALCOCK","TEXT266"]
["TEXT267","MILLY ALCOCK","TEXT267"]
["TEXT268","MILLY ALCOCK","TEXT268"]
["TEXT269","MILLY ALCOCK","TEXT269"]
["TEXT270","MILLY ALCOCK","TEXT270"]
["TEXT271","KIERNAN SHIPKA","TEXT271"]
["TEXT272","KIERNAN SHIPKA","TEXT272"]
["TEXT273","KIERNAN SHIPKA","TEXT273"]
["TEXT274","KIERNAN SHIPKA","TEXT274"]
["TEXT275","KIERNAN SHIPKA","TEXT275"]
["TEXT276","KIERNAN SHIPKA","TEXT276"]
["TEXT277","KIERNAN SHIPKA","TEXT277"]
["TEXT278","KIERNAN SHIPKA","TEXT278"]
["TEXT279","KIERNAN SHIPKA","TEXT279"]
["TEXT280","KIERNAN SHIPKA","TEXT280"]
["TEXT281","BAILEE MADISON","TEXT281"]
["TEXT282","EMMA KENNEY","TEXT282"]
["TEXT283","EMMA KENNEY","TEXT283"]
["TEXT284","EMMA KENNEY","TEXT284"]
["TEXT285","EMMA KENNEY","TEXT285"]
["TEXT286","EMMA KENNEY","TEXT286"]
["TEXT287","EMMA KENNEY","TEXT287"]
["TEXT288","EMMA KENNEY","TEXT288"]
["TEXT289","EMMA KENNEY","TEXT289"]
["TEXT290","LILY-ROSE DEPP","TEXT290"]
["TEXT291","LILY-ROSE DEPP","TEXT291"]
["TEXT292","LILY-ROSE DEPP","TEXT292"]
["TEXT293","LILY-ROSE DEPP","TEXT293"]
["TEXT294","LILY-ROSE DEPP","TEXT294"]
["TEXT295","LILY-ROSE DEPP","TEXT295"]
["TEXT296","LILY-ROSE DEPP","TEXT296"]
["TEXT297","LILY-ROSE DEPP","TEXT297"]
["TEXT298","LILY-ROSE DEPP","TEXT298"]
["TEXT299","LILY-ROSE DEPP","TEXT299"]
["TEXT300","LILY-ROSE DEPP","TEXT300"]
["TEXT301","LILY-ROSE DEPP","TEXT301"]
["TEXT302","LILY-ROSE DEPP","TEXT302"]
["TEXT303","LILY-ROSE DEPP","TEXT303"]
["TEXT304","LILY-ROSE DEPP","TEXT304"]
["TEXT305","LILY-ROSE DEPP","TEXT305"]
["TEXT306","LILY-ROSE DEPP","TEXT306"]
["TEXT307","LILY-ROSE DEPP","TEXT307"]
["TEXT308","LILY-ROSE DEPP","TEXT308"]
["TEXT309","LILY-ROSE DEPP","TEXT309"]
["TEXT310","LILY-ROSE DEPP","TEXT310"]
["TEXT311","LILY-ROSE DEPP","TEXT311"]
["TEXT312","LILY-ROSE DEPP","TEXT312"]
["TEXT313","LILY-ROSE DEPP","TEXT313"]
["TEXT314","LILY-ROSE DEPP","TEXT314"]
["TEXT315","LILY-ROSE DEPP","TEXT315"]
["TEXT316","LILY-ROSE DEPP","TEXT316"]
["TEXT317","LILY-ROSE DEPP","TEXT317"]
["TEXT318","LILY-ROSE DEPP","TEXT318"]
["TEXT319","LILY-ROSE DEPP","TEXT319"]
["TEXT320","LILY-ROSE DEPP","TEXT320"]
["TEXT321","LILY-ROSE DEPP","TEXT321"]
[{"$f":"\"TEXT\"&ROW()","v":"TEXT322"},"LILY-ROSE DEPP","TEXT322"]
["TEXT323","LILY-ROSE DEPP","TEXT323"]
["TEXT324","LILY-ROSE DEPP","TEXT324"]
["TEXT325","LILY-ROSE DEPP","TEXT325"]
["TEXT326","LILY-ROSE DEPP","TEXT326"]
["TEXT327","LILY-ROSE DEPP","TEXT327"]
["TEXT328","LILY-ROSE DEPP","TEXT328"]
["TEXT329","LILY-ROSE DEPP","TEXT329"]
["TEXT330","LILY-ROSE DEPP","TEXT330"]
["TEXT331","LILY-ROSE DEPP","TEXT331"]
["TEXT332","LILY-ROSE DEPP","TEXT332"]
["TEXT333","LILY-ROSE DEPP","TEXT333"]
["TEXT334","LILY-ROSE DEPP","TEXT334"]
["TEXT335","LILY-ROSE DEPP","TEXT335"]
["TEXT336","LILY-ROSE DEPP","TEXT336"]
["TEXT337","LILY-ROSE DEPP","TEXT337"]
["TEXT338","LILY-ROSE DEPP","TEXT338"]
["TEXT339","LILY-ROSE DEPP","TEXT339"]
["TEXT340","LILY-ROSE DEPP","TEXT340"]
["TEXT341","LILY-ROSE DEPP","TEXT341"]
["TEXT342","LILY-ROSE DEPP","TEXT342"]
["TEXT343","LILY-ROSE DEPP","TEXT343"]
["TEXT344","LILY-ROSE DEPP","TEXT344"]
["TEXT345","LILY-ROSE DEPP","TEXT345"]
["TEXT346","LILY-ROSE DEPP","TEXT346"]
["TEXT347","LILY-ROSE DEPP","TEXT347"]
["TEXT348","LILY-ROSE DEPP","TEXT348"]
["TEXT349","LILY-ROSE DEPP","TEXT349"]
["TEXT350","LILY-ROSE DEPP","TEXT350"]
["TEXT351","LILY-ROSE DEPP","TEXT351"]
["TEXT352","LILY-ROSE DEPP","TEXT352"]
["TEXT353","LILY-ROSE DEPP","TEXT353"]
["TEXT354","LILY-ROSE DEPP","TEXT354"]
["TEXT355","LILY-ROSE DEPP","TEXT355"]
["TEXT356","LILY-ROSE DEPP","TEXT356"]
["TEXT357","LILY-ROSE DEPP","TEXT357"]
["TEXT358","LILY-ROSE DEPP","TEXT358"]
["TEXT359","LILY-ROSE DEPP","TEXT359"]
["TEXT360","LILY-ROSE DEPP","TEXT360"]
["TEXT361","LILY-ROSE DEPP","TEXT361"]
["TEXT362","LILY-ROSE DEPP","TEXT362"]
["TEXT363","LILY-ROSE DEPP","TEXT363"]
["TEXT364","LILY-ROSE DEPP","TEXT364"]
["TEXT365","LILY-ROSE DEPP","TEXT365"]
["TEXT366","LILY-ROSE DEPP","TEXT366"]
["TEXT367","LILY-ROSE DEPP","TEXT367"]
["TEXT368","SABRINA CARPENTER","TEXT368"]
["TEXT369","SABRINA CARPENTER","TEXT369"]
["TEXT370","SABRINA CARPENTER","TEXT370"]
["TEXT371","SABRINA CARPENTER","TEXT371"]
["TEXT372","SABRINA CARPENTER","TEXT372"]
["TEXT373","SABRINA CARPENTER","TEXT373"]
["TEXT374","MIKEY MADISON","TEXT374"]
["TEXT375","MIKEY MADISON","TEXT375"]
["TEXT376","MIKEY MADISON","TEXT376"]
["TEXT377","MIKEY MADISON","TEXT377"]
["TEXT378","MIKEY MADISON","TEXT378"]
["TEXT379","MIKEY MADISON","TEXT379"]
["TEXT380","MIKEY MADISON","TEXT380"]
["TEXT381","MIKEY MADISON","TEXT381"]
["TEXT382","MIKEY MADISON","TEXT382"]
["TEXT383","MIKEY MADISON","TEXT383"]
["TEXT384","MIKEY MADISON","TEXT384"]
["TEXT385","MIKEY MADISON","TEXT385"]
[{"$f":"\"TEXT\"&ROW()","v":"TEXT386"},"MIKEY MADISON","TEXT386"]
["TEXT387","MIKEY MADISON","TEXT387"]
["TEXT388","MIKEY MADISON","TEXT388"]
["TEXT389","MIKEY MADISON","TEXT389"]
["TEXT390","MIKEY MADISON","TEXT390"]
["TEXT391","MIKEY MADISON","TEXT391"]
["TEXT392","MIKEY MADISON","TEXT392"]
["TEXT393","MIKEY MADISON","TEXT393"]
["TEXT394","MIKEY MADISON","TEXT394"]
["TEXT395","MIKEY MADISON","TEXT395"]
["TEXT396","MIKEY MADISON","TEXT396"]
["TEXT397","MIKEY MADISON","TEXT397"]
["TEXT398","MIKEY MADISON","TEXT398"]
["TEXT399","MIKEY MADISON","TEXT399"]
["TEXT400","MIKEY MADISON","TEXT400"]
["TEXT401","MIKEY MADISON","TEXT401"]
["TEXT402","MIKEY MADISON","TEXT402"]
["TEXT403","MIKEY MADISON","TEXT403"]
["TEXT404","MIKEY MADISON","TEXT404"]
["TEXT405","MIKEY MADISON","TEXT405"]
["TEXT406","MIKEY MADISON","TEXT406"]
["TEXT407","MIKEY MADISON","TEXT407"]
["TEXT408","MIKEY MADISON","TEXT408"]
["TEXT409","MIKEY MADISON","TEXT409"]
["TEXT410","MIKEY MADISON","TEXT410"]
["TEXT411","MIKEY MADISON","TEXT411"]
["TEXT412","MIKEY MADISON","TEXT412"]
["TEXT413","ERANA JAMES","TEXT413"]
["TEXT414","ERANA JAMES","TEXT414"]
["TEXT415","ERANA JAMES","TEXT415"]
["TEXT416","ERANA JAMES","TEXT416"]
["TEXT417","ERANA JAMES","TEXT417"]
["TEXT418","ERANA JAMES","TEXT418"]
["TEXT419","HUNTER SCHAFER","TEXT419"]
["TEXT420","HUNTER SCHAFER","TEXT420"]
["TEXT421","HUNTER SCHAFER","TEXT421"]
["TEXT422","HUNTER SCHAFER","TEXT422"]
["TEXT423","HUNTER SCHAFER","TEXT423"]
["TEXT424","HUNTER SCHAFER","TEXT424"]
["TEXT425","HUNTER SCHAFER","TEXT425"]
["TEXT426","HUNTER SCHAFER","TEXT426"]
["TEXT427","HUNTER SCHAFER","TEXT427"]
["TEXT428","HUNTER SCHAFER","TEXT428"]
["TEXT429","HUNTER SCHAFER","TEXT429"]
["TEXT430","HUNTER SCHAFER","TEXT430"]
["TEXT431","HUNTER SCHAFER","TEXT431"]
["TEXT432","HUNTER SCHAFER","TEXT432"]
["TEXT433","HUNTER SCHAFER","TEXT433"]
["TEXT434","HUNTER SCHAFER","TEXT434"]
["TEXT435","HUNTER SCHAFER","TEXT435"]
["TEXT436","HUNTER SCHAFER","TEXT436"]
["TEXT437","HUNTER SCHAFER","TEXT437"]
["TEXT438","KATIE DOUGLAS","TEXT438"]
["TEXT439","KATIE DOUGLAS","TEXT439"]
["TEXT440","KATIE DOUGLAS","TEXT440"]
["TEXT441","KATIE DOUGLAS","TEXT441"]
["TEXT442","EMMA LAIRD","TEXT442"]
["TEXT443","EMMA LAIRD","TEXT443"]
["TEXT444","EMMA LAIRD","TEXT444"]
["TEXT445","EMMA LAIRD","TEXT445"]
["TEXT446","EMMA LAIRD","TEXT446"]
["TEXT447","EMMA LAIRD","TEXT447"]
["TEXT448","EMMA LAIRD","TEXT448"]
["TEXT449","EMMA LAIRD","TEXT449"]
[{"$f":"\"TEXT\"&ROW()","v":"TEXT450"},"EMMA LAIRD","TEXT450"]
["TEXT451","EMMA LAIRD","TEXT451"]
["TEXT452","EMMA LAIRD","TEXT452"]
["TEXT453","EMMA LAIRD","TEXT453"]
["TEXT454","EMMA LAIRD","TEXT454"]
["TEXT455","EMMA LAIRD","TEXT455"]
["TEXT456","EMMA LAIRD","TEXT456"]
["TEXT457","CAILEE SPAENY","TEXT457"]
["TEXT458","CAILEE SPAENY","TEXT458"]
["TEXT459","MADISON PETTIS","TEXT459"]
["TEXT460","MADISON PETTIS","TEXT460"]
["TEXT461","MADISON PETTIS","TEXT461"]
["TEXT462","MAYA HAWKE","TEXT462"]
["TEXT463","MAYA HAWKE","TEXT463"]
["TEXT464","MAYA HAWKE","TEXT464"]
["TEXT465","MAYA HAWKE","TEXT465"]
["TEXT466","MAYA HAWKE","TEXT466"]
["TEXT467","MAYA HAWKE","TEXT467"]
["TEXT468","MAYA HAWKE","TEXT468"]
["TEXT469","DAISY EDGAR-JONES","TEXT469"]
["TEXT470","DAISY EDGAR-JONES","TEXT470"]
["TEXT471","DAISY EDGAR-JONES","TEXT471"]
["TEXT472","DAISY EDGAR-JONES","TEXT472"]
["TEXT473","DAISY EDGAR-JONES","TEXT473"]
["TEXT474","DAISY EDGAR-JONES","TEXT474"]
["TEXT475","DAISY EDGAR-JONES","TEXT475"]
["TEXT476","DAISY EDGAR-JONES","TEXT476"]
["TEXT477","DAISY EDGAR-JONES","TEXT477"]
["TEXT478","DAISY EDGAR-JONES","TEXT478"]
["TEXT479","DAISY EDGAR-JONES","TEXT479"]
["TEXT480","DAISY EDGAR-JONES","TEXT480"]
["TEXT481","DAISY EDGAR-JONES","TEXT481"]
["TEXT482","DAISY EDGAR-JONES","TEXT482"]
["TEXT483","DAISY EDGAR-JONES","TEXT483"]
["TEXT484","DAISY EDGAR-JONES","TEXT484"]
["TEXT485","DAISY EDGAR-JONES","TEXT485"]
["TEXT486","DAISY EDGAR-JONES","TEXT486"]
["TEXT487","DAISY EDGAR-JONES","TEXT487"]
["TEXT488","DAISY EDGAR-JONES","TEXT488"]
["TEXT489","DAISY EDGAR-JONES","TEXT489"]
["TEXT490","DAISY EDGAR-JONES","TEXT490"]
["TEXT491","DAISY EDGAR-JONES","TEXT491"]
["TEXT492","RAMONA YOUNG","TEXT492"]
["TEXT493","MAINEI KINIMAKA","TEXT493"]
["TEXT494","ELLE FANNING","TEXT494"]
["TEXT495","ELLE FANNING","TEXT495"]
["TEXT496","ELLE FANNING","TEXT496"]
["TEXT497","ELLE FANNING","TEXT497"]
["TEXT498","ELLE FANNING","TEXT498"]
["TEXT499","ELLE FANNING","TEXT499"]
["TEXT500","ELLE FANNING","TEXT500"]
["TEXT501","ELLE FANNING","TEXT501"]
["TEXT502","ELLE FANNING","TEXT502"]
["TEXT503","ELLE FANNING","TEXT503"]
["TEXT504","ELLE FANNING","TEXT504"]
["TEXT505","ELLE FANNING","TEXT505"]
["TEXT506","ELLE FANNING","TEXT506"]
["TEXT507","ELLE FANNING","TEXT507"]
["TEXT508","ELLE FANNING","TEXT508"]
["TEXT509","ELLE FANNING","TEXT509"]
["TEXT510","ELLE FANNING","TEXT510"]
["TEXT511","ELLE FANNING","TEXT511"]
["TEXT512","PEYTON LIST","TEXT512"]
["TEXT513","PEYTON LIST","TEXT513"]
[{"$f":"\"TEXT\"&ROW()","v":"TEXT514"},"PEYTON LIST","TEXT514"]
["TEXT515","PEYTON LIST","TEXT515"]
["TEXT516","PEYTON LIST","TEXT516"]
["TEXT517","PEYTON LIST","TEXT517"]
["TEXT518","PEYTON LIST","TEXT518"]
["TEXT519","PEYTON LIST","TEXT519"]
["TEXT520","PEYTON LIST","TEXT520"]
["TEXT521","PEYTON LIST","TEXT521"]
["TEXT522","PEYTON LIST","TEXT522"]
["TEXT523","JESSICA REYNOLDS","TEXT523"]
["TEXT524","JESSICA REYNOLDS","TEXT524"]
["TEXT525","JESSICA REYNOLDS","TEXT525"]
["TEXT526","ABIGAIL COWEN","TEXT526"]
["TEXT527","ODESSA YOUNG","TEXT527"]
["TEXT528","ODESSA YOUNG","TEXT528"]
["TEXT529","ODESSA YOUNG","TEXT529"]
["TEXT530","ODESSA YOUNG","TEXT530"]
["TEXT531","ODESSA YOUNG","TEXT531"]
["TEXT532","ODESSA YOUNG","TEXT532"]
["TEXT533","ODESSA YOUNG","TEXT533"]
["TEXT534","ODESSA YOUNG","TEXT534"]
["TEXT535","ODESSA YOUNG","TEXT535"]
["TEXT536","ODESSA YOUNG","TEXT536"]
["TEXT537","ODESSA YOUNG","TEXT537"]
["TEXT538","ODESSA YOUNG","TEXT538"]
["TEXT539","ODESSA YOUNG","TEXT539"]
["TEXT540","ODESSA YOUNG","TEXT540"]
["TEXT541","ODESSA YOUNG","TEXT541"]
["TEXT542","ODESSA YOUNG","TEXT542"]
["TEXT543","ODESSA YOUNG","TEXT543"]
["TEXT544","ODESSA YOUNG","TEXT544"]
["TEXT545","LIZZE BROADWAY","TEXT545"]
["TEXT546","LIZZE BROADWAY","TEXT546"]
["TEXT547","ARIEL WINTER","TEXT547"]
["TEXT548","ARIEL WINTER","TEXT548"]
["TEXT549","ARIEL WINTER","TEXT549"]
["TEXT550","ARIEL WINTER","TEXT550"]
["TEXT551","MADELYN CLINE","TEXT551"]
["TEXT552","MADELYN CLINE","TEXT552"]
["TEXT553","MADELYN CLINE","TEXT553"]
["TEXT554","MADELYN CLINE","TEXT554"]
["TEXT555","MADELYN CLINE","TEXT555"]
["TEXT556","MADELYN CLINE","TEXT556"]
["TEXT557","MADELYN CLINE","TEXT557"]
["TEXT558","MADELYN CLINE","TEXT558"]
["TEXT559","MADELYN CLINE","TEXT559"]
["TEXT560","MAUDE APATOW","TEXT560"]
["TEXT561","MAUDE APATOW","TEXT561"]
["TEXT562","MAUDE APATOW","TEXT562"]
["TEXT563","IVANNA SAKHNO","TEXT563"]
["TEXT564","CHRISTINA ROBINSON","TEXT564"]
["TEXT565","RAYE","TEXT565"]
["TEXT566","BELLA THORNE","TEXT566"]
["TEXT567","BELLA THORNE","TEXT567"]
["TEXT568","BELLA THORNE","TEXT568"]
["TEXT569","BELLA THORNE","TEXT569"]
["TEXT570","BELLA THORNE","TEXT570"]
["TEXT571","BELLA THORNE","TEXT571"]
["TEXT572","BELLA THORNE","TEXT572"]
["TEXT573","BELLA THORNE","TEXT573"]
["TEXT574","BELLA THORNE","TEXT574"]
["TEXT575","BELLA THORNE","TEXT575"]
["TEXT576","BELLA THORNE","TEXT576"]
["TEXT577","BELLA THORNE","TEXT577"]
[{"$f":"\"TEXT\"&ROW()","v":"TEXT578"},"BELLA THORNE","TEXT578"]
["TEXT579","BELLA THORNE","TEXT579"]
["TEXT580","BELLA THORNE","TEXT580"]
["TEXT581","BELLA THORNE","TEXT581"]
["TEXT582","BELLA THORNE","TEXT582"]
["TEXT583","BELLA THORNE","TEXT583"]
["TEXT584","BELLA THORNE","TEXT584"]
["TEXT585","BELLA THORNE","TEXT585"]
["TEXT586","BELLA THORNE","TEXT586"]
["TEXT587","BELLA THORNE","TEXT587"]
["TEXT588","BELLA THORNE","TEXT588"]
["TEXT589","BELLA THORNE","TEXT589"]
["TEXT590","BELLA THORNE","TEXT590"]
["TEXT591","BELLA THORNE","TEXT591"]
["TEXT592","BELLA THORNE","TEXT592"]
["TEXT593","BELLA THORNE","TEXT593"]
["TEXT594","BELLA THORNE","TEXT594"]
["TEXT595","BELLA THORNE","TEXT595"]
["TEXT596","BELLA THORNE","TEXT596"]
["TEXT597","BELLA THORNE","TEXT597"]
["TEXT598","BELLA THORNE","TEXT598"]
["TEXT599","BELLA THORNE","TEXT599"]
["TEXT600","BELLA THORNE","TEXT600"]
["TEXT601","BELLA THORNE","TEXT601"]
["TEXT602","BELLA THORNE","TEXT602"]
["TEXT603","BELLA THORNE","TEXT603"]
["TEXT604","BELLA THORNE","TEXT604"]
["TEXT605","BELLA THORNE","TEXT605"]
["TEXT606","BELLA THORNE","TEXT606"]
["TEXT607","BELLA THORNE","TEXT607"]
["TEXT608","BELLA THORNE","TEXT608"]
["TEXT609","BELLA THORNE","TEXT609"]
["TEXT610","BELLA THORNE","TEXT610"]
["TEXT611","BELLA THORNE","TEXT611"]
["TEXT612","BELLA THORNE","TEXT612"]
["TEXT613","BELLA THORNE","TEXT613"]
["TEXT614","BELLA THORNE","TEXT614"]
["TEXT615","BELLA THORNE","TEXT615"]
["TEXT616","BELLA THORNE","TEXT616"]
["TEXT617","BELLA THORNE","TEXT617"]
["TEXT618","BELLA THORNE","TEXT618"]
["TEXT619","BELLA THORNE","TEXT619"]
["TEXT620","BELLA THORNE","TEXT620"]
["TEXT621","BELLA THORNE","TEXT621"]
["TEXT622","BELLA THORNE","TEXT622"]
["TEXT623","BELLA THORNE","TEXT623"]
["TEXT624","ANTONIA GENTRY","TEXT624"]
["TEXT625","ELENA KAMPOURIS","TEXT625"]
["TEXT626","ELENA KAMPOURIS","TEXT626"]
["TEXT627","ELENA KAMPOURIS","TEXT627"]
["TEXT628","ELENA KAMPOURIS","TEXT628"]
["TEXT629","ELENA KAMPOURIS","TEXT629"]
["TEXT630","ELENA KAMPOURIS","TEXT630"]
["TEXT631","ELENA KAMPOURIS","TEXT631"]
["TEXT632","ELENA KAMPOURIS","TEXT632"]
["TEXT633","SYDNEY SWEENEY","TEXT633"]
["TEXT634","SYDNEY SWEENEY","TEXT634"]
["TEXT635","SYDNEY SWEENEY","TEXT635"]
["TEXT636","SYDNEY SWEENEY","TEXT636"]
["TEXT637","SYDNEY SWEENEY","TEXT637"]
["TEXT638","SYDNEY SWEENEY","TEXT638"]
["TEXT639","SYDNEY SWEENEY","TEXT639"]
["TEXT640","SYDNEY SWEENEY","TEXT640"]
["TEXT641","SYDNEY SWEENEY","TEXT641"]
[{"$f":"\"TEXT\"&ROW()","v":"TEXT642"},"SYDNEY SWEENEY","TEXT642"]
["TEXT643","SYDNEY SWEENEY","TEXT643"]
["TEXT644","SYDNEY SWEENEY","TEXT644"]
["TEXT645","SYDNEY SWEENEY","TEXT645"]
["TEXT646","SYDNEY SWEENEY","TEXT646"]
["TEXT647","SYDNEY SWEENEY","TEXT647"]
["TEXT648","SYDNEY SWEENEY","TEXT648"]
["TEXT649","SYDNEY SWEENEY","TEXT649"]
["TEXT650","SYDNEY SWEENEY","TEXT650"]
["TEXT651","SYDNEY SWEENEY","TEXT651"]
["TEXT652","SYDNEY SWEENEY","TEXT652"]
["TEXT653","SYDNEY SWEENEY","TEXT653"]
["TEXT654","SYDNEY SWEENEY","TEXT654"]
["TEXT655","SYDNEY SWEENEY","TEXT655"]
["TEXT656","SYDNEY SWEENEY","TEXT656"]
["TEXT657","SYDNEY SWEENEY","TEXT657"]
["TEXT658","SYDNEY SWEENEY","TEXT658"]
["TEXT659","SYDNEY SWEENEY","TEXT659"]
["TEXT660","SYDNEY SWEENEY","TEXT660"]
["TEXT661","SYDNEY SWEENEY","TEXT661"]
["TEXT662","SYDNEY SWEENEY","TEXT662"]
["TEXT663","SYDNEY SWEENEY","TEXT663"]
["TEXT664","SYDNEY SWEENEY","TEXT664"]
["TEXT665","SYDNEY SWEENEY","TEXT665"]
["TEXT666","SYDNEY SWEENEY","TEXT666"]
["TEXT667","SYDNEY SWEENEY","TEXT667"]
["TEXT668","SYDNEY SWEENEY","TEXT668"]
["TEXT669","SYDNEY SWEENEY","TEXT669"]
["TEXT670","SYDNEY SWEENEY","TEXT670"]
["TEXT671","SYDNEY SWEENEY","TEXT671"]
["TEXT672","SYDNEY SWEENEY","TEXT672"]
["TEXT673","SYDNEY SWEENEY","TEXT673"]
["TEXT674","SYDNEY SWEENEY","TEXT674"]
["TEXT675","SYDNEY SWEENEY","TEXT675"]
["TEXT676","SYDNEY SWEENEY","TEXT676"]
["TEXT677","SYDNEY SWEENEY","TEXT677"]
["TEXT678","SYDNEY SWEENEY","TEXT678"]
["TEXT679","SYDNEY SWEENEY","TEXT679"]
["TEXT680","SYDNEY SWEENEY","TEXT680"]
["TEXT681","SYDNEY SWEENEY","TEXT681"]
["TEXT682","SYDNEY SWEENEY","TEXT682"]
["TEXT683","SYDNEY SWEENEY","TEXT683"]
["TEXT684","SYDNEY SWEENEY","TEXT684"]
["TEXT685","SYDNEY SWEENEY","TEXT685"]
["TEXT686","SYDNEY SWEENEY","TEXT686"]
["TEXT687","SYDNEY SWEENEY","TEXT687"]
["TEXT688","SYDNEY SWEENEY","TEXT688"]
["TEXT689","SYDNEY SWEENEY","TEXT689"]
["TEXT690","SYDNEY SWEENEY","TEXT690"]
["TEXT691","SYDNEY SWEENEY","TEXT691"]
["TEXT692","SYDNEY SWEENEY","TEXT692"]
["TEXT693","SYDNEY SWEENEY","TEXT693"]
["TEXT694","SYDNEY SWEENEY","TEXT694"]
["TEXT695","SYDNEY SWEENEY","TEXT695"]
["TEXT696","SYDNEY SWEENEY","TEXT696"]
["TEXT697","SYDNEY SWEENEY","TEXT697"]
["TEXT698","SYDNEY SWEENEY","TEXT698"]
["TEXT699","SYDNEY SWEENEY","TEXT699"]
["TEXT700","SYDNEY SWEENEY","TEXT700"]
["TEXT701","SYDNEY SWEENEY","TEXT701"]
["TEXT702","SYDNEY SWEENEY","TEXT702"]
["TEXT703","SYDNEY SWEENEY","TEXT703"]
["TEXT704","SYDNEY SWEENEY","TEXT704"]
["TEXT705","SYDNEY SWEENEY","TEXT705"]
[{"$f":"\"TEXT\"&ROW()","v":"TEXT706"},"SYDNEY SWEENEY","TEXT706"]
["TEXT707","SYDNEY SWEENEY","TEXT707"]
["TEXT708","SYDNEY SWEENEY","TEXT708"]
["TEXT709","SYDNEY SWEENEY","TEXT709"]
["TEXT710","SYDNEY SWEENEY","TEXT710"]
["TEXT711","SYDNEY SWEENEY","TEXT711"]
["TEXT712","SYDNEY SWEENEY","TEXT712"]
["TEXT713","SYDNEY SWEENEY","TEXT713"]
["TEXT714","SYDNEY SWEENEY","TEXT714"]
["TEXT715","SYDNEY SWEENEY","TEXT715"]
["TEXT716","MICHELLE RANDOLPH","TEXT716"]
["TEXT717","MICHELLE RANDOLPH","TEXT717"]
["TEXT718","MICHELLE RANDOLPH","TEXT718"]
["TEXT719","MICHELLE RANDOLPH","TEXT719"]
["TEXT720","AMITA SUMAN","TEXT720"]
["TEXT721","AMITA SUMAN","TEXT721"]
["TEXT722","AMITA SUMAN","TEXT722"]
["TEXT723","ALISON OLIVER","TEXT723"]
["TEXT724","ALISON OLIVER","TEXT724"]
["TEXT725","ALISON OLIVER","TEXT725"]
["TEXT726","ALISON OLIVER","TEXT726"]
["TEXT727","ALISON OLIVER","TEXT727"]
["TEXT728","ALISON OLIVER","TEXT728"]
["TEXT729","ALISON OLIVER","TEXT729"]
["TEXT730","ALISON OLIVER","TEXT730"]
["TEXT731","ALISON OLIVER","TEXT731"]
["TEXT732","ALISON OLIVER","TEXT732"]
["TEXT733","ALISON OLIVER","TEXT733"]
["TEXT734","ALISON OLIVER","TEXT734"]
["TEXT735","MAISIE WILLIAMS","TEXT735"]
["TEXT736","MAISIE WILLIAMS","TEXT736"]
["TEXT737","MAISIE WILLIAMS","TEXT737"]
["TEXT738","MAISIE WILLIAMS","TEXT738"]
["TEXT739","MAISIE WILLIAMS","TEXT739"]
["TEXT740","ABIGAIL LAWRIE","TEXT740"]
["TEXT741","ABIGAIL LAWRIE","TEXT741"]
["TEXT742","ABIGAIL LAWRIE","TEXT742"]
["TEXT743","MADISON ISEMAN","TEXT743"]
["TEXT744","MADISON ISEMAN","TEXT744"]
["TEXT745","MADISON ISEMAN","TEXT745"]
["TEXT746","MADISON ISEMAN","TEXT746"]
["TEXT747","MADISON ISEMAN","TEXT747"]
["TEXT748","MADISON ISEMAN","TEXT748"]
["TEXT749","MADISON ISEMAN","TEXT749"]
["TEXT750","MADISON ISEMAN","TEXT750"]
["TEXT751","MADISON ISEMAN","TEXT751"]
["TEXT752","MADISON ISEMAN","TEXT752"]
["TEXT753","MADISON ISEMAN","TEXT753"]
["TEXT754","MADISON ISEMAN","TEXT754"]
["TEXT755","MADISON ISEMAN","TEXT755"]
["TEXT756","LONDON THOR","TEXT756"]
["TEXT757","LONDON THOR","TEXT757"]
["TEXT758","KAITLYN DEVER","TEXT758"]
["TEXT759","KAITLYN DEVER","TEXT759"]
["TEXT760","KAITLYN DEVER","TEXT760"]
["TEXT761","KAITLYN DEVER","TEXT761"]
["TEXT762","KAITLYN DEVER","TEXT762"]
["TEXT763","KAITLYN DEVER","TEXT763"]
["TEXT764","KAITLYN DEVER","TEXT764"]
["TEXT765","KAITLYN DEVER","TEXT765"]
["TEXT766","KAITLYN DEVER","TEXT766"]
["TEXT767","MARISA ABELA","TEXT767"]
["TEXT768","MARISA ABELA","TEXT768"]
["TEXT769","MARISA ABELA","TEXT769"]
[{"$f":"\"TEXT\"&ROW()","v":"TEXT770"},"MARISA ABELA","TEXT770"]
["TEXT771","MARISA ABELA","TEXT771"]
["TEXT772","MARISA ABELA","TEXT772"]
["TEXT773","MARISA ABELA","TEXT773"]
["TEXT774","MARISA ABELA","TEXT774"]
["TEXT775","MARISA ABELA","TEXT775"]
["TEXT776","MARISA ABELA","TEXT776"]
["TEXT777","MARISA ABELA","TEXT777"]
["TEXT778","MARISA ABELA","TEXT778"]
["TEXT779","MARISA ABELA","TEXT779"]
["TEXT780","ANN SKELLY","TEXT780"]
["TEXT781","GRACE VAN PATTEN","TEXT781"]
["TEXT782","GRACE VAN PATTEN","TEXT782"]
["TEXT783","GRACE VAN PATTEN","TEXT783"]
["TEXT784","GRACE VAN PATTEN","TEXT784"]
["TEXT785","GRACE VAN PATTEN","TEXT785"]
["TEXT786","GRACE VAN PATTEN","TEXT786"]
["TEXT787","GRACE VAN PATTEN","TEXT787"]
["TEXT788","GRACE VAN PATTEN","TEXT788"]
["TEXT789","GRACE VAN PATTEN","TEXT789"]
["TEXT790","GRACE VAN PATTEN","TEXT790"]
["TEXT791","GRACE VAN PATTEN","TEXT791"]
["TEXT792","DANIELA MELCHIOR","TEXT792"]
["TEXT793","DANIELA MELCHIOR","TEXT793"]
["TEXT794","DANIELA MELCHIOR","TEXT794"]
["TEXT795","DANIELA MELCHIOR","TEXT795"]
["TEXT796","ELLA PURNELL","TEXT796"]
["TEXT797","ELLA PURNELL","TEXT797"]
["TEXT798","ELLA PURNELL","TEXT798"]
["TEXT799","ELLA PURNELL","TEXT799"]
["TEXT800","ELLA PURNELL","TEXT800"]
["TEXT801","ELLA PURNELL","TEXT801"]
["TEXT802","ELLA PURNELL","TEXT802"]
["TEXT803","ELLA PURNELL","TEXT803"]
["TEXT804","ELLA PURNELL","TEXT804"]
["TEXT805","LILI REINHART","TEXT805"]
["TEXT806","LILI REINHART","TEXT806"]
["TEXT807","LILI REINHART","TEXT807"]
["TEXT808","LILI REINHART","TEXT808"]
["TEXT809","LILI REINHART","TEXT809"]
["TEXT810","LILI REINHART","TEXT810"]
["TEXT811","LILI REINHART","TEXT811"]
["TEXT812","LILI REINHART","TEXT812"]
["TEXT813","LILI REINHART","TEXT813"]
["TEXT814","LILI REINHART","TEXT814"]
["TEXT815","LILI REINHART","TEXT815"]
["TEXT816","LILI REINHART","TEXT816"]
["TEXT817","LILI REINHART","TEXT817"]
["TEXT818","LILI REINHART","TEXT818"]
["TEXT819","ZENDAYA","TEXT819"]
["TEXT820","ZENDAYA","TEXT820"]
["TEXT821","ZENDAYA","TEXT821"]
["TEXT822","ZENDAYA","TEXT822"]
["TEXT823","ZENDAYA","TEXT823"]
["TEXT824","ZENDAYA","TEXT824"]
["TEXT825","ZENDAYA","TEXT825"]
["TEXT826","ZENDAYA","TEXT826"]
["TEXT827","ZENDAYA","TEXT827"]
["TEXT828","ZENDAYA","TEXT828"]
["TEXT829","ZENDAYA","TEXT829"]
["TEXT830","ZENDAYA","TEXT830"]
["TEXT831","ZENDAYA","TEXT831"]
["TEXT832","ZENDAYA","TEXT832"]
["TEXT833","ZENDAYA","TEXT833"]
[{"$f":"\"TEXT\"&ROW()","v":"TEXT834"},"ZENDAYA","TEXT834"]
["TEXT835","ZENDAYA","TEXT835"]
["TEXT836","ZENDAYA","TEXT836"]
["TEXT837","ZENDAYA","TEXT837"]
["TEXT838","ZENDAYA","TEXT838"]
["TEXT839","ZENDAYA","TEXT839"]
["TEXT840","ZENDAYA","TEXT840"]
["TEXT841","ZENDAYA","TEXT841"]
["TEXT842","ZENDAYA","TEXT842"]
["TEXT843","ZENDAYA","TEXT843"]
["TEXT844","SYNNOVE KARLSEN","TEXT844"]
["TEXT845","SYNNOVE KARLSEN","TEXT845"]
["TEXT846","SYNNOVE KARLSEN","TEXT846"]
["TEXT847","GABRIELLE CREEVY","TEXT847"]
["TEXT848","GABRIELLE CREEVY","TEXT848"]
["TEXT849","MARIA BAKALOVA","TEXT849"]
["TEXT850","MARIA BAKALOVA","TEXT850"]
["TEXT851","MARIA BAKALOVA","TEXT851"]
["TEXT852","MARIA BAKALOVA","TEXT852"]
["TEXT853","MARIA BAKALOVA","TEXT853"]
["TEXT854","MARIA BAKALOVA","TEXT854"]
["TEXT855","MARIA BAKALOVA","TEXT855"]
["TEXT856","MARIA BAKALOVA","TEXT856"]
["TEXT857","CHASE SUI WONDERS","TEXT857"]
["TEXT858","CHASE SUI WONDERS","TEXT858"]
["TEXT859","CHASE SUI WONDERS","TEXT859"]
["TEXT860","CHASE SUI WONDERS","TEXT860"]
["TEXT861","CHASE SUI WONDERS","TEXT861"]
["TEXT862","CHASE SUI WONDERS","TEXT862"]
["TEXT863","CHASE SUI WONDERS","TEXT863"]
["TEXT864","VIOLETT BEANE","TEXT864"]
["TEXT865","VIOLETT BEANE","TEXT865"]
["TEXT866","VIOLETT BEANE","TEXT866"]
["TEXT867","VIOLETT BEANE","TEXT867"]
["TEXT868","VIOLETT BEANE","TEXT868"]
["TEXT869","ANYA TAYLOR-JOY","TEXT869"]
["TEXT870","ANYA TAYLOR-JOY","TEXT870"]
["TEXT871","ANYA TAYLOR-JOY","TEXT871"]
["TEXT872","ANYA TAYLOR-JOY","TEXT872"]
["TEXT873","ANYA TAYLOR-JOY","TEXT873"]
["TEXT874","ANYA TAYLOR-JOY","TEXT874"]
["TEXT875","ANYA TAYLOR-JOY","TEXT875"]
["TEXT876","ANYA TAYLOR-JOY","TEXT876"]
["TEXT877","ANYA TAYLOR-JOY","TEXT877"]
["TEXT878","ANYA TAYLOR-JOY","TEXT878"]
["TEXT879","ANYA TAYLOR-JOY","TEXT879"]
["TEXT880","ANYA TAYLOR-JOY","TEXT880"]
["TEXT881","ANYA TAYLOR-JOY","TEXT881"]
["TEXT882","ANYA TAYLOR-JOY","TEXT882"]
["TEXT883","ANYA TAYLOR-JOY","TEXT883"]
["TEXT884","ANYA TAYLOR-JOY","TEXT884"]
["TEXT885","EMILY KIMBALL","TEXT885"]
["TEXT886","EMILY KIMBALL","TEXT886"]
["TEXT887","EMILY KIMBALL","TEXT887"]
["TEXT888","EMILY KIMBALL","TEXT888"]
["TEXT889","ABIGAIL BRESLIN","TEXT889"]
["TEXT890","ABIGAIL BRESLIN","TEXT890"]
["TEXT891","ABIGAIL BRESLIN","TEXT891"]
["TEXT892","ABIGAIL BRESLIN","TEXT892"]
["TEXT893","LIZA KOSHY","TEXT893"]
["TEXT894","LIZA KOSHY","TEXT894"]
["TEXT895","LIZA KOSHY","TEXT895"]
["TEXT896","LIZA KOSHY","TEXT896"]
["TEXT897","LIZA KOSHY","TEXT897"]
[{"$f":"\"TEXT\"&ROW()","v":"TEXT898"},"LIZA KOSHY","TEXT898"]
["TEXT899","SOPHIE TURNER","TEXT899"]
["TEXT900","SOPHIE TURNER","TEXT900"]
["TEXT901","SOPHIE TURNER","TEXT901"]
["TEXT902","SOPHIE TURNER","TEXT902"]
["TEXT903","SOPHIE TURNER","TEXT903"]
["TEXT904","SOPHIE TURNER","TEXT904"]
["TEXT905","SOPHIE TURNER","TEXT905"]
["TEXT906","SOPHIE TURNER","TEXT906"]
["TEXT907","SYDNEY CHANDLER","TEXT907"]
["TEXT908","SYDNEY CHANDLER","TEXT908"]
["TEXT909","SYDNEY CHANDLER","TEXT909"]
["TEXT910","DOVE CAMERON","TEXT910"]
["TEXT911","DOVE CAMERON","TEXT911"]
["TEXT912","DOVE CAMERON","TEXT912"]
["TEXT913","DOVE CAMERON","TEXT913"]
["TEXT914","DOVE CAMERON","TEXT914"]
["TEXT915","DOVE CAMERON","TEXT915"]
["TEXT916","DOVE CAMERON","TEXT916"]
["TEXT917","DOVE CAMERON","TEXT917"]
["TEXT918","DOVE CAMERON","TEXT918"]
["TEXT919","DOVE CAMERON","TEXT919"]
["TEXT920","DOVE CAMERON","TEXT920"]
["TEXT921","DOVE CAMERON","TEXT921"]
["TEXT922","DOVE CAMERON","TEXT922"]
["TEXT923","DOVE CAMERON","TEXT923"]
["TEXT924","DOVE CAMERON","TEXT924"]
["TEXT925","DOVE CAMERON","TEXT925"]
["TEXT926","DOVE CAMERON","TEXT926"]
["TEXT927","DOVE CAMERON","TEXT927"]
["TEXT928","DOVE CAMERON","TEXT928"]
["TEXT929","DOVE CAMERON","TEXT929"]
["TEXT930","DOVE CAMERON","TEXT930"]
["TEXT931","DOVE CAMERON","TEXT931"]
["TEXT932","DOVE CAMERON","TEXT932"]
["TEXT933","EMMA MACKEY","TEXT933"]
["TEXT934","EMMA MACKEY","TEXT934"]
["TEXT935","EMMA MACKEY","TEXT935"]
["TEXT936","EMMA MACKEY","TEXT936"]
["TEXT937","EMMA MACKEY","TEXT937"]
["TEXT938","EMMA MACKEY","TEXT938"]
["TEXT939","EMMA MACKEY","TEXT939"]
["TEXT940","EMMA MACKEY","TEXT940"]
["TEXT941","EMMA MACKEY","TEXT941"]
["TEXT942","EMMA MACKEY","TEXT942"]
["TEXT943","EMMA MACKEY","TEXT943"]
["TEXT944","EMMA MACKEY","TEXT944"]
["TEXT945","EMMA MACKEY","TEXT945"]
["TEXT946","FLORENCE PUGH","TEXT946"]
["TEXT947","FLORENCE PUGH","TEXT947"]
["TEXT948","FLORENCE PUGH","TEXT948"]
["TEXT949","FLORENCE PUGH","TEXT949"]
["TEXT950","FLORENCE PUGH","TEXT950"]
["TEXT951","FLORENCE PUGH","TEXT951"]
["TEXT952","FLORENCE PUGH","TEXT952"]
["TEXT953","FLORENCE PUGH","TEXT953"]
["TEXT954","FLORENCE PUGH","TEXT954"]
["TEXT955","FLORENCE PUGH","TEXT955"]
["TEXT956","FLORENCE PUGH","TEXT956"]
["TEXT957","FLORENCE PUGH","TEXT957"]
["TEXT958","FLORENCE PUGH","TEXT958"]
["TEXT959","FLORENCE PUGH","TEXT959"]
["TEXT960","FLORENCE PUGH","TEXT960"]
["TEXT961","FLORENCE PUGH","TEXT961"]
[{"$f":"\"TEXT\"&ROW()","v":"TEXT962"},"FLORENCE PUGH","TEXT962"]
["TEXT963","FLORENCE PUGH","TEXT963"]
["TEXT964","FLORENCE PUGH","TEXT964"]
["TEXT965","FLORENCE PUGH","TEXT965"]
["TEXT966","FLORENCE PUGH","TEXT966"]
["TEXT967","FLORENCE PUGH","TEXT967"]
["TEXT968","FLORENCE PUGH","TEXT968"]
["TEXT969","FLORENCE PUGH","TEXT969"]
["TEXT970","FLORENCE PUGH","TEXT970"]
["TEXT971","FLORENCE PUGH","TEXT971"]
["TEXT972","FLORENCE PUGH","TEXT972"]
["TEXT973","FLORENCE PUGH","TEXT973"]
["TEXT974","FLORENCE PUGH","TEXT974"]
["TEXT975","REINA HARDESTY","TEXT975"]
["TEXT976","EMMA CORRIN","TEXT976"]
["TEXT977","EMMA CORRIN","TEXT977"]
["TEXT978","EMMA CORRIN","TEXT978"]
["TEXT979","EMMA CORRIN","TEXT979"]
["TEXT980","EMMA CORRIN","TEXT980"]
["TEXT981","EMMA CORRIN","TEXT981"]
["TEXT982","EMMA CORRIN","TEXT982"]
["TEXT983","EMMA CORRIN","TEXT983"]
["TEXT984","EMMA CORRIN","TEXT984"]
["TEXT985","EMMA CORRIN","TEXT985"]
["TEXT986","EMMA CORRIN","TEXT986"]
["TEXT987","EMMA CORRIN","TEXT987"]
["TEXT988","EMMA CORRIN","TEXT988"]
["TEXT989","KATHERINE MCNAMARA","TEXT989"]
["TEXT990","KATHERINE MCNAMARA","TEXT990"]
["TEXT991","KATHERINE MCNAMARA","TEXT991"]
["TEXT992","KATHERINE MCNAMARA","TEXT992"]
["TEXT993","KATHERINE MCNAMARA","TEXT993"]
["TEXT994","KATHERINE MCNAMARA","TEXT994"]
["TEXT995","KATHERINE MCNAMARA","TEXT995"]
["TEXT996","KATHERINE MCNAMARA","TEXT996"]
["TEXT997","KATHERINE MCNAMARA","TEXT997"]
["TEXT998","KRISTINE FROSETH","TEXT998"]
["TEXT999","KRISTINE FROSETH","TEXT999"]
["TEXT1000","KRISTINE FROSETH","TEXT1000"]
["TEXT1001","RACHEL SENNOTT","TEXT1001"]
["TEXT1002","RACHEL SENNOTT","TEXT1002"]
["TEXT1003","RACHEL SENNOTT","TEXT1003"]
["TEXT1004","RACHEL SENNOTT","TEXT1004"]
["TEXT1005","MATILDA DE ANGELIS","TEXT1005"]
["TEXT1006","MATILDA DE ANGELIS","TEXT1006"]
["TEXT1007","MATILDA DE ANGELIS","TEXT1007"]
["TEXT1008","MATILDA DE ANGELIS","TEXT1008"]
["TEXT1009","MATILDA DE ANGELIS","TEXT1009"]
["TEXT1010","MATILDA DE ANGELIS","TEXT1010"]
["TEXT1011","MATILDA DE ANGELIS","TEXT1011"]
["TEXT1012","MATILDA DE ANGELIS","TEXT1012"]
["TEXT1013","MATILDA DE ANGELIS","TEXT1013"]
["TEXT1014","MATILDA DE ANGELIS","TEXT1014"]
["TEXT1015","MATILDA DE ANGELIS","TEXT1015"]
["TEXT1016","MATILDA DE ANGELIS","TEXT1016"]
["TEXT1017","MATILDA DE ANGELIS","TEXT1017"]
["TEXT1018","MATILDA DE ANGELIS","TEXT1018"]
["TEXT1019","MATILDA DE ANGELIS","TEXT1019"]
["TEXT1020","MATILDA DE ANGELIS","TEXT1020"]
["TEXT1021","MATILDA DE ANGELIS","TEXT1021"]
["TEXT1022","MATILDA DE ANGELIS","TEXT1022"]
["TEXT1023","MATILDA DE ANGELIS","TEXT1023"]
["TEXT1024","MATILDA DE ANGELIS","TEXT1024"]
["TEXT1025","MATILDA DE ANGELIS","TEXT1025"]
[{"$f":"\"TEXT\"&ROW()","v":"TEXT1026"},"MATILDA DE ANGELIS","TEXT1026"]
["TEXT1027","MATILDA DE ANGELIS","TEXT1027"]
["TEXT1028","MATILDA DE ANGELIS","TEXT1028"]
["TEXT1029","MATILDA DE ANGELIS","TEXT1029"]
["TEXT1030","MATILDA DE ANGELIS","TEXT1030"]
["TEXT1031","MATILDA DE ANGELIS","TEXT1031"]
["TEXT1032","MATILDA DE ANGELIS","TEXT1032"]
["TEXT1033","MATILDA DE ANGELIS","TEXT1033"]
["TEXT1034","MATILDA DE ANGELIS","TEXT1034"]
["TEXT1035","MATILDA DE ANGELIS","TEXT1035"]
["TEXT1036","MATILDA DE ANGELIS","TEXT1036"]
["TEXT1037","MATILDA DE ANGELIS","TEXT1037"]
["TEXT1038","ANYA CHALOTRA","TEXT1038"]
["TEXT1039","ANYA CHALOTRA","TEXT1039"]
["TEXT1040","ANYA CHALOTRA","TEXT1040"]
["TEXT1041","ANYA CHALOTRA","TEXT1041"]
["TEXT1042","ANYA CHALOTRA","TEXT1042"]
["TEXT1043","ANYA CHALOTRA","TEXT1043"]
["TEXT1044","ANYA CHALOTRA","TEXT1044"]
["TEXT1045","ANYA CHALOTRA","TEXT1045"]
["TEXT1046","ANYA CHALOTRA","TEXT1046"]
["TEXT1047","SERAYAH","TEXT1047"]
["TEXT1048","SERAYAH","TEXT1048"]
["TEXT1049","GERALDINE VISWANATHAN","TEXT1049"]
["TEXT1050","GERALDINE VISWANATHAN","TEXT1050"]
["TEXT1051","GERALDINE VISWANATHAN","TEXT1051"]
["TEXT1052","GERALDINE VISWANATHAN","TEXT1052"]
["TEXT1053","GERALDINE VISWANATHAN","TEXT1053"]
["TEXT1054","MIA TOMLINSON","TEXT1054"]
["TEXT1055","HANNAH EINBINDER","TEXT1055"]
["TEXT1056","HANNAH EINBINDER","TEXT1056"]
["TEXT1057","HANNAH EINBINDER","TEXT1057"]
["TEXT1058","HANNAH EINBINDER","TEXT1058"]
["TEXT1059","HANNAH EINBINDER","TEXT1059"]
["TEXT1060","HANNAH EINBINDER","TEXT1060"]
["TEXT1061","HANNAH EINBINDER","TEXT1061"]
["TEXT1062","HANNAH EINBINDER","TEXT1062"]
["TEXT1063","HANNAH EINBINDER","TEXT1063"]
["TEXT1064","HANNAH EINBINDER","TEXT1064"]
["TEXT1065","HANNAH EINBINDER","TEXT1065"]
["TEXT1066","HANNAH EINBINDER","TEXT1066"]
["TEXT1067","HANNAH EINBINDER","TEXT1067"]
["TEXT1068","SARAH CATHERINE HOOK","TEXT1068"]
["TEXT1069","SARAH CATHERINE HOOK","TEXT1069"]
["TEXT1070","SARAH CATHERINE HOOK","TEXT1070"]
["TEXT1071","SARAH CATHERINE HOOK","TEXT1071"]
["TEXT1072","SARAH CATHERINE HOOK","TEXT1072"]
["TEXT1073","SARAH CATHERINE HOOK","TEXT1073"]
["TEXT1074","SARAH CATHERINE HOOK","TEXT1074"]
["TEXT1075","SARAH CATHERINE HOOK","TEXT1075"]
["TEXT1076","SARAH CATHERINE HOOK","TEXT1076"]
["TEXT1077","SARAH CATHERINE HOOK","TEXT1077"]
["TEXT1078","SARAH CATHERINE HOOK","TEXT1078"]
["TEXT1079","SARAH CATHERINE HOOK","TEXT1079"]
["TEXT1080","SARAH CATHERINE HOOK","TEXT1080"]
["TEXT1081","SARAH CATHERINE HOOK","TEXT1081"]
["TEXT1082","SARAH CATHERINE HOOK","TEXT1082"]
["TEXT1083","SARAH CATHERINE HOOK","TEXT1083"]
["TEXT1084","PHOEBE DYNEVOR","TEXT1084"]
["TEXT1085","PHOEBE DYNEVOR","TEXT1085"]
["TEXT1086","PHOEBE DYNEVOR","TEXT1086"]
["TEXT1087","PHOEBE DYNEVOR","TEXT1087"]
["TEXT1088","PHOEBE DYNEVOR","TEXT1088"]
["TEXT1089","PHOEBE DYNEVOR","TEXT1089"]
[{"$f":"\"TEXT\"&ROW()","v":"TEXT1090"},"PHOEBE DYNEVOR","TEXT1090"]
["TEXT1091","PHOEBE DYNEVOR","TEXT1091"]
["TEXT1092","PHOEBE DYNEVOR","TEXT1092"]
["TEXT1093","PHOEBE DYNEVOR","TEXT1093"]
["TEXT1094","VICTORIA PEDRETTI","TEXT1094"]
["TEXT1095","VICTORIA PEDRETTI","TEXT1095"]
["TEXT1096","VICTORIA PEDRETTI","TEXT1096"]
["TEXT1097","VICTORIA PEDRETTI","TEXT1097"]
["TEXT1098","VICTORIA PEDRETTI","TEXT1098"]
["TEXT1099","VICTORIA PEDRETTI","TEXT1099"]
["TEXT1100","VICTORIA PEDRETTI","TEXT1100"]
["TEXT1101","VICTORIA PEDRETTI","TEXT1101"]
["TEXT1102","JULIA SCHLAEPFER","TEXT1102"]
["TEXT1103","JULIA SCHLAEPFER","TEXT1103"]
["TEXT1104","JULIA SCHLAEPFER","TEXT1104"]
["TEXT1105","JULIA SCHLAEPFER","TEXT1105"]
["TEXT1106","JULIA SCHLAEPFER","TEXT1106"]
["TEXT1107","JULIA SCHLAEPFER","TEXT1107"]
["TEXT1108","JULIA SCHLAEPFER","TEXT1108"]
["TEXT1109","JULIA SCHLAEPFER","TEXT1109"]
["TEXT1110","JULIA SCHLAEPFER","TEXT1110"]
["TEXT1111","JULIA SCHLAEPFER","TEXT1111"]
["TEXT1112","JULIA SCHLAEPFER","TEXT1112"]
["TEXT1113","DANIELLE CAMPBELL","TEXT1113"]
["TEXT1114","DANIELLE CAMPBELL","TEXT1114"]
["TEXT1115","DANIELLE CAMPBELL","TEXT1115"]
["TEXT1116","DANIELLE CAMPBELL","TEXT1116"]
["TEXT1117","DANIELLE CAMPBELL","TEXT1117"]
["TEXT1118","NATALIA DYER","TEXT1118"]
["TEXT1119","MADDIE HASSON","TEXT1119"]
["TEXT1120","MOLLY GORDON","TEXT1120"]
["TEXT1121","MOLLY GORDON","TEXT1121"]
["TEXT1122","MOLLY GORDON","TEXT1122"]
["TEXT1123","MOLLY GORDON","TEXT1123"]
["TEXT1124","MOLLY GORDON","TEXT1124"]
["TEXT1125","MOLLY GORDON","TEXT1125"]
["TEXT1126","HARRIET SLATER","TEXT1126"]
["TEXT1127","ZOEY DEUTCH","TEXT1127"]
["TEXT1128","MARGARET QUALLEY","TEXT1128"]
["TEXT1129","MARGARET QUALLEY","TEXT1129"]
["TEXT1130","MARGARET QUALLEY","TEXT1130"]
["TEXT1131","MARGARET QUALLEY","TEXT1131"]
["TEXT1132","MARGARET QUALLEY","TEXT1132"]
["TEXT1133","MARGARET QUALLEY","TEXT1133"]
["TEXT1134","MARGARET QUALLEY","TEXT1134"]
["TEXT1135","MARGARET QUALLEY","TEXT1135"]
["TEXT1136","MARGARET QUALLEY","TEXT1136"]
["TEXT1137","MARGARET QUALLEY","TEXT1137"]
["TEXT1138","MARGARET QUALLEY","TEXT1138"]
["TEXT1139","MARGARET QUALLEY","TEXT1139"]
["TEXT1140","MARGARET QUALLEY","TEXT1140"]
["TEXT1141","MARGARET QUALLEY","TEXT1141"]
["TEXT1142","MARGARET QUALLEY","TEXT1142"]
["TEXT1143","MARGARET QUALLEY","TEXT1143"]
["TEXT1144","MARGARET QUALLEY","TEXT1144"]
["TEXT1145","MARGARET QUALLEY","TEXT1145"]
["TEXT1146","MARGARET QUALLEY","TEXT1146"]
["TEXT1147","MARGARET QUALLEY","TEXT1147"]
["TEXT1148","MARGARET QUALLEY","TEXT1148"]
["TEXT1149","MARGARET QUALLEY","TEXT1149"]
["TEXT1150","MARGARET QUALLEY","TEXT1150"]
["TEXT1151","MARGARET QUALLEY","TEXT1151"]
["TEXT1152","MARGARET QUALLEY","TEXT1152"]
["TEXT1153","MARGARET QUALLEY","TEXT1153"]
[{"$f":"\"TEXT\"&ROW()","v":"TEXT1154"},"MARGARET QUALLEY","TEXT1154"]
["TEXT1155","MARGARET QUALLEY","TEXT1155"]
["TEXT1156","MARGARET QUALLEY","TEXT1156"]
["TEXT1157","MARGARET QUALLEY","TEXT1157"]
["TEXT1158","MARGARET QUALLEY","TEXT1158"]
["TEXT1159","MARGARET QUALLEY","TEXT1159"]
["TEXT1160","MARGARET QUALLEY","TEXT1160"]
["TEXT1161","MARGARET QUALLEY","TEXT1161"]
["TEXT1162","MARGARET QUALLEY","TEXT1162"]
["TEXT1163","MARGARET QUALLEY","TEXT1163"]
["TEXT1164","MARGARET QUALLEY","TEXT1164"]
["TEXT1165","MARGARET QUALLEY","TEXT1165"]
["TEXT1166","MARGARET QUALLEY","TEXT1166"]
["TEXT1167","MARGARET QUALLEY","TEXT1167"]
["TEXT1168","MARGARET QUALLEY","TEXT1168"]
["TEXT1169","MARGARET QUALLEY","TEXT1169"]
["TEXT1170","MARGARET QUALLEY","TEXT1170"]
["TEXT1171","MARGARET QUALLEY","TEXT1171"]
["TEXT1172","MARGARET QUALLEY","TEXT1172"]
["TEXT1173","MARGARET QUALLEY","TEXT1173"]
["TEXT1174","MARGARET QUALLEY","TEXT1174"]
["TEXT1175","MARGARET QUALLEY","TEXT1175"]
["TEXT1176","MARGARET QUALLEY","TEXT1176"]
["TEXT1177","MARGARET QUALLEY","TEXT1177"]
["TEXT1178","MARGARET QUALLEY","TEXT1178"]
["TEXT1179","MARGARET QUALLEY","TEXT1179"]
["TEXT1180","MARGARET QUALLEY","TEXT1180"]
["TEXT1181","MARGARET QUALLEY","TEXT1181"]
["TEXT1182","HALSEY","TEXT1182"]
["TEXT1183","HALSEY","TEXT1183"]
["TEXT1184","HALSEY","TEXT1184"]
["TEXT1185","HALSEY","TEXT1185"]
["TEXT1186","HALSEY","TEXT1186"]
["TEXT1187","AURORA PERRINEAU","TEXT1187"]
["TEXT1188","AURORA PERRINEAU","TEXT1188"]
["TEXT1189","AURORA PERRINEAU","TEXT1189"]
["TEXT1190","PHILIPPA NORTHEAST","TEXT1190"]
["TEXT1191","MATHILDE OLLIVIER","TEXT1191"]
["TEXT1192","MATHILDE OLLIVIER","TEXT1192"]
["TEXT1193","MATHILDE OLLIVIER","TEXT1193"]
["TEXT1194","MATHILDE OLLIVIER","TEXT1194"]
["TEXT1195","MATHILDE OLLIVIER","TEXT1195"]
["TEXT1196","WALLIS DAY","TEXT1196"]
["TEXT1197","WALLIS DAY","TEXT1197"]
["TEXT1198","WALLIS DAY","TEXT1198"]
["TEXT1199","WALLIS DAY","TEXT1199"]
["TEXT1200","WALLIS DAY","TEXT1200"]
["TEXT1201","WALLIS DAY","TEXT1201"]
["TEXT1202","MADDIE PHILLIPS","TEXT1202"]
["TEXT1203","MADDIE PHILLIPS","TEXT1203"]
["TEXT1204","MADDIE PHILLIPS","TEXT1204"]
["TEXT1205","MADELAINE PETSCH","TEXT1205"]
["TEXT1206","MADELAINE PETSCH","TEXT1206"]
["TEXT1207","MADELAINE PETSCH","TEXT1207"]
["TEXT1208","MADELAINE PETSCH","TEXT1208"]
["TEXT1209","MADELAINE PETSCH","TEXT1209"]
["TEXT1210","MADELAINE PETSCH","TEXT1210"]
["TEXT1211","MADELAINE PETSCH","TEXT1211"]
["TEXT1212","MADELAINE PETSCH","TEXT1212"]
["TEXT1213","MADELAINE PETSCH","TEXT1213"]
["TEXT1214","MADELAINE PETSCH","TEXT1214"]
["TEXT1215","MADELAINE PETSCH","TEXT1215"]
["TEXT1216","MADELAINE PETSCH","TEXT1216"]
["TEXT1217","MADELAINE PETSCH","TEXT1217"]
[{"$f":"\"TEXT\"&ROW()","v":"TEXT1218"},"MADELAINE PETSCH","TEXT1218"]
["TEXT1219","MADELAINE PETSCH","TEXT1219"]
["TEXT1220","MADELAINE PETSCH","TEXT1220"]
["TEXT1221","MADELAINE PETSCH","TEXT1221"]
["TEXT1222","MADELAINE PETSCH","TEXT1222"]
["TEXT1223","MADELAINE PETSCH","TEXT1223"]
["TEXT1224","MADELAINE PETSCH","TEXT1224"]
["TEXT1225","MADELAINE PETSCH","TEXT1225"]
["TEXT1226","MADELAINE PETSCH","TEXT1226"]
["TEXT1227","MADELAINE PETSCH","TEXT1227"]
["TEXT1228","MADELAINE PETSCH","TEXT1228"]
["TEXT1229","MADELAINE PETSCH","TEXT1229"]
["TEXT1230","SHALOM BRUNE-FRANKLIN","TEXT1230"]
["TEXT1231","SHALOM BRUNE-FRANKLIN","TEXT1231"]
["TEXT1232","SHALOM BRUNE-FRANKLIN","TEXT1232"]
["TEXT1233","SHALOM BRUNE-FRANKLIN","TEXT1233"]
["TEXT1234","SHALOM BRUNE-FRANKLIN","TEXT1234"]
["TEXT1235","SHALOM BRUNE-FRANKLIN","TEXT1235"]
["TEXT1236","SHALOM BRUNE-FRANKLIN","TEXT1236"]
["TEXT1237","SHALOM BRUNE-FRANKLIN","TEXT1237"]
["TEXT1238","SHALOM BRUNE-FRANKLIN","TEXT1238"]
["TEXT1239","SHALOM BRUNE-FRANKLIN","TEXT1239"]
["TEXT1240","CARLA SEHN","TEXT1240"]
["TEXT1241","CARLA SEHN","TEXT1241"]
["TEXT1242","CARLA SEHN","TEXT1242"]
["TEXT1243","CARLA SEHN","TEXT1243"]
["TEXT1244","CARLA SEHN","TEXT1244"]
["TEXT1245","CARLA SEHN","TEXT1245"]
["TEXT1246","CARLA SEHN","TEXT1246"]
["TEXT1247","CARLA SEHN","TEXT1247"]
["TEXT1248","JAZ SINCLAIR","TEXT1248"]
["TEXT1249","JAZ SINCLAIR","TEXT1249"]
["TEXT1250","JAZ SINCLAIR","TEXT1250"]
["TEXT1251","TAYLOR RUSSELL","TEXT1251"]
["TEXT1252","TAYLOR RUSSELL","TEXT1252"]
["TEXT1253","ERIN MORIARTY","TEXT1253"]
["TEXT1254","ERIN MORIARTY","TEXT1254"]
["TEXT1255","ERIN MORIARTY","TEXT1255"]
["TEXT1256","ERIN MORIARTY","TEXT1256"]
["TEXT1257","ERIN MORIARTY","TEXT1257"]
["TEXT1258","ERIN MORIARTY","TEXT1258"]
["TEXT1259","ERIN MORIARTY","TEXT1259"]
["TEXT1260","ERIN MORIARTY","TEXT1260"]
["TEXT1261","ERIN MORIARTY","TEXT1261"]
["TEXT1262","ERIN MORIARTY","TEXT1262"]
["TEXT1263","ERIN MORIARTY","TEXT1263"]
["TEXT1264","LILY NEWMARK","TEXT1264"]
["TEXT1265","LILY NEWMARK","TEXT1265"]
["TEXT1266","SAOIRSE RONAN","TEXT1266"]
["TEXT1267","SAOIRSE RONAN","TEXT1267"]
["TEXT1268","SAOIRSE RONAN","TEXT1268"]
["TEXT1269","SAOIRSE RONAN","TEXT1269"]
["TEXT1270","SAOIRSE RONAN","TEXT1270"]
["TEXT1271","SAOIRSE RONAN","TEXT1271"]
["TEXT1272","SAOIRSE RONAN","TEXT1272"]
["TEXT1273","SAOIRSE RONAN","TEXT1273"]
["TEXT1274","SAOIRSE RONAN","TEXT1274"]
["TEXT1275","SAOIRSE RONAN","TEXT1275"]
["TEXT1276","SAOIRSE RONAN","TEXT1276"]
["TEXT1277","SAOIRSE RONAN","TEXT1277"]
["TEXT1278","SAOIRSE RONAN","TEXT1278"]
["TEXT1279","SAOIRSE RONAN","TEXT1279"]
["TEXT1280","SAOIRSE RONAN","TEXT1280"]
["TEXT1281","SAOIRSE RONAN","TEXT1281"]
[{"$f":"\"TEXT\"&ROW()","v":"TEXT1282"},"SAOIRSE RONAN","TEXT1282"]
["TEXT1283","DAKOTA FANNING","TEXT1283"]
["TEXT1284","DAKOTA FANNING","TEXT1284"]
["TEXT1285","DAKOTA FANNING","TEXT1285"]
["TEXT1286","DAKOTA FANNING","TEXT1286"]
["TEXT1287","DAKOTA FANNING","TEXT1287"]
["TEXT1288","DAKOTA FANNING","TEXT1288"]
["TEXT1289","JULIA GARNER","TEXT1289"]
["TEXT1290","JULIA GARNER","TEXT1290"]
["TEXT1291","JULIA GARNER","TEXT1291"]
["TEXT1292","JULIA GARNER","TEXT1292"]
["TEXT1293","JULIA GARNER","TEXT1293"]
["TEXT1294","JULIA GARNER","TEXT1294"]
["TEXT1295","ANNE-MARIE WALDECK","TEXT1295"]
["TEXT1296","OLIVIA COOKE","TEXT1296"]
["TEXT1297","OLIVIA COOKE","TEXT1297"]
["TEXT1298","OLIVIA COOKE","TEXT1298"]
["TEXT1299","OLIVIA COOKE","TEXT1299"]
["TEXT1300","OLIVIA COOKE","TEXT1300"]
["TEXT1301","OLIVIA COOKE","TEXT1301"]
["TEXT1302","OLIVIA COOKE","TEXT1302"]
["TEXT1303","OLIVIA COOKE","TEXT1303"]
["TEXT1304","OLIVIA COOKE","TEXT1304"]
["TEXT1305","OLIVIA COOKE","TEXT1305"]
["TEXT1306","OLIVIA COOKE","TEXT1306"]
["TEXT1307","HERMIONE CORFIELD","TEXT1307"]
["TEXT1308","HERMIONE CORFIELD","TEXT1308"]
["TEXT1309","HERMIONE CORFIELD","TEXT1309"]
["TEXT1310","HERMIONE CORFIELD","TEXT1310"]
["TEXT1311","HERMIONE CORFIELD","TEXT1311"]
["TEXT1312","HERMIONE CORFIELD","TEXT1312"]
["TEXT1313","HERMIONE CORFIELD","TEXT1313"]
["TEXT1314","HERMIONE CORFIELD","TEXT1314"]
["TEXT1315","MIA GOTH","TEXT1315"]
["TEXT1316","MIA GOTH","TEXT1316"]
["TEXT1317","MIA GOTH","TEXT1317"]
["TEXT1318","MIA GOTH","TEXT1318"]
["TEXT1319","MIA GOTH","TEXT1319"]
["TEXT1320","MIA GOTH","TEXT1320"]
["TEXT1321","MIA GOTH","TEXT1321"]
["TEXT1322","MIA GOTH","TEXT1322"]
["TEXT1323","MIA GOTH","TEXT1323"]
["TEXT1324","MIA GOTH","TEXT1324"]
["TEXT1325","MIA GOTH","TEXT1325"]
["TEXT1326","MIA GOTH","TEXT1326"]
["TEXT1327","MIA GOTH","TEXT1327"]
["TEXT1328","MIA GOTH","TEXT1328"]
["TEXT1329","MIA GOTH","TEXT1329"]
["TEXT1330","MIA GOTH","TEXT1330"]
["TEXT1331","MIA GOTH","TEXT1331"]
["TEXT1332","MIA GOTH","TEXT1332"]
["TEXT1333","MIA GOTH","TEXT1333"]
["TEXT1334","MIA GOTH","TEXT1334"]
["TEXT1335","MIA GOTH","TEXT1335"]
["TEXT1336","MIA GOTH","TEXT1336"]
["TEXT1337","MIA GOTH","TEXT1337"]
["TEXT1338","MIA GOTH","TEXT1338"]
["TEXT1339","MIA GOTH","TEXT1339"]
["TEXT1340","MIA GOTH","TEXT1340"]
["TEXT1341","MIA GOTH","TEXT1341"]
["TEXT1342","MOLLY C. QUINN","TEXT1342"]
["TEXT1343","AISHA DEE","TEXT1343"]
["TEXT1344","AISHA DEE","TEXT1344"]
["TEXT1345","AISHA DEE","TEXT1345"]
[{"$f":"\"TEXT\"&ROW()","v":"TEXT1346"},"AISHA DEE","TEXT1346"]
["TEXT1347","AISHA DEE","TEXT1347"]
["TEXT1348","AISHA DEE","TEXT1348"]
["TEXT1349","AISHA DEE","TEXT1349"]
["TEXT1350","AISHA DEE","TEXT1350"]
["TEXT1351","AISHA DEE","TEXT1351"]
["TEXT1352","AISHA DEE","TEXT1352"]
["TEXT1353","AISHA DEE","TEXT1353"]
["TEXT1354","AISHA DEE","TEXT1354"]
["TEXT1355","AISHA DEE","TEXT1355"]
["TEXT1356","AISHA DEE","TEXT1356"]
["TEXT1357","AISHA DEE","TEXT1357"]
["TEXT1358","AISHA DEE","TEXT1358"]
["TEXT1359","AISHA DEE","TEXT1359"]
["TEXT1360","AISHA DEE","TEXT1360"]
["TEXT1361","AISHA DEE","TEXT1361"]
["TEXT1362","AISHA DEE","TEXT1362"]
["TEXT1363","AISHA DEE","TEXT1363"]
["TEXT1364","AISHA DEE","TEXT1364"]
["TEXT1365","LILY SULLIVAN","TEXT1365"]
["TEXT1366","LILY SULLIVAN","TEXT1366"]
["TEXT1367","LILY SULLIVAN","TEXT1367"]
["TEXT1368","LILY SULLIVAN","TEXT1368"]
["TEXT1369","KEKE PALMER","TEXT1369"]
["TEXT1370","KEKE PALMER","TEXT1370"]
["TEXT1371","KEKE PALMER","TEXT1371"]
["TEXT1372","KEKE PALMER","TEXT1372"]
["TEXT1373","KEKE PALMER","TEXT1373"]
["TEXT1374","KEKE PALMER","TEXT1374"]
["TEXT1375","TAYLOR MOMSEN","TEXT1375"]
["TEXT1376","LILI SIMMONS","TEXT1376"]
["TEXT1377","LILI SIMMONS","TEXT1377"]
["TEXT1378","LILI SIMMONS","TEXT1378"]
["TEXT1379","LILI SIMMONS","TEXT1379"]
["TEXT1380","LILI SIMMONS","TEXT1380"]
["TEXT1381","LILI SIMMONS","TEXT1381"]
["TEXT1382","LILI SIMMONS","TEXT1382"]
["TEXT1383","LILI SIMMONS","TEXT1383"]
["TEXT1384","LILI SIMMONS","TEXT1384"]
["TEXT1385","LILI SIMMONS","TEXT1385"]
["TEXT1386","LILI SIMMONS","TEXT1386"]
["TEXT1387","LILI SIMMONS","TEXT1387"]
["TEXT1388","LILI SIMMONS","TEXT1388"]
["TEXT1389","LILI SIMMONS","TEXT1389"]
["TEXT1390","LILI SIMMONS","TEXT1390"]
["TEXT1391","LILI SIMMONS","TEXT1391"]
["TEXT1392","LILI SIMMONS","TEXT1392"]
["TEXT1393","LILI SIMMONS","TEXT1393"]
["TEXT1394","LILI SIMMONS","TEXT1394"]
["TEXT1395","LILI SIMMONS","TEXT1395"]
["TEXT1396","LILI SIMMONS","TEXT1396"]
["TEXT1397","LILI SIMMONS","TEXT1397"]
["TEXT1398","LILI SIMMONS","TEXT1398"]
["TEXT1399","LILI SIMMONS","TEXT1399"]
["TEXT1400","LILI SIMMONS","TEXT1400"]
["TEXT1401","LILI SIMMONS","TEXT1401"]
["TEXT1402","LILI SIMMONS","TEXT1402"]
["TEXT1403","LILI SIMMONS","TEXT1403"]
["TEXT1404","LILI SIMMONS","TEXT1404"]
["TEXT1405","LILI SIMMONS","TEXT1405"]
["TEXT1406","LILI SIMMONS","TEXT1406"]
["TEXT1407","LILI SIMMONS","TEXT1407"]
["TEXT1408","LILI SIMMONS","TEXT1408"]
["TEXT1409","LILI SIMMONS","TEXT1409"]
[{"$f":"\"TEXT\"&ROW()","v":"TEXT1410"},"LILI SIMMONS","TEXT1410"]
["TEXT1411","LUCIANE BUCHANAN","TEXT1411"]
["TEXT1412","ARIANA GRANDE","TEXT1412"]
["TEXT1413","BEANIE FELDSTEIN","TEXT1413"]
["TEXT1414","MAIKA MONROE","TEXT1414"]
["TEXT1415","MAIKA MONROE","TEXT1415"]
["TEXT1416","MAIKA MONROE","TEXT1416"]
["TEXT1417","MAIKA MONROE","TEXT1417"]
["TEXT1418","MAIKA MONROE","TEXT1418"]
["TEXT1419","MAIKA MONROE","TEXT1419"]
["TEXT1420","MAIKA MONROE","TEXT1420"]
["TEXT1421","MIRANDA COSGROVE","TEXT1421"]
["TEXT1422","MIRANDA COSGROVE","TEXT1422"]
["TEXT1423","DEBBY RYAN","TEXT1423"]
["TEXT1424","DEBBY RYAN","TEXT1424"]
["TEXT1425","DEBBY RYAN","TEXT1425"]
["TEXT1426","DEBBY RYAN","TEXT1426"]
["TEXT1427","NAOMI SCOTT","TEXT1427"]
["TEXT1428","NAOMI SCOTT","TEXT1428"]
["TEXT1429","SOFIA CARSON","TEXT1429"]
["TEXT1430","KALYANI PRIYADARSHAN","TEXT1430"]
["TEXT1431","KALYANI PRIYADARSHAN","TEXT1431"]
["TEXT1432","KALYANI PRIYADARSHAN","TEXT1432"]
["TEXT1433","KALYANI PRIYADARSHAN","TEXT1433"]
["TEXT1434","JODIE COMER","TEXT1434"]
["TEXT1435","JODIE COMER","TEXT1435"]
["TEXT1436","JODIE COMER","TEXT1436"]
["TEXT1437","JODIE COMER","TEXT1437"]
["TEXT1438","JODIE COMER","TEXT1438"]
["TEXT1439","JODIE COMER","TEXT1439"]
["TEXT1440","JODIE COMER","TEXT1440"]
["TEXT1441","JODIE COMER","TEXT1441"]
["TEXT1442","JODIE COMER","TEXT1442"]
["TEXT1443","JODIE COMER","TEXT1443"]
["TEXT1444","JODIE COMER","TEXT1444"]
["TEXT1445","JODIE COMER","TEXT1445"]
["TEXT1446","JODIE COMER","TEXT1446"]
["TEXT1447","JODIE COMER","TEXT1447"]
["TEXT1448","JODIE COMER","TEXT1448"]
["TEXT1449","JODIE COMER","TEXT1449"]
["TEXT1450","JODIE COMER","TEXT1450"]
["TEXT1451","JODIE COMER","TEXT1451"]
["TEXT1452","JODIE COMER","TEXT1452"]
["TEXT1453","JODIE COMER","TEXT1453"]
["TEXT1454","JODIE COMER","TEXT1454"]
["TEXT1455","JODIE COMER","TEXT1455"]
["TEXT1456","JODIE COMER","TEXT1456"]
["TEXT1457","JODIE COMER","TEXT1457"]
["TEXT1458","VICTORIA JUSTICE","TEXT1458"]
["TEXT1459","VICTORIA JUSTICE","TEXT1459"]
["TEXT1460","VICTORIA JUSTICE","TEXT1460"]
["TEXT1461","VICTORIA JUSTICE","TEXT1461"]
["TEXT1462","VICTORIA JUSTICE","TEXT1462"]
["TEXT1463","VICTORIA JUSTICE","TEXT1463"]
["TEXT1464","ANYA SINGH","TEXT1464"]
["TEXT1465","ANYA SINGH","TEXT1465"]
["TEXT1466","ANYA SINGH","TEXT1466"]
["TEXT1467","SHIOLI KUTSUNA","TEXT1467"]
["TEXT1468","SHIOLI KUTSUNA","TEXT1468"]
["TEXT1469","SHIOLI KUTSUNA","TEXT1469"]
["TEXT1470","MELISSA ROXBURGH","TEXT1470"]
["TEXT1471","LERA ABOVA","TEXT1471"]
["TEXT1472","LERA ABOVA","TEXT1472"]
["TEXT1473","JESSICA HENWICK","TEXT1473"]
[{"$f":"\"TEXT\"&ROW()","v":"TEXT1474"},"CARA DELEVINGNE","TEXT1474"]
["TEXT1475","CARA DELEVINGNE","TEXT1475"]
["TEXT1476","CARA DELEVINGNE","TEXT1476"]
["TEXT1477","CARA DELEVINGNE","TEXT1477"]
["TEXT1478","CARA DELEVINGNE","TEXT1478"]
["TEXT1479","CARA DELEVINGNE","TEXT1479"]
["TEXT1480","CARA DELEVINGNE","TEXT1480"]
["TEXT1481","CARA DELEVINGNE","TEXT1481"]
["TEXT1482","CARA DELEVINGNE","TEXT1482"]
["TEXT1483","CARA DELEVINGNE","TEXT1483"]
["TEXT1484","CARA DELEVINGNE","TEXT1484"]
["TEXT1485","CARA DELEVINGNE","TEXT1485"]
["TEXT1486","CARA DELEVINGNE","TEXT1486"]
["TEXT1487","CARA DELEVINGNE","TEXT1487"]
["TEXT1488","SELENA GOMEZ","TEXT1488"]
["TEXT1489","SELENA GOMEZ","TEXT1489"]
["TEXT1490","SELENA GOMEZ","TEXT1490"]
["TEXT1491","SELENA GOMEZ","TEXT1491"]
["TEXT1492","SELENA GOMEZ","TEXT1492"]
["TEXT1493","SELENA GOMEZ","TEXT1493"]
["TEXT1494","SELENA GOMEZ","TEXT1494"]
["TEXT1495","SELENA GOMEZ","TEXT1495"]
["TEXT1496","SELENA GOMEZ","TEXT1496"]
["TEXT1497","SELENA GOMEZ","TEXT1497"]
["TEXT1498","SELENA GOMEZ","TEXT1498"]
["TEXT1499","SELENA GOMEZ","TEXT1499"]
["TEXT1500","SELENA GOMEZ","TEXT1500"]
["TEXT1501","SELENA GOMEZ","TEXT1501"]
["TEXT1502","SELENA GOMEZ","TEXT1502"]
["TEXT1503","SELENA GOMEZ","TEXT1503"]
["TEXT1504","SELENA GOMEZ","TEXT1504"]
["TEXT1505","SELENA GOMEZ","TEXT1505"]
["TEXT1506","SELENA GOMEZ","TEXT1506"]
["TEXT1507","SELENA GOMEZ","TEXT1507"]
["TEXT1508","SELENA GOMEZ","TEXT1508"]
["TEXT1509","SELENA GOMEZ","TEXT1509"]
["TEXT1510","BILLIE LOURD","TEXT1510"]
["TEXT1511","NIAMH ALGAR","TEXT1511"]
["TEXT1512","NIAMH ALGAR","TEXT1512"]
["TEXT1513","NIAMH ALGAR","TEXT1513"]
["TEXT1514","NIAMH ALGAR","TEXT1514"]
["TEXT1515","NIAMH ALGAR","TEXT1515"]
["TEXT1516","NIAMH ALGAR","TEXT1516"]
["TEXT1517","NIAMH ALGAR","TEXT1517"]
["TEXT1518","NIAMH ALGAR","TEXT1518"]
["TEXT1519","NIAMH ALGAR","TEXT1519"]
["TEXT1520","NIAMH ALGAR","TEXT1520"]
["TEXT1521","NIAMH ALGAR","TEXT1521"]
["TEXT1522","EMMA D'ARCY","TEXT1522"]
["TEXT1523","EMMA D'ARCY","TEXT1523"]
["TEXT1524","EMMA D'ARCY","TEXT1524"]
["TEXT1525","EMMA D'ARCY","TEXT1525"]
["TEXT1526","EMMA D'ARCY","TEXT1526"]
["TEXT1527","JENNETTE MCCURDY","TEXT1527"]
["TEXT1528","JENNETTE MCCURDY","TEXT1528"]
["TEXT1529","ANNA SAWAI","TEXT1529"]
["TEXT1530","ANNA SAWAI","TEXT1530"]
["TEXT1531","ANNA SAWAI","TEXT1531"]
["TEXT1532","ANNA SAWAI","TEXT1532"]
["TEXT1533","OLIVIA CULPO","TEXT1533"]
["TEXT1534","OLIVIA CULPO","TEXT1534"]
["TEXT1535","OLIVIA CULPO","TEXT1535"]
["TEXT1536","OLIVIA CULPO","TEXT1536"]
["TEXT1537","OLIVIA CULPO","TEXT1537"]
[{"$f":"\"TEXT\"&ROW()","v":"TEXT1538"},"OLIVIA CULPO","TEXT1538"]
["TEXT1539","ADRIA ARJONA","TEXT1539"]
["TEXT1540","ADRIA ARJONA","TEXT1540"]
["TEXT1541","ADRIA ARJONA","TEXT1541"]
["TEXT1542","ADRIA ARJONA","TEXT1542"]
["TEXT1543","ADRIA ARJONA","TEXT1543"]
["TEXT1544","ADRIA ARJONA","TEXT1544"]
["TEXT1545","ADRIA ARJONA","TEXT1545"]
["TEXT1546","ADRIA ARJONA","TEXT1546"]
["TEXT1547","ADRIA ARJONA","TEXT1547"]
["TEXT1548","ADRIA ARJONA","TEXT1548"]
["TEXT1549","DAISY RIDLEY","TEXT1549"]
["TEXT1550","DAISY RIDLEY","TEXT1550"]
["TEXT1551","ELENA RUSCONI","TEXT1551"]
["TEXT1552","ELENA RUSCONI","TEXT1552"]
["TEXT1553","JESS BUSH","TEXT1553"]
["TEXT1554","JESS BUSH","TEXT1554"]
["TEXT1555","JESS BUSH","TEXT1555"]
["TEXT1556","ELIZABETH LAIL","TEXT1556"]
["TEXT1557","ELIZABETH LAIL","TEXT1557"]
["TEXT1558","ELIZABETH LAIL","TEXT1558"]
["TEXT1559","ELIZABETH LAIL","TEXT1559"]
["TEXT1560","ELIZABETH LAIL","TEXT1560"]
["TEXT1561","LEILA GEORGE","TEXT1561"]
["TEXT1562","LEILA GEORGE","TEXT1562"]
["TEXT1563","LEILA GEORGE","TEXT1563"]
["TEXT1564","LEILA GEORGE","TEXT1564"]
["TEXT1565","LEILA GEORGE","TEXT1565"]
["TEXT1566","LEILA GEORGE","TEXT1566"]
["TEXT1567","LEILA GEORGE","TEXT1567"]
["TEXT1568","LEILA GEORGE","TEXT1568"]
["TEXT1569","LEILA GEORGE","TEXT1569"]
["TEXT1570","LEILA GEORGE","TEXT1570"]
["TEXT1571","LEILA GEORGE","TEXT1571"]
["TEXT1572","LEILA GEORGE","TEXT1572"]
["TEXT1573","LEILA GEORGE","TEXT1573"]
["TEXT1574","LEILA GEORGE","TEXT1574"]
["TEXT1575","LEILA GEORGE","TEXT1575"]
["TEXT1576","LEILA GEORGE","TEXT1576"]
["TEXT1577","LEILA GEORGE","TEXT1577"]
["TEXT1578","LEILA GEORGE","TEXT1578"]
["TEXT1579","LEILA GEORGE","TEXT1579"]
["TEXT1580","LEILA GEORGE","TEXT1580"]
["TEXT1581","LEILA GEORGE","TEXT1581"]
["TEXT1582","LEILA GEORGE","TEXT1582"]
["TEXT1583","LEILA GEORGE","TEXT1583"]
["TEXT1584","LEILA GEORGE","TEXT1584"]
["TEXT1585","LEILA GEORGE","TEXT1585"]
["TEXT1586","LEILA GEORGE","TEXT1586"]
["TEXT1587","LEILA GEORGE","TEXT1587"]
["TEXT1588","LEILA GEORGE","TEXT1588"]
["TEXT1589","LEILA GEORGE","TEXT1589"]
["TEXT1590","KAYA SCODELARIO","TEXT1590"]
["TEXT1591","EMILY OSMENT","TEXT1591"]
["TEXT1592","BEL POWLEY","TEXT1592"]
["TEXT1593","BEL POWLEY","TEXT1593"]
["TEXT1594","BEL POWLEY","TEXT1594"]
["TEXT1595","BEL POWLEY","TEXT1595"]
["TEXT1596","BEL POWLEY","TEXT1596"]
["TEXT1597","BEL POWLEY","TEXT1597"]
["TEXT1598","BEL POWLEY","TEXT1598"]
["TEXT1599","BEL POWLEY","TEXT1599"]
["TEXT1600","BEL POWLEY","TEXT1600"]
["TEXT1601","BEL POWLEY","TEXT1601"]
[{"$f":"\"TEXT\"&ROW()","v":"TEXT1602"},"SAMARA WEAVING","TEXT1602"]
["TEXT1603","SAMARA WEAVING","TEXT1603"]
["TEXT1604","SAMARA WEAVING","TEXT1604"]
["TEXT1605","SAMARA WEAVING","TEXT1605"]
["TEXT1606","SAMARA WEAVING","TEXT1606"]
["TEXT1607","SAMARA WEAVING","TEXT1607"]
["TEXT1608","SAMARA WEAVING","TEXT1608"]
["TEXT1609","SAMARA WEAVING","TEXT1609"]
["TEXT1610","SAMARA WEAVING","TEXT1610"]
["TEXT1611","SAMARA WEAVING","TEXT1611"]
["TEXT1612","SAMARA WEAVING","TEXT1612"]
["TEXT1613","SAMARA WEAVING","TEXT1613"]
["TEXT1614","SAMARA WEAVING","TEXT1614"]
["TEXT1615","PAULINA GAITAN","TEXT1615"]
["TEXT1616","PAULINA GAITAN","TEXT1616"]
["TEXT1617","PAULINA GAITAN","TEXT1617"]
["TEXT1618","PAULINA GAITAN","TEXT1618"]
["TEXT1619","PAULINA GAITAN","TEXT1619"]
["TEXT1620","PAULINA GAITAN","TEXT1620"]
["TEXT1621","PAULINA GAITAN","TEXT1621"]
["TEXT1622","PAULINA GAITAN","TEXT1622"]
["TEXT1623","PAULINA GAITAN","TEXT1623"]
["TEXT1624","PAULINA GAITAN","TEXT1624"]
["TEXT1625","PAULINA GAITAN","TEXT1625"]
["TEXT1626","PAULINA GAITAN","TEXT1626"]
["TEXT1627","PAULINA GAITAN","TEXT1627"]
["TEXT1628","PAULINA GAITAN","TEXT1628"]
["TEXT1629","PAULINA GAITAN","TEXT1629"]
["TEXT1630","PAULINA GAITAN","TEXT1630"]
["TEXT1631","PAULINA GAITAN","TEXT1631"]
["TEXT1632","PAULINA GAITAN","TEXT1632"]
["TEXT1633","PAULINA GAITAN","TEXT1633"]
["TEXT1634","PAULINA GAITAN","TEXT1634"]
["TEXT1635","PAULINA GAITAN","TEXT1635"]
["TEXT1636","PAULINA GAITAN","TEXT1636"]
["TEXT1637","PAULINA GAITAN","TEXT1637"]
["TEXT1638","PAULINA GAITAN","TEXT1638"]
["TEXT1639","PAULINA GAITAN","TEXT1639"]
["TEXT1640","PAULINA GAITAN","TEXT1640"]
["TEXT1641","PAULINA GAITAN","TEXT1641"]
["TEXT1642","PAULINA GAITAN","TEXT1642"]
["TEXT1643","PAULINA GAITAN","TEXT1643"]
["TEXT1644","PAULINA GAITAN","TEXT1644"]
["TEXT1645","PAULINA GAITAN","TEXT1645"]
["TEXT1646","PAULINA GAITAN","TEXT1646"]
["TEXT1647","PAULINA GAITAN","TEXT1647"]
["TEXT1648","PAULINA GAITAN","TEXT1648"]
["TEXT1649","PAULINA GAITAN","TEXT1649"]
["TEXT1650","PAULINA GAITAN","TEXT1650"]
["TEXT1651","PAULINA GAITAN","TEXT1651"]
["TEXT1652","PAULINA GAITAN","TEXT1652"]
["TEXT1653","PAULINA GAITAN","TEXT1653"]
["TEXT1654","PAULINA GAITAN","TEXT1654"]
["TEXT1655","PAULINA GAITAN","TEXT1655"]
["TEXT1656","PAULINA GAITAN","TEXT1656"]
["TEXT1657","PAULINA GAITAN","TEXT1657"]
["TEXT1658","PAULINA GAITAN","TEXT1658"]
["TEXT1659","PAULINA GAITAN","TEXT1659"]
["TEXT1660","PAULINA GAITAN","TEXT1660"]
["TEXT1661","PAULINA GAITAN","TEXT1661"]
["TEXT1662","PAULINA GAITAN","TEXT1662"]
["TEXT1663","PAULINA GAITAN","TEXT1663"]
["TEXT1664","LAYSLA DE OLIVEIRA","TEXT1664"]
["TEXT1665","LAYSLA DE OLIVEIRA","TEXT1665"]
[{"$f":"\"TEXT\"&ROW()","v":"TEXT1666"},"LAYSLA DE OLIVEIRA","TEXT1666"]
["TEXT1667","LAYSLA DE OLIVEIRA","TEXT1667"]
["TEXT1668","LAYSLA DE OLIVEIRA","TEXT1668"]
["TEXT1669","LAYSLA DE OLIVEIRA","TEXT1669"]
["TEXT1670","LAYSLA DE OLIVEIRA","TEXT1670"]
["TEXT1671","LAYSLA DE OLIVEIRA","TEXT1671"]
["TEXT1672","SHAILENE WOODLEY","TEXT1672"]
["TEXT1673","SHAILENE WOODLEY","TEXT1673"]
["TEXT1674","SHAILENE WOODLEY","TEXT1674"]
["TEXT1675","SHAILENE WOODLEY","TEXT1675"]
["TEXT1676","SHAILENE WOODLEY","TEXT1676"]
["TEXT1677","SHAILENE WOODLEY","TEXT1677"]
["TEXT1678","SHAILENE WOODLEY","TEXT1678"]
["TEXT1679","SHAILENE WOODLEY","TEXT1679"]
["TEXT1680","SHAILENE WOODLEY","TEXT1680"]
["TEXT1681","SHAILENE WOODLEY","TEXT1681"]
["TEXT1682","SHAILENE WOODLEY","TEXT1682"]
["TEXT1683","SHAILENE WOODLEY","TEXT1683"]
["TEXT1684","SHAILENE WOODLEY","TEXT1684"]
["TEXT1685","SHAILENE WOODLEY","TEXT1685"]
["TEXT1686","SHAILENE WOODLEY","TEXT1686"]
["TEXT1687","SHAILENE WOODLEY","TEXT1687"]
["TEXT1688","SHAILENE WOODLEY","TEXT1688"]
["TEXT1689","SHAILENE WOODLEY","TEXT1689"]
["TEXT1690","SHAILENE WOODLEY","TEXT1690"]
["TEXT1691","SHAILENE WOODLEY","TEXT1691"]
["TEXT1692","SHAILENE WOODLEY","TEXT1692"]
["TEXT1693","SHAILENE WOODLEY","TEXT1693"]
["TEXT1694","SHAILENE WOODLEY","TEXT1694"]
["TEXT1695","SHAILENE WOODLEY","TEXT1695"]
["TEXT1696","SHAILENE WOODLEY","TEXT1696"]
["TEXT1697","EMILY BARBER","TEXT1697"]
["TEXT1698","EMILY BARBER","TEXT1698"]
["TEXT1699","SABRINA BARTLETT","TEXT1699"]
["TEXT1700","SABRINA BARTLETT","TEXT1700"]
["TEXT1701","KELSEY ASBILLE","TEXT1701"]
["TEXT1702","KELSEY ASBILLE","TEXT1702"]
["TEXT1703","KELSEY ASBILLE","TEXT1703"]
["TEXT1704","KELSEY ASBILLE","TEXT1704"]
["TEXT1705","KELSEY ASBILLE","TEXT1705"]
["TEXT1706","NAOMI ACKIE","TEXT1706"]
["TEXT1707","NAOMI ACKIE","TEXT1707"]
["TEXT1708","EVE HEWSON","TEXT1708"]
["TEXT1709","EVE HEWSON","TEXT1709"]
["TEXT1710","EVE HEWSON","TEXT1710"]
["TEXT1711","EVE HEWSON","TEXT1711"]
["TEXT1712","ADDISON TIMLIN","TEXT1712"]
["TEXT1713","ADDISON TIMLIN","TEXT1713"]
["TEXT1714","ADDISON TIMLIN","TEXT1714"]
["TEXT1715","ADDISON TIMLIN","TEXT1715"]
["TEXT1716","ADDISON TIMLIN","TEXT1716"]
["TEXT1717","ADDISON TIMLIN","TEXT1717"]
["TEXT1718","ADDISON TIMLIN","TEXT1718"]
["TEXT1719","ADDISON TIMLIN","TEXT1719"]
["TEXT1720","ADDISON TIMLIN","TEXT1720"]
["TEXT1721","ADDISON TIMLIN","TEXT1721"]
["TEXT1722","ADDISON TIMLIN","TEXT1722"]
["TEXT1723","ADDISON TIMLIN","TEXT1723"]
["TEXT1724","ADDISON TIMLIN","TEXT1724"]
["TEXT1725","ADDISON TIMLIN","TEXT1725"]
["TEXT1726","ADDISON TIMLIN","TEXT1726"]
["TEXT1727","ADDISON TIMLIN","TEXT1727"]
["TEXT1728","ADDISON TIMLIN","TEXT1728"]
["TEXT1729","ADDISON TIMLIN","TEXT1729"]
[{"$f":"\"TEXT\"&ROW()","v":"TEXT1730"},"ADDISON TIMLIN","TEXT1730"]
["TEXT1731","ZAZIE BEETZ","TEXT1731"]
["TEXT1732","SARAH RAMOS","TEXT1732"]
["TEXT1733","SARAH RAMOS","TEXT1733"]
["TEXT1734","EMMA ROBERTS","TEXT1734"]
["TEXT1735","EMMA ROBERTS","TEXT1735"]
["TEXT1736","EMMA ROBERTS","TEXT1736"]
["TEXT1737","EMMA ROBERTS","TEXT1737"]
["TEXT1738","EMMA ROBERTS","TEXT1738"]
["TEXT1739","EMMA ROBERTS","TEXT1739"]
["TEXT1740","EMMA ROBERTS","TEXT1740"]
["TEXT1741","EMMA ROBERTS","TEXT1741"]
["TEXT1742","EMMA ROBERTS","TEXT1742"]
["TEXT1743","EMMA ROBERTS","TEXT1743"]
["TEXT1744","EMMA ROBERTS","TEXT1744"]
["TEXT1745","EMMA ROBERTS","TEXT1745"]
["TEXT1746","EMMA ROBERTS","TEXT1746"]
["TEXT1747","EMMA ROBERTS","TEXT1747"]
["TEXT1748","EMMA ROBERTS","TEXT1748"]
["TEXT1749","EMMA ROBERTS","TEXT1749"]
["TEXT1750","ARIANA DEBOSE","TEXT1750"]
["TEXT1751","ARIANA DEBOSE","TEXT1751"]
["TEXT1752","ARIANA DEBOSE","TEXT1752"]
["TEXT1753","WILLA FITZGERALD","TEXT1753"]
["TEXT1754","WILLA FITZGERALD","TEXT1754"]
["TEXT1755","WILLA FITZGERALD","TEXT1755"]
["TEXT1756","WILLA FITZGERALD","TEXT1756"]
["TEXT1757","WILLA FITZGERALD","TEXT1757"]
["TEXT1758","WILLA FITZGERALD","TEXT1758"]
["TEXT1759","WILLA FITZGERALD","TEXT1759"]
["TEXT1760","WILLA FITZGERALD","TEXT1760"]
["TEXT1761","WILLA FITZGERALD","TEXT1761"]
["TEXT1762","TEYANA TAYLOR","TEXT1762"]
["TEXT1763","SARAH HYLAND","TEXT1763"]
["TEXT1764","SARAH HYLAND","TEXT1764"]
["TEXT1765","ALLISON SCAGLIOTTI","TEXT1765"]
["TEXT1766","ALLISON SCAGLIOTTI","TEXT1766"]
["TEXT1767","ALLISON SCAGLIOTTI","TEXT1767"]
["TEXT1768","CHRISTIAN SERRATOS","TEXT1768"]
["TEXT1769","MEGAN STALTER","TEXT1769"]
["TEXT1770","MEGAN STALTER","TEXT1770"]
["TEXT1771","MEGAN STALTER","TEXT1771"]
["TEXT1772","MEGAN STALTER","TEXT1772"]
["TEXT1773","MEGAN STALTER","TEXT1773"]
["TEXT1774","MEGAN STALTER","TEXT1774"]
["TEXT1775","MEGAN STALTER","TEXT1775"]
["TEXT1776","MEGAN STALTER","TEXT1776"]
["TEXT1777","CHRISTINA WOLFE","TEXT1777"]
["TEXT1778","DIANNE DOAN","TEXT1778"]
["TEXT1779","DIANNE DOAN","TEXT1779"]
["TEXT1780","DIANNE DOAN","TEXT1780"]
["TEXT1781","DIANNE DOAN","TEXT1781"]
["TEXT1782","DIANNE DOAN","TEXT1782"]
["TEXT1783","ELIZABETH DEBICKI","TEXT1783"]
["TEXT1784","ELIZABETH DEBICKI","TEXT1784"]
["TEXT1785","ELIZABETH DEBICKI","TEXT1785"]
["TEXT1786","ELIZABETH DEBICKI","TEXT1786"]
["TEXT1787","ELIZABETH DEBICKI","TEXT1787"]
["TEXT1788","ELIZABETH DEBICKI","TEXT1788"]
["TEXT1789","ELIZABETH DEBICKI","TEXT1789"]
["TEXT1790","ELIZABETH DEBICKI","TEXT1790"]
["TEXT1791","ELIZABETH DEBICKI","TEXT1791"]
["TEXT1792","ELIZABETH DEBICKI","TEXT1792"]
["TEXT1793","ELIZABETH DEBICKI","TEXT1793"]
[{"$f":"\"TEXT\"&ROW()","v":"TEXT1794"},"ELIZABETH DEBICKI","TEXT1794"]
["TEXT1795","ELIZABETH DEBICKI","TEXT1795"]
["TEXT1796","ELIZABETH DEBICKI","TEXT1796"]
["TEXT1797","ELIZABETH DEBICKI","TEXT1797"]
["TEXT1798","ELIZABETH DEBICKI","TEXT1798"]
["TEXT1799","ELIZABETH DEBICKI","TEXT1799"]
["TEXT1800","ELIZABETH DEBICKI","TEXT1800"]
["TEXT1801","ELIZABETH DEBICKI","TEXT1801"]
["TEXT1802","JENNIFER LAWRENCE","TEXT1802"]
["TEXT1803","JENNIFER LAWRENCE","TEXT1803"]
["TEXT1804","JENNIFER LAWRENCE","TEXT1804"]
["TEXT1805","JENNIFER LAWRENCE","TEXT1805"]
["TEXT1806","JENNIFER LAWRENCE","TEXT1806"]
["TEXT1807","JENNIFER LAWRENCE","TEXT1807"]
["TEXT1808","JENNIFER LAWRENCE","TEXT1808"]
["TEXT1809","JENNIFER LAWRENCE","TEXT1809"]
["TEXT1810","JENNIFER LAWRENCE","TEXT1810"]
["TEXT1811","JENNIFER LAWRENCE","TEXT1811"]
["TEXT1812","JENNIFER LAWRENCE","TEXT1812"]
["TEXT1813","JENNIFER LAWRENCE","TEXT1813"]
["TEXT1814","JENNIFER LAWRENCE","TEXT1814"]
["TEXT1815","JENNIFER LAWRENCE","TEXT1815"]
["TEXT1816","JENNIFER LAWRENCE","TEXT1816"]
["TEXT1817","JENNIFER LAWRENCE","TEXT1817"]
["TEXT1818","JENNIFER LAWRENCE","TEXT1818"]
["TEXT1819","JENNIFER LAWRENCE","TEXT1819"]
["TEXT1820","JENNIFER LAWRENCE","TEXT1820"]
["TEXT1821","JENNIFER LAWRENCE","TEXT1821"]
["TEXT1822","JENNIFER LAWRENCE","TEXT1822"]
["TEXT1823","JENNIFER LAWRENCE","TEXT1823"]
["TEXT1824","JENNIFER LAWRENCE","TEXT1824"]
["TEXT1825","RACHEL BROSNAHAN","TEXT1825"]
["TEXT1826","RACHEL BROSNAHAN","TEXT1826"]
["TEXT1827","RACHEL BROSNAHAN","TEXT1827"]
["TEXT1828","RACHEL BROSNAHAN","TEXT1828"]
["TEXT1829","RACHEL BROSNAHAN","TEXT1829"]
["TEXT1830","RACHEL BROSNAHAN","TEXT1830"]
["TEXT1831","RACHEL BROSNAHAN","TEXT1831"]
["TEXT1832","RACHEL BROSNAHAN","TEXT1832"]
["TEXT1833","RACHEL BROSNAHAN","TEXT1833"]
["TEXT1834","RACHEL BROSNAHAN","TEXT1834"]
["TEXT1835","RACHEL BROSNAHAN","TEXT1835"]
["TEXT1836","RACHEL BROSNAHAN","TEXT1836"]
["TEXT1837","RACHEL BROSNAHAN","TEXT1837"]
["TEXT1838","RACHEL BROSNAHAN","TEXT1838"]
["TEXT1839","MELISSA BARRERA","TEXT1839"]
["TEXT1840","MELISSA BARRERA","TEXT1840"]
["TEXT1841","MELISSA BARRERA","TEXT1841"]
["TEXT1842","MELISSA BARRERA","TEXT1842"]
["TEXT1843","MELISSA BARRERA","TEXT1843"]
["TEXT1844","MELISSA BARRERA","TEXT1844"]
["TEXT1845","MELISSA BARRERA","TEXT1845"]
["TEXT1846","MELISSA BARRERA","TEXT1846"]
["TEXT1847","MELISSA BARRERA","TEXT1847"]
["TEXT1848","MELISSA BARRERA","TEXT1848"]
["TEXT1849","MELISSA BARRERA","TEXT1849"]
["TEXT1850","MELISSA BARRERA","TEXT1850"]
["TEXT1851","MELISSA BARRERA","TEXT1851"]
["TEXT1852","MELISSA BARRERA","TEXT1852"]
["TEXT1853","MELISSA BARRERA","TEXT1853"]
["TEXT1854","MELISSA BARRERA","TEXT1854"]
["TEXT1855","MELISSA BARRERA","TEXT1855"]
["TEXT1856","MELISSA BARRERA","TEXT1856"]
["TEXT1857","MELISSA BARRERA","TEXT1857"]
[{"$f":"\"TEXT\"&ROW()","v":"TEXT1858"},"MELISSA BARRERA","TEXT1858"]
["TEXT1859","MELISSA BARRERA","TEXT1859"]
["TEXT1860","MELISSA BARRERA","TEXT1860"]
["TEXT1861","MARGOT ROBBIE","TEXT1861"]
["TEXT1862","MARGOT ROBBIE","TEXT1862"]
["TEXT1863","MARGOT ROBBIE","TEXT1863"]
["TEXT1864","MARGOT ROBBIE","TEXT1864"]
["TEXT1865","MARGOT ROBBIE","TEXT1865"]
["TEXT1866","MARGOT ROBBIE","TEXT1866"]
["TEXT1867","MARGOT ROBBIE","TEXT1867"]
["TEXT1868","MARGOT ROBBIE","TEXT1868"]
["TEXT1869","MARGOT ROBBIE","TEXT1869"]
["TEXT1870","MARGOT ROBBIE","TEXT1870"]
["TEXT1871","MARGOT ROBBIE","TEXT1871"]
["TEXT1872","MARGOT ROBBIE","TEXT1872"]
["TEXT1873","MARGOT ROBBIE","TEXT1873"]
["TEXT1874","MARGOT ROBBIE","TEXT1874"]
["TEXT1875","MARGOT ROBBIE","TEXT1875"]
["TEXT1876","MARGOT ROBBIE","TEXT1876"]
["TEXT1877","MARGOT ROBBIE","TEXT1877"]
["TEXT1878","MARGOT ROBBIE","TEXT1878"]
["TEXT1879","MARGOT ROBBIE","TEXT1879"]
["TEXT1880","MARGOT ROBBIE","TEXT1880"]
["TEXT1881","MARGOT ROBBIE","TEXT1881"]
["TEXT1882","MEGHANN FAHY","TEXT1882"]
["TEXT1883","MEGHANN FAHY","TEXT1883"]
["TEXT1884","MEGHANN FAHY","TEXT1884"]
["TEXT1885","MEGHANN FAHY","TEXT1885"]
["TEXT1886","BRITT ROBERTSON","TEXT1886"]
["TEXT1887","BRITT ROBERTSON","TEXT1887"]
["TEXT1888","BRITT ROBERTSON","TEXT1888"]
["TEXT1889","BRITT ROBERTSON","TEXT1889"]
["TEXT1890","BRITT ROBERTSON","TEXT1890"]
["TEXT1891","BRITT ROBERTSON","TEXT1891"]
["TEXT1892","EMMA WATSON","TEXT1892"]
["TEXT1893","EMMA WATSON","TEXT1893"]
["TEXT1894","EMMA WATSON","TEXT1894"]
["TEXT1895","EMMA WATSON","TEXT1895"]
["TEXT1896","EMMA WATSON","TEXT1896"]
["TEXT1897","EMMA WATSON","TEXT1897"]
["TEXT1898","EMMA WATSON","TEXT1898"]
["TEXT1899","EMMA WATSON","TEXT1899"]
["TEXT1900","EMMA WATSON","TEXT1900"]
["TEXT1901","KRISTEN STEWART","TEXT1901"]
["TEXT1902","KRISTEN STEWART","TEXT1902"]
["TEXT1903","KRISTEN STEWART","TEXT1903"]
["TEXT1904","KRISTEN STEWART","TEXT1904"]
["TEXT1905","KRISTEN STEWART","TEXT1905"]
["TEXT1906","KRISTEN STEWART","TEXT1906"]
["TEXT1907","KRISTEN STEWART","TEXT1907"]
["TEXT1908","KRISTEN STEWART","TEXT1908"]
["TEXT1909","KRISTEN STEWART","TEXT1909"]
["TEXT1910","KRISTEN STEWART","TEXT1910"]
["TEXT1911","KRISTEN STEWART","TEXT1911"]
["TEXT1912","KRISTEN STEWART","TEXT1912"]
["TEXT1913","KRISTEN STEWART","TEXT1913"]
["TEXT1914","KRISTEN STEWART","TEXT1914"]
["TEXT1915","KRISTEN STEWART","TEXT1915"]
["TEXT1916","KRISTEN STEWART","TEXT1916"]
["TEXT1917","KRISTEN STEWART","TEXT1917"]
["TEXT1918","KRISTEN STEWART","TEXT1918"]
["TEXT1919","KRISTEN STEWART","TEXT1919"]
["TEXT1920","KRISTEN STEWART","TEXT1920"]
["TEXT1921","KRISTEN STEWART","TEXT1921"]
[{"$f":"\"TEXT\"&ROW()","v":"TEXT1922"},"KRISTEN STEWART","TEXT1922"]
["TEXT1923","KRISTEN STEWART","TEXT1923"]
["TEXT1924","KRISTEN STEWART","TEXT1924"]
["TEXT1925","KRISTEN STEWART","TEXT1925"]
["TEXT1926","KRISTEN STEWART","TEXT1926"]
["TEXT1927","KRISTEN STEWART","TEXT1927"]
["TEXT1928","KRISTEN STEWART","TEXT1928"]
["TEXT1929","KRISTEN STEWART","TEXT1929"]
["TEXT1930","KRISTEN STEWART","TEXT1930"]
["TEXT1931","KRISTEN STEWART","TEXT1931"]
["TEXT1932","HASSIE HARRISON","TEXT1932"]
["TEXT1933","HASSIE HARRISON","TEXT1933"]
["TEXT1934","HASSIE HARRISON","TEXT1934"]
["TEXT1935","HASSIE HARRISON","TEXT1935"]
["TEXT1936","JULIA FOX","TEXT1936"]
["TEXT1937","JULIA FOX","TEXT1937"]
["TEXT1938","JULIA FOX","TEXT1938"]
["TEXT1939","JULIA FOX","TEXT1939"]
["TEXT1940","JULIA FOX","TEXT1940"]
["TEXT1941","JULIA FOX","TEXT1941"]
["TEXT1942","JULIA FOX","TEXT1942"]
["TEXT1943","JULIA FOX","TEXT1943"]
["TEXT1944","JULIA FOX","TEXT1944"]
["TEXT1945","JULIA FOX","TEXT1945"]
["TEXT1946","JULIA FOX","TEXT1946"]
["TEXT1947","MACKENZIE PORTER","TEXT1947"]
["TEXT1948","NATALIE PALAMIDES","TEXT1948"]
["TEXT1949","NATALIE PALAMIDES","TEXT1949"]
["TEXT1950","NATALIE PALAMIDES","TEXT1950"]
["TEXT1951","NATALIE PALAMIDES","TEXT1951"]
["TEXT1952","NATALIE PALAMIDES","TEXT1952"]
["TEXT1953","JESSIE BUCKLEY","TEXT1953"]
["TEXT1954","JESSIE BUCKLEY","TEXT1954"]
["TEXT1955","JESSIE BUCKLEY","TEXT1955"]
["TEXT1956","JESSIE BUCKLEY","TEXT1956"]
["TEXT1957","JESSIE BUCKLEY","TEXT1957"]
["TEXT1958","JESSIE BUCKLEY","TEXT1958"]
["TEXT1959","JESSIE BUCKLEY","TEXT1959"]
["TEXT1960","TAYLOR SWIFT","TEXT1960"]
["TEXT1961","MIA WASIKOWSKA","TEXT1961"]
["TEXT1962","MIA WASIKOWSKA","TEXT1962"]
["TEXT1963","MIA WASIKOWSKA","TEXT1963"]
["TEXT1964","MIA WASIKOWSKA","TEXT1964"]
["TEXT1965","MIA WASIKOWSKA","TEXT1965"]
["TEXT1966","MIA WASIKOWSKA","TEXT1966"]
["TEXT1967","MIA WASIKOWSKA","TEXT1967"]
["TEXT1968","MIA WASIKOWSKA","TEXT1968"]
["TEXT1969","MIA WASIKOWSKA","TEXT1969"]
["TEXT1970","MIA WASIKOWSKA","TEXT1970"]
["TEXT1971","MIA WASIKOWSKA","TEXT1971"]
["TEXT1972","DAKOTA JOHNSON","TEXT1972"]
["TEXT1973","DAKOTA JOHNSON","TEXT1973"]
["TEXT1974","DAKOTA JOHNSON","TEXT1974"]
["TEXT1975","DAKOTA JOHNSON","TEXT1975"]
["TEXT1976","DAKOTA JOHNSON","TEXT1976"]
["TEXT1977","DAKOTA JOHNSON","TEXT1977"]
["TEXT1978","DAKOTA JOHNSON","TEXT1978"]
["TEXT1979","DAKOTA JOHNSON","TEXT1979"]
["TEXT1980","DAKOTA JOHNSON","TEXT1980"]
["TEXT1981","DAKOTA JOHNSON","TEXT1981"]
["TEXT1982","DAKOTA JOHNSON","TEXT1982"]
["TEXT1983","DAKOTA JOHNSON","TEXT1983"]
["TEXT1984","DAKOTA JOHNSON","TEXT1984"]
["TEXT1985","DAKOTA JOHNSON","TEXT1985"]
[{"$f":"\"TEXT\"&ROW()","v":"TEXT1986"},"DAKOTA JOHNSON","TEXT1986"]
["TEXT1987","DAKOTA JOHNSON","TEXT1987"]
["TEXT1988","DAKOTA JOHNSON","TEXT1988"]
["TEXT1989","DAKOTA JOHNSON","TEXT1989"]
["TEXT1990","DAKOTA JOHNSON","TEXT1990"]
["TEXT1991","DAKOTA JOHNSON","TEXT1991"]
["TEXT1992","DAKOTA JOHNSON","TEXT1992"]
["TEXT1993","DAKOTA JOHNSON","TEXT1993"]
["TEXT1994","DAKOTA JOHNSON","TEXT1994"]
["TEXT1995","DAKOTA JOHNSON","TEXT1995"]
["TEXT1996","DAKOTA JOHNSON","TEXT1996"]
["TEXT1997","DAKOTA JOHNSON","TEXT1997"]
["TEXT1998","DAKOTA JOHNSON","TEXT1998"]
["TEXT1999","DAKOTA JOHNSON","TEXT1999"]
["TEXT2000","DAKOTA JOHNSON","TEXT2000"]
["TEXT2001","DAKOTA JOHNSON","TEXT2001"]
["TEXT2002","DAKOTA JOHNSON","TEXT2002"]
["TEXT2003","DAKOTA JOHNSON","TEXT2003"]
["TEXT2004","DAKOTA JOHNSON","TEXT2004"]
["TEXT2005","DAKOTA JOHNSON","TEXT2005"]
["TEXT2006","DAKOTA JOHNSON","TEXT2006"]
["TEXT2007","DAKOTA JOHNSON","TEXT2007"]
["TEXT2008","DAKOTA JOHNSON","TEXT2008"]
["TEXT2009","DAKOTA JOHNSON","TEXT2009"]
["TEXT2010","DAKOTA JOHNSON","TEXT2010"]
["TEXT2011","DAKOTA JOHNSON","TEXT2011"]
["TEXT2012","DAKOTA JOHNSON","TEXT2012"]
["TEXT2013","DAKOTA JOHNSON","TEXT2013"]
["TEXT2014","BRIE LARSON","TEXT2014"]
["TEXT2015","BRIE LARSON","TEXT2015"]
["TEXT2016","BRIE LARSON","TEXT2016"]
["TEXT2017","BRIE LARSON","TEXT2017"]
["TEXT2018","BRIE LARSON","TEXT2018"]
["TEXT2019","BRIE LARSON","TEXT2019"]
["TEXT2020","BRIE LARSON","TEXT2020"]
["TEXT2021","BRIE LARSON","TEXT2021"]
["TEXT2022","BRIE LARSON","TEXT2022"]
["TEXT2023","DINA SHIHABI","TEXT2023"]
["TEXT2024","DINA SHIHABI","TEXT2024"]
["TEXT2025","LORENZA IZZO","TEXT2025"]
["TEXT2026","LORENZA IZZO","TEXT2026"]
["TEXT2027","LORENZA IZZO","TEXT2027"]
["TEXT2028","LORENZA IZZO","TEXT2028"]
["TEXT2029","LORENZA IZZO","TEXT2029"]
["TEXT2030","LORENZA IZZO","TEXT2030"]
["TEXT2031","LORENZA IZZO","TEXT2031"]
["TEXT2032","LORENZA IZZO","TEXT2032"]
["TEXT2033","LORENZA IZZO","TEXT2033"]
["TEXT2034","LORENZA IZZO","TEXT2034"]
["TEXT2035","LORENZA IZZO","TEXT2035"]
["TEXT2036","LORENZA IZZO","TEXT2036"]
["TEXT2037","LORENZA IZZO","TEXT2037"]
["TEXT2038","LORENZA IZZO","TEXT2038"]
["TEXT2039","LORENZA IZZO","TEXT2039"]
["TEXT2040","DANIELLE BROOKS","TEXT2040"]
["TEXT2041","DANIELLE BROOKS","TEXT2041"]
["TEXT2042","JESSICA BROWN FINDLAY","TEXT2042"]
["TEXT2043","JESSICA BROWN FINDLAY","TEXT2043"]
["TEXT2044","JESSICA BROWN FINDLAY","TEXT2044"]
["TEXT2045","JESSICA BROWN FINDLAY","TEXT2045"]
["TEXT2046","JESSICA BROWN FINDLAY","TEXT2046"]
["TEXT2047","JESSICA BROWN FINDLAY","TEXT2047"]
["TEXT2048","JESSICA BROWN FINDLAY","TEXT2048"]
["TEXT2049","JESSICA BROWN FINDLAY","TEXT2049"]
[{"$f":"\"TEXT\"&ROW()","v":"TEXT2050"},"JESSICA BROWN FINDLAY","TEXT2050"]
["TEXT2051","JESSICA BROWN FINDLAY","TEXT2051"]
["TEXT2052","JESSICA BROWN FINDLAY","TEXT2052"]
["TEXT2053","JESSICA BROWN FINDLAY","TEXT2053"]
["TEXT2054","JESSICA BROWN FINDLAY","TEXT2054"]
["TEXT2055","JESSICA BROWN FINDLAY","TEXT2055"]
["TEXT2056","JESSICA BROWN FINDLAY","TEXT2056"]
["TEXT2057","JESSICA BROWN FINDLAY","TEXT2057"]
["TEXT2058","JESSICA BROWN FINDLAY","TEXT2058"]
["TEXT2059","JESSICA BROWN FINDLAY","TEXT2059"]
["TEXT2060","JESSICA BROWN FINDLAY","TEXT2060"]
["TEXT2061","JESSICA BROWN FINDLAY","TEXT2061"]
["TEXT2062","JESSICA BROWN FINDLAY","TEXT2062"]
["TEXT2063","SOPHIE COLQUHOUN","TEXT2063"]
["TEXT2064","HANNAH JOHN-KAMEN","TEXT2064"]
["TEXT2065","HANNAH JOHN-KAMEN","TEXT2065"]
["TEXT2066","HANNAH JOHN-KAMEN","TEXT2066"]
["TEXT2067","HANNAH JOHN-KAMEN","TEXT2067"]
["TEXT2068","CHARLOTTE RITCHIE","TEXT2068"]
["TEXT2069","CHARLOTTE RITCHIE","TEXT2069"]
["TEXT2070","CHARLOTTE RITCHIE","TEXT2070"]
["TEXT2071","CHARLOTTE RITCHIE","TEXT2071"]
["TEXT2072","CHARLOTTE RITCHIE","TEXT2072"]
["TEXT2073","HAYDEN PANETTIERE","TEXT2073"]
["TEXT2074","HAYDEN PANETTIERE","TEXT2074"]
["TEXT2075","HAYDEN PANETTIERE","TEXT2075"]
["TEXT2076","HAYDEN PANETTIERE","TEXT2076"]
["TEXT2077","HAYDEN PANETTIERE","TEXT2077"]
["TEXT2078","HAYDEN PANETTIERE","TEXT2078"]
["TEXT2079","HAYDEN PANETTIERE","TEXT2079"]
["TEXT2080","HAYDEN PANETTIERE","TEXT2080"]
["TEXT2081","HAYDEN PANETTIERE","TEXT2081"]
["TEXT2082","HAYDEN PANETTIERE","TEXT2082"]
["TEXT2083","JUNO TEMPLE","TEXT2083"]
["TEXT2084","JUNO TEMPLE","TEXT2084"]
["TEXT2085","JUNO TEMPLE","TEXT2085"]
["TEXT2086","JUNO TEMPLE","TEXT2086"]
["TEXT2087","JUNO TEMPLE","TEXT2087"]
["TEXT2088","JUNO TEMPLE","TEXT2088"]
["TEXT2089","JUNO TEMPLE","TEXT2089"]
["TEXT2090","JUNO TEMPLE","TEXT2090"]
["TEXT2091","JUNO TEMPLE","TEXT2091"]
["TEXT2092","JUNO TEMPLE","TEXT2092"]
["TEXT2093","JUNO TEMPLE","TEXT2093"]
["TEXT2094","JUNO TEMPLE","TEXT2094"]
["TEXT2095","JUNO TEMPLE","TEXT2095"]
["TEXT2096","JUNO TEMPLE","TEXT2096"]
["TEXT2097","JUNO TEMPLE","TEXT2097"]
["TEXT2098","JUNO TEMPLE","TEXT2098"]
["TEXT2099","JUNO TEMPLE","TEXT2099"]
["TEXT2100","JUNO TEMPLE","TEXT2100"]
["TEXT2101","JUNO TEMPLE","TEXT2101"]
["TEXT2102","JUNO TEMPLE","TEXT2102"]
["TEXT2103","JUNO TEMPLE","TEXT2103"]
["TEXT2104","JUNO TEMPLE","TEXT2104"]
["TEXT2105","JUNO TEMPLE","TEXT2105"]
["TEXT2106","JUNO TEMPLE","TEXT2106"]
["TEXT2107","JUNO TEMPLE","TEXT2107"]
["TEXT2108","JUNO TEMPLE","TEXT2108"]
["TEXT2109","JUNO TEMPLE","TEXT2109"]
["TEXT2110","JUNO TEMPLE","TEXT2110"]
["TEXT2111","JUNO TEMPLE","TEXT2111"]
["TEXT2112","JUNO TEMPLE","TEXT2112"]
["TEXT2113","JUNO TEMPLE","TEXT2113"]
[{"$f":"\"TEXT\"&ROW()","v":"TEXT2114"},"JUNO TEMPLE","TEXT2114"]
["TEXT2115","JUNO TEMPLE","TEXT2115"]
["TEXT2116","JUNO TEMPLE","TEXT2116"]
["TEXT2117","JUNO TEMPLE","TEXT2117"]
["TEXT2118","JUNO TEMPLE","TEXT2118"]
["TEXT2119","JUNO TEMPLE","TEXT2119"]
["TEXT2120","JUNO TEMPLE","TEXT2120"]
["TEXT2121","JUNO TEMPLE","TEXT2121"]
["TEXT2122","JUNO TEMPLE","TEXT2122"]
["TEXT2123","JUNO TEMPLE","TEXT2123"]
["TEXT2124","JUNO TEMPLE","TEXT2124"]
["TEXT2125","JUNO TEMPLE","TEXT2125"]
["TEXT2126","JUNO TEMPLE","TEXT2126"]
["TEXT2127","JUNO TEMPLE","TEXT2127"]
["TEXT2128","JUNO TEMPLE","TEXT2128"]
["TEXT2129","JUNO TEMPLE","TEXT2129"]
["TEXT2130","JUNO TEMPLE","TEXT2130"]
["TEXT2131","JUNO TEMPLE","TEXT2131"]
["TEXT2132","JUNO TEMPLE","TEXT2132"]
["TEXT2133","MONICA BARBARO","TEXT2133"]
["TEXT2134","MONICA BARBARO","TEXT2134"]
["TEXT2135","MONICA BARBARO","TEXT2135"]
["TEXT2136","MONICA BARBARO","TEXT2136"]
["TEXT2137","LUCY HALE","TEXT2137"]
["TEXT2138","LUCY HALE","TEXT2138"]
["TEXT2139","LUCY HALE","TEXT2139"]
["TEXT2140","LUCY HALE","TEXT2140"]
["TEXT2141","LUCY HALE","TEXT2141"]
["TEXT2142","LUCY HALE","TEXT2142"]
["TEXT2143","LUCY HALE","TEXT2143"]
["TEXT2144","LUCY HALE","TEXT2144"]
["TEXT2145","LUCY HALE","TEXT2145"]
["TEXT2146","LUCY HALE","TEXT2146"]
["TEXT2147","LUCY HALE","TEXT2147"]
["TEXT2148","LUCY HALE","TEXT2148"]
["TEXT2149","LUCY HALE","TEXT2149"]
["TEXT2150","IMOGEN POOTS","TEXT2150"]
["TEXT2151","IMOGEN POOTS","TEXT2151"]
["TEXT2152","IMOGEN POOTS","TEXT2152"]
["TEXT2153","IMOGEN POOTS","TEXT2153"]
["TEXT2154","IMOGEN POOTS","TEXT2154"]
["TEXT2155","IMOGEN POOTS","TEXT2155"]
["TEXT2156","IMOGEN POOTS","TEXT2156"]
["TEXT2157","IMOGEN POOTS","TEXT2157"]
["TEXT2158","IMOGEN POOTS","TEXT2158"]
["TEXT2159","IMOGEN POOTS","TEXT2159"]
["TEXT2160","IMOGEN POOTS","TEXT2160"]
["TEXT2161","IMOGEN POOTS","TEXT2161"]
["TEXT2162","JUSTINE LUPE","TEXT2162"]
["TEXT2163","RILEY KEOUGH","TEXT2163"]
["TEXT2164","RILEY KEOUGH","TEXT2164"]
["TEXT2165","RILEY KEOUGH","TEXT2165"]
["TEXT2166","RILEY KEOUGH","TEXT2166"]
["TEXT2167","RILEY KEOUGH","TEXT2167"]
["TEXT2168","RILEY KEOUGH","TEXT2168"]
["TEXT2169","RILEY KEOUGH","TEXT2169"]
["TEXT2170","RILEY KEOUGH","TEXT2170"]
["TEXT2171","RILEY KEOUGH","TEXT2171"]
["TEXT2172","RILEY KEOUGH","TEXT2172"]
["TEXT2173","RILEY KEOUGH","TEXT2173"]
["TEXT2174","RILEY KEOUGH","TEXT2174"]
["TEXT2175","RILEY KEOUGH","TEXT2175"]
["TEXT2176","RILEY KEOUGH","TEXT2176"]
["TEXT2177","RILEY KEOUGH","TEXT2177"]
[{"$f":"\"TEXT\"&ROW()","v":"TEXT2178"},"RILEY KEOUGH","TEXT2178"]
["TEXT2179","RILEY KEOUGH","TEXT2179"]
["TEXT2180","RILEY KEOUGH","TEXT2180"]
["TEXT2181","RILEY KEOUGH","TEXT2181"]
["TEXT2182","RILEY KEOUGH","TEXT2182"]
["TEXT2183","RILEY KEOUGH","TEXT2183"]
["TEXT2184","RILEY KEOUGH","TEXT2184"]
["TEXT2185","RILEY KEOUGH","TEXT2185"]
["TEXT2186","RILEY KEOUGH","TEXT2186"]
["TEXT2187","RILEY KEOUGH","TEXT2187"]
["TEXT2188","RILEY KEOUGH","TEXT2188"]
["TEXT2189","RILEY KEOUGH","TEXT2189"]
["TEXT2190","RILEY KEOUGH","TEXT2190"]
["TEXT2191","RILEY KEOUGH","TEXT2191"]
["TEXT2192","RILEY KEOUGH","TEXT2192"]
["TEXT2193","RILEY KEOUGH","TEXT2193"]
["TEXT2194","RILEY KEOUGH","TEXT2194"]
["TEXT2195","RILEY KEOUGH","TEXT2195"]
["TEXT2196","RILEY KEOUGH","TEXT2196"]
["TEXT2197","RILEY KEOUGH","TEXT2197"]
["TEXT2198","RILEY KEOUGH","TEXT2198"]
["TEXT2199","RILEY KEOUGH","TEXT2199"]
["TEXT2200","RILEY KEOUGH","TEXT2200"]
["TEXT2201","RILEY KEOUGH","TEXT2201"]
["TEXT2202","RILEY KEOUGH","TEXT2202"]
["TEXT2203","RILEY KEOUGH","TEXT2203"]
["TEXT2204","RILEY KEOUGH","TEXT2204"]
["TEXT2205","RILEY KEOUGH","TEXT2205"]
["TEXT2206","RILEY KEOUGH","TEXT2206"]
["TEXT2207","RILEY KEOUGH","TEXT2207"]
["TEXT2208","RILEY KEOUGH","TEXT2208"]
["TEXT2209","RILEY KEOUGH","TEXT2209"]
["TEXT2210","RILEY KEOUGH","TEXT2210"]
["TEXT2211","RILEY KEOUGH","TEXT2211"]
["TEXT2212","RILEY KEOUGH","TEXT2212"]
["TEXT2213","RILEY KEOUGH","TEXT2213"]
["TEXT2214","RILEY KEOUGH","TEXT2214"]
["TEXT2215","RILEY KEOUGH","TEXT2215"]
["TEXT2216","RILEY KEOUGH","TEXT2216"]
["TEXT2217","RILEY KEOUGH","TEXT2217"]
["TEXT2218","RILEY KEOUGH","TEXT2218"]
["TEXT2219","RILEY KEOUGH","TEXT2219"]
["TEXT2220","RILEY KEOUGH","TEXT2220"]
["TEXT2221","RILEY KEOUGH","TEXT2221"]
["TEXT2222","RILEY KEOUGH","TEXT2222"]
["TEXT2223","RILEY KEOUGH","TEXT2223"]
["TEXT2224","RILEY KEOUGH","TEXT2224"]
["TEXT2225","RILEY KEOUGH","TEXT2225"]
["TEXT2226","BRIANNE HOWEY","TEXT2226"]
["TEXT2227","BRIANNE HOWEY","TEXT2227"]
["TEXT2228","BRIANNE HOWEY","TEXT2228"]
["TEXT2229","BRIANNE HOWEY","TEXT2229"]
["TEXT2230","BRIANNE HOWEY","TEXT2230"]
["TEXT2231","ALIA SHAWKAT","TEXT2231"]
["TEXT2232","ALIA SHAWKAT","TEXT2232"]
["TEXT2233","ALIA SHAWKAT","TEXT2233"]
["TEXT2234","ALIA SHAWKAT","TEXT2234"]
["TEXT2235","ALIA SHAWKAT","TEXT2235"]
["TEXT2236","ALIA SHAWKAT","TEXT2236"]
["TEXT2237","ALIA SHAWKAT","TEXT2237"]
["TEXT2238","ALIA SHAWKAT","TEXT2238"]
["TEXT2239","ALIA SHAWKAT","TEXT2239"]
["TEXT2240","ALIA SHAWKAT","TEXT2240"]
["TEXT2241","ALIA SHAWKAT","TEXT2241"]
[{"$f":"\"TEXT\"&ROW()","v":"TEXT2242"},"ALIA SHAWKAT","TEXT2242"]
["TEXT2243","ALIA SHAWKAT","TEXT2243"]
["TEXT2244","ALIA SHAWKAT","TEXT2244"]
["TEXT2245","ALIA SHAWKAT","TEXT2245"]
["TEXT2246","ALIA SHAWKAT","TEXT2246"]
["TEXT2247","ALIA SHAWKAT","TEXT2247"]
["TEXT2248","ALIA SHAWKAT","TEXT2248"]
["TEXT2249","ALIA SHAWKAT","TEXT2249"]
["TEXT2250","ALIA SHAWKAT","TEXT2250"]
["TEXT2251","ALIA SHAWKAT","TEXT2251"]
["TEXT2252","ALIA SHAWKAT","TEXT2252"]
["TEXT2253","ALIA SHAWKAT","TEXT2253"]
["TEXT2254","ALIA SHAWKAT","TEXT2254"]
["TEXT2255","ALIA SHAWKAT","TEXT2255"]
["TEXT2256","ALIA SHAWKAT","TEXT2256"]
["TEXT2257","ALIA SHAWKAT","TEXT2257"]
["TEXT2258","ALIA SHAWKAT","TEXT2258"]
["TEXT2259","ALIA SHAWKAT","TEXT2259"]
["TEXT2260","LILY JAMES","TEXT2260"]
["TEXT2261","LILY JAMES","TEXT2261"]
["TEXT2262","LILY JAMES","TEXT2262"]
["TEXT2263","LILY JAMES","TEXT2263"]
["TEXT2264","LILY JAMES","TEXT2264"]
["TEXT2265","LILY JAMES","TEXT2265"]
["TEXT2266","LILY JAMES","TEXT2266"]
["TEXT2267","LILY JAMES","TEXT2267"]
["TEXT2268","LILY JAMES","TEXT2268"]
["TEXT2269","LILY JAMES","TEXT2269"]
["TEXT2270","LILY JAMES","TEXT2270"]
["TEXT2271","LILY JAMES","TEXT2271"]
["TEXT2272","LILY JAMES","TEXT2272"]
["TEXT2273","LILY JAMES","TEXT2273"]
["TEXT2274","LILY JAMES","TEXT2274"]
["TEXT2275","LILY JAMES","TEXT2275"]
["TEXT2276","LILY COLLINS","TEXT2276"]
["TEXT2277","LILY COLLINS","TEXT2277"]
["TEXT2278","LILY COLLINS","TEXT2278"]
["TEXT2279","LILY COLLINS","TEXT2279"]
["TEXT2280","NATHALIE EMMANUEL","TEXT2280"]
["TEXT2281","NATHALIE EMMANUEL","TEXT2281"]
["TEXT2282","NATHALIE EMMANUEL","TEXT2282"]
["TEXT2283","NATHALIE EMMANUEL","TEXT2283"]
["TEXT2284","NATHALIE EMMANUEL","TEXT2284"]
["TEXT2285","NATHALIE EMMANUEL","TEXT2285"]
["TEXT2286","NATHALIE EMMANUEL","TEXT2286"]
["TEXT2287","NATHALIE EMMANUEL","TEXT2287"]
["TEXT2288","NATHALIE EMMANUEL","TEXT2288"]
["TEXT2289","NATHALIE EMMANUEL","TEXT2289"]
["TEXT2290","NATHALIE EMMANUEL","TEXT2290"]
["TEXT2291","ELIZABETH OLSEN","TEXT2291"]
["TEXT2292","ELIZABETH OLSEN","TEXT2292"]
["TEXT2293","ELIZABETH OLSEN","TEXT2293"]
["TEXT2294","ELIZABETH OLSEN","TEXT2294"]
["TEXT2295","ELIZABETH OLSEN","TEXT2295"]
["TEXT2296","ELIZABETH OLSEN","TEXT2296"]
["TEXT2297","ELIZABETH OLSEN","TEXT2297"]
["TEXT2298","ELIZABETH OLSEN","TEXT2298"]
["TEXT2299","ELIZABETH OLSEN","TEXT2299"]
["TEXT2300","ELIZABETH OLSEN","TEXT2300"]
["TEXT2301","ELIZABETH OLSEN","TEXT2301"]
["TEXT2302","ELIZABETH OLSEN","TEXT2302"]
["TEXT2303","ELIZABETH OLSEN","TEXT2303"]
["TEXT2304","ELIZABETH OLSEN","TEXT2304"]
["TEXT2305","ELIZABETH OLSEN","TEXT2305"]
[{"$f":"\"TEXT\"&ROW()","v":"TEXT2306"},"ELIZABETH OLSEN","TEXT2306"]
["TEXT2307","ELIZABETH OLSEN","TEXT2307"]
["TEXT2308","ELIZABETH OLSEN","TEXT2308"]
["TEXT2309","ELIZABETH OLSEN","TEXT2309"]
["TEXT2310","ELIZABETH OLSEN","TEXT2310"]
["TEXT2311","KATY O'BRIAN","TEXT2311"]
["TEXT2312","KATY O'BRIAN","TEXT2312"]
["TEXT2313","KATY O'BRIAN","TEXT2313"]
["TEXT2314","KATY O'BRIAN","TEXT2314"]
["TEXT2315","KATY O'BRIAN","TEXT2315"]
["TEXT2316","KATY O'BRIAN","TEXT2316"]
["TEXT2317","KATY O'BRIAN","TEXT2317"]
["TEXT2318","KATY O'BRIAN","TEXT2318"]
["TEXT2319","KATY O'BRIAN","TEXT2319"]
["TEXT2320","KATY O'BRIAN","TEXT2320"]
["TEXT2321","KATY O'BRIAN","TEXT2321"]
["TEXT2322","KATY O'BRIAN","TEXT2322"]
["TEXT2323","NINA DOBREV","TEXT2323"]
["TEXT2324","NINA DOBREV","TEXT2324"]
["TEXT2325","NINA DOBREV","TEXT2325"]
["TEXT2326","NINA DOBREV","TEXT2326"]
["TEXT2327","NINA DOBREV","TEXT2327"]
["TEXT2328","NINA DOBREV","TEXT2328"]
["TEXT2329","NINA DOBREV","TEXT2329"]
["TEXT2330","VANESSA HUDGENS","TEXT2330"]
["TEXT2331","VANESSA HUDGENS","TEXT2331"]
["TEXT2332","VANESSA HUDGENS","TEXT2332"]
["TEXT2333","VANESSA HUDGENS","TEXT2333"]
["TEXT2334","VANESSA HUDGENS","TEXT2334"]
["TEXT2335","VANESSA HUDGENS","TEXT2335"]
["TEXT2336","VANESSA HUDGENS","TEXT2336"]
["TEXT2337","VANESSA HUDGENS","TEXT2337"]
["TEXT2338","EMILY BROWNING","TEXT2338"]
["TEXT2339","EMILY BROWNING","TEXT2339"]
["TEXT2340","EMILY BROWNING","TEXT2340"]
["TEXT2341","EMILY BROWNING","TEXT2341"]
["TEXT2342","EMILY BROWNING","TEXT2342"]
["TEXT2343","EMILY BROWNING","TEXT2343"]
["TEXT2344","EMILY BROWNING","TEXT2344"]
["TEXT2345","EMILY BROWNING","TEXT2345"]
["TEXT2346","EMILY BROWNING","TEXT2346"]
["TEXT2347","EMILY BROWNING","TEXT2347"]
["TEXT2348","EMILY BROWNING","TEXT2348"]
["TEXT2349","EMILY BROWNING","TEXT2349"]
["TEXT2350","EMILY BROWNING","TEXT2350"]
["TEXT2351","EMILY BROWNING","TEXT2351"]
["TEXT2352","EMILY BROWNING","TEXT2352"]
["TEXT2353","EMILY BROWNING","TEXT2353"]
["TEXT2354","EMILY BROWNING","TEXT2354"]
["TEXT2355","EMILY BROWNING","TEXT2355"]
["TEXT2356","EMILY BROWNING","TEXT2356"]
["TEXT2357","EMILY BROWNING","TEXT2357"]
["TEXT2358","EMILY BROWNING","TEXT2358"]
["TEXT2359","EMILY BROWNING","TEXT2359"]
["TEXT2360","EMILY BROWNING","TEXT2360"]
["TEXT2361","EMILY BROWNING","TEXT2361"]
["TEXT2362","EMILY BROWNING","TEXT2362"]
["TEXT2363","EMILY BROWNING","TEXT2363"]
["TEXT2364","EMILY BROWNING","TEXT2364"]
["TEXT2365","EMILY BROWNING","TEXT2365"]
["TEXT2366","EMILY BROWNING","TEXT2366"]
["TEXT2367","EMILY BROWNING","TEXT2367"]
["TEXT2368","EMILY BROWNING","TEXT2368"]
["TEXT2369","EMILY BROWNING","TEXT2369"]
[{"$f":"\"TEXT\"&ROW()","v":"TEXT2370"},"EMILY BROWNING","TEXT2370"]
["TEXT2371","EMILY BROWNING","TEXT2371"]
["TEXT2372","EMMA STONE","TEXT2372"]
["TEXT2373","EMMA STONE","TEXT2373"]
["TEXT2374","EMMA STONE","TEXT2374"]
["TEXT2375","EMMA STONE","TEXT2375"]
["TEXT2376","EMMA STONE","TEXT2376"]
["TEXT2377","EMMA STONE","TEXT2377"]
["TEXT2378","EMMA STONE","TEXT2378"]
["TEXT2379","EMMA STONE","TEXT2379"]
["TEXT2380","EMMA STONE","TEXT2380"]
["TEXT2381","EMMA STONE","TEXT2381"]
["TEXT2382","EMMA STONE","TEXT2382"]
["TEXT2383","EMMA STONE","TEXT2383"]
["TEXT2384","EMMA STONE","TEXT2384"]
["TEXT2385","EMMA STONE","TEXT2385"]
["TEXT2386","EMMA STONE","TEXT2386"]
["TEXT2387","EMMA STONE","TEXT2387"]
["TEXT2388","EMMA STONE","TEXT2388"]
["TEXT2389","EMMA STONE","TEXT2389"]
["TEXT2390","EMMA STONE","TEXT2390"]
["TEXT2391","EMMA STONE","TEXT2391"]
["TEXT2392","EMMA STONE","TEXT2392"]
["TEXT2393","EMMA STONE","TEXT2393"]
["TEXT2394","EMMA STONE","TEXT2394"]
["TEXT2395","EMMA STONE","TEXT2395"]
["TEXT2396","EMMA STONE","TEXT2396"]
["TEXT2397","EMMA STONE","TEXT2397"]
["TEXT2398","EMMA STONE","TEXT2398"]
["TEXT2399","EMMA STONE","TEXT2399"]
["TEXT2400","EMMA STONE","TEXT2400"]
["TEXT2401","EMMA STONE","TEXT2401"]
["TEXT2402","EMMA STONE","TEXT2402"]
["TEXT2403","EMMA STONE","TEXT2403"]
["TEXT2404","EMMA STONE","TEXT2404"]
["TEXT2405","EMMA STONE","TEXT2405"]
["TEXT2406","EMMA STONE","TEXT2406"]
["TEXT2407","EMMA STONE","TEXT2407"]
["TEXT2408","EMMA STONE","TEXT2408"]
["TEXT2409","EMMA STONE","TEXT2409"]
["TEXT2410","EMMA STONE","TEXT2410"]
["TEXT2411","EMMA STONE","TEXT2411"]
["TEXT2412","EMMA STONE","TEXT2412"]
["TEXT2413","EMMA STONE","TEXT2413"]
["TEXT2414","EMMA STONE","TEXT2414"]
["TEXT2415","EMMA STONE","TEXT2415"]
["TEXT2416","EMMA STONE","TEXT2416"]
["TEXT2417","EMMA STONE","TEXT2417"]
["TEXT2418","EMMA STONE","TEXT2418"]
["TEXT2419","EMMA STONE","TEXT2419"]
["TEXT2420","EMMA STONE","TEXT2420"]
["TEXT2421","EMMA STONE","TEXT2421"]
["TEXT2422","EMMA STONE","TEXT2422"]
["TEXT2423","EMMA STONE","TEXT2423"]
["TEXT2424","EMMA STONE","TEXT2424"]
["TEXT2425","EMMA STONE","TEXT2425"]
["TEXT2426","EMMA STONE","TEXT2426"]
["TEXT2427","MAY HONG","TEXT2427"]
["TEXT2428","MAY HONG","TEXT2428"]
["TEXT2429","MAY HONG","TEXT2429"]
["TEXT2430","MAY HONG","TEXT2430"]
["TEXT2431","MAY HONG","TEXT2431"]
["TEXT2432","MAY HONG","TEXT2432"]
["TEXT2433","ROSE MCIVER","TEXT2433"]
[{"$f":"\"TEXT\"&ROW()","v":"TEXT2434"},"ROSE MCIVER","TEXT2434"]
["TEXT2435","ROSE MCIVER","TEXT2435"]
["TEXT2436","ROSE MCIVER","TEXT2436"]
["TEXT2437","ROSE MCIVER","TEXT2437"]
["TEXT2438","ROSE MCIVER","TEXT2438"]
["TEXT2439","ROSE MCIVER","TEXT2439"]
["TEXT2440","ROSE MCIVER","TEXT2440"]
["TEXT2441","MELISSA BENOIST","TEXT2441"]
["TEXT2442","ALICIA VIKANDER","TEXT2442"]
["TEXT2443","ALICIA VIKANDER","TEXT2443"]
["TEXT2444","ALICIA VIKANDER","TEXT2444"]
["TEXT2445","ALICIA VIKANDER","TEXT2445"]
["TEXT2446","ALICIA VIKANDER","TEXT2446"]
["TEXT2447","ALICIA VIKANDER","TEXT2447"]
["TEXT2448","ALICIA VIKANDER","TEXT2448"]
["TEXT2449","ALICIA VIKANDER","TEXT2449"]
["TEXT2450","ALICIA VIKANDER","TEXT2450"]
["TEXT2451","ALICIA VIKANDER","TEXT2451"]
["TEXT2452","ALICIA VIKANDER","TEXT2452"]
["TEXT2453","ALICIA VIKANDER","TEXT2453"]
["TEXT2454","ALICIA VIKANDER","TEXT2454"]
["TEXT2455","ALICIA VIKANDER","TEXT2455"]
["TEXT2456","ALICIA VIKANDER","TEXT2456"]
["TEXT2457","ALICIA VIKANDER","TEXT2457"]
["TEXT2458","ALICIA VIKANDER","TEXT2458"]
["TEXT2459","ALICIA VIKANDER","TEXT2459"]
["TEXT2460","ALICIA VIKANDER","TEXT2460"]
["TEXT2461","ALICIA VIKANDER","TEXT2461"]
["TEXT2462","ALICIA VIKANDER","TEXT2462"]
["TEXT2463","ALICIA VIKANDER","TEXT2463"]
["TEXT2464","ALICIA VIKANDER","TEXT2464"]
["TEXT2465","ALICIA VIKANDER","TEXT2465"]
["TEXT2466","ALICIA VIKANDER","TEXT2466"]
["TEXT2467","ALICIA VIKANDER","TEXT2467"]
["TEXT2468","ALICIA VIKANDER","TEXT2468"]
["TEXT2469","ALICIA VIKANDER","TEXT2469"]
["TEXT2470","ALICIA VIKANDER","TEXT2470"]
["TEXT2471","ALICIA VIKANDER","TEXT2471"]
["TEXT2472","ALICIA VIKANDER","TEXT2472"]
["TEXT2473","ALICIA VIKANDER","TEXT2473"]
["TEXT2474","ALICIA VIKANDER","TEXT2474"]
["TEXT2475","ALICIA VIKANDER","TEXT2475"]
["TEXT2476","KATRINA BOWDEN","TEXT2476"]
["TEXT2477","KATRINA BOWDEN","TEXT2477"]
["TEXT2478","KATRINA BOWDEN","TEXT2478"]
["TEXT2479","KATRINA BOWDEN","TEXT2479"]
["TEXT2480","KATRINA BOWDEN","TEXT2480"]
["TEXT2481","KATRINA BOWDEN","TEXT2481"]
["TEXT2482","KATRINA BOWDEN","TEXT2482"]
["TEXT2483","KATRINA BOWDEN","TEXT2483"]
["TEXT2484","RITU ARYA","TEXT2484"]
["TEXT2485","RITU ARYA","TEXT2485"]
["TEXT2486","RITU ARYA","TEXT2486"]
["TEXT2487","CLARA PAGET","TEXT2487"]
["TEXT2488","CLARA PAGET","TEXT2488"]
["TEXT2489","CLARA PAGET","TEXT2489"]
["TEXT2490","CLARA PAGET","TEXT2490"]
["TEXT2491","CLARA PAGET","TEXT2491"]
["TEXT2492","CLARA PAGET","TEXT2492"]
["TEXT2493","CLARA PAGET","TEXT2493"]
["TEXT2494","CLARA PAGET","TEXT2494"]
["TEXT2495","CLARA PAGET","TEXT2495"]
["TEXT2496","CLARA PAGET","TEXT2496"]
["TEXT2497","CLARA PAGET","TEXT2497"]
[{"$f":"\"TEXT\"&ROW()","v":"TEXT2498"},"CLARA PAGET","TEXT2498"]
["TEXT2499","MELISSA O'NEIL","TEXT2499"]
["TEXT2500","ANA DE ARMAS","TEXT2500"]
["TEXT2501","ANA DE ARMAS","TEXT2501"]
["TEXT2502","ANA DE ARMAS","TEXT2502"]
["TEXT2503","ANA DE ARMAS","TEXT2503"]
["TEXT2504","ANA DE ARMAS","TEXT2504"]
["TEXT2505","ANA DE ARMAS","TEXT2505"]
["TEXT2506","ANA DE ARMAS","TEXT2506"]
["TEXT2507","ANA DE ARMAS","TEXT2507"]
["TEXT2508","ANA DE ARMAS","TEXT2508"]
["TEXT2509","ANA DE ARMAS","TEXT2509"]
["TEXT2510","ANA DE ARMAS","TEXT2510"]
["TEXT2511","ANA DE ARMAS","TEXT2511"]
["TEXT2512","ANA DE ARMAS","TEXT2512"]
["TEXT2513","ANA DE ARMAS","TEXT2513"]
["TEXT2514","ANA DE ARMAS","TEXT2514"]
["TEXT2515","ANA DE ARMAS","TEXT2515"]
["TEXT2516","ANA DE ARMAS","TEXT2516"]
["TEXT2517","ANA DE ARMAS","TEXT2517"]
["TEXT2518","ANA DE ARMAS","TEXT2518"]
["TEXT2519","ANA DE ARMAS","TEXT2519"]
["TEXT2520","ANA DE ARMAS","TEXT2520"]
["TEXT2521","ANA DE ARMAS","TEXT2521"]
["TEXT2522","ANA DE ARMAS","TEXT2522"]
["TEXT2523","ANA DE ARMAS","TEXT2523"]
["TEXT2524","ANA DE ARMAS","TEXT2524"]
["TEXT2525","ANA DE ARMAS","TEXT2525"]
["TEXT2526","ANA DE ARMAS","TEXT2526"]
["TEXT2527","ANA DE ARMAS","TEXT2527"]
["TEXT2528","ANA DE ARMAS","TEXT2528"]
["TEXT2529","ANA DE ARMAS","TEXT2529"]
["TEXT2530","ANA DE ARMAS","TEXT2530"]
["TEXT2531","ANA DE ARMAS","TEXT2531"]
["TEXT2532","ANA DE ARMAS","TEXT2532"]
["TEXT2533","ANA DE ARMAS","TEXT2533"]
["TEXT2534","ANA DE ARMAS","TEXT2534"]
["TEXT2535","ANA DE ARMAS","TEXT2535"]
["TEXT2536","ANA DE ARMAS","TEXT2536"]
["TEXT2537","ANA DE ARMAS","TEXT2537"]
["TEXT2538","ANA DE ARMAS","TEXT2538"]
["TEXT2539","ANA DE ARMAS","TEXT2539"]
["TEXT2540","ANA DE ARMAS","TEXT2540"]
["TEXT2541","ANA DE ARMAS","TEXT2541"]
["TEXT2542","ANA DE ARMAS","TEXT2542"]
["TEXT2543","ANA DE ARMAS","TEXT2543"]
["TEXT2544","ANA DE ARMAS","TEXT2544"]
["TEXT2545","ANA DE ARMAS","TEXT2545"]
["TEXT2546","ANA DE ARMAS","TEXT2546"]
["TEXT2547","ANA DE ARMAS","TEXT2547"]
["TEXT2548","ANA DE ARMAS","TEXT2548"]
["TEXT2549","ANA DE ARMAS","TEXT2549"]
["TEXT2550","ANA DE ARMAS","TEXT2550"]
["TEXT2551","ANA DE ARMAS","TEXT2551"]
["TEXT2552","ANA DE ARMAS","TEXT2552"]
["TEXT2553","ANA DE ARMAS","TEXT2553"]
["TEXT2554","ANA DE ARMAS","TEXT2554"]
["TEXT2555","ANA DE ARMAS","TEXT2555"]
["TEXT2556","ANA DE ARMAS","TEXT2556"]
["TEXT2557","ANA DE ARMAS","TEXT2557"]
["TEXT2558","ANA DE ARMAS","TEXT2558"]
["TEXT2559","ANA DE ARMAS","TEXT2559"]
["TEXT2560","ANA DE ARMAS","TEXT2560"]
["TEXT2561","ANA DE ARMAS","TEXT2561"]
[{"$f":"\"TEXT\"&ROW()","v":"TEXT2562"},"ANA DE ARMAS","TEXT2562"]
["TEXT2563","SARA PAXTON","TEXT2563"]
["TEXT2564","SARA PAXTON","TEXT2564"]
["TEXT2565","SARA PAXTON","TEXT2565"]
["TEXT2566","SARA PAXTON","TEXT2566"]
["TEXT2567","SARA PAXTON","TEXT2567"]
["TEXT2568","SARA PAXTON","TEXT2568"]
["TEXT2569","SARA PAXTON","TEXT2569"]
["TEXT2570","ALLEGRA EDWARDS","TEXT2570"]
["TEXT2571","BRENDA SONG","TEXT2571"]
["TEXT2572","BRENDA SONG","TEXT2572"]
["TEXT2573","BRENDA SONG","TEXT2573"]
["TEXT2574","HOLLIDAY GRAINGER","TEXT2574"]
["TEXT2575","HOLLIDAY GRAINGER","TEXT2575"]
["TEXT2576","HOLLIDAY GRAINGER","TEXT2576"]
["TEXT2577","HOLLIDAY GRAINGER","TEXT2577"]
["TEXT2578","HOLLIDAY GRAINGER","TEXT2578"]
["TEXT2579","HOLLIDAY GRAINGER","TEXT2579"]
["TEXT2580","HOLLIDAY GRAINGER","TEXT2580"]
["TEXT2581","HOLLIDAY GRAINGER","TEXT2581"]
["TEXT2582","HOLLIDAY GRAINGER","TEXT2582"]
["TEXT2583","HOLLIDAY GRAINGER","TEXT2583"]
["TEXT2584","HOLLIDAY GRAINGER","TEXT2584"]
["TEXT2585","HOLLIDAY GRAINGER","TEXT2585"]
["TEXT2586","HOLLIDAY GRAINGER","TEXT2586"]
["TEXT2587","HOLLIDAY GRAINGER","TEXT2587"]
["TEXT2588","HOLLIDAY GRAINGER","TEXT2588"]
["TEXT2589","TANIA RAYMONDE","TEXT2589"]
["TEXT2590","TANIA RAYMONDE","TEXT2590"]
["TEXT2591","TANIA RAYMONDE","TEXT2591"]
["TEXT2592","TANIA RAYMONDE","TEXT2592"]
["TEXT2593","TANIA RAYMONDE","TEXT2593"]
["TEXT2594","ZOSIA MAMET","TEXT2594"]
["TEXT2595","ZOSIA MAMET","TEXT2595"]
["TEXT2596","ZOSIA MAMET","TEXT2596"]
["TEXT2597","HALEY BENNETT","TEXT2597"]
["TEXT2598","HALEY BENNETT","TEXT2598"]
["TEXT2599","HALEY BENNETT","TEXT2599"]
["TEXT2600","HALEY BENNETT","TEXT2600"]
["TEXT2601","HALEY BENNETT","TEXT2601"]
["TEXT2602","HALEY BENNETT","TEXT2602"]
["TEXT2603","HALEY BENNETT","TEXT2603"]
["TEXT2604","HALEY BENNETT","TEXT2604"]
["TEXT2605","HALEY BENNETT","TEXT2605"]
["TEXT2606","HALEY BENNETT","TEXT2606"]
["TEXT2607","HALEY BENNETT","TEXT2607"]
["TEXT2608","HALEY BENNETT","TEXT2608"]
["TEXT2609","HALEY BENNETT","TEXT2609"]
["TEXT2610","HALEY BENNETT","TEXT2610"]
["TEXT2611","HALEY BENNETT","TEXT2611"]
["TEXT2612","HALEY BENNETT","TEXT2612"]
["TEXT2613","HALEY BENNETT","TEXT2613"]
["TEXT2614","HALEY BENNETT","TEXT2614"]
["TEXT2615","HALEY BENNETT","TEXT2615"]
["TEXT2616","HALEY BENNETT","TEXT2616"]
["TEXT2617","HALEY BENNETT","TEXT2617"]
["TEXT2618","HALEY BENNETT","TEXT2618"]
["TEXT2619","HALEY BENNETT","TEXT2619"]
["TEXT2620","CHARLIE MURPHY","TEXT2620"]
["TEXT2621","CHARLIE MURPHY","TEXT2621"]
["TEXT2622","CHARLIE MURPHY","TEXT2622"]
["TEXT2623","CHARLIE MURPHY","TEXT2623"]
["TEXT2624","CHARLIE MURPHY","TEXT2624"]
["TEXT2625","CHARLIE MURPHY","TEXT2625"]
[{"$f":"\"TEXT\"&ROW()","v":"TEXT2626"},"CHARLIE MURPHY","TEXT2626"]
["TEXT2627","CHARLIE MURPHY","TEXT2627"]
["TEXT2628","CHARLIE MURPHY","TEXT2628"]
["TEXT2629","KAREN GILLAN","TEXT2629"]
["TEXT2630","KAREN GILLAN","TEXT2630"]
["TEXT2631","KAREN GILLAN","TEXT2631"]
["TEXT2632","KAREN GILLAN","TEXT2632"]
["TEXT2633","KAREN GILLAN","TEXT2633"]
["TEXT2634","KAREN GILLAN","TEXT2634"]
["TEXT2635","KAREN GILLAN","TEXT2635"]
["TEXT2636","KAREN GILLAN","TEXT2636"]
["TEXT2637","KAREN GILLAN","TEXT2637"]
["TEXT2638","KAREN GILLAN","TEXT2638"]
["TEXT2639","KAREN GILLAN","TEXT2639"]
["TEXT2640","RENATE REINSVE","TEXT2640"]
["TEXT2641","RENATE REINSVE","TEXT2641"]
["TEXT2642","RENATE REINSVE","TEXT2642"]
["TEXT2643","RENATE REINSVE","TEXT2643"]
["TEXT2644","RENATE REINSVE","TEXT2644"]
["TEXT2645","RENATE REINSVE","TEXT2645"]
["TEXT2646","RENATE REINSVE","TEXT2646"]
["TEXT2647","RENATE REINSVE","TEXT2647"]
["TEXT2648","RENATE REINSVE","TEXT2648"]
["TEXT2649","RENATE REINSVE","TEXT2649"]
["TEXT2650","RENATE REINSVE","TEXT2650"]
["TEXT2651","RENATE REINSVE","TEXT2651"]
["TEXT2652","RENATE REINSVE","TEXT2652"]
["TEXT2653","RENATE REINSVE","TEXT2653"]
["TEXT2654","RENATE REINSVE","TEXT2654"]
["TEXT2655","RENATE REINSVE","TEXT2655"]
["TEXT2656","RENATE REINSVE","TEXT2656"]
["TEXT2657","RENATE REINSVE","TEXT2657"]
["TEXT2658","RENATE REINSVE","TEXT2658"]
["TEXT2659","RENATE REINSVE","TEXT2659"]
["TEXT2660","RENATE REINSVE","TEXT2660"]
["TEXT2661","RENATE REINSVE","TEXT2661"]
["TEXT2662","AIMEE-FFION EDWARDS","TEXT2662"]
["TEXT2663","AIMEE-FFION EDWARDS","TEXT2663"]
["TEXT2664","AIMEE-FFION EDWARDS","TEXT2664"]
["TEXT2665","AIMEE-FFION EDWARDS","TEXT2665"]
["TEXT2666","AIMEE-FFION EDWARDS","TEXT2666"]
["TEXT2667","JENNIFER HOLLAND","TEXT2667"]
["TEXT2668","JENNIFER HOLLAND","TEXT2668"]
["TEXT2669","JENNIFER HOLLAND","TEXT2669"]
["TEXT2670","JENNIFER HOLLAND","TEXT2670"]
["TEXT2671","JENNIFER HOLLAND","TEXT2671"]
["TEXT2672","CLEOPATRA COLEMAN","TEXT2672"]
["TEXT2673","CLEOPATRA COLEMAN","TEXT2673"]
["TEXT2674","CLEOPATRA COLEMAN","TEXT2674"]
["TEXT2675","CLEOPATRA COLEMAN","TEXT2675"]
["TEXT2676","CLEOPATRA COLEMAN","TEXT2676"]
["TEXT2677","CLEOPATRA COLEMAN","TEXT2677"]
["TEXT2678","CLEOPATRA COLEMAN","TEXT2678"]
["TEXT2679","CLEOPATRA COLEMAN","TEXT2679"]
["TEXT2680","CLEOPATRA COLEMAN","TEXT2680"]
["TEXT2681","HILARY DUFF","TEXT2681"]
["TEXT2682","HILARY DUFF","TEXT2682"]
["TEXT2683","HILARY DUFF","TEXT2683"]
["TEXT2684","HILARY DUFF","TEXT2684"]
["TEXT2685","HILARY DUFF","TEXT2685"]
["TEXT2686","HILARY DUFF","TEXT2686"]
["TEXT2687","BRIT MORGAN","TEXT2687"]
["TEXT2688","DANIELLE PANABAKER","TEXT2688"]
["TEXT2689","DANIELLE PANABAKER","TEXT2689"]
[{"$f":"\"TEXT\"&ROW()","v":"TEXT2690"},"DANIELLE PANABAKER","TEXT2690"]
["TEXT2691","EVAN RACHEL WOOD","TEXT2691"]
["TEXT2692","EVAN RACHEL WOOD","TEXT2692"]
["TEXT2693","EVAN RACHEL WOOD","TEXT2693"]
["TEXT2694","EVAN RACHEL WOOD","TEXT2694"]
["TEXT2695","EVAN RACHEL WOOD","TEXT2695"]
["TEXT2696","EVAN RACHEL WOOD","TEXT2696"]
["TEXT2697","EVAN RACHEL WOOD","TEXT2697"]
["TEXT2698","EVAN RACHEL WOOD","TEXT2698"]
["TEXT2699","EVAN RACHEL WOOD","TEXT2699"]
["TEXT2700","EVAN RACHEL WOOD","TEXT2700"]
["TEXT2701","EVAN RACHEL WOOD","TEXT2701"]
["TEXT2702","EVAN RACHEL WOOD","TEXT2702"]
["TEXT2703","EVAN RACHEL WOOD","TEXT2703"]
["TEXT2704","EVAN RACHEL WOOD","TEXT2704"]
["TEXT2705","EVAN RACHEL WOOD","TEXT2705"]
["TEXT2706","EVAN RACHEL WOOD","TEXT2706"]
["TEXT2707","EVAN RACHEL WOOD","TEXT2707"]
["TEXT2708","EVAN RACHEL WOOD","TEXT2708"]
["TEXT2709","EVAN RACHEL WOOD","TEXT2709"]
["TEXT2710","EVAN RACHEL WOOD","TEXT2710"]
["TEXT2711","EVAN RACHEL WOOD","TEXT2711"]
["TEXT2712","EVAN RACHEL WOOD","TEXT2712"]
["TEXT2713","EVAN RACHEL WOOD","TEXT2713"]
["TEXT2714","EVAN RACHEL WOOD","TEXT2714"]
["TEXT2715","EVAN RACHEL WOOD","TEXT2715"]
["TEXT2716","EVAN RACHEL WOOD","TEXT2716"]
["TEXT2717","EVAN RACHEL WOOD","TEXT2717"]
["TEXT2718","EVAN RACHEL WOOD","TEXT2718"]
["TEXT2719","JOHANNA BRADDY","TEXT2719"]
["TEXT2720","BLAKE LIVELY","TEXT2720"]
["TEXT2721","BLAKE LIVELY","TEXT2721"]
["TEXT2722","BLAKE LIVELY","TEXT2722"]
["TEXT2723","BLAKE LIVELY","TEXT2723"]
["TEXT2724","BLAKE LIVELY","TEXT2724"]
["TEXT2725","BLAKE LIVELY","TEXT2725"]
["TEXT2726","BLAKE LIVELY","TEXT2726"]
["TEXT2727","BLAKE LIVELY","TEXT2727"]
["TEXT2728","BLAKE LIVELY","TEXT2728"]
["TEXT2729","BLAKE LIVELY","TEXT2729"]
["TEXT2730","BLAKE LIVELY","TEXT2730"]
["TEXT2731","BLAKE LIVELY","TEXT2731"]
["TEXT2732","BLAKE LIVELY","TEXT2732"]
["TEXT2733","BLAKE LIVELY","TEXT2733"]
["TEXT2734","BLAKE LIVELY","TEXT2734"]
["TEXT2735","CHLOE PIRRIE","TEXT2735"]
["TEXT2736","CHLOE PIRRIE","TEXT2736"]
["TEXT2737","CHLOE PIRRIE","TEXT2737"]
["TEXT2738","CHLOE PIRRIE","TEXT2738"]
["TEXT2739","CHLOE PIRRIE","TEXT2739"]
["TEXT2740","CHLOE PIRRIE","TEXT2740"]
["TEXT2741","CHLOE PIRRIE","TEXT2741"]
["TEXT2742","ABBEY LEE","TEXT2742"]
["TEXT2743","ABBEY LEE","TEXT2743"]
["TEXT2744","ABBEY LEE","TEXT2744"]
["TEXT2745","ABBEY LEE","TEXT2745"]
["TEXT2746","ABBEY LEE","TEXT2746"]
["TEXT2747","ABBEY LEE","TEXT2747"]
["TEXT2748","ABBEY LEE","TEXT2748"]
["TEXT2749","ABBEY LEE","TEXT2749"]
["TEXT2750","ABBEY LEE","TEXT2750"]
["TEXT2751","ABBEY LEE","TEXT2751"]
["TEXT2752","ABBEY LEE","TEXT2752"]
["TEXT2753","ABBEY LEE","TEXT2753"]
[{"$f":"\"TEXT\"&ROW()","v":"TEXT2754"},"ABBEY LEE","TEXT2754"]
["TEXT2755","ABBEY LEE","TEXT2755"]
["TEXT2756","ABBEY LEE","TEXT2756"]
["TEXT2757","ABBEY LEE","TEXT2757"]
["TEXT2758","ABBEY LEE","TEXT2758"]
["TEXT2759","JAVICIA LESLIE","TEXT2759"]
["TEXT2760","BELLA HEATHCOTE","TEXT2760"]
["TEXT2761","BELLA HEATHCOTE","TEXT2761"]
["TEXT2762","BELLA HEATHCOTE","TEXT2762"]
["TEXT2763","BELLA HEATHCOTE","TEXT2763"]
["TEXT2764","BELLA HEATHCOTE","TEXT2764"]
["TEXT2765","BELLA HEATHCOTE","TEXT2765"]
["TEXT2766","BELLA HEATHCOTE","TEXT2766"]
["TEXT2767","BELLA HEATHCOTE","TEXT2767"]
["TEXT2768","BELLA HEATHCOTE","TEXT2768"]
["TEXT2769","BELLA HEATHCOTE","TEXT2769"]
["TEXT2770","BELLA HEATHCOTE","TEXT2770"]
["TEXT2771","BELLA HEATHCOTE","TEXT2771"]
["TEXT2772","BELLA HEATHCOTE","TEXT2772"]
["TEXT2773","BELLA HEATHCOTE","TEXT2773"]
["TEXT2774","BELLA HEATHCOTE","TEXT2774"]
["TEXT2775","BELLA HEATHCOTE","TEXT2775"]
["TEXT2776","BELLA HEATHCOTE","TEXT2776"]
["TEXT2777","BELLA HEATHCOTE","TEXT2777"]
["TEXT2778","BELLA HEATHCOTE","TEXT2778"]
["TEXT2779","BELLA HEATHCOTE","TEXT2779"]
["TEXT2780","MAYA ERSKINE","TEXT2780"]
["TEXT2781","MAYA ERSKINE","TEXT2781"]
["TEXT2782","MAYA ERSKINE","TEXT2782"]
["TEXT2783","MAE MARTIN","TEXT2783"]
["TEXT2784","MAE MARTIN","TEXT2784"]
["TEXT2785","MAE MARTIN","TEXT2785"]
["TEXT2786","MAE MARTIN","TEXT2786"]
["TEXT2787","MAE MARTIN","TEXT2787"]
["TEXT2788","MAE MARTIN","TEXT2788"]
["TEXT2789","MAE MARTIN","TEXT2789"]
["TEXT2790","MAE MARTIN","TEXT2790"]
["TEXT2791","MAE MARTIN","TEXT2791"]
["TEXT2792","MAE MARTIN","TEXT2792"]
["TEXT2793","MAE MARTIN","TEXT2793"]
["TEXT2794","MAE MARTIN","TEXT2794"]
["TEXT2795","MAE MARTIN","TEXT2795"]
["TEXT2796","VANESSA KIRBY","TEXT2796"]
["TEXT2797","VANESSA KIRBY","TEXT2797"]
["TEXT2798","VANESSA KIRBY","TEXT2798"]
["TEXT2799","VANESSA KIRBY","TEXT2799"]
["TEXT2800","VANESSA KIRBY","TEXT2800"]
["TEXT2801","VANESSA KIRBY","TEXT2801"]
["TEXT2802","VANESSA KIRBY","TEXT2802"]
["TEXT2803","VANESSA KIRBY","TEXT2803"]
["TEXT2804","VANESSA KIRBY","TEXT2804"]
["TEXT2805","VANESSA KIRBY","TEXT2805"]
["TEXT2806","VANESSA KIRBY","TEXT2806"]
["TEXT2807","VANESSA KIRBY","TEXT2807"]
["TEXT2808","VANESSA KIRBY","TEXT2808"]
["TEXT2809","VANESSA KIRBY","TEXT2809"]
["TEXT2810","VANESSA KIRBY","TEXT2810"]
["TEXT2811","VANESSA KIRBY","TEXT2811"]
["TEXT2812","VANESSA KIRBY","TEXT2812"]
["TEXT2813","VANESSA KIRBY","TEXT2813"]
["TEXT2814","PHOEBE FOX","TEXT2814"]
["TEXT2815","PHOEBE FOX","TEXT2815"]
["TEXT2816","PHOEBE FOX","TEXT2816"]
["TEXT2817","PHOEBE FOX","TEXT2817"]
[{"$f":"\"TEXT\"&ROW()","v":"TEXT2818"},"BROOKLYN DECKER","TEXT2818"]
["TEXT2819","SARAH GADON","TEXT2819"]
["TEXT2820","SARAH GADON","TEXT2820"]
["TEXT2821","SARAH GADON","TEXT2821"]
["TEXT2822","SARAH GADON","TEXT2822"]
["TEXT2823","SARAH GADON","TEXT2823"]
["TEXT2824","SARAH GADON","TEXT2824"]
["TEXT2825","SARAH GADON","TEXT2825"]
["TEXT2826","SARAH GADON","TEXT2826"]
["TEXT2827","SARAH GADON","TEXT2827"]
["TEXT2828","SARAH GADON","TEXT2828"]
["TEXT2829","SARAH GADON","TEXT2829"]
["TEXT2830","SARAH GADON","TEXT2830"]
["TEXT2831","SARAH GADON","TEXT2831"]
["TEXT2832","MACKENZIE DAVIS","TEXT2832"]
["TEXT2833","MACKENZIE DAVIS","TEXT2833"]
["TEXT2834","MACKENZIE DAVIS","TEXT2834"]
["TEXT2835","MACKENZIE DAVIS","TEXT2835"]
["TEXT2836","MACKENZIE DAVIS","TEXT2836"]
["TEXT2837","MACKENZIE DAVIS","TEXT2837"]
["TEXT2838","MACKENZIE DAVIS","TEXT2838"]
["TEXT2839","MACKENZIE DAVIS","TEXT2839"]
["TEXT2840","MACKENZIE DAVIS","TEXT2840"]
["TEXT2841","MACKENZIE DAVIS","TEXT2841"]
["TEXT2842","ASHLEY GREENE","TEXT2842"]
["TEXT2843","ASHLEY GREENE","TEXT2843"]
["TEXT2844","ASHLEY GREENE","TEXT2844"]
["TEXT2845","ASHLEY GREENE","TEXT2845"]
["TEXT2846","ASHLEY GREENE","TEXT2846"]
["TEXT2847","ASHLEY GREENE","TEXT2847"]
["TEXT2848","ASHLEY GREENE","TEXT2848"]
["TEXT2849","ASHLEY GREENE","TEXT2849"]
["TEXT2850","ASHLEY GREENE","TEXT2850"]
["TEXT2851","ASHLEY GREENE","TEXT2851"]
["TEXT2852","ASHLEY GREENE","TEXT2852"]
["TEXT2853","ASHLEY GREENE","TEXT2853"]
["TEXT2854","ASHLEY GREENE","TEXT2854"]
["TEXT2855","ASHLEY GREENE","TEXT2855"]
["TEXT2856","ASHLEY GREENE","TEXT2856"]
["TEXT2857","ROSE LESLIE","TEXT2857"]
["TEXT2858","ROSE LESLIE","TEXT2858"]
["TEXT2859","ROSE LESLIE","TEXT2859"]
["TEXT2860","ROSE LESLIE","TEXT2860"]
["TEXT2861","ROSE LESLIE","TEXT2861"]
["TEXT2862","ROSE LESLIE","TEXT2862"]
["TEXT2863","ROSE LESLIE","TEXT2863"]
["TEXT2864","ROSE LESLIE","TEXT2864"]
["TEXT2865","ROSE LESLIE","TEXT2865"]
["TEXT2866","ROSE LESLIE","TEXT2866"]
["TEXT2867","ROSE LESLIE","TEXT2867"]
["TEXT2868","KIRBY HOWELL-BAPTISTE","TEXT2868"]
["TEXT2869","KIRBY HOWELL-BAPTISTE","TEXT2869"]
["TEXT2870","RUTH BRADLEY","TEXT2870"]
["TEXT2871","CYNTHIA ERIVO","TEXT2871"]
["TEXT2872","CYNTHIA ERIVO","TEXT2872"]
["TEXT2873","FAYE MARSAY","TEXT2873"]
["TEXT2874","FAYE MARSAY","TEXT2874"]
["TEXT2875","FAYE MARSAY","TEXT2875"]
["TEXT2876","FAYE MARSAY","TEXT2876"]
["TEXT2877","FAYE MARSAY","TEXT2877"]
["TEXT2878","FAYE MARSAY","TEXT2878"]
["TEXT2879","ANNIE MURPHY","TEXT2879"]
["TEXT2880","KATIE CASSIDY","TEXT2880"]
["TEXT2881","KATIE CASSIDY","TEXT2881"]
[{"$f":"\"TEXT\"&ROW()","v":"TEXT2882"},"KATIE CASSIDY","TEXT2882"]
["TEXT2883","KATIE CASSIDY","TEXT2883"]
["TEXT2884","KATIE CASSIDY","TEXT2884"]
["TEXT2885","KANIEHTIIO HORN","TEXT2885"]
["TEXT2886","KANIEHTIIO HORN","TEXT2886"]
["TEXT2887","KANIEHTIIO HORN","TEXT2887"]
["TEXT2888","KANIEHTIIO HORN","TEXT2888"]
["TEXT2889","KANIEHTIIO HORN","TEXT2889"]
["TEXT2890","KANIEHTIIO HORN","TEXT2890"]
["TEXT2891","EMILIA CLARKE","TEXT2891"]
["TEXT2892","EMILIA CLARKE","TEXT2892"]
["TEXT2893","EMILIA CLARKE","TEXT2893"]
["TEXT2894","EMILIA CLARKE","TEXT2894"]
["TEXT2895","EMILIA CLARKE","TEXT2895"]
["TEXT2896","EMILIA CLARKE","TEXT2896"]
["TEXT2897","EMILIA CLARKE","TEXT2897"]
["TEXT2898","EMILIA CLARKE","TEXT2898"]
["TEXT2899","EMILIA CLARKE","TEXT2899"]
["TEXT2900","EMILIA CLARKE","TEXT2900"]
["TEXT2901","EMILIA CLARKE","TEXT2901"]
["TEXT2902","EMILIA CLARKE","TEXT2902"]
["TEXT2903","EMILIA CLARKE","TEXT2903"]
["TEXT2904","EMILIA CLARKE","TEXT2904"]
["TEXT2905","EMILIA CLARKE","TEXT2905"]
["TEXT2906","EMILIA CLARKE","TEXT2906"]
["TEXT2907","EMILIA CLARKE","TEXT2907"]
["TEXT2908","EMILIA CLARKE","TEXT2908"]
["TEXT2909","EMILIA CLARKE","TEXT2909"]
["TEXT2910","EMILIA CLARKE","TEXT2910"]
["TEXT2911","EMILIA CLARKE","TEXT2911"]
["TEXT2912","EMILIA CLARKE","TEXT2912"]
["TEXT2913","KEELEY HAZELL","TEXT2913"]
["TEXT2914","KEELEY HAZELL","TEXT2914"]
["TEXT2915","KEELEY HAZELL","TEXT2915"]
["TEXT2916","KEELEY HAZELL","TEXT2916"]
["TEXT2917","KEELEY HAZELL","TEXT2917"]
["TEXT2918","KEELEY HAZELL","TEXT2918"]
["TEXT2919","MICHELLE JENNER","TEXT2919"]
["TEXT2920","MICHELLE JENNER","TEXT2920"]
["TEXT2921","EMMY ROSSUM","TEXT2921"]
["TEXT2922","EMMY ROSSUM","TEXT2922"]
["TEXT2923","EMMY ROSSUM","TEXT2923"]
["TEXT2924","EMMY ROSSUM","TEXT2924"]
["TEXT2925","EMMY ROSSUM","TEXT2925"]
["TEXT2926","EMMY ROSSUM","TEXT2926"]
["TEXT2927","EMMY ROSSUM","TEXT2927"]
["TEXT2928","EMMY ROSSUM","TEXT2928"]
["TEXT2929","EMMY ROSSUM","TEXT2929"]
["TEXT2930","EMMY ROSSUM","TEXT2930"]
["TEXT2931","EMMY ROSSUM","TEXT2931"]
["TEXT2932","EMMY ROSSUM","TEXT2932"]
["TEXT2933","EMMY ROSSUM","TEXT2933"]
["TEXT2934","EMMY ROSSUM","TEXT2934"]
["TEXT2935","EMMY ROSSUM","TEXT2935"]
["TEXT2936","EMMY ROSSUM","TEXT2936"]
["TEXT2937","EMMY ROSSUM","TEXT2937"]
["TEXT2938","EMMY ROSSUM","TEXT2938"]
["TEXT2939","EMMY ROSSUM","TEXT2939"]
["TEXT2940","EMMY ROSSUM","TEXT2940"]
["TEXT2941","EMMY ROSSUM","TEXT2941"]
["TEXT2942","EMMY ROSSUM","TEXT2942"]
["TEXT2943","EMMY ROSSUM","TEXT2943"]
["TEXT2944","EMMY ROSSUM","TEXT2944"]
["TEXT2945","EMMY ROSSUM","TEXT2945"]
[{"$f":"\"TEXT\"&ROW()","v":"TEXT2946"},"EMMY ROSSUM","TEXT2946"]
["TEXT2947","EMMY ROSSUM","TEXT2947"]
["TEXT2948","EMMY ROSSUM","TEXT2948"]
["TEXT2949","EMMY ROSSUM","TEXT2949"]
["TEXT2950","EMMY ROSSUM","TEXT2950"]
["TEXT2951","EMMY ROSSUM","TEXT2951"]
["TEXT2952","EMMY ROSSUM","TEXT2952"]
["TEXT2953","EMMY ROSSUM","TEXT2953"]
["TEXT2954","EMMY ROSSUM","TEXT2954"]
["TEXT2955","JODIE TURNER-SMITH","TEXT2955"]
["TEXT2956","JODIE TURNER-SMITH","TEXT2956"]
["TEXT2957","JODIE TURNER-SMITH","TEXT2957"]
["TEXT2958","JODIE TURNER-SMITH","TEXT2958"]
["TEXT2959","CHARLOTTE LE BON","TEXT2959"]
["TEXT2960","CHARLOTTE LE BON","TEXT2960"]
["TEXT2961","CHARLOTTE LE BON","TEXT2961"]
["TEXT2962","CHARLOTTE LE BON","TEXT2962"]
["TEXT2963","CHARLOTTE LE BON","TEXT2963"]
["TEXT2964","WUNMI MOSAKU","TEXT2964"]
["TEXT2965","WUNMI MOSAKU","TEXT2965"]
["TEXT2966","WUNMI MOSAKU","TEXT2966"]
["TEXT2967","WUNMI MOSAKU","TEXT2967"]
["TEXT2968","WUNMI MOSAKU","TEXT2968"]
["TEXT2969","BETTY GILPIN","TEXT2969"]
["TEXT2970","BETTY GILPIN","TEXT2970"]
["TEXT2971","BETTY GILPIN","TEXT2971"]
["TEXT2972","BETTY GILPIN","TEXT2972"]
["TEXT2973","BETTY GILPIN","TEXT2973"]
["TEXT2974","BETTY GILPIN","TEXT2974"]
["TEXT2975","BETTY GILPIN","TEXT2975"]
["TEXT2976","BETTY GILPIN","TEXT2976"]
["TEXT2977","BETTY GILPIN","TEXT2977"]
["TEXT2978","BETTY GILPIN","TEXT2978"]
["TEXT2979","BETTY GILPIN","TEXT2979"]
["TEXT2980","BETTY GILPIN","TEXT2980"]
["TEXT2981","BETTY GILPIN","TEXT2981"]
["TEXT2982","BETTY GILPIN","TEXT2982"]
["TEXT2983","BETTY GILPIN","TEXT2983"]
["TEXT2984","BETTY GILPIN","TEXT2984"]
["TEXT2985","LINDSAY LOHAN","TEXT2985"]
["TEXT2986","LINDSAY LOHAN","TEXT2986"]
["TEXT2987","LINDSAY LOHAN","TEXT2987"]
["TEXT2988","LINDSAY LOHAN","TEXT2988"]
["TEXT2989","LINDSAY LOHAN","TEXT2989"]
["TEXT2990","LINDSAY LOHAN","TEXT2990"]
["TEXT2991","LINDSAY LOHAN","TEXT2991"]
["TEXT2992","LINDSAY LOHAN","TEXT2992"]
["TEXT2993","LINDSAY LOHAN","TEXT2993"]
["TEXT2994","LINDSAY LOHAN","TEXT2994"]
["TEXT2995","LINDSAY LOHAN","TEXT2995"]
["TEXT2996","LINDSAY LOHAN","TEXT2996"]
["TEXT2997","LINDSAY LOHAN","TEXT2997"]
["TEXT2998","LINDSAY LOHAN","TEXT2998"]
["TEXT2999","LINDSAY LOHAN","TEXT2999"]
["TEXT3000","KAT DENNINGS","TEXT3000"]
["TEXT3001","KAT DENNINGS","TEXT3001"]
["TEXT3002","KAT DENNINGS","TEXT3002"]
["TEXT3003","OONA CHAPLIN","TEXT3003"]
["TEXT3004","OONA CHAPLIN","TEXT3004"]
["TEXT3005","OONA CHAPLIN","TEXT3005"]
["TEXT3006","OONA CHAPLIN","TEXT3006"]
["TEXT3007","OONA CHAPLIN","TEXT3007"]
["TEXT3008","OONA CHAPLIN","TEXT3008"]
["TEXT3009","OONA CHAPLIN","TEXT3009"]
[{"$f":"\"TEXT\"&ROW()","v":"TEXT3010"},"OONA CHAPLIN","TEXT3010"]
["TEXT3011","OONA CHAPLIN","TEXT3011"]
["TEXT3012","MOLLY EPHRAIM","TEXT3012"]
["TEXT3013","MEGAN FOX","TEXT3013"]
["TEXT3014","MEGAN FOX","TEXT3014"]
["TEXT3015","MEGAN FOX","TEXT3015"]
["TEXT3016","MEGAN FOX","TEXT3016"]
["TEXT3017","MEGAN FOX","TEXT3017"]
["TEXT3018","MEGAN FOX","TEXT3018"]
["TEXT3019","MEGAN FOX","TEXT3019"]
["TEXT3020","MEGAN FOX","TEXT3020"]
["TEXT3021","MEGAN FOX","TEXT3021"]
["TEXT3022","MEGAN FOX","TEXT3022"]
["TEXT3023","MEGAN FOX","TEXT3023"]
["TEXT3024","MEGAN FOX","TEXT3024"]
["TEXT3025","MEGAN FOX","TEXT3025"]
["TEXT3026","MEGAN FOX","TEXT3026"]
["TEXT3027","MEGAN FOX","TEXT3027"]
["TEXT3028","MEGAN FOX","TEXT3028"]
["TEXT3029","MEGAN FOX","TEXT3029"]
["TEXT3030","MEGAN FOX","TEXT3030"]
["TEXT3031","MEGAN FOX","TEXT3031"]
["TEXT3032","MEGAN FOX","TEXT3032"]
["TEXT3033","MEGAN FOX","TEXT3033"]
["TEXT3034","MEGAN FOX","TEXT3034"]
["TEXT3035","MEGAN FOX","TEXT3035"]
["TEXT3036","MEGAN FOX","TEXT3036"]
["TEXT3037","MEGAN FOX","TEXT3037"]
["TEXT3038","MEGAN FOX","TEXT3038"]
["TEXT3039","MEGAN FOX","TEXT3039"]
["TEXT3040","MEGAN FOX","TEXT3040"]
["TEXT3041","KAREN PITTMAN","TEXT3041"]
["TEXT3042","KAREN PITTMAN","TEXT3042"]
["TEXT3043","KAREN PITTMAN","TEXT3043"]
["TEXT3044","KAREN PITTMAN","TEXT3044"]
["TEXT3045","KAREN PITTMAN","TEXT3045"]
["TEXT3046","GRACE GUMMER","TEXT3046"]
["TEXT3047","GRACE GUMMER","TEXT3047"]
["TEXT3048","GRACE GUMMER","TEXT3048"]
["TEXT3049","GRACE GUMMER","TEXT3049"]
["TEXT3050","POM KLEMENTIEFF","TEXT3050"]
["TEXT3051","POM KLEMENTIEFF","TEXT3051"]
["TEXT3052","POM KLEMENTIEFF","TEXT3052"]
["TEXT3053","POM KLEMENTIEFF","TEXT3053"]
["TEXT3054","POM KLEMENTIEFF","TEXT3054"]
["TEXT3055","POM KLEMENTIEFF","TEXT3055"]
["TEXT3056","POM KLEMENTIEFF","TEXT3056"]
["TEXT3057","POM KLEMENTIEFF","TEXT3057"]
["TEXT3058","POM KLEMENTIEFF","TEXT3058"]
["TEXT3059","POM KLEMENTIEFF","TEXT3059"]
["TEXT3060","DIANNA AGRON","TEXT3060"]
["TEXT3061","DIANNA AGRON","TEXT3061"]
["TEXT3062","DIANNA AGRON","TEXT3062"]
["TEXT3063","DIANNA AGRON","TEXT3063"]
["TEXT3064","DIANNA AGRON","TEXT3064"]
["TEXT3065","DIANNA AGRON","TEXT3065"]
["TEXT3066","DIANNA AGRON","TEXT3066"]
["TEXT3067","DIANNA AGRON","TEXT3067"]
["TEXT3068","DIANNA AGRON","TEXT3068"]
["TEXT3069","DIANNA AGRON","TEXT3069"]
["TEXT3070","DIANNA AGRON","TEXT3070"]
["TEXT3071","JENNA COLEMAN","TEXT3071"]
["TEXT3072","JENNA COLEMAN","TEXT3072"]
["TEXT3073","JENNA COLEMAN","TEXT3073"]
[{"$f":"\"TEXT\"&ROW()","v":"TEXT3074"},"JENNA COLEMAN","TEXT3074"]
["TEXT3075","AMBER HEARD","TEXT3075"]
["TEXT3076","AMBER HEARD","TEXT3076"]
["TEXT3077","AMBER HEARD","TEXT3077"]
["TEXT3078","AMBER HEARD","TEXT3078"]
["TEXT3079","AMBER HEARD","TEXT3079"]
["TEXT3080","AMBER HEARD","TEXT3080"]
["TEXT3081","AMBER HEARD","TEXT3081"]
["TEXT3082","AMBER HEARD","TEXT3082"]
["TEXT3083","AMBER HEARD","TEXT3083"]
["TEXT3084","AMBER HEARD","TEXT3084"]
["TEXT3085","AMBER HEARD","TEXT3085"]
["TEXT3086","AMBER HEARD","TEXT3086"]
["TEXT3087","AMBER HEARD","TEXT3087"]
["TEXT3088","AMBER HEARD","TEXT3088"]
["TEXT3089","AMBER HEARD","TEXT3089"]
["TEXT3090","AMBER HEARD","TEXT3090"]
["TEXT3091","AMBER HEARD","TEXT3091"]
["TEXT3092","AMBER HEARD","TEXT3092"]
["TEXT3093","AMBER HEARD","TEXT3093"]
["TEXT3094","AMBER HEARD","TEXT3094"]
["TEXT3095","AMBER HEARD","TEXT3095"]
["TEXT3096","AMBER HEARD","TEXT3096"]
["TEXT3097","AMBER HEARD","TEXT3097"]
["TEXT3098","AMBER HEARD","TEXT3098"]
["TEXT3099","AMBER HEARD","TEXT3099"]
["TEXT3100","LEIGHTON MEESTER","TEXT3100"]
["TEXT3101","AMANDA BYNES","TEXT3101"]
["TEXT3102","AMANDA BYNES","TEXT3102"]
["TEXT3103","AMANDA BYNES","TEXT3103"]
["TEXT3104","VALERIA NEMCHENKO","TEXT3104"]
["TEXT3105","VALERIA NEMCHENKO","TEXT3105"]
["TEXT3106","VALERIA NEMCHENKO","TEXT3106"]
["TEXT3107","VALERIA NEMCHENKO","TEXT3107"]
["TEXT3108","VALERIA NEMCHENKO","TEXT3108"]
["TEXT3109","VALERIA NEMCHENKO","TEXT3109"]
["TEXT3110","VALERIA NEMCHENKO","TEXT3110"]

{"sheet":"Bilder","index":4,"n_rows":4844,"n_cols":3,"rows_kept":4844,"cut":false,"hidden":false,"merged":[]}
[{"$f":"\"TEXT\"&ROW()","v":"TEXT1"},"DEVA CASSEL",{"$f":"\"TEXT\"&ROW()","v":"TEXT1"}]
[{"$f":"\"TEXT\"&ROW()","v":"TEXT2"},"DEVA CASSEL","TEXT2"]
["TEXT3","BELLA RAMSEY","TEXT3"]
["TEXT4","BELLA RAMSEY","TEXT4"]
["TEXT5","BELLA RAMSEY","TEXT5"]
["TEXT6","BELLA RAMSEY","TEXT6"]
["TEXT7","BELLA RAMSEY","TEXT7"]
["TEXT8","BELLA RAMSEY","TEXT8"]
["TEXT9","BELLA RAMSEY","TEXT9"]
["TEXT10","BELLA RAMSEY","TEXT10"]
["TEXT11","JENNA ORTEGA","TEXT11"]
["TEXT12","JENNA ORTEGA","TEXT12"]
["TEXT13","JENNA ORTEGA","TEXT13"]
["TEXT14","JENNA ORTEGA","TEXT14"]
["TEXT15","JENNA ORTEGA","TEXT15"]
["TEXT16","JENNA ORTEGA","TEXT16"]
["TEXT17","JENNA ORTEGA","TEXT17"]
["TEXT18","JENNA ORTEGA","TEXT18"]
["TEXT19","JENNA ORTEGA","TEXT19"]
["TEXT20","ISABELA MERCED","TEXT20"]
["TEXT21","ISABELA MERCED","TEXT21"]
["TEXT22","ISABELA MERCED","TEXT22"]
["TEXT23","ISABELA MERCED","TEXT23"]
["TEXT24","ISABELA MERCED","TEXT24"]
["TEXT25","ISABELA MERCED","TEXT25"]
["TEXT26","ISABELA MERCED","TEXT26"]
["TEXT27","ISABELA MERCED","TEXT27"]
["TEXT28","NIAMH MCCORMACK","TEXT28"]
["TEXT29","ANGOURIE RICE","TEXT29"]
["TEXT30","ANGOURIE RICE","TEXT30"]
["TEXT31","THOMASIN MCKENZIE","TEXT31"]
["TEXT32","THOMASIN MCKENZIE","TEXT32"]
["TEXT33","THOMASIN MCKENZIE","TEXT33"]
["TEXT34","THOMASIN MCKENZIE","TEXT34"]
["TEXT35","ODESSA A'ZION","TEXT35"]
["TEXT36","ODESSA A'ZION","TEXT36"]
["TEXT37","ODESSA A'ZION","TEXT37"]
["TEXT38","ODESSA A'ZION","TEXT38"]
["TEXT39","KIERNAN SHIPKA","TEXT39"]
["TEXT40","KIERNAN SHIPKA","TEXT40"]
["TEXT41","KIERNAN SHIPKA","TEXT41"]
["TEXT42","KIERNAN SHIPKA","TEXT42"]
["TEXT43","EMMA KENNEY","TEXT43"]
["TEXT44","EMMA KENNEY","TEXT44"]
["TEXT45","EMMA KENNEY","TEXT45"]
["TEXT46","EMMA KENNEY","TEXT46"]
["TEXT47","EMMA KENNEY","TEXT47"]
["TEXT48","EMMA KENNEY","TEXT48"]
["TEXT49","EMMA KENNEY","TEXT49"]
["TEXT50","EMMA KENNEY","TEXT50"]
["TEXT51","EMMA KENNEY","TEXT51"]
["TEXT52","EMMA KENNEY","TEXT52"]
["TEXT53","EMMA KENNEY","TEXT53"]
["TEXT54","LILY-ROSE DEPP","TEXT54"]
["TEXT55","LILY-ROSE DEPP","TEXT55"]
["TEXT56","LILY-ROSE DEPP","TEXT56"]
["TEXT57","LILY-ROSE DEPP","TEXT57"]
["TEXT58","LILY-ROSE DEPP","TEXT58"]
["TEXT59","LILY-ROSE DEPP","TEXT59"]
["TEXT60","LILY-ROSE DEPP","TEXT60"]
["TEXT61","LILY-ROSE DEPP","TEXT61"]
["TEXT62","LILY-ROSE DEPP","TEXT62"]
["TEXT63","LILY-ROSE DEPP","TEXT63"]
["TEXT64","LILY-ROSE DEPP","TEXT64"]
["TEXT65","LILY-ROSE DEPP","TEXT65"]
[{"$f":"\"TEXT\"&ROW()","v":"TEXT66"},"LILY-ROSE DEPP","TEXT66"]
["TEXT67","LILY-ROSE DEPP","TEXT67"]
["TEXT68","LILY-ROSE DEPP","TEXT68"]
["TEXT69","LILY-ROSE DEPP","TEXT69"]
["TEXT70","LILY-ROSE DEPP","TEXT70"]
["TEXT71","LILY-ROSE DEPP","TEXT71"]
["TEXT72","LILY-ROSE DEPP","TEXT72"]
["TEXT73","LILY-ROSE DEPP","TEXT73"]
["TEXT74","LILY-ROSE DEPP","TEXT74"]
["TEXT75","LILY-ROSE DEPP","TEXT75"]
["TEXT76","LILY-ROSE DEPP","TEXT76"]
["TEXT77","LILY-ROSE DEPP","TEXT77"]
["TEXT78","LILY-ROSE DEPP","TEXT78"]
["TEXT79","LILY-ROSE DEPP","TEXT79"]
["TEXT80","LILY-ROSE DEPP","TEXT80"]
["TEXT81","LILY-ROSE DEPP","TEXT81"]
["TEXT82","SABRINA CARPENTER","TEXT82"]
["TEXT83","SABRINA CARPENTER","TEXT83"]
["TEXT84","SABRINA CARPENTER","TEXT84"]
["TEXT85","MIKEY MADISON","TEXT85"]
["TEXT86","MIKEY MADISON","TEXT86"]
["TEXT87","MIKEY MADISON","TEXT87"]
["TEXT88","MIKEY MADISON","TEXT88"]
["TEXT89","MIKEY MADISON","TEXT89"]
["TEXT90","MIKEY MADISON","TEXT90"]
["TEXT91","MIKEY MADISON","TEXT91"]
["TEXT92","MIKEY MADISON","TEXT92"]
["TEXT93","MIKEY MADISON","TEXT93"]
["TEXT94","MIKEY MADISON","TEXT94"]
["TEXT95","MIKEY MADISON","TEXT95"]
["TEXT96","ERANA JAMES","TEXT96"]
["TEXT97","ERANA JAMES","TEXT97"]
["TEXT98","ERANA JAMES","TEXT98"]
["TEXT99","ERANA JAMES","TEXT99"]
["TEXT100","ERANA JAMES","TEXT100"]
["TEXT101","ERANA JAMES","TEXT101"]
["TEXT102","ERANA JAMES","TEXT102"]
["TEXT103","ERANA JAMES","TEXT103"]
["TEXT104","HUNTER SCHAFER","TEXT104"]
["TEXT105","HUNTER SCHAFER","TEXT105"]
["TEXT106","HUNTER SCHAFER","TEXT106"]
["TEXT107","HUNTER SCHAFER","TEXT107"]
["TEXT108","HUNTER SCHAFER","TEXT108"]
["TEXT109","HUNTER SCHAFER","TEXT109"]
["TEXT110","HUNTER SCHAFER","TEXT110"]
["TEXT111","HUNTER SCHAFER","TEXT111"]
["TEXT112","HUNTER SCHAFER","TEXT112"]
["TEXT113","HUNTER SCHAFER","TEXT113"]
["TEXT114","HUNTER SCHAFER","TEXT114"]
["TEXT115","HUNTER SCHAFER","TEXT115"]
["TEXT116","HUNTER SCHAFER","TEXT116"]
["TEXT117","HUNTER SCHAFER","TEXT117"]
["TEXT118","HUNTER SCHAFER","TEXT118"]
["TEXT119","HUNTER SCHAFER","TEXT119"]
["TEXT120","HUNTER SCHAFER","TEXT120"]
["TEXT121","HUNTER SCHAFER","TEXT121"]
["TEXT122","HUNTER SCHAFER","TEXT122"]
["TEXT123","HUNTER SCHAFER","TEXT123"]
["TEXT124","HUNTER SCHAFER","TEXT124"]
["TEXT125","HUNTER SCHAFER","TEXT125"]
["TEXT126","HUNTER SCHAFER","TEXT126"]
["TEXT127","HUNTER SCHAFER","TEXT127"]
["TEXT128","HUNTER SCHAFER","TEXT128"]
["TEXT129","HUNTER SCHAFER","TEXT129"]
[{"$f":"\"TEXT\"&ROW()","v":"TEXT130"},"HUNTER SCHAFER","TEXT130"]
["TEXT131","HUNTER SCHAFER","TEXT131"]
["TEXT132","HUNTER SCHAFER","TEXT132"]
["TEXT133","KATIE DOUGLAS","TEXT133"]
["TEXT134","EMMA LAIRD","TEXT134"]
["TEXT135","EMMA LAIRD","TEXT135"]
["TEXT136","EMMA LAIRD","TEXT136"]
["TEXT137","EMMA LAIRD","TEXT137"]
["TEXT138","EMMA LAIRD","TEXT138"]
["TEXT139","EMMA LAIRD","TEXT139"]
["TEXT140","EMMA LAIRD","TEXT140"]
["TEXT141","EMMA LAIRD","TEXT141"]
["TEXT142","EMMA LAIRD","TEXT142"]
["TEXT143","EMMA LAIRD","TEXT143"]
["TEXT144","EMMA LAIRD","TEXT144"]
["TEXT145","EMMA LAIRD","TEXT145"]
["TEXT146","EMMA LAIRD","TEXT146"]
["TEXT147","EMMA LAIRD","TEXT147"]
["TEXT148","EMMA LAIRD","TEXT148"]
["TEXT149","EMMA LAIRD","TEXT149"]
["TEXT150","EMMA LAIRD","TEXT150"]
["TEXT151","EMMA LAIRD","TEXT151"]
["TEXT152","EMMA LAIRD","TEXT152"]
["TEXT153","EMMA LAIRD","TEXT153"]
["TEXT154","EMMA LAIRD","TEXT154"]
["TEXT155","EMMA LAIRD","TEXT155"]
["TEXT156","EMMA LAIRD","TEXT156"]
["TEXT157","CAILEE SPAENY","TEXT157"]
["TEXT158","CAILEE SPAENY","TEXT158"]
["TEXT159","CAILEE SPAENY","TEXT159"]
["TEXT160","CAILEE SPAENY","TEXT160"]
["TEXT161","MAYA HAWKE","TEXT161"]
["TEXT162","MAYA HAWKE","TEXT162"]
["TEXT163","MAYA HAWKE","TEXT163"]
["TEXT164","MAYA HAWKE","TEXT164"]
["TEXT165","MAYA HAWKE","TEXT165"]
["TEXT166","MAYA HAWKE","TEXT166"]
["TEXT167","MAYA HAWKE","TEXT167"]
["TEXT168","MAYA HAWKE","TEXT168"]
["TEXT169","MAYA HAWKE","TEXT169"]
["TEXT170","MAYA HAWKE","TEXT170"]
["TEXT171","MAYA HAWKE","TEXT171"]
["TEXT172","MAYA HAWKE","TEXT172"]
["TEXT173","MAYA HAWKE","TEXT173"]
["TEXT174","MAYA HAWKE","TEXT174"]
["TEXT175","DAISY EDGAR-JONES","TEXT175"]
["TEXT176","DAISY EDGAR-JONES","TEXT176"]
["TEXT177","DAISY EDGAR-JONES","TEXT177"]
["TEXT178","DAISY EDGAR-JONES","TEXT178"]
["TEXT179","DAISY EDGAR-JONES","TEXT179"]
["TEXT180","DAISY EDGAR-JONES","TEXT180"]
["TEXT181","DAISY EDGAR-JONES","TEXT181"]
["TEXT182","DAISY EDGAR-JONES","TEXT182"]
["TEXT183","DAISY EDGAR-JONES","TEXT183"]
["TEXT184","DAISY EDGAR-JONES","TEXT184"]
["TEXT185","DAISY EDGAR-JONES","TEXT185"]
["TEXT186","DAISY EDGAR-JONES","TEXT186"]
["TEXT187","DAISY EDGAR-JONES","TEXT187"]
["TEXT188","DAISY EDGAR-JONES","TEXT188"]
["TEXT189","DAISY EDGAR-JONES","TEXT189"]
["TEXT190","DAISY EDGAR-JONES","TEXT190"]
["TEXT191","DAISY EDGAR-JONES","TEXT191"]
["TEXT192","DAISY EDGAR-JONES","TEXT192"]
["TEXT193","DAISY EDGAR-JONES","TEXT193"]
[{"$f":"\"TEXT\"&ROW()","v":"TEXT194"},"DAISY EDGAR-JONES","TEXT194"]
["TEXT195","DAISY EDGAR-JONES","TEXT195"]
["TEXT196","DAISY EDGAR-JONES","TEXT196"]
["TEXT197","DAISY EDGAR-JONES","TEXT197"]
["TEXT198","DAISY EDGAR-JONES","TEXT198"]
["TEXT199","DAISY EDGAR-JONES","TEXT199"]
["TEXT200","DAISY EDGAR-JONES","TEXT200"]
["TEXT201","DAISY EDGAR-JONES","TEXT201"]
["TEXT202","DAISY EDGAR-JONES","TEXT202"]
["TEXT203","DAISY EDGAR-JONES","TEXT203"]
["TEXT204","DAISY EDGAR-JONES","TEXT204"]
["TEXT205","DAISY EDGAR-JONES","TEXT205"]
["TEXT206","DAISY EDGAR-JONES","TEXT206"]
["TEXT207","RAMONA YOUNG","TEXT207"]
["TEXT208","RAMONA YOUNG","TEXT208"]
["TEXT209","ELLE FANNING","TEXT209"]
["TEXT210","ELLE FANNING","TEXT210"]
["TEXT211","ELLE FANNING","TEXT211"]
["TEXT212","ELLE FANNING","TEXT212"]
["TEXT213","ELLE FANNING","TEXT213"]
["TEXT214","ELLE FANNING","TEXT214"]
["TEXT215","ELLE FANNING","TEXT215"]
["TEXT216","ELLE FANNING","TEXT216"]
["TEXT217","ELLE FANNING","TEXT217"]
["TEXT218","ELLE FANNING","TEXT218"]
["TEXT219","ELLE FANNING","TEXT219"]
["TEXT220","PEYTON LIST","TEXT220"]
["TEXT221","JESSICA REYNOLDS","TEXT221"]
["TEXT222","JESSICA REYNOLDS","TEXT222"]
["TEXT223","JESSICA REYNOLDS","TEXT223"]
["TEXT224","JESSICA REYNOLDS","TEXT224"]
["TEXT225","ODESSA YOUNG","TEXT225"]
["TEXT226","ODESSA YOUNG","TEXT226"]
["TEXT227","ODESSA YOUNG","TEXT227"]
["TEXT228","ODESSA YOUNG","TEXT228"]
["TEXT229","ODESSA YOUNG","TEXT229"]
["TEXT230","ODESSA YOUNG","TEXT230"]
["TEXT231","ODESSA YOUNG","TEXT231"]
["TEXT232","ODESSA YOUNG","TEXT232"]
["TEXT233","ODESSA YOUNG","TEXT233"]
["TEXT234","ODESSA YOUNG","TEXT234"]
["TEXT235","ODESSA YOUNG","TEXT235"]
["TEXT236","ODESSA YOUNG","TEXT236"]
["TEXT237","ODESSA YOUNG","TEXT237"]
["TEXT238","ODESSA YOUNG","TEXT238"]
["TEXT239","ODESSA YOUNG","TEXT239"]
["TEXT240","ODESSA YOUNG","TEXT240"]
["TEXT241","ODESSA YOUNG","TEXT241"]
["TEXT242","ODESSA YOUNG","TEXT242"]
["TEXT243","ODESSA YOUNG","TEXT243"]
["TEXT244","ODESSA YOUNG","TEXT244"]
["TEXT245","ODESSA YOUNG","TEXT245"]
["TEXT246","ODESSA YOUNG","TEXT246"]
["TEXT247","ODESSA YOUNG","TEXT247"]
["TEXT248","ODESSA YOUNG","TEXT248"]
["TEXT249","ODESSA YOUNG","TEXT249"]
["TEXT250","ODESSA YOUNG","TEXT250"]
["TEXT251","ODESSA YOUNG","TEXT251"]
["TEXT252","IVANNA SAKHNO","TEXT252"]
["TEXT253","CHRISTINA ROBINSON","TEXT253"]
["TEXT254","BELLA THORNE","TEXT254"]
["TEXT255","BELLA THORNE","TEXT255"]
["TEXT256","BELLA THORNE","TEXT256"]
["TEXT257","BELLA THORNE","TEXT257"]
[{"$f":"\"TEXT\"&ROW()","v":"TEXT258"},"ELENA KAMPOURIS","TEXT258"]
["TEXT259","ELENA KAMPOURIS","TEXT259"]
["TEXT260","ELENA KAMPOURIS","TEXT260"]
["TEXT261","ELENA KAMPOURIS","TEXT261"]
["TEXT262","ELENA KAMPOURIS","TEXT262"]
["TEXT263","ELENA KAMPOURIS","TEXT263"]
["TEXT264","ELENA KAMPOURIS","TEXT264"]
["TEXT265","ELENA KAMPOURIS","TEXT265"]
["TEXT266","ELENA KAMPOURIS","TEXT266"]
["TEXT267","ELENA KAMPOURIS","TEXT267"]
["TEXT268","ELENA KAMPOURIS","TEXT268"]
["TEXT269","ELENA KAMPOURIS","TEXT269"]
["TEXT270","SYDNEY SWEENEY","TEXT270"]
["TEXT271","SYDNEY SWEENEY","TEXT271"]
["TEXT272","SYDNEY SWEENEY","TEXT272"]
["TEXT273","SYDNEY SWEENEY","TEXT273"]
["TEXT274","SYDNEY SWEENEY","TEXT274"]
["TEXT275","SYDNEY SWEENEY","TEXT275"]
["TEXT276","SYDNEY SWEENEY","TEXT276"]
["TEXT277","SYDNEY SWEENEY","TEXT277"]
["TEXT278","SYDNEY SWEENEY","TEXT278"]
["TEXT279","SYDNEY SWEENEY","TEXT279"]
["TEXT280","SYDNEY SWEENEY","TEXT280"]
["TEXT281","SYDNEY SWEENEY","TEXT281"]
["TEXT282","SYDNEY SWEENEY","TEXT282"]
["TEXT283","SYDNEY SWEENEY","TEXT283"]
["TEXT284","SYDNEY SWEENEY","TEXT284"]
["TEXT285","SYDNEY SWEENEY","TEXT285"]
["TEXT286","SYDNEY SWEENEY","TEXT286"]
["TEXT287","SYDNEY SWEENEY","TEXT287"]
["TEXT288","SYDNEY SWEENEY","TEXT288"]
["TEXT289","SYDNEY SWEENEY","TEXT289"]
["TEXT290","SYDNEY SWEENEY","TEXT290"]
["TEXT291","SYDNEY SWEENEY","TEXT291"]
["TEXT292","SYDNEY SWEENEY","TEXT292"]
["TEXT293","SYDNEY SWEENEY","TEXT293"]
["TEXT294","SYDNEY SWEENEY","TEXT294"]
["TEXT295","SYDNEY SWEENEY","TEXT295"]
["TEXT296","SYDNEY SWEENEY","TEXT296"]
["TEXT297","SYDNEY SWEENEY","TEXT297"]
["TEXT298","SYDNEY SWEENEY","TEXT298"]
["TEXT299","SYDNEY SWEENEY","TEXT299"]
["TEXT300","SYDNEY SWEENEY","TEXT300"]
["TEXT301","SYDNEY SWEENEY","TEXT301"]
["TEXT302","SYDNEY SWEENEY","TEXT302"]
["TEXT303","SYDNEY SWEENEY","TEXT303"]
["TEXT304","SYDNEY SWEENEY","TEXT304"]
["TEXT305","SYDNEY SWEENEY","TEXT305"]
["TEXT306","SYDNEY SWEENEY","TEXT306"]
["TEXT307","SYDNEY SWEENEY","TEXT307"]
["TEXT308","SYDNEY SWEENEY","TEXT308"]
["TEXT309","MICHELLE RANDOLPH","TEXT309"]
["TEXT310","MICHELLE RANDOLPH","TEXT310"]
["TEXT311","MICHELLE RANDOLPH","TEXT311"]
["TEXT312","MICHELLE RANDOLPH","TEXT312"]
["TEXT313","MICHELLE RANDOLPH","TEXT313"]
["TEXT314","MICHELLE RANDOLPH","TEXT314"]
["TEXT315","MICHELLE RANDOLPH","TEXT315"]
["TEXT316","ALISON OLIVER","TEXT316"]
["TEXT317","ALISON OLIVER","TEXT317"]
["TEXT318","ALISON OLIVER","TEXT318"]
["TEXT319","ALISON OLIVER","TEXT319"]
["TEXT320","ALISON OLIVER","TEXT320"]
["TEXT321","ALISON OLIVER","TEXT321"]
[{"$f":"\"TEXT\"&ROW()","v":"TEXT322"},"ALISON OLIVER","TEXT322"]
["TEXT323","ALISON OLIVER","TEXT323"]
["TEXT324","ALISON OLIVER","TEXT324"]
["TEXT325","ALISON OLIVER","TEXT325"]
["TEXT326","ALISON OLIVER","TEXT326"]
["TEXT327","ALISON OLIVER","TEXT327"]
["TEXT328","ALISON OLIVER","TEXT328"]
["TEXT329","ALISON OLIVER","TEXT329"]
["TEXT330","ALISON OLIVER","TEXT330"]
["TEXT331","ALISON OLIVER","TEXT331"]
["TEXT332","ALISON OLIVER","TEXT332"]
["TEXT333","ALISON OLIVER","TEXT333"]
["TEXT334","ALISON OLIVER","TEXT334"]
["TEXT335","ALISON OLIVER","TEXT335"]
["TEXT336","ALISON OLIVER","TEXT336"]
["TEXT337","ALISON OLIVER","TEXT337"]
["TEXT338","ALISON OLIVER","TEXT338"]
["TEXT339","ALISON OLIVER","TEXT339"]
["TEXT340","MAISIE WILLIAMS","TEXT340"]
["TEXT341","MAISIE WILLIAMS","TEXT341"]
["TEXT342","MAISIE WILLIAMS","TEXT342"]
["TEXT343","MAISIE WILLIAMS","TEXT343"]
["TEXT344","MAISIE WILLIAMS","TEXT344"]
["TEXT345","MAISIE WILLIAMS","TEXT345"]
["TEXT346","MAISIE WILLIAMS","TEXT346"]
["TEXT347","MAISIE WILLIAMS","TEXT347"]
["TEXT348","ABIGAIL LAWRIE","TEXT348"]
["TEXT349","ABIGAIL LAWRIE","TEXT349"]
["TEXT350","MADISON ISEMAN","TEXT350"]
["TEXT351","MADISON ISEMAN","TEXT351"]
["TEXT352","MADISON ISEMAN","TEXT352"]
["TEXT353","MADISON ISEMAN","TEXT353"]
["TEXT354","MADISON ISEMAN","TEXT354"]
["TEXT355","MADISON ISEMAN","TEXT355"]
["TEXT356","MADISON ISEMAN","TEXT356"]
["TEXT357","MADISON ISEMAN","TEXT357"]
["TEXT358","MADISON ISEMAN","TEXT358"]
["TEXT359","MADISON ISEMAN","TEXT359"]
["TEXT360","MADISON ISEMAN","TEXT360"]
["TEXT361","LONDON THOR","TEXT361"]
["TEXT362","LONDON THOR","TEXT362"]
["TEXT363","LONDON THOR","TEXT363"]
["TEXT364","KAITLYN DEVER","TEXT364"]
["TEXT365","KAITLYN DEVER","TEXT365"]
["TEXT366","MARISA ABELA","TEXT366"]
["TEXT367","MARISA ABELA","TEXT367"]
["TEXT368","MARISA ABELA","TEXT368"]
["TEXT369","MARISA ABELA","TEXT369"]
["TEXT370","MARISA ABELA","TEXT370"]
["TEXT371","MARISA ABELA","TEXT371"]
["TEXT372","MARISA ABELA","TEXT372"]
["TEXT373","MARISA ABELA","TEXT373"]
["TEXT374","MARISA ABELA","TEXT374"]
["TEXT375","MARISA ABELA","TEXT375"]
["TEXT376","MARISA ABELA","TEXT376"]
["TEXT377","MARISA ABELA","TEXT377"]
["TEXT378","MARISA ABELA","TEXT378"]
["TEXT379","MARISA ABELA","TEXT379"]
["TEXT380","MARISA ABELA","TEXT380"]
["TEXT381","MARISA ABELA","TEXT381"]
["TEXT382","MARISA ABELA","TEXT382"]
["TEXT383","MARISA ABELA","TEXT383"]
["TEXT384","MARISA ABELA","TEXT384"]
["TEXT385","MARISA ABELA","TEXT385"]
[{"$f":"\"TEXT\"&ROW()","v":"TEXT386"},"MARISA ABELA","TEXT386"]
["TEXT387","GRACE VAN PATTEN","TEXT387"]
["TEXT388","GRACE VAN PATTEN","TEXT388"]
["TEXT389","GRACE VAN PATTEN","TEXT389"]
["TEXT390","GRACE VAN PATTEN","TEXT390"]
["TEXT391","GRACE VAN PATTEN","TEXT391"]
["TEXT392","GRACE VAN PATTEN","TEXT392"]
["TEXT393","GRACE VAN PATTEN","TEXT393"]
["TEXT394","GRACE VAN PATTEN","TEXT394"]
["TEXT395","GRACE VAN PATTEN","TEXT395"]
["TEXT396","GRACE VAN PATTEN","TEXT396"]
["TEXT397","GRACE VAN PATTEN","TEXT397"]
["TEXT398","GRACE VAN PATTEN","TEXT398"]
["TEXT399","GRACE VAN PATTEN","TEXT399"]
["TEXT400","GRACE VAN PATTEN","TEXT400"]
["TEXT401","GRACE VAN PATTEN","TEXT401"]
["TEXT402","GRACE VAN PATTEN","TEXT402"]
["TEXT403","GRACE VAN PATTEN","TEXT403"]
["TEXT404","GRACE VAN PATTEN","TEXT404"]
["TEXT405","GRACE VAN PATTEN","TEXT405"]
["TEXT406","GRACE VAN PATTEN","TEXT406"]
["TEXT407","GRACE VAN PATTEN","TEXT407"]
["TEXT408","ELLA PURNELL","TEXT408"]
["TEXT409","ELLA PURNELL","TEXT409"]
["TEXT410","ELLA PURNELL","TEXT410"]
["TEXT411","LILI REINHART","TEXT411"]
["TEXT412","LILI REINHART","TEXT412"]
["TEXT413","LILI REINHART","TEXT413"]
["TEXT414","LILI REINHART","TEXT414"]
["TEXT415","LILI REINHART","TEXT415"]
["TEXT416","ZENDAYA","TEXT416"]
["TEXT417","ZENDAYA","TEXT417"]
["TEXT418","ZENDAYA","TEXT418"]
["TEXT419","ZENDAYA","TEXT419"]
["TEXT420","ZENDAYA","TEXT420"]
["TEXT421","ZENDAYA","TEXT421"]
["TEXT422","ZENDAYA","TEXT422"]
["TEXT423","SYNNOVE KARLSEN","TEXT423"]
["TEXT424","SYNNOVE KARLSEN","TEXT424"]
["TEXT425","SYNNOVE KARLSEN","TEXT425"]
["TEXT426","SYNNOVE KARLSEN","TEXT426"]
["TEXT427","SYNNOVE KARLSEN","TEXT427"]
["TEXT428","SYNNOVE KARLSEN","TEXT428"]
["TEXT429","SYNNOVE KARLSEN","TEXT429"]
["TEXT430","SYNNOVE KARLSEN","TEXT430"]
["TEXT431","GABRIELLE CREEVY","TEXT431"]
["TEXT432","GABRIELLE CREEVY","TEXT432"]
["TEXT433","GABRIELLE CREEVY","TEXT433"]
["TEXT434","GABRIELLE CREEVY","TEXT434"]
["TEXT435","GABRIELLE CREEVY","TEXT435"]
["TEXT436","MARIA BAKALOVA","TEXT436"]
["TEXT437","MARIA BAKALOVA","TEXT437"]
["TEXT438","MARIA BAKALOVA","TEXT438"]
["TEXT439","MARIA BAKALOVA","TEXT439"]
["TEXT440","MARIA BAKALOVA","TEXT440"]
["TEXT441","MARIA BAKALOVA","TEXT441"]
["TEXT442","MARIA BAKALOVA","TEXT442"]
["TEXT443","MARIA BAKALOVA","TEXT443"]
["TEXT444","MARIA BAKALOVA","TEXT444"]
["TEXT445","MARIA BAKALOVA","TEXT445"]
["TEXT446","CHASE SUI WONDERS","TEXT446"]
["TEXT447","CHASE SUI WONDERS","TEXT447"]
["TEXT448","CHASE SUI WONDERS","TEXT448"]
["TEXT449","CHASE SUI WONDERS","TEXT449"]
[{"$f":"\"TEXT\"&ROW()","v":"TEXT450"},"CHASE SUI WONDERS","TEXT450"]
["TEXT451","CHASE SUI WONDERS","TEXT451"]
["TEXT452","VIOLETT BEANE","TEXT452"]
["TEXT453","VIOLETT BEANE","TEXT453"]
["TEXT454","VIOLETT BEANE","TEXT454"]
["TEXT455","VIOLETT BEANE","TEXT455"]
["TEXT456","VIOLETT BEANE","TEXT456"]
["TEXT457","VIOLETT BEANE","TEXT457"]
["TEXT458","VIOLETT BEANE","TEXT458"]
["TEXT459","VIOLETT BEANE","TEXT459"]
["TEXT460","VIOLETT BEANE","TEXT460"]
["TEXT461","ANYA TAYLOR-JOY","TEXT461"]
["TEXT462","ANYA TAYLOR-JOY","TEXT462"]
["TEXT463","ANYA TAYLOR-JOY","TEXT463"]
["TEXT464","ANYA TAYLOR-JOY","TEXT464"]
["TEXT465","ANYA TAYLOR-JOY","TEXT465"]
["TEXT466","ANYA TAYLOR-JOY","TEXT466"]
["TEXT467","ANYA TAYLOR-JOY","TEXT467"]
["TEXT468","ANYA TAYLOR-JOY","TEXT468"]
["TEXT469","ANYA TAYLOR-JOY","TEXT469"]
["TEXT470","ANYA TAYLOR-JOY","TEXT470"]
["TEXT471","ANYA TAYLOR-JOY","TEXT471"]
["TEXT472","ANYA TAYLOR-JOY","TEXT472"]
["TEXT473","ANYA TAYLOR-JOY","TEXT473"]
["TEXT474","ANYA TAYLOR-JOY","TEXT474"]
["TEXT475","ANYA TAYLOR-JOY","TEXT475"]
["TEXT476","ANYA TAYLOR-JOY","TEXT476"]
["TEXT477","ANYA TAYLOR-JOY","TEXT477"]
["TEXT478","ANYA TAYLOR-JOY","TEXT478"]
["TEXT479","EMILY KIMBALL","TEXT479"]
["TEXT480","EMILY KIMBALL","TEXT480"]
["TEXT481","EMILY KIMBALL","TEXT481"]
["TEXT482","EMILY KIMBALL","TEXT482"]
["TEXT483","EMILY KIMBALL","TEXT483"]
["TEXT484","ABIGAIL BRESLIN","TEXT484"]
["TEXT485","ABIGAIL BRESLIN","TEXT485"]
["TEXT486","ABIGAIL BRESLIN","TEXT486"]
["TEXT487","SOPHIE TURNER","TEXT487"]
["TEXT488","SYDNEY CHANDLER","TEXT488"]
["TEXT489","SYDNEY CHANDLER","TEXT489"]
["TEXT490","SYDNEY CHANDLER","TEXT490"]
["TEXT491","SYDNEY CHANDLER","TEXT491"]
["TEXT492","SYDNEY CHANDLER","TEXT492"]
["TEXT493","EMMA MACKEY","TEXT493"]
["TEXT494","EMMA MACKEY","TEXT494"]
["TEXT495","EMMA MACKEY","TEXT495"]
["TEXT496","EMMA MACKEY","TEXT496"]
["TEXT497","EMMA MACKEY","TEXT497"]
["TEXT498","EMMA MACKEY","TEXT498"]
["TEXT499","EMMA MACKEY","TEXT499"]
["TEXT500","EMMA MACKEY","TEXT500"]
["TEXT501","EMMA MACKEY","TEXT501"]
["TEXT502","EMMA MACKEY","TEXT502"]
["TEXT503","EMMA MACKEY","TEXT503"]
["TEXT504","EMMA MACKEY","TEXT504"]
["TEXT505","EMMA MACKEY","TEXT505"]
["TEXT506","EMMA MACKEY","TEXT506"]
["TEXT507","EMMA MACKEY","TEXT507"]
["TEXT508","EMMA MACKEY","TEXT508"]
["TEXT509","FLORENCE PUGH","TEXT509"]
["TEXT510","FLORENCE PUGH","TEXT510"]
["TEXT511","FLORENCE PUGH","TEXT511"]
["TEXT512","FLORENCE PUGH","TEXT512"]
["TEXT513","FLORENCE PUGH","TEXT513"]
[{"$f":"\"TEXT\"&ROW()","v":"TEXT514"},"FLORENCE PUGH","TEXT514"]
["TEXT515","FLORENCE PUGH","TEXT515"]
["TEXT516","FLORENCE PUGH","TEXT516"]
["TEXT517","FLORENCE PUGH","TEXT517"]
["TEXT518","FLORENCE PUGH","TEXT518"]
["TEXT519","FLORENCE PUGH","TEXT519"]
["TEXT520","FLORENCE PUGH","TEXT520"]
["TEXT521","FLORENCE PUGH","TEXT521"]
["TEXT522","FLORENCE PUGH","TEXT522"]
["TEXT523","FLORENCE PUGH","TEXT523"]
["TEXT524","FLORENCE PUGH","TEXT524"]
["TEXT525","FLORENCE PUGH","TEXT525"]
["TEXT526","FLORENCE PUGH","TEXT526"]
["TEXT527","FLORENCE PUGH","TEXT527"]
["TEXT528","FLORENCE PUGH","TEXT528"]
["TEXT529","FLORENCE PUGH","TEXT529"]
["TEXT530","FLORENCE PUGH","TEXT530"]
["TEXT531","FLORENCE PUGH","TEXT531"]
["TEXT532","FLORENCE PUGH","TEXT532"]
["TEXT533","FLORENCE PUGH","TEXT533"]
["TEXT534","FLORENCE PUGH","TEXT534"]
["TEXT535","FLORENCE PUGH","TEXT535"]
["TEXT536","FLORENCE PUGH","TEXT536"]
["TEXT537","FLORENCE PUGH","TEXT537"]
["TEXT538","FLORENCE PUGH","TEXT538"]
["TEXT539","FLORENCE PUGH","TEXT539"]
["TEXT540","FLORENCE PUGH","TEXT540"]
["TEXT541","FLORENCE PUGH","TEXT541"]
["TEXT542","FLORENCE PUGH","TEXT542"]
["TEXT543","FLORENCE PUGH","TEXT543"]
["TEXT544","FLORENCE PUGH","TEXT544"]
["TEXT545","FLORENCE PUGH","TEXT545"]
["TEXT546","FLORENCE PUGH","TEXT546"]
["TEXT547","FLORENCE PUGH","TEXT547"]
["TEXT548","FLORENCE PUGH","TEXT548"]
["TEXT549","FLORENCE PUGH","TEXT549"]
["TEXT550","FLORENCE PUGH","TEXT550"]
["TEXT551","REINA HARDESTY","TEXT551"]
["TEXT552","REINA HARDESTY","TEXT552"]
["TEXT553","REINA HARDESTY","TEXT553"]
["TEXT554","EMMA CORRIN","TEXT554"]
["TEXT555","EMMA CORRIN","TEXT555"]
["TEXT556","EMMA CORRIN","TEXT556"]
["TEXT557","EMMA CORRIN","TEXT557"]
["TEXT558","EMMA CORRIN","TEXT558"]
["TEXT559","EMMA CORRIN","TEXT559"]
["TEXT560","EMMA CORRIN","TEXT560"]
["TEXT561","EMMA CORRIN","TEXT561"]
["TEXT562","EMMA CORRIN","TEXT562"]
["TEXT563","EMMA CORRIN","TEXT563"]
["TEXT564","EMMA CORRIN","TEXT564"]
["TEXT565","EMMA CORRIN","TEXT565"]
["TEXT566","EMMA CORRIN","TEXT566"]
["TEXT567","EMMA CORRIN","TEXT567"]
["TEXT568","EMMA CORRIN","TEXT568"]
["TEXT569","EMMA CORRIN","TEXT569"]
["TEXT570","EMMA CORRIN","TEXT570"]
["TEXT571","EMMA CORRIN","TEXT571"]
["TEXT572","EMMA CORRIN","TEXT572"]
["TEXT573","EMMA CORRIN","TEXT573"]
["TEXT574","EMMA CORRIN","TEXT574"]
["TEXT575","EMMA CORRIN","TEXT575"]
["TEXT576","EMMA CORRIN","TEXT576"]
["TEXT577","EMMA CORRIN","TEXT577"]
[{"$f":"\"TEXT\"&ROW()","v":"TEXT578"},"EMMA CORRIN","TEXT578"]
["TEXT579","EMMA CORRIN","TEXT579"]
["TEXT580","RACHEL SENNOTT","TEXT580"]
["TEXT581","RACHEL SENNOTT","TEXT581"]
["TEXT582","MATILDA DE ANGELIS","TEXT582"]
["TEXT583","MATILDA DE ANGELIS","TEXT583"]
["TEXT584","MATILDA DE ANGELIS","TEXT584"]
["TEXT585","MATILDA DE ANGELIS","TEXT585"]
["TEXT586","MATILDA DE ANGELIS","TEXT586"]
["TEXT587","MATILDA DE ANGELIS","TEXT587"]
["TEXT588","MATILDA DE ANGELIS","TEXT588"]
["TEXT589","MATILDA DE ANGELIS","TEXT589"]
["TEXT590","MATILDA DE ANGELIS","TEXT590"]
["TEXT591","MATILDA DE ANGELIS","TEXT591"]
["TEXT592","MATILDA DE ANGELIS","TEXT592"]
["TEXT593","MATILDA DE ANGELIS","TEXT593"]
["TEXT594","MATILDA DE ANGELIS","TEXT594"]
["TEXT595","MATILDA DE ANGELIS","TEXT595"]
["TEXT596","MATILDA DE ANGELIS","TEXT596"]
["TEXT597","MATILDA DE ANGELIS","TEXT597"]
["TEXT598","MATILDA DE ANGELIS","TEXT598"]
["TEXT599","MATILDA DE ANGELIS","TEXT599"]
["TEXT600","MATILDA DE ANGELIS","TEXT600"]
["TEXT601","MATILDA DE ANGELIS","TEXT601"]
["TEXT602","MATILDA DE ANGELIS","TEXT602"]
["TEXT603","MATILDA DE ANGELIS","TEXT603"]
["TEXT604","MATILDA DE ANGELIS","TEXT604"]
["TEXT605","MATILDA DE ANGELIS","TEXT605"]
["TEXT606","MATILDA DE ANGELIS","TEXT606"]
["TEXT607","MATILDA DE ANGELIS","TEXT607"]
["TEXT608","MATILDA DE ANGELIS","TEXT608"]
["TEXT609","MATILDA DE ANGELIS","TEXT609"]
["TEXT610","MATILDA DE ANGELIS","TEXT610"]
["TEXT611","MATILDA DE ANGELIS","TEXT611"]
["TEXT612","MATILDA DE ANGELIS","TEXT612"]
["TEXT613","MATILDA DE ANGELIS","TEXT613"]
["TEXT614","MATILDA DE ANGELIS","TEXT614"]
["TEXT615","MATILDA DE ANGELIS","TEXT615"]
["TEXT616","MATILDA DE ANGELIS","TEXT616"]
["TEXT617","MATILDA DE ANGELIS","TEXT617"]
["TEXT618","MATILDA DE ANGELIS","TEXT618"]
["TEXT619","MATILDA DE ANGELIS","TEXT619"]
["TEXT620","MATILDA DE ANGELIS","TEXT620"]
["TEXT621","MATILDA DE ANGELIS","TEXT621"]
["TEXT622","MATILDA DE ANGELIS","TEXT622"]
["TEXT623","MATILDA DE ANGELIS","TEXT623"]
["TEXT624","MATILDA DE ANGELIS","TEXT624"]
["TEXT625","MATILDA DE ANGELIS","TEXT625"]
["TEXT626","MATILDA DE ANGELIS","TEXT626"]
["TEXT627","MATILDA DE ANGELIS","TEXT627"]
["TEXT628","MATILDA DE ANGELIS","TEXT628"]
["TEXT629","MATILDA DE ANGELIS","TEXT629"]
["TEXT630","MATILDA DE ANGELIS","TEXT630"]
["TEXT631","MATILDA DE ANGELIS","TEXT631"]
["TEXT632","MATILDA DE ANGELIS","TEXT632"]
["TEXT633","MATILDA DE ANGELIS","TEXT633"]
["TEXT634","MATILDA DE ANGELIS","TEXT634"]
["TEXT635","MATILDA DE ANGELIS","TEXT635"]
["TEXT636","MATILDA DE ANGELIS","TEXT636"]
["TEXT637","MATILDA DE ANGELIS","TEXT637"]
["TEXT638","MATILDA DE ANGELIS","TEXT638"]
["TEXT639","MATILDA DE ANGELIS","TEXT639"]
["TEXT640","MATILDA DE ANGELIS","TEXT640"]
["TEXT641","MATILDA DE ANGELIS","TEXT641"]
[{"$f":"\"TEXT\"&ROW()","v":"TEXT642"},"MATILDA DE ANGELIS","TEXT642"]
["TEXT643","MATILDA DE ANGELIS","TEXT643"]
["TEXT644","MATILDA DE ANGELIS","TEXT644"]
["TEXT645","MATILDA DE ANGELIS","TEXT645"]
["TEXT646","MATILDA DE ANGELIS","TEXT646"]
["TEXT647","MATILDA DE ANGELIS","TEXT647"]
["TEXT648","ANYA CHALOTRA","TEXT648"]
["TEXT649","ANYA CHALOTRA","TEXT649"]
["TEXT650","ANYA CHALOTRA","TEXT650"]
["TEXT651","ANYA CHALOTRA","TEXT651"]
["TEXT652","ANYA CHALOTRA","TEXT652"]
["TEXT653","ANYA CHALOTRA","TEXT653"]
["TEXT654","ANYA CHALOTRA","TEXT654"]
["TEXT655","ANYA CHALOTRA","TEXT655"]
["TEXT656","ANYA CHALOTRA","TEXT656"]
["TEXT657","ANYA CHALOTRA","TEXT657"]
["TEXT658","ANYA CHALOTRA","TEXT658"]
["TEXT659","ANYA CHALOTRA","TEXT659"]
["TEXT660","ANYA CHALOTRA","TEXT660"]
["TEXT661","SERAYAH","TEXT661"]
["TEXT662","SERAYAH","TEXT662"]
["TEXT663","GERALDINE VISWANATHAN","TEXT663"]
["TEXT664","GERALDINE VISWANATHAN","TEXT664"]
["TEXT665","GERALDINE VISWANATHAN","TEXT665"]
["TEXT666","GERALDINE VISWANATHAN","TEXT666"]
["TEXT667","GERALDINE VISWANATHAN","TEXT667"]
["TEXT668","GERALDINE VISWANATHAN","TEXT668"]
["TEXT669","GERALDINE VISWANATHAN","TEXT669"]
["TEXT670","GERALDINE VISWANATHAN","TEXT670"]
["TEXT671","GERALDINE VISWANATHAN","TEXT671"]
["TEXT672","HANNAH EINBINDER","TEXT672"]
["TEXT673","HANNAH EINBINDER","TEXT673"]
["TEXT674","HANNAH EINBINDER","TEXT674"]
["TEXT675","HANNAH EINBINDER","TEXT675"]
["TEXT676","HANNAH EINBINDER","TEXT676"]
["TEXT677","HANNAH EINBINDER","TEXT677"]
["TEXT678","HANNAH EINBINDER","TEXT678"]
["TEXT679","HANNAH EINBINDER","TEXT679"]
["TEXT680","HANNAH EINBINDER","TEXT680"]
["TEXT681","HANNAH EINBINDER","TEXT681"]
["TEXT682","HANNAH EINBINDER","TEXT682"]
["TEXT683","HANNAH EINBINDER","TEXT683"]
["TEXT684","HANNAH EINBINDER","TEXT684"]
["TEXT685","HANNAH EINBINDER","TEXT685"]
["TEXT686","HANNAH EINBINDER","TEXT686"]
["TEXT687","HANNAH EINBINDER","TEXT687"]
["TEXT688","HANNAH EINBINDER","TEXT688"]
["TEXT689","HANNAH EINBINDER","TEXT689"]
["TEXT690","HANNAH EINBINDER","TEXT690"]
["TEXT691","SARAH CATHERINE HOOK","TEXT691"]
["TEXT692","PHOEBE DYNEVOR","TEXT692"]
["TEXT693","PHOEBE DYNEVOR","TEXT693"]
["TEXT694","PHOEBE DYNEVOR","TEXT694"]
["TEXT695","PHOEBE DYNEVOR","TEXT695"]
["TEXT696","PHOEBE DYNEVOR","TEXT696"]
["TEXT697","PHOEBE DYNEVOR","TEXT697"]
["TEXT698","PHOEBE DYNEVOR","TEXT698"]
["TEXT699","PHOEBE DYNEVOR","TEXT699"]
["TEXT700","PHOEBE DYNEVOR","TEXT700"]
["TEXT701","PHOEBE DYNEVOR","TEXT701"]
["TEXT702","PHOEBE DYNEVOR","TEXT702"]
["TEXT703","VICTORIA PEDRETTI","TEXT703"]
["TEXT704","VICTORIA PEDRETTI","TEXT704"]
["TEXT705","VICTORIA PEDRETTI","TEXT705"]
[{"$f":"\"TEXT\"&ROW()","v":"TEXT706"},"JULIA SCHLAEPFER","TEXT706"]
["TEXT707","JULIA SCHLAEPFER","TEXT707"]
["TEXT708","JULIA SCHLAEPFER","TEXT708"]
["TEXT709","JULIA SCHLAEPFER","TEXT709"]
["TEXT710","JULIA SCHLAEPFER","TEXT710"]
["TEXT711","JULIA SCHLAEPFER","TEXT711"]
["TEXT712","JULIA SCHLAEPFER","TEXT712"]
["TEXT713","JULIA SCHLAEPFER","TEXT713"]
["TEXT714","JULIA SCHLAEPFER","TEXT714"]
["TEXT715","JULIA SCHLAEPFER","TEXT715"]
["TEXT716","JULIA SCHLAEPFER","TEXT716"]
["TEXT717","JULIA SCHLAEPFER","TEXT717"]
["TEXT718","JULIA SCHLAEPFER","TEXT718"]
["TEXT719","JULIA SCHLAEPFER","TEXT719"]
["TEXT720","DANIELLE CAMPBELL","TEXT720"]
["TEXT721","DANIELLE CAMPBELL","TEXT721"]
["TEXT722","DANIELLE CAMPBELL","TEXT722"]
["TEXT723","MOLLY GORDON","TEXT723"]
["TEXT724","MOLLY GORDON","TEXT724"]
["TEXT725","MOLLY GORDON","TEXT725"]
["TEXT726","MOLLY GORDON","TEXT726"]
["TEXT727","MOLLY GORDON","TEXT727"]
["TEXT728","MOLLY GORDON","TEXT728"]
["TEXT729","MOLLY GORDON","TEXT729"]
["TEXT730","MOLLY GORDON","TEXT730"]
["TEXT731","MOLLY GORDON","TEXT731"]
["TEXT732","HARRIET SLATER","TEXT732"]
["TEXT733","HARRIET SLATER","TEXT733"]
["TEXT734","HARRIET SLATER","TEXT734"]
["TEXT735","HARRIET SLATER","TEXT735"]
["TEXT736","ZOEY DEUTCH","TEXT736"]
["TEXT737","MARGARET QUALLEY","TEXT737"]
["TEXT738","MARGARET QUALLEY","TEXT738"]
["TEXT739","MARGARET QUALLEY","TEXT739"]
["TEXT740","MARGARET QUALLEY","TEXT740"]
["TEXT741","MARGARET QUALLEY","TEXT741"]
["TEXT742","MARGARET QUALLEY","TEXT742"]
["TEXT743","MARGARET QUALLEY","TEXT743"]
["TEXT744","MARGARET QUALLEY","TEXT744"]
["TEXT745","MARGARET QUALLEY","TEXT745"]
["TEXT746","MARGARET QUALLEY","TEXT746"]
["TEXT747","MARGARET QUALLEY","TEXT747"]
["TEXT748","MARGARET QUALLEY","TEXT748"]
["TEXT749","MARGARET QUALLEY","TEXT749"]
["TEXT750","MARGARET QUALLEY","TEXT750"]
["TEXT751","MARGARET QUALLEY","TEXT751"]
["TEXT752","MARGARET QUALLEY","TEXT752"]
["TEXT753","MARGARET QUALLEY","TEXT753"]
["TEXT754","MARGARET QUALLEY","TEXT754"]
["TEXT755","MARGARET QUALLEY","TEXT755"]
["TEXT756","MARGARET QUALLEY","TEXT756"]
["TEXT757","MARGARET QUALLEY","TEXT757"]
["TEXT758","MARGARET QUALLEY","TEXT758"]
["TEXT759","MARGARET QUALLEY","TEXT759"]
["TEXT760","MARGARET QUALLEY","TEXT760"]
["TEXT761","MARGARET QUALLEY","TEXT761"]
["TEXT762","MARGARET QUALLEY","TEXT762"]
["TEXT763","MARGARET QUALLEY","TEXT763"]
["TEXT764","MARGARET QUALLEY","TEXT764"]
["TEXT765","MARGARET QUALLEY","TEXT765"]
["TEXT766","MARGARET QUALLEY","TEXT766"]
["TEXT767","MARGARET QUALLEY","TEXT767"]
["TEXT768","MARGARET QUALLEY","TEXT768"]
["TEXT769","MARGARET QUALLEY","TEXT769"]
[{"$f":"\"TEXT\"&ROW()","v":"TEXT770"},"MARGARET QUALLEY","TEXT770"]
["TEXT771","MARGARET QUALLEY","TEXT771"]
["TEXT772","MARGARET QUALLEY","TEXT772"]
["TEXT773","MARGARET QUALLEY","TEXT773"]
["TEXT774","MARGARET QUALLEY","TEXT774"]
["TEXT775","MARGARET QUALLEY","TEXT775"]
["TEXT776","MARGARET QUALLEY","TEXT776"]
["TEXT777","MARGARET QUALLEY","TEXT777"]
["TEXT778","MARGARET QUALLEY","TEXT778"]
["TEXT779","MARGARET QUALLEY","TEXT779"]
["TEXT780","MARGARET QUALLEY","TEXT780"]
["TEXT781","MARGARET QUALLEY","TEXT781"]
["TEXT782","MARGARET QUALLEY","TEXT782"]
["TEXT783","MARGARET QUALLEY","TEXT783"]
["TEXT784","MARGARET QUALLEY","TEXT784"]
["TEXT785","MARGARET QUALLEY","TEXT785"]
["TEXT786","MARGARET QUALLEY","TEXT786"]
["TEXT787","MARGARET QUALLEY","TEXT787"]
["TEXT788","MARGARET QUALLEY","TEXT788"]
["TEXT789","MARGARET QUALLEY","TEXT789"]
["TEXT790","MARGARET QUALLEY","TEXT790"]
["TEXT791","MARGARET QUALLEY","TEXT791"]
["TEXT792","MARGARET QUALLEY","TEXT792"]
["TEXT793","MARGARET QUALLEY","TEXT793"]
["TEXT794","MARGARET QUALLEY","TEXT794"]
["TEXT795","MARGARET QUALLEY","TEXT795"]
["TEXT796","MARGARET QUALLEY","TEXT796"]
["TEXT797","MARGARET QUALLEY","TEXT797"]
["TEXT798","MARGARET QUALLEY","TEXT798"]
["TEXT799","MARGARET QUALLEY","TEXT799"]
["TEXT800","MARGARET QUALLEY","TEXT800"]
["TEXT801","MARGARET QUALLEY","TEXT801"]
["TEXT802","MARGARET QUALLEY","TEXT802"]
["TEXT803","HALSEY","TEXT803"]
["TEXT804","HALSEY","TEXT804"]
["TEXT805","HALSEY","TEXT805"]
["TEXT806","HALSEY","TEXT806"]
["TEXT807","HALSEY","TEXT807"]
["TEXT808","HALSEY","TEXT808"]
["TEXT809","HALSEY","TEXT809"]
["TEXT810","HALSEY","TEXT810"]
["TEXT811","HALSEY","TEXT811"]
["TEXT812","HALSEY","TEXT812"]
["TEXT813","HALSEY","TEXT813"]
["TEXT814","HALSEY","TEXT814"]
["TEXT815","AURORA PERRINEAU","TEXT815"]
["TEXT816","AURORA PERRINEAU","TEXT816"]
["TEXT817","AURORA PERRINEAU","TEXT817"]
["TEXT818","AURORA PERRINEAU","TEXT818"]
["TEXT819","AURORA PERRINEAU","TEXT819"]
["TEXT820","AURORA PERRINEAU","TEXT820"]
["TEXT821","MATHILDE OLLIVIER","TEXT821"]
["TEXT822","MATHILDE OLLIVIER","TEXT822"]
["TEXT823","MATHILDE OLLIVIER","TEXT823"]
["TEXT824","MATHILDE OLLIVIER","TEXT824"]
["TEXT825","MATHILDE OLLIVIER","TEXT825"]
["TEXT826","WALLIS DAY","TEXT826"]
["TEXT827","WALLIS DAY","TEXT827"]
["TEXT828","WALLIS DAY","TEXT828"]
["TEXT829","WALLIS DAY","TEXT829"]
["TEXT830","WALLIS DAY","TEXT830"]
["TEXT831","WALLIS DAY","TEXT831"]
["TEXT832","MADDIE PHILLIPS","TEXT832"]
["TEXT833","MADDIE PHILLIPS","TEXT833"]
[{"$f":"\"TEXT\"&ROW()","v":"TEXT834"},"MADDIE PHILLIPS","TEXT834"]
["TEXT835","MADELAINE PETSCH","TEXT835"]
["TEXT836","MADELAINE PETSCH","TEXT836"]
["TEXT837","MADELAINE PETSCH","TEXT837"]
["TEXT838","MADELAINE PETSCH","TEXT838"]
["TEXT839","MADELAINE PETSCH","TEXT839"]
["TEXT840","MADELAINE PETSCH","TEXT840"]
["TEXT841","MADELAINE PETSCH","TEXT841"]
["TEXT842","MADELAINE PETSCH","TEXT842"]
["TEXT843","MADELAINE PETSCH","TEXT843"]
["TEXT844","MADELAINE PETSCH","TEXT844"]
["TEXT845","MADELAINE PETSCH","TEXT845"]
["TEXT846","MADELAINE PETSCH","TEXT846"]
["TEXT847","MADELAINE PETSCH","TEXT847"]
["TEXT848","MADELAINE PETSCH","TEXT848"]
["TEXT849","MADELAINE PETSCH","TEXT849"]
["TEXT850","MADELAINE PETSCH","TEXT850"]
["TEXT851","MADELAINE PETSCH","TEXT851"]
["TEXT852","MADELAINE PETSCH","TEXT852"]
["TEXT853","SHALOM BRUNE-FRANKLIN","TEXT853"]
["TEXT854","SHALOM BRUNE-FRANKLIN","TEXT854"]
["TEXT855","CARLA SEHN","TEXT855"]
["TEXT856","CARLA SEHN","TEXT856"]
["TEXT857","CARLA SEHN","TEXT857"]
["TEXT858","CARLA SEHN","TEXT858"]
["TEXT859","CARLA SEHN","TEXT859"]
["TEXT860","CARLA SEHN","TEXT860"]
["TEXT861","CARLA SEHN","TEXT861"]
["TEXT862","CARLA SEHN","TEXT862"]
["TEXT863","CARLA SEHN","TEXT863"]
["TEXT864","CARLA SEHN","TEXT864"]
["TEXT865","CARLA SEHN","TEXT865"]
["TEXT866","CARLA SEHN","TEXT866"]
["TEXT867","CARLA SEHN","TEXT867"]
["TEXT868","CARLA SEHN","TEXT868"]
["TEXT869","CARLA SEHN","TEXT869"]
["TEXT870","CARLA SEHN","TEXT870"]
["TEXT871","CARLA SEHN","TEXT871"]
["TEXT872","CARLA SEHN","TEXT872"]
["TEXT873","CARLA SEHN","TEXT873"]
["TEXT874","JAZ SINCLAIR","TEXT874"]
["TEXT875","JAZ SINCLAIR","TEXT875"]
["TEXT876","JAZ SINCLAIR","TEXT876"]
["TEXT877","JAZ SINCLAIR","TEXT877"]
["TEXT878","TAYLOR RUSSELL","TEXT878"]
["TEXT879","ERIN MORIARTY","TEXT879"]
["TEXT880","ERIN MORIARTY","TEXT880"]
["TEXT881","ERIN MORIARTY","TEXT881"]
["TEXT882","ERIN MORIARTY","TEXT882"]
["TEXT883","ERIN MORIARTY","TEXT883"]
["TEXT884","ERIN MORIARTY","TEXT884"]
["TEXT885","ERIN MORIARTY","TEXT885"]
["TEXT886","ERIN MORIARTY","TEXT886"]
["TEXT887","ERIN MORIARTY","TEXT887"]
["TEXT888","ERIN MORIARTY","TEXT888"]
["TEXT889","ERIN MORIARTY","TEXT889"]
["TEXT890","ERIN MORIARTY","TEXT890"]
["TEXT891","LILY NEWMARK","TEXT891"]
["TEXT892","LILY NEWMARK","TEXT892"]
["TEXT893","LILY NEWMARK","TEXT893"]
["TEXT894","LILY NEWMARK","TEXT894"]
["TEXT895","LILY NEWMARK","TEXT895"]
["TEXT896","SAOIRSE RONAN","TEXT896"]
["TEXT897","SAOIRSE RONAN","TEXT897"]
[{"$f":"\"TEXT\"&ROW()","v":"TEXT898"},"SAOIRSE RONAN","TEXT898"]
["TEXT899","SAOIRSE RONAN","TEXT899"]
["TEXT900","SAOIRSE RONAN","TEXT900"]
["TEXT901","SAOIRSE RONAN","TEXT901"]
["TEXT902","SAOIRSE RONAN","TEXT902"]
["TEXT903","SAOIRSE RONAN","TEXT903"]
["TEXT904","SAOIRSE RONAN","TEXT904"]
["TEXT905","SAOIRSE RONAN","TEXT905"]
["TEXT906","SAOIRSE RONAN","TEXT906"]
["TEXT907","SAOIRSE RONAN","TEXT907"]
["TEXT908","SAOIRSE RONAN","TEXT908"]
["TEXT909","SAOIRSE RONAN","TEXT909"]
["TEXT910","SAOIRSE RONAN","TEXT910"]
["TEXT911","SAOIRSE RONAN","TEXT911"]
["TEXT912","SAOIRSE RONAN","TEXT912"]
["TEXT913","SAOIRSE RONAN","TEXT913"]
["TEXT914","SAOIRSE RONAN","TEXT914"]
["TEXT915","SAOIRSE RONAN","TEXT915"]
["TEXT916","SAOIRSE RONAN","TEXT916"]
["TEXT917","SAOIRSE RONAN","TEXT917"]
["TEXT918","SAOIRSE RONAN","TEXT918"]
["TEXT919","DAKOTA FANNING","TEXT919"]
["TEXT920","DAKOTA FANNING","TEXT920"]
["TEXT921","JULIA GARNER","TEXT921"]
["TEXT922","JULIA GARNER","TEXT922"]
["TEXT923","JULIA GARNER","TEXT923"]
["TEXT924","JULIA GARNER","TEXT924"]
["TEXT925","OLIVIA COOKE","TEXT925"]
["TEXT926","OLIVIA COOKE","TEXT926"]
["TEXT927","OLIVIA COOKE","TEXT927"]
["TEXT928","OLIVIA COOKE","TEXT928"]
["TEXT929","OLIVIA COOKE","TEXT929"]
["TEXT930","OLIVIA COOKE","TEXT930"]
["TEXT931","OLIVIA COOKE","TEXT931"]
["TEXT932","OLIVIA COOKE","TEXT932"]
["TEXT933","OLIVIA COOKE","TEXT933"]
["TEXT934","OLIVIA COOKE","TEXT934"]
["TEXT935","OLIVIA COOKE","TEXT935"]
["TEXT936","OLIVIA COOKE","TEXT936"]
["TEXT937","HERMIONE CORFIELD","TEXT937"]
["TEXT938","HERMIONE CORFIELD","TEXT938"]
["TEXT939","HERMIONE CORFIELD","TEXT939"]
["TEXT940","HERMIONE CORFIELD","TEXT940"]
["TEXT941","HERMIONE CORFIELD","TEXT941"]
["TEXT942","HERMIONE CORFIELD","TEXT942"]
["TEXT943","HERMIONE CORFIELD","TEXT943"]
["TEXT944","HERMIONE CORFIELD","TEXT944"]
["TEXT945","HERMIONE CORFIELD","TEXT945"]
["TEXT946","HERMIONE CORFIELD","TEXT946"]
["TEXT947","MIA GOTH","TEXT947"]
["TEXT948","MIA GOTH","TEXT948"]
["TEXT949","MIA GOTH","TEXT949"]
["TEXT950","MIA GOTH","TEXT950"]
["TEXT951","MIA GOTH","TEXT951"]
["TEXT952","MIA GOTH","TEXT952"]
["TEXT953","MIA GOTH","TEXT953"]
["TEXT954","MIA GOTH","TEXT954"]
["TEXT955","MIA GOTH","TEXT955"]
["TEXT956","MIA GOTH","TEXT956"]
["TEXT957","MIA GOTH","TEXT957"]
["TEXT958","MIA GOTH","TEXT958"]
["TEXT959","MIA GOTH","TEXT959"]
["TEXT960","MIA GOTH","TEXT960"]
["TEXT961","MIA GOTH","TEXT961"]
[{"$f":"\"TEXT\"&ROW()","v":"TEXT962"},"MIA GOTH","TEXT962"]
["TEXT963","MIA GOTH","TEXT963"]
["TEXT964","MIA GOTH","TEXT964"]
["TEXT965","MIA GOTH","TEXT965"]
["TEXT966","MIA GOTH","TEXT966"]
["TEXT967","MIA GOTH","TEXT967"]
["TEXT968","MIA GOTH","TEXT968"]
["TEXT969","MIA GOTH","TEXT969"]
["TEXT970","MIA GOTH","TEXT970"]
["TEXT971","MIA GOTH","TEXT971"]
["TEXT972","MIA GOTH","TEXT972"]
["TEXT973","MIA GOTH","TEXT973"]
["TEXT974","MIA GOTH","TEXT974"]
["TEXT975","MIA GOTH","TEXT975"]
["TEXT976","MIA GOTH","TEXT976"]
["TEXT977","MIA GOTH","TEXT977"]
["TEXT978","MIA GOTH","TEXT978"]
["TEXT979","MIA GOTH","TEXT979"]
["TEXT980","MIA GOTH","TEXT980"]
["TEXT981","MIA GOTH","TEXT981"]
["TEXT982","MIA GOTH","TEXT982"]
["TEXT983","MIA GOTH","TEXT983"]
["TEXT984","MIA GOTH","TEXT984"]
["TEXT985","MIA GOTH","TEXT985"]
["TEXT986","MIA GOTH","TEXT986"]
["TEXT987","MIA GOTH","TEXT987"]
["TEXT988","MIA GOTH","TEXT988"]
["TEXT989","MIA GOTH","TEXT989"]
["TEXT990","MIA GOTH","TEXT990"]
["TEXT991","MIA GOTH","TEXT991"]
["TEXT992","MIA GOTH","TEXT992"]
["TEXT993","MIA GOTH","TEXT993"]
["TEXT994","MIA GOTH","TEXT994"]
["TEXT995","MIA GOTH","TEXT995"]
["TEXT996","MIA GOTH","TEXT996"]
["TEXT997","AISHA DEE","TEXT997"]
["TEXT998","AISHA DEE","TEXT998"]
["TEXT999","AISHA DEE","TEXT999"]
["TEXT1000","AISHA DEE","TEXT1000"]
["TEXT1001","AISHA DEE","TEXT1001"]
["TEXT1002","AISHA DEE","TEXT1002"]
["TEXT1003","AISHA DEE","TEXT1003"]
["TEXT1004","AISHA DEE","TEXT1004"]
["TEXT1005","AISHA DEE","TEXT1005"]
["TEXT1006","AISHA DEE","TEXT1006"]
["TEXT1007","AISHA DEE","TEXT1007"]
["TEXT1008","AISHA DEE","TEXT1008"]
["TEXT1009","AISHA DEE","TEXT1009"]
["TEXT1010","AISHA DEE","TEXT1010"]
["TEXT1011","AISHA DEE","TEXT1011"]
["TEXT1012","AISHA DEE","TEXT1012"]
["TEXT1013","AISHA DEE","TEXT1013"]
["TEXT1014","AISHA DEE","TEXT1014"]
["TEXT1015","AISHA DEE","TEXT1015"]
["TEXT1016","AISHA DEE","TEXT1016"]
["TEXT1017","AISHA DEE","TEXT1017"]
["TEXT1018","AISHA DEE","TEXT1018"]
["TEXT1019","AISHA DEE","TEXT1019"]
["TEXT1020","LILY SULLIVAN","TEXT1020"]
["TEXT1021","LILY SULLIVAN","TEXT1021"]
["TEXT1022","LILY SULLIVAN","TEXT1022"]
["TEXT1023","LILY SULLIVAN","TEXT1023"]
["TEXT1024","LILY SULLIVAN","TEXT1024"]
["TEXT1025","LILY SULLIVAN","TEXT1025"]
[{"$f":"\"TEXT\"&ROW()","v":"TEXT1026"},"LILY SULLIVAN","TEXT1026"]
["TEXT1027","LILY SULLIVAN","TEXT1027"]
["TEXT1028","LILY SULLIVAN","TEXT1028"]
["TEXT1029","LILY SULLIVAN","TEXT1029"]
["TEXT1030","LILY SULLIVAN","TEXT1030"]
["TEXT1031","LILY SULLIVAN","TEXT1031"]
["TEXT1032","KEKE PALMER","TEXT1032"]
["TEXT1033","KEKE PALMER","TEXT1033"]
["TEXT1034","TAYLOR MOMSEN","TEXT1034"]
["TEXT1035","TAYLOR MOMSEN","TEXT1035"]
["TEXT1036","TAYLOR MOMSEN","TEXT1036"]
["TEXT1037","TAYLOR MOMSEN","TEXT1037"]
["TEXT1038","TAYLOR MOMSEN","TEXT1038"]
["TEXT1039","TAYLOR MOMSEN","TEXT1039"]
["TEXT1040","TAYLOR MOMSEN","TEXT1040"]
["TEXT1041","TAYLOR MOMSEN","TEXT1041"]
["TEXT1042","TAYLOR MOMSEN","TEXT1042"]
["TEXT1043","LILI SIMMONS","TEXT1043"]
["TEXT1044","LILI SIMMONS","TEXT1044"]
["TEXT1045","LILI SIMMONS","TEXT1045"]
["TEXT1046","LILI SIMMONS","TEXT1046"]
["TEXT1047","LILI SIMMONS","TEXT1047"]
["TEXT1048","LILI SIMMONS","TEXT1048"]
["TEXT1049","LILI SIMMONS","TEXT1049"]
["TEXT1050","LILI SIMMONS","TEXT1050"]
["TEXT1051","LILI SIMMONS","TEXT1051"]
["TEXT1052","LILI SIMMONS","TEXT1052"]
["TEXT1053","LILI SIMMONS","TEXT1053"]
["TEXT1054","LILI SIMMONS","TEXT1054"]
["TEXT1055","LILI SIMMONS","TEXT1055"]
["TEXT1056","LILI SIMMONS","TEXT1056"]
["TEXT1057","LILI SIMMONS","TEXT1057"]
["TEXT1058","LILI SIMMONS","TEXT1058"]
["TEXT1059","LILI SIMMONS","TEXT1059"]
["TEXT1060","LILI SIMMONS","TEXT1060"]
["TEXT1061","LILI SIMMONS","TEXT1061"]
["TEXT1062","LILI SIMMONS","TEXT1062"]
["TEXT1063","LILI SIMMONS","TEXT1063"]
["TEXT1064","LILI SIMMONS","TEXT1064"]
["TEXT1065","LILI SIMMONS","TEXT1065"]
["TEXT1066","LILI SIMMONS","TEXT1066"]
["TEXT1067","LILI SIMMONS","TEXT1067"]
["TEXT1068","LILI SIMMONS","TEXT1068"]
["TEXT1069","LILI SIMMONS","TEXT1069"]
["TEXT1070","LILI SIMMONS","TEXT1070"]
["TEXT1071","LILI SIMMONS","TEXT1071"]
["TEXT1072","LILI SIMMONS","TEXT1072"]
["TEXT1073","LILI SIMMONS","TEXT1073"]
["TEXT1074","LILI SIMMONS","TEXT1074"]
["TEXT1075","LILI SIMMONS","TEXT1075"]
["TEXT1076","LILI SIMMONS","TEXT1076"]
["TEXT1077","LILI SIMMONS","TEXT1077"]
["TEXT1078","LILI SIMMONS","TEXT1078"]
["TEXT1079","LILI SIMMONS","TEXT1079"]
["TEXT1080","LILI SIMMONS","TEXT1080"]
["TEXT1081","LILI SIMMONS","TEXT1081"]
["TEXT1082","LILI SIMMONS","TEXT1082"]
["TEXT1083","LILI SIMMONS","TEXT1083"]
["TEXT1084","LILI SIMMONS","TEXT1084"]
["TEXT1085","LILI SIMMONS","TEXT1085"]
["TEXT1086","LILI SIMMONS","TEXT1086"]
["TEXT1087","LILI SIMMONS","TEXT1087"]
["TEXT1088","LILI SIMMONS","TEXT1088"]
["TEXT1089","LILI SIMMONS","TEXT1089"]
[{"$f":"\"TEXT\"&ROW()","v":"TEXT1090"},"LILI SIMMONS","TEXT1090"]
["TEXT1091","LILI SIMMONS","TEXT1091"]
["TEXT1092","LILI SIMMONS","TEXT1092"]
["TEXT1093","LILI SIMMONS","TEXT1093"]
["TEXT1094","LILI SIMMONS","TEXT1094"]
["TEXT1095","LILI SIMMONS","TEXT1095"]
["TEXT1096","LILI SIMMONS","TEXT1096"]
["TEXT1097","LILI SIMMONS","TEXT1097"]
["TEXT1098","LILI SIMMONS","TEXT1098"]
["TEXT1099","LILI SIMMONS","TEXT1099"]
["TEXT1100","LILI SIMMONS","TEXT1100"]
["TEXT1101","LILI SIMMONS","TEXT1101"]
["TEXT1102","LILI SIMMONS","TEXT1102"]
["TEXT1103","LILI SIMMONS","TEXT1103"]
["TEXT1104","LILI SIMMONS","TEXT1104"]
["TEXT1105","LILI SIMMONS","TEXT1105"]
["TEXT1106","LILI SIMMONS","TEXT1106"]
["TEXT1107","LILI SIMMONS","TEXT1107"]
["TEXT1108","LILI SIMMONS","TEXT1108"]
["TEXT1109","LILI SIMMONS","TEXT1109"]
["TEXT1110","LILI SIMMONS","TEXT1110"]
["TEXT1111","LILI SIMMONS","TEXT1111"]
["TEXT1112","LILI SIMMONS","TEXT1112"]
["TEXT1113","LILI SIMMONS","TEXT1113"]
["TEXT1114","LILI SIMMONS","TEXT1114"]
["TEXT1115","LILI SIMMONS","TEXT1115"]
["TEXT1116","LILI SIMMONS","TEXT1116"]
["TEXT1117","LILI SIMMONS","TEXT1117"]
["TEXT1118","LILI SIMMONS","TEXT1118"]
["TEXT1119","LILI SIMMONS","TEXT1119"]
["TEXT1120","LILI SIMMONS","TEXT1120"]
["TEXT1121","LILI SIMMONS","TEXT1121"]
["TEXT1122","LILI SIMMONS","TEXT1122"]
["TEXT1123","LILI SIMMONS","TEXT1123"]
["TEXT1124","LILI SIMMONS","TEXT1124"]
["TEXT1125","LILI SIMMONS","TEXT1125"]
["TEXT1126","LILI SIMMONS","TEXT1126"]
["TEXT1127","LILI SIMMONS","TEXT1127"]
["TEXT1128","LUCIANE BUCHANAN","TEXT1128"]
["TEXT1129","ARIANA GRANDE","TEXT1129"]
["TEXT1130","BEANIE FELDSTEIN","TEXT1130"]
["TEXT1131","MAIKA MONROE","TEXT1131"]
["TEXT1132","MAIKA MONROE","TEXT1132"]
["TEXT1133","MAIKA MONROE","TEXT1133"]
["TEXT1134","MAIKA MONROE","TEXT1134"]
["TEXT1135","DEBBY RYAN","TEXT1135"]
["TEXT1136","JODIE COMER","TEXT1136"]
["TEXT1137","JODIE COMER","TEXT1137"]
["TEXT1138","JODIE COMER","TEXT1138"]
["TEXT1139","JODIE COMER","TEXT1139"]
["TEXT1140","JODIE COMER","TEXT1140"]
["TEXT1141","JODIE COMER","TEXT1141"]
["TEXT1142","JODIE COMER","TEXT1142"]
["TEXT1143","JODIE COMER","TEXT1143"]
["TEXT1144","JODIE COMER","TEXT1144"]
["TEXT1145","JODIE COMER","TEXT1145"]
["TEXT1146","JODIE COMER","TEXT1146"]
["TEXT1147","JODIE COMER","TEXT1147"]
["TEXT1148","JODIE COMER","TEXT1148"]
["TEXT1149","JODIE COMER","TEXT1149"]
["TEXT1150","JODIE COMER","TEXT1150"]
["TEXT1151","JODIE COMER","TEXT1151"]
["TEXT1152","JODIE COMER","TEXT1152"]
["TEXT1153","SHIOLI KUTSUNA","TEXT1153"]
[{"$f":"\"TEXT\"&ROW()","v":"TEXT1154"},"SHIOLI KUTSUNA","TEXT1154"]
["TEXT1155","SHIOLI KUTSUNA","TEXT1155"]
["TEXT1156","SHIOLI KUTSUNA","TEXT1156"]
["TEXT1157","LERA ABOVA","TEXT1157"]
["TEXT1158","LERA ABOVA","TEXT1158"]
["TEXT1159","LERA ABOVA","TEXT1159"]
["TEXT1160","LERA ABOVA","TEXT1160"]
["TEXT1161","LERA ABOVA","TEXT1161"]
["TEXT1162","LERA ABOVA","TEXT1162"]
["TEXT1163","LERA ABOVA","TEXT1163"]
["TEXT1164","CARA DELEVINGNE","TEXT1164"]
["TEXT1165","CARA DELEVINGNE","TEXT1165"]
["TEXT1166","CARA DELEVINGNE","TEXT1166"]
["TEXT1167","CARA DELEVINGNE","TEXT1167"]
["TEXT1168","CARA DELEVINGNE","TEXT1168"]
["TEXT1169","CARA DELEVINGNE","TEXT1169"]
["TEXT1170","CARA DELEVINGNE","TEXT1170"]
["TEXT1171","CARA DELEVINGNE","TEXT1171"]
["TEXT1172","CARA DELEVINGNE","TEXT1172"]
["TEXT1173","CARA DELEVINGNE","TEXT1173"]
["TEXT1174","CARA DELEVINGNE","TEXT1174"]
["TEXT1175","CARA DELEVINGNE","TEXT1175"]
["TEXT1176","CARA DELEVINGNE","TEXT1176"]
["TEXT1177","CARA DELEVINGNE","TEXT1177"]
["TEXT1178","CARA DELEVINGNE","TEXT1178"]
["TEXT1179","CARA DELEVINGNE","TEXT1179"]
["TEXT1180","CARA DELEVINGNE","TEXT1180"]
["TEXT1181","CARA DELEVINGNE","TEXT1181"]
["TEXT1182","CARA DELEVINGNE","TEXT1182"]
["TEXT1183","CARA DELEVINGNE","TEXT1183"]
["TEXT1184","SELENA GOMEZ","TEXT1184"]
["TEXT1185","SELENA GOMEZ","TEXT1185"]
["TEXT1186","SELENA GOMEZ","TEXT1186"]
["TEXT1187","SELENA GOMEZ","TEXT1187"]
["TEXT1188","SELENA GOMEZ","TEXT1188"]
["TEXT1189","BILLIE LOURD","TEXT1189"]
["TEXT1190","NIAMH ALGAR","TEXT1190"]
["TEXT1191","NIAMH ALGAR","TEXT1191"]
["TEXT1192","NIAMH ALGAR","TEXT1192"]
["TEXT1193","NIAMH ALGAR","TEXT1193"]
["TEXT1194","NIAMH ALGAR","TEXT1194"]
["TEXT1195","NIAMH ALGAR","TEXT1195"]
["TEXT1196","NIAMH ALGAR","TEXT1196"]
["TEXT1197","NIAMH ALGAR","TEXT1197"]
["TEXT1198","NIAMH ALGAR","TEXT1198"]
["TEXT1199","NIAMH ALGAR","TEXT1199"]
["TEXT1200","NIAMH ALGAR","TEXT1200"]
["TEXT1201","EMMA D'ARCY","TEXT1201"]
["TEXT1202","EMMA D'ARCY","TEXT1202"]
["TEXT1203","JENNETTE MCCURDY","TEXT1203"]
["TEXT1204","ANNA SAWAI","TEXT1204"]
["TEXT1205","ANNA SAWAI","TEXT1205"]
["TEXT1206","OLIVIA CULPO","TEXT1206"]
["TEXT1207","ADRIA ARJONA","TEXT1207"]
["TEXT1208","ADRIA ARJONA","TEXT1208"]
["TEXT1209","ADRIA ARJONA","TEXT1209"]
["TEXT1210","ADRIA ARJONA","TEXT1210"]
["TEXT1211","ADRIA ARJONA","TEXT1211"]
["TEXT1212","ADRIA ARJONA","TEXT1212"]
["TEXT1213","ADRIA ARJONA","TEXT1213"]
["TEXT1214","DAISY RIDLEY","TEXT1214"]
["TEXT1215","DAISY RIDLEY","TEXT1215"]
["TEXT1216","DAISY RIDLEY","TEXT1216"]
["TEXT1217","DAISY RIDLEY","TEXT1217"]
[{"$f":"\"TEXT\"&ROW()","v":"TEXT1218"},"DAISY RIDLEY","TEXT1218"]
["TEXT1219","DAISY RIDLEY","TEXT1219"]
["TEXT1220","ELENA RUSCONI","TEXT1220"]
["TEXT1221","ELENA RUSCONI","TEXT1221"]
["TEXT1222","ELENA RUSCONI","TEXT1222"]
["TEXT1223","ELENA RUSCONI","TEXT1223"]
["TEXT1224","ELENA RUSCONI","TEXT1224"]
["TEXT1225","ELENA RUSCONI","TEXT1225"]
["TEXT1226","ELENA RUSCONI","TEXT1226"]
["TEXT1227","JESS BUSH","TEXT1227"]
["TEXT1228","JESS BUSH","TEXT1228"]
["TEXT1229","ELIZABETH LAIL","TEXT1229"]
["TEXT1230","ELIZABETH LAIL","TEXT1230"]
["TEXT1231","ELIZABETH LAIL","TEXT1231"]
["TEXT1232","ELIZABETH LAIL","TEXT1232"]
["TEXT1233","ELIZABETH LAIL","TEXT1233"]
["TEXT1234","ELIZABETH LAIL","TEXT1234"]
["TEXT1235","ELIZABETH LAIL","TEXT1235"]
["TEXT1236","LEILA GEORGE","TEXT1236"]
["TEXT1237","LEILA GEORGE","TEXT1237"]
["TEXT1238","LEILA GEORGE","TEXT1238"]
["TEXT1239","LEILA GEORGE","TEXT1239"]
["TEXT1240","LEILA GEORGE","TEXT1240"]
["TEXT1241","LEILA GEORGE","TEXT1241"]
["TEXT1242","LEILA GEORGE","TEXT1242"]
["TEXT1243","LEILA GEORGE","TEXT1243"]
["TEXT1244","LEILA GEORGE","TEXT1244"]
["TEXT1245","LEILA GEORGE","TEXT1245"]
["TEXT1246","LEILA GEORGE","TEXT1246"]
["TEXT1247","LEILA GEORGE","TEXT1247"]
["TEXT1248","LEILA GEORGE","TEXT1248"]
["TEXT1249","LEILA GEORGE","TEXT1249"]
["TEXT1250","LEILA GEORGE","TEXT1250"]
["TEXT1251","LEILA GEORGE","TEXT1251"]
["TEXT1252","LEILA GEORGE","TEXT1252"]
["TEXT1253","LEILA GEORGE","TEXT1253"]
["TEXT1254","LEILA GEORGE","TEXT1254"]
["TEXT1255","LEILA GEORGE","TEXT1255"]
["TEXT1256","LEILA GEORGE","TEXT1256"]
["TEXT1257","LEILA GEORGE","TEXT1257"]
["TEXT1258","LEILA GEORGE","TEXT1258"]
["TEXT1259","LEILA GEORGE","TEXT1259"]
["TEXT1260","LEILA GEORGE","TEXT1260"]
["TEXT1261","LEILA GEORGE","TEXT1261"]
["TEXT1262","EMILY OSMENT","TEXT1262"]
["TEXT1263","EMILY OSMENT","TEXT1263"]
["TEXT1264","BEL POWLEY","TEXT1264"]
["TEXT1265","BEL POWLEY","TEXT1265"]
["TEXT1266","BEL POWLEY","TEXT1266"]
["TEXT1267","BEL POWLEY","TEXT1267"]
["TEXT1268","BEL POWLEY","TEXT1268"]
["TEXT1269","BEL POWLEY","TEXT1269"]
["TEXT1270","BEL POWLEY","TEXT1270"]
["TEXT1271","BEL POWLEY","TEXT1271"]
["TEXT1272","BEL POWLEY","TEXT1272"]
["TEXT1273","BEL POWLEY","TEXT1273"]
["TEXT1274","BEL POWLEY","TEXT1274"]
["TEXT1275","BEL POWLEY","TEXT1275"]
["TEXT1276","BEL POWLEY","TEXT1276"]
["TEXT1277","BEL POWLEY","TEXT1277"]
["TEXT1278","BEL POWLEY","TEXT1278"]
["TEXT1279","SAMARA WEAVING","TEXT1279"]
["TEXT1280","SAMARA WEAVING","TEXT1280"]
["TEXT1281","SAMARA WEAVING","TEXT1281"]
[{"$f":"\"TEXT\"&ROW()","v":"TEXT1282"},"SAMARA WEAVING","TEXT1282"]
["TEXT1283","SAMARA WEAVING","TEXT1283"]
["TEXT1284","SAMARA WEAVING","TEXT1284"]
["TEXT1285","SAMARA WEAVING","TEXT1285"]
["TEXT1286","SAMARA WEAVING","TEXT1286"]
["TEXT1287","SAMARA WEAVING","TEXT1287"]
["TEXT1288","SAMARA WEAVING","TEXT1288"]
["TEXT1289","SAMARA WEAVING","TEXT1289"]
["TEXT1290","SAMARA WEAVING","TEXT1290"]
["TEXT1291","SAMARA WEAVING","TEXT1291"]
["TEXT1292","SAMARA WEAVING","TEXT1292"]
["TEXT1293","SAMARA WEAVING","TEXT1293"]
["TEXT1294","SAMARA WEAVING","TEXT1294"]
["TEXT1295","SAMARA WEAVING","TEXT1295"]
["TEXT1296","PAULINA GAITAN","TEXT1296"]
["TEXT1297","PAULINA GAITAN","TEXT1297"]
["TEXT1298","PAULINA GAITAN","TEXT1298"]
["TEXT1299","PAULINA GAITAN","TEXT1299"]
["TEXT1300","PAULINA GAITAN","TEXT1300"]
["TEXT1301","PAULINA GAITAN","TEXT1301"]
["TEXT1302","PAULINA GAITAN","TEXT1302"]
["TEXT1303","PAULINA GAITAN","TEXT1303"]
["TEXT1304","PAULINA GAITAN","TEXT1304"]
["TEXT1305","PAULINA GAITAN","TEXT1305"]
["TEXT1306","PAULINA GAITAN","TEXT1306"]
["TEXT1307","PAULINA GAITAN","TEXT1307"]
["TEXT1308","PAULINA GAITAN","TEXT1308"]
["TEXT1309","PAULINA GAITAN","TEXT1309"]
["TEXT1310","PAULINA GAITAN","TEXT1310"]
["TEXT1311","PAULINA GAITAN","TEXT1311"]
["TEXT1312","PAULINA GAITAN","TEXT1312"]
["TEXT1313","PAULINA GAITAN","TEXT1313"]
["TEXT1314","PAULINA GAITAN","TEXT1314"]
["TEXT1315","PAULINA GAITAN","TEXT1315"]
["TEXT1316","PAULINA GAITAN","TEXT1316"]
["TEXT1317","PAULINA GAITAN","TEXT1317"]
["TEXT1318","PAULINA GAITAN","TEXT1318"]
["TEXT1319","PAULINA GAITAN","TEXT1319"]
["TEXT1320","PAULINA GAITAN","TEXT1320"]
["TEXT1321","PAULINA GAITAN","TEXT1321"]
["TEXT1322","PAULINA GAITAN","TEXT1322"]
["TEXT1323","PAULINA GAITAN","TEXT1323"]
["TEXT1324","PAULINA GAITAN","TEXT1324"]
["TEXT1325","PAULINA GAITAN","TEXT1325"]
["TEXT1326","PAULINA GAITAN","TEXT1326"]
["TEXT1327","PAULINA GAITAN","TEXT1327"]
["TEXT1328","PAULINA GAITAN","TEXT1328"]
["TEXT1329","PAULINA GAITAN","TEXT1329"]
["TEXT1330","PAULINA GAITAN","TEXT1330"]
["TEXT1331","PAULINA GAITAN","TEXT1331"]
["TEXT1332","PAULINA GAITAN","TEXT1332"]
["TEXT1333","PAULINA GAITAN","TEXT1333"]
["TEXT1334","PAULINA GAITAN","TEXT1334"]
["TEXT1335","PAULINA GAITAN","TEXT1335"]
["TEXT1336","PAULINA GAITAN","TEXT1336"]
["TEXT1337","PAULINA GAITAN","TEXT1337"]
["TEXT1338","PAULINA GAITAN","TEXT1338"]
["TEXT1339","PAULINA GAITAN","TEXT1339"]
["TEXT1340","PAULINA GAITAN","TEXT1340"]
["TEXT1341","PAULINA GAITAN","TEXT1341"]
["TEXT1342","PAULINA GAITAN","TEXT1342"]
["TEXT1343","PAULINA GAITAN","TEXT1343"]
["TEXT1344","PAULINA GAITAN","TEXT1344"]
["TEXT1345","PAULINA GAITAN","TEXT1345"]
[{"$f":"\"TEXT\"&ROW()","v":"TEXT1346"},"PAULINA GAITAN","TEXT1346"]
["TEXT1347","PAULINA GAITAN","TEXT1347"]
["TEXT1348","PAULINA GAITAN","TEXT1348"]
["TEXT1349","PAULINA GAITAN","TEXT1349"]
["TEXT1350","PAULINA GAITAN","TEXT1350"]
["TEXT1351","PAULINA GAITAN","TEXT1351"]
["TEXT1352","PAULINA GAITAN","TEXT1352"]
["TEXT1353","PAULINA GAITAN","TEXT1353"]
["TEXT1354","PAULINA GAITAN","TEXT1354"]
["TEXT1355","PAULINA GAITAN","TEXT1355"]
["TEXT1356","PAULINA GAITAN","TEXT1356"]
["TEXT1357","PAULINA GAITAN","TEXT1357"]
["TEXT1358","PAULINA GAITAN","TEXT1358"]
["TEXT1359","PAULINA GAITAN","TEXT1359"]
["TEXT1360","PAULINA GAITAN","TEXT1360"]
["TEXT1361","PAULINA GAITAN","TEXT1361"]
["TEXT1362","PAULINA GAITAN","TEXT1362"]
["TEXT1363","PAULINA GAITAN","TEXT1363"]
["TEXT1364","PAULINA GAITAN","TEXT1364"]
["TEXT1365","PAULINA GAITAN","TEXT1365"]
["TEXT1366","PAULINA GAITAN","TEXT1366"]
["TEXT1367","PAULINA GAITAN","TEXT1367"]
["TEXT1368","PAULINA GAITAN","TEXT1368"]
["TEXT1369","LAYSLA DE OLIVEIRA","TEXT1369"]
["TEXT1370","LAYSLA DE OLIVEIRA","TEXT1370"]
["TEXT1371","LAYSLA DE OLIVEIRA","TEXT1371"]
["TEXT1372","LAYSLA DE OLIVEIRA","TEXT1372"]
["TEXT1373","LAYSLA DE OLIVEIRA","TEXT1373"]
["TEXT1374","LAYSLA DE OLIVEIRA","TEXT1374"]
["TEXT1375","LAYSLA DE OLIVEIRA","TEXT1375"]
["TEXT1376","LAYSLA DE OLIVEIRA","TEXT1376"]
["TEXT1377","LAYSLA DE OLIVEIRA","TEXT1377"]
["TEXT1378","LAYSLA DE OLIVEIRA","TEXT1378"]
["TEXT1379","LAYSLA DE OLIVEIRA","TEXT1379"]
["TEXT1380","LAYSLA DE OLIVEIRA","TEXT1380"]
["TEXT1381","LAYSLA DE OLIVEIRA","TEXT1381"]
["TEXT1382","LAYSLA DE OLIVEIRA","TEXT1382"]
["TEXT1383","LAYSLA DE OLIVEIRA","TEXT1383"]
["TEXT1384","LAYSLA DE OLIVEIRA","TEXT1384"]
["TEXT1385","LAYSLA DE OLIVEIRA","TEXT1385"]
["TEXT1386","LAYSLA DE OLIVEIRA","TEXT1386"]
["TEXT1387","LAYSLA DE OLIVEIRA","TEXT1387"]
["TEXT1388","SHAILENE WOODLEY","TEXT1388"]
["TEXT1389","SHAILENE WOODLEY","TEXT1389"]
["TEXT1390","SHAILENE WOODLEY","TEXT1390"]
["TEXT1391","SHAILENE WOODLEY","TEXT1391"]
["TEXT1392","SHAILENE WOODLEY","TEXT1392"]
["TEXT1393","SHAILENE WOODLEY","TEXT1393"]
["TEXT1394","SHAILENE WOODLEY","TEXT1394"]
["TEXT1395","SHAILENE WOODLEY","TEXT1395"]
["TEXT1396","SHAILENE WOODLEY","TEXT1396"]
["TEXT1397","SHAILENE WOODLEY","TEXT1397"]
["TEXT1398","SHAILENE WOODLEY","TEXT1398"]
["TEXT1399","SHAILENE WOODLEY","TEXT1399"]
["TEXT1400","SHAILENE WOODLEY","TEXT1400"]
["TEXT1401","SHAILENE WOODLEY","TEXT1401"]
["TEXT1402","SHAILENE WOODLEY","TEXT1402"]
["TEXT1403","SHAILENE WOODLEY","TEXT1403"]
["TEXT1404","SHAILENE WOODLEY","TEXT1404"]
["TEXT1405","SHAILENE WOODLEY","TEXT1405"]
["TEXT1406","SHAILENE WOODLEY","TEXT1406"]
["TEXT1407","SHAILENE WOODLEY","TEXT1407"]
["TEXT1408","SHAILENE WOODLEY","TEXT1408"]
["TEXT1409","SHAILENE WOODLEY","TEXT1409"]
[{"$f":"\"TEXT\"&ROW()","v":"TEXT1410"},"SHAILENE WOODLEY","TEXT1410"]
["TEXT1411","SHAILENE WOODLEY","TEXT1411"]
["TEXT1412","SHAILENE WOODLEY","TEXT1412"]
["TEXT1413","SHAILENE WOODLEY","TEXT1413"]
["TEXT1414","SHAILENE WOODLEY","TEXT1414"]
["TEXT1415","SHAILENE WOODLEY","TEXT1415"]
["TEXT1416","SHAILENE WOODLEY","TEXT1416"]
["TEXT1417","SHAILENE WOODLEY","TEXT1417"]
["TEXT1418","SHAILENE WOODLEY","TEXT1418"]
["TEXT1419","SHAILENE WOODLEY","TEXT1419"]
["TEXT1420","SHAILENE WOODLEY","TEXT1420"]
["TEXT1421","SHAILENE WOODLEY","TEXT1421"]
["TEXT1422","SHAILENE WOODLEY","TEXT1422"]
["TEXT1423","SHAILENE WOODLEY","TEXT1423"]
["TEXT1424","SHAILENE WOODLEY","TEXT1424"]
["TEXT1425","SHAILENE WOODLEY","TEXT1425"]
["TEXT1426","SHAILENE WOODLEY","TEXT1426"]
["TEXT1427","SHAILENE WOODLEY","TEXT1427"]
["TEXT1428","SHAILENE WOODLEY","TEXT1428"]
["TEXT1429","SHAILENE WOODLEY","TEXT1429"]
["TEXT1430","SHAILENE WOODLEY","TEXT1430"]
["TEXT1431","SHAILENE WOODLEY","TEXT1431"]
["TEXT1432","SHAILENE WOODLEY","TEXT1432"]
["TEXT1433","SHAILENE WOODLEY","TEXT1433"]
["TEXT1434","EMILY BARBER","TEXT1434"]
["TEXT1435","EMILY BARBER","TEXT1435"]
["TEXT1436","EMILY BARBER","TEXT1436"]
["TEXT1437","EMILY BARBER","TEXT1437"]
["TEXT1438","SABRINA BARTLETT","TEXT1438"]
["TEXT1439","SABRINA BARTLETT","TEXT1439"]
["TEXT1440","KELSEY ASBILLE","TEXT1440"]
["TEXT1441","KELSEY ASBILLE","TEXT1441"]
["TEXT1442","KELSEY ASBILLE","TEXT1442"]
["TEXT1443","KELSEY ASBILLE","TEXT1443"]
["TEXT1444","KELSEY ASBILLE","TEXT1444"]
["TEXT1445","KELSEY ASBILLE","TEXT1445"]
["TEXT1446","KELSEY ASBILLE","TEXT1446"]
["TEXT1447","KELSEY ASBILLE","TEXT1447"]
["TEXT1448","KELSEY ASBILLE","TEXT1448"]
["TEXT1449","NAOMI ACKIE","TEXT1449"]
["TEXT1450","NAOMI ACKIE","TEXT1450"]
["TEXT1451","EVE HEWSON","TEXT1451"]
["TEXT1452","ADDISON TIMLIN","TEXT1452"]
["TEXT1453","ADDISON TIMLIN","TEXT1453"]
["TEXT1454","ADDISON TIMLIN","TEXT1454"]
["TEXT1455","ADDISON TIMLIN","TEXT1455"]
["TEXT1456","ADDISON TIMLIN","TEXT1456"]
["TEXT1457","ADDISON TIMLIN","TEXT1457"]
["TEXT1458","ADDISON TIMLIN","TEXT1458"]
["TEXT1459","ADDISON TIMLIN","TEXT1459"]
["TEXT1460","ADDISON TIMLIN","TEXT1460"]
["TEXT1461","ADDISON TIMLIN","TEXT1461"]
["TEXT1462","ADDISON TIMLIN","TEXT1462"]
["TEXT1463","ADDISON TIMLIN","TEXT1463"]
["TEXT1464","ADDISON TIMLIN","TEXT1464"]
["TEXT1465","ADDISON TIMLIN","TEXT1465"]
["TEXT1466","ADDISON TIMLIN","TEXT1466"]
["TEXT1467","ADDISON TIMLIN","TEXT1467"]
["TEXT1468","ADDISON TIMLIN","TEXT1468"]
["TEXT1469","ADDISON TIMLIN","TEXT1469"]
["TEXT1470","ADDISON TIMLIN","TEXT1470"]
["TEXT1471","ADDISON TIMLIN","TEXT1471"]
["TEXT1472","ADDISON TIMLIN","TEXT1472"]
["TEXT1473","ADDISON TIMLIN","TEXT1473"]
[{"$f":"\"TEXT\"&ROW()","v":"TEXT1474"},"ADDISON TIMLIN","TEXT1474"]
["TEXT1475","ADDISON TIMLIN","TEXT1475"]
["TEXT1476","ADDISON TIMLIN","TEXT1476"]
["TEXT1477","ADDISON TIMLIN","TEXT1477"]
["TEXT1478","ADDISON TIMLIN","TEXT1478"]
["TEXT1479","ADDISON TIMLIN","TEXT1479"]
["TEXT1480","ADDISON TIMLIN","TEXT1480"]
["TEXT1481","ADDISON TIMLIN","TEXT1481"]
["TEXT1482","ADDISON TIMLIN","TEXT1482"]
["TEXT1483","ADDISON TIMLIN","TEXT1483"]
["TEXT1484","ADDISON TIMLIN","TEXT1484"]
["TEXT1485","ADDISON TIMLIN","TEXT1485"]
["TEXT1486","ADDISON TIMLIN","TEXT1486"]
["TEXT1487","SARAH RAMOS","TEXT1487"]
["TEXT1488","SARAH RAMOS","TEXT1488"]
["TEXT1489","SARAH RAMOS","TEXT1489"]
["TEXT1490","SARAH RAMOS","TEXT1490"]
["TEXT1491","EMMA ROBERTS","TEXT1491"]
["TEXT1492","EMMA ROBERTS","TEXT1492"]
["TEXT1493","EMMA ROBERTS","TEXT1493"]
["TEXT1494","EMMA ROBERTS","TEXT1494"]
["TEXT1495","EMMA ROBERTS","TEXT1495"]
["TEXT1496","ARIANA DEBOSE","TEXT1496"]
["TEXT1497","ARIANA DEBOSE","TEXT1497"]
["TEXT1498","ARIANA DEBOSE","TEXT1498"]
["TEXT1499","WILLA FITZGERALD","TEXT1499"]
["TEXT1500","WILLA FITZGERALD","TEXT1500"]
["TEXT1501","WILLA FITZGERALD","TEXT1501"]
["TEXT1502","WILLA FITZGERALD","TEXT1502"]
["TEXT1503","WILLA FITZGERALD","TEXT1503"]
["TEXT1504","WILLA FITZGERALD","TEXT1504"]
["TEXT1505","WILLA FITZGERALD","TEXT1505"]
["TEXT1506","WILLA FITZGERALD","TEXT1506"]
["TEXT1507","WILLA FITZGERALD","TEXT1507"]
["TEXT1508","TEYANA TAYLOR","TEXT1508"]
["TEXT1509","TEYANA TAYLOR","TEXT1509"]
["TEXT1510","SARAH HYLAND","TEXT1510"]
["TEXT1511","SARAH HYLAND","TEXT1511"]
["TEXT1512","SARAH HYLAND","TEXT1512"]
["TEXT1513","ALLISON SCAGLIOTTI","TEXT1513"]
["TEXT1514","ALLISON SCAGLIOTTI","TEXT1514"]
["TEXT1515","ALLISON SCAGLIOTTI","TEXT1515"]
["TEXT1516","ALLISON SCAGLIOTTI","TEXT1516"]
["TEXT1517","MEGAN STALTER","TEXT1517"]
["TEXT1518","DIANNE DOAN","TEXT1518"]
["TEXT1519","DIANNE DOAN","TEXT1519"]
["TEXT1520","DIANNE DOAN","TEXT1520"]
["TEXT1521","DIANNE DOAN","TEXT1521"]
["TEXT1522","DIANNE DOAN","TEXT1522"]
["TEXT1523","DIANNE DOAN","TEXT1523"]
["TEXT1524","DIANNE DOAN","TEXT1524"]
["TEXT1525","DIANNE DOAN","TEXT1525"]
["TEXT1526","ELIZABETH DEBICKI","TEXT1526"]
["TEXT1527","ELIZABETH DEBICKI","TEXT1527"]
["TEXT1528","ELIZABETH DEBICKI","TEXT1528"]
["TEXT1529","ELIZABETH DEBICKI","TEXT1529"]
["TEXT1530","ELIZABETH DEBICKI","TEXT1530"]
["TEXT1531","ELIZABETH DEBICKI","TEXT1531"]
["TEXT1532","ELIZABETH DEBICKI","TEXT1532"]
["TEXT1533","ELIZABETH DEBICKI","TEXT1533"]
["TEXT1534","ELIZABETH DEBICKI","TEXT1534"]
["TEXT1535","ELIZABETH DEBICKI","TEXT1535"]
["TEXT1536","ELIZABETH DEBICKI","TEXT1536"]
["TEXT1537","ELIZABETH DEBICKI","TEXT1537"]
[{"$f":"\"TEXT\"&ROW()","v":"TEXT1538"},"ELIZABETH DEBICKI","TEXT1538"]
["TEXT1539","ELIZABETH DEBICKI","TEXT1539"]
["TEXT1540","ELIZABETH DEBICKI","TEXT1540"]
["TEXT1541","ELIZABETH DEBICKI","TEXT1541"]
["TEXT1542","ELIZABETH DEBICKI","TEXT1542"]
["TEXT1543","ELIZABETH DEBICKI","TEXT1543"]
["TEXT1544","ELIZABETH DEBICKI","TEXT1544"]
["TEXT1545","ELIZABETH DEBICKI","TEXT1545"]
["TEXT1546","ELIZABETH DEBICKI","TEXT1546"]
["TEXT1547","ELIZABETH DEBICKI","TEXT1547"]
["TEXT1548","ELIZABETH DEBICKI","TEXT1548"]
["TEXT1549","ELIZABETH DEBICKI","TEXT1549"]
["TEXT1550","ELIZABETH DEBICKI","TEXT1550"]
["TEXT1551","ELIZABETH DEBICKI","TEXT1551"]
["TEXT1552","ELIZABETH DEBICKI","TEXT1552"]
["TEXT1553","ELIZABETH DEBICKI","TEXT1553"]
["TEXT1554","ELIZABETH DEBICKI","TEXT1554"]
["TEXT1555","ELIZABETH DEBICKI","TEXT1555"]
["TEXT1556","ELIZABETH DEBICKI","TEXT1556"]
["TEXT1557","ELIZABETH DEBICKI","TEXT1557"]
["TEXT1558","ELIZABETH DEBICKI","TEXT1558"]
["TEXT1559","ELIZABETH DEBICKI","TEXT1559"]
["TEXT1560","ELIZABETH DEBICKI","TEXT1560"]
["TEXT1561","ELIZABETH DEBICKI","TEXT1561"]
["TEXT1562","ELIZABETH DEBICKI","TEXT1562"]
["TEXT1563","ELIZABETH DEBICKI","TEXT1563"]
["TEXT1564","ELIZABETH DEBICKI","TEXT1564"]
["TEXT1565","ELIZABETH DEBICKI","TEXT1565"]
["TEXT1566","ELIZABETH DEBICKI","TEXT1566"]
["TEXT1567","ELIZABETH DEBICKI","TEXT1567"]
["TEXT1568","ELIZABETH DEBICKI","TEXT1568"]
["TEXT1569","ELIZABETH DEBICKI","TEXT1569"]
["TEXT1570","ELIZABETH DEBICKI","TEXT1570"]
["TEXT1571","ELIZABETH DEBICKI","TEXT1571"]
["TEXT1572","ELIZABETH DEBICKI","TEXT1572"]
["TEXT1573","ELIZABETH DEBICKI","TEXT1573"]
["TEXT1574","ELIZABETH DEBICKI","TEXT1574"]
["TEXT1575","ELIZABETH DEBICKI","TEXT1575"]
["TEXT1576","ELIZABETH DEBICKI","TEXT1576"]
["TEXT1577","ELIZABETH DEBICKI","TEXT1577"]
["TEXT1578","ELIZABETH DEBICKI","TEXT1578"]
["TEXT1579","ELIZABETH DEBICKI","TEXT1579"]
["TEXT1580","JENNIFER LAWRENCE","TEXT1580"]
["TEXT1581","JENNIFER LAWRENCE","TEXT1581"]
["TEXT1582","JENNIFER LAWRENCE","TEXT1582"]
["TEXT1583","JENNIFER LAWRENCE","TEXT1583"]
["TEXT1584","JENNIFER LAWRENCE","TEXT1584"]
["TEXT1585","JENNIFER LAWRENCE","TEXT1585"]
["TEXT1586","JENNIFER LAWRENCE","TEXT1586"]
["TEXT1587","JENNIFER LAWRENCE","TEXT1587"]
["TEXT1588","JENNIFER LAWRENCE","TEXT1588"]
["TEXT1589","JENNIFER LAWRENCE","TEXT1589"]
["TEXT1590","JENNIFER LAWRENCE","TEXT1590"]
["TEXT1591","JENNIFER LAWRENCE","TEXT1591"]
["TEXT1592","JENNIFER LAWRENCE","TEXT1592"]
["TEXT1593","JENNIFER LAWRENCE","TEXT1593"]
["TEXT1594","JENNIFER LAWRENCE","TEXT1594"]
["TEXT1595","JENNIFER LAWRENCE","TEXT1595"]
["TEXT1596","JENNIFER LAWRENCE","TEXT1596"]
["TEXT1597","JENNIFER LAWRENCE","TEXT1597"]
["TEXT1598","JENNIFER LAWRENCE","TEXT1598"]
["TEXT1599","JENNIFER LAWRENCE","TEXT1599"]
["TEXT1600","JENNIFER LAWRENCE","TEXT1600"]
["TEXT1601","JENNIFER LAWRENCE","TEXT1601"]
[{"$f":"\"TEXT\"&ROW()","v":"TEXT1602"},"JENNIFER LAWRENCE","TEXT1602"]
["TEXT1603","JENNIFER LAWRENCE","TEXT1603"]
["TEXT1604","JENNIFER LAWRENCE","TEXT1604"]
["TEXT1605","JENNIFER LAWRENCE","TEXT1605"]
["TEXT1606","JENNIFER LAWRENCE","TEXT1606"]
["TEXT1607","JENNIFER LAWRENCE","TEXT1607"]
["TEXT1608","JENNIFER LAWRENCE","TEXT1608"]
["TEXT1609","JENNIFER LAWRENCE","TEXT1609"]
["TEXT1610","JENNIFER LAWRENCE","TEXT1610"]
["TEXT1611","JENNIFER LAWRENCE","TEXT1611"]
["TEXT1612","JENNIFER LAWRENCE","TEXT1612"]
["TEXT1613","JENNIFER LAWRENCE","TEXT1613"]
["TEXT1614","JENNIFER LAWRENCE","TEXT1614"]
["TEXT1615","JENNIFER LAWRENCE","TEXT1615"]
["TEXT1616","JENNIFER LAWRENCE","TEXT1616"]
["TEXT1617","JENNIFER LAWRENCE","TEXT1617"]
["TEXT1618","JENNIFER LAWRENCE","TEXT1618"]
["TEXT1619","JENNIFER LAWRENCE","TEXT1619"]
["TEXT1620","JENNIFER LAWRENCE","TEXT1620"]
["TEXT1621","JENNIFER LAWRENCE","TEXT1621"]
["TEXT1622","JENNIFER LAWRENCE","TEXT1622"]
["TEXT1623","JENNIFER LAWRENCE","TEXT1623"]
["TEXT1624","JENNIFER LAWRENCE","TEXT1624"]
["TEXT1625","JENNIFER LAWRENCE","TEXT1625"]
["TEXT1626","JENNIFER LAWRENCE","TEXT1626"]
["TEXT1627","JENNIFER LAWRENCE","TEXT1627"]
["TEXT1628","JENNIFER LAWRENCE","TEXT1628"]
["TEXT1629","JENNIFER LAWRENCE","TEXT1629"]
["TEXT1630","RACHEL BROSNAHAN","TEXT1630"]
["TEXT1631","RACHEL BROSNAHAN","TEXT1631"]
["TEXT1632","RACHEL BROSNAHAN","TEXT1632"]
["TEXT1633","RACHEL BROSNAHAN","TEXT1633"]
["TEXT1634","RACHEL BROSNAHAN","TEXT1634"]
["TEXT1635","RACHEL BROSNAHAN","TEXT1635"]
["TEXT1636","RACHEL BROSNAHAN","TEXT1636"]
["TEXT1637","RACHEL BROSNAHAN","TEXT1637"]
["TEXT1638","RACHEL BROSNAHAN","TEXT1638"]
["TEXT1639","RACHEL BROSNAHAN","TEXT1639"]
["TEXT1640","RACHEL BROSNAHAN","TEXT1640"]
["TEXT1641","RACHEL BROSNAHAN","TEXT1641"]
["TEXT1642","RACHEL BROSNAHAN","TEXT1642"]
["TEXT1643","RACHEL BROSNAHAN","TEXT1643"]
["TEXT1644","RACHEL BROSNAHAN","TEXT1644"]
["TEXT1645","RACHEL BROSNAHAN","TEXT1645"]
["TEXT1646","RACHEL BROSNAHAN","TEXT1646"]
["TEXT1647","RACHEL BROSNAHAN","TEXT1647"]
["TEXT1648","RACHEL BROSNAHAN","TEXT1648"]
["TEXT1649","RACHEL BROSNAHAN","TEXT1649"]
["TEXT1650","RACHEL BROSNAHAN","TEXT1650"]
["TEXT1651","RACHEL BROSNAHAN","TEXT1651"]
["TEXT1652","RACHEL BROSNAHAN","TEXT1652"]
["TEXT1653","RACHEL BROSNAHAN","TEXT1653"]
["TEXT1654","RACHEL BROSNAHAN","TEXT1654"]
["TEXT1655","RACHEL BROSNAHAN","TEXT1655"]
["TEXT1656","RACHEL BROSNAHAN","TEXT1656"]
["TEXT1657","RACHEL BROSNAHAN","TEXT1657"]
["TEXT1658","RACHEL BROSNAHAN","TEXT1658"]
["TEXT1659","RACHEL BROSNAHAN","TEXT1659"]
["TEXT1660","RACHEL BROSNAHAN","TEXT1660"]
["TEXT1661","RACHEL BROSNAHAN","TEXT1661"]
["TEXT1662","RACHEL BROSNAHAN","TEXT1662"]
["TEXT1663","RACHEL BROSNAHAN","TEXT1663"]
["TEXT1664","RACHEL BROSNAHAN","TEXT1664"]
["TEXT1665","MELISSA BARRERA","TEXT1665"]
[{"$f":"\"TEXT\"&ROW()","v":"TEXT1666"},"MELISSA BARRERA","TEXT1666"]
["TEXT1667","MELISSA BARRERA","TEXT1667"]
["TEXT1668","MELISSA BARRERA","TEXT1668"]
["TEXT1669","MELISSA BARRERA","TEXT1669"]
["TEXT1670","MELISSA BARRERA","TEXT1670"]
["TEXT1671","MELISSA BARRERA","TEXT1671"]
["TEXT1672","MELISSA BARRERA","TEXT1672"]
["TEXT1673","MELISSA BARRERA","TEXT1673"]
["TEXT1674","MELISSA BARRERA","TEXT1674"]
["TEXT1675","MELISSA BARRERA","TEXT1675"]
["TEXT1676","MELISSA BARRERA","TEXT1676"]
["TEXT1677","MELISSA BARRERA","TEXT1677"]
["TEXT1678","MELISSA BARRERA","TEXT1678"]
["TEXT1679","MELISSA BARRERA","TEXT1679"]
["TEXT1680","MELISSA BARRERA","TEXT1680"]
["TEXT1681","MELISSA BARRERA","TEXT1681"]
["TEXT1682","MELISSA BARRERA","TEXT1682"]
["TEXT1683","MELISSA BARRERA","TEXT1683"]
["TEXT1684","MELISSA BARRERA","TEXT1684"]
["TEXT1685","MELISSA BARRERA","TEXT1685"]
["TEXT1686","MELISSA BARRERA","TEXT1686"]
["TEXT1687","MELISSA BARRERA","TEXT1687"]
["TEXT1688","MELISSA BARRERA","TEXT1688"]
["TEXT1689","MELISSA BARRERA","TEXT1689"]
["TEXT1690","MELISSA BARRERA","TEXT1690"]
["TEXT1691","MELISSA BARRERA","TEXT1691"]
["TEXT1692","MELISSA BARRERA","TEXT1692"]
["TEXT1693","MELISSA BARRERA","TEXT1693"]
["TEXT1694","MELISSA BARRERA","TEXT1694"]
["TEXT1695","MELISSA BARRERA","TEXT1695"]
["TEXT1696","MELISSA BARRERA","TEXT1696"]
["TEXT1697","MELISSA BARRERA","TEXT1697"]
["TEXT1698","MELISSA BARRERA","TEXT1698"]
["TEXT1699","MELISSA BARRERA","TEXT1699"]
["TEXT1700","MELISSA BARRERA","TEXT1700"]
["TEXT1701","MELISSA BARRERA","TEXT1701"]
["TEXT1702","MELISSA BARRERA","TEXT1702"]
["TEXT1703","MELISSA BARRERA","TEXT1703"]
["TEXT1704","MELISSA BARRERA","TEXT1704"]
["TEXT1705","MELISSA BARRERA","TEXT1705"]
["TEXT1706","MELISSA BARRERA","TEXT1706"]
["TEXT1707","MELISSA BARRERA","TEXT1707"]
["TEXT1708","MELISSA BARRERA","TEXT1708"]
["TEXT1709","MARGOT ROBBIE","TEXT1709"]
["TEXT1710","MARGOT ROBBIE","TEXT1710"]
["TEXT1711","MARGOT ROBBIE","TEXT1711"]
["TEXT1712","MARGOT ROBBIE","TEXT1712"]
["TEXT1713","MARGOT ROBBIE","TEXT1713"]
["TEXT1714","MARGOT ROBBIE","TEXT1714"]
["TEXT1715","MARGOT ROBBIE","TEXT1715"]
["TEXT1716","MARGOT ROBBIE","TEXT1716"]
["TEXT1717","MARGOT ROBBIE","TEXT1717"]
["TEXT1718","MARGOT ROBBIE","TEXT1718"]
["TEXT1719","MARGOT ROBBIE","TEXT1719"]
["TEXT1720","MARGOT ROBBIE","TEXT1720"]
["TEXT1721","MARGOT ROBBIE","TEXT1721"]
["TEXT1722","MARGOT ROBBIE","TEXT1722"]
["TEXT1723","MARGOT ROBBIE","TEXT1723"]
["TEXT1724","MARGOT ROBBIE","TEXT1724"]
["TEXT1725","MARGOT ROBBIE","TEXT1725"]
["TEXT1726","MARGOT ROBBIE","TEXT1726"]
["TEXT1727","MARGOT ROBBIE","TEXT1727"]
["TEXT1728","MARGOT ROBBIE","TEXT1728"]
["TEXT1729","MARGOT ROBBIE","TEXT1729"]
[{"$f":"\"TEXT\"&ROW()","v":"TEXT1730"},"MARGOT ROBBIE","TEXT1730"]
["TEXT1731","MARGOT ROBBIE","TEXT1731"]
["TEXT1732","MARGOT ROBBIE","TEXT1732"]
["TEXT1733","MARGOT ROBBIE","TEXT1733"]
["TEXT1734","BRITT ROBERTSON","TEXT1734"]
["TEXT1735","BRITT ROBERTSON","TEXT1735"]
["TEXT1736","BRITT ROBERTSON","TEXT1736"]
["TEXT1737","BRITT ROBERTSON","TEXT1737"]
["TEXT1738","BRITT ROBERTSON","TEXT1738"]
["TEXT1739","BRITT ROBERTSON","TEXT1739"]
["TEXT1740","BRITT ROBERTSON","TEXT1740"]
["TEXT1741","BRITT ROBERTSON","TEXT1741"]
["TEXT1742","BRITT ROBERTSON","TEXT1742"]
["TEXT1743","KRISTEN STEWART","TEXT1743"]
["TEXT1744","KRISTEN STEWART","TEXT1744"]
["TEXT1745","KRISTEN STEWART","TEXT1745"]
["TEXT1746","KRISTEN STEWART","TEXT1746"]
["TEXT1747","KRISTEN STEWART","TEXT1747"]
["TEXT1748","KRISTEN STEWART","TEXT1748"]
["TEXT1749","KRISTEN STEWART","TEXT1749"]
["TEXT1750","KRISTEN STEWART","TEXT1750"]
["TEXT1751","KRISTEN STEWART","TEXT1751"]
["TEXT1752","KRISTEN STEWART","TEXT1752"]
["TEXT1753","KRISTEN STEWART","TEXT1753"]
["TEXT1754","KRISTEN STEWART","TEXT1754"]
["TEXT1755","KRISTEN STEWART","TEXT1755"]
["TEXT1756","KRISTEN STEWART","TEXT1756"]
["TEXT1757","KRISTEN STEWART","TEXT1757"]
["TEXT1758","KRISTEN STEWART","TEXT1758"]
["TEXT1759","KRISTEN STEWART","TEXT1759"]
["TEXT1760","KRISTEN STEWART","TEXT1760"]
["TEXT1761","KRISTEN STEWART","TEXT1761"]
["TEXT1762","KRISTEN STEWART","TEXT1762"]
["TEXT1763","KRISTEN STEWART","TEXT1763"]
["TEXT1764","KRISTEN STEWART","TEXT1764"]
["TEXT1765","KRISTEN STEWART","TEXT1765"]
["TEXT1766","KRISTEN STEWART","TEXT1766"]
["TEXT1767","KRISTEN STEWART","TEXT1767"]
["TEXT1768","KRISTEN STEWART","TEXT1768"]
["TEXT1769","KRISTEN STEWART","TEXT1769"]
["TEXT1770","KRISTEN STEWART","TEXT1770"]
["TEXT1771","KRISTEN STEWART","TEXT1771"]
["TEXT1772","KRISTEN STEWART","TEXT1772"]
["TEXT1773","KRISTEN STEWART","TEXT1773"]
["TEXT1774","KRISTEN STEWART","TEXT1774"]
["TEXT1775","KRISTEN STEWART","TEXT1775"]
["TEXT1776","KRISTEN STEWART","TEXT1776"]
["TEXT1777","KRISTEN STEWART","TEXT1777"]
["TEXT1778","KRISTEN STEWART","TEXT1778"]
["TEXT1779","KRISTEN STEWART","TEXT1779"]
["TEXT1780","KRISTEN STEWART","TEXT1780"]
["TEXT1781","KRISTEN STEWART","TEXT1781"]
["TEXT1782","KRISTEN STEWART","TEXT1782"]
["TEXT1783","KRISTEN STEWART","TEXT1783"]
["TEXT1784","KRISTEN STEWART","TEXT1784"]
["TEXT1785","KRISTEN STEWART","TEXT1785"]
["TEXT1786","KRISTEN STEWART","TEXT1786"]
["TEXT1787","KRISTEN STEWART","TEXT1787"]
["TEXT1788","KRISTEN STEWART","TEXT1788"]
["TEXT1789","KRISTEN STEWART","TEXT1789"]
["TEXT1790","KRISTEN STEWART","TEXT1790"]
["TEXT1791","KRISTEN STEWART","TEXT1791"]
["TEXT1792","KRISTEN STEWART","TEXT1792"]
["TEXT1793","KRISTEN STEWART","TEXT1793"]
[{"$f":"\"TEXT\"&ROW()","v":"TEXT1794"},"KRISTEN STEWART","TEXT1794"]
["TEXT1795","KRISTEN STEWART","TEXT1795"]
["TEXT1796","KRISTEN STEWART","TEXT1796"]
["TEXT1797","KRISTEN STEWART","TEXT1797"]
["TEXT1798","KRISTEN STEWART","TEXT1798"]
["TEXT1799","KRISTEN STEWART","TEXT1799"]
["TEXT1800","HASSIE HARRISON","TEXT1800"]
["TEXT1801","JULIA FOX","TEXT1801"]
["TEXT1802","JULIA FOX","TEXT1802"]
["TEXT1803","JULIA FOX","TEXT1803"]
["TEXT1804","JULIA FOX","TEXT1804"]
["TEXT1805","JULIA FOX","TEXT1805"]
["TEXT1806","JULIA FOX","TEXT1806"]
["TEXT1807","JULIA FOX","TEXT1807"]
["TEXT1808","JULIA FOX","TEXT1808"]
["TEXT1809","JULIA FOX","TEXT1809"]
["TEXT1810","JULIA FOX","TEXT1810"]
["TEXT1811","JULIA FOX","TEXT1811"]
["TEXT1812","JULIA FOX","TEXT1812"]
["TEXT1813","JULIA FOX","TEXT1813"]
["TEXT1814","JULIA FOX","TEXT1814"]
["TEXT1815","NATALIE PALAMIDES","TEXT1815"]
["TEXT1816","NATALIE PALAMIDES","TEXT1816"]
["TEXT1817","NATALIE PALAMIDES","TEXT1817"]
["TEXT1818","NATALIE PALAMIDES","TEXT1818"]
["TEXT1819","NATALIE PALAMIDES","TEXT1819"]
["TEXT1820","NATALIE PALAMIDES","TEXT1820"]
["TEXT1821","NATALIE PALAMIDES","TEXT1821"]
["TEXT1822","NATALIE PALAMIDES","TEXT1822"]
["TEXT1823","NATALIE PALAMIDES","TEXT1823"]
["TEXT1824","NATALIE PALAMIDES","TEXT1824"]
["TEXT1825","NATALIE PALAMIDES","TEXT1825"]
["TEXT1826","JESSIE BUCKLEY","TEXT1826"]
["TEXT1827","JESSIE BUCKLEY","TEXT1827"]
["TEXT1828","JESSIE BUCKLEY","TEXT1828"]
["TEXT1829","JESSIE BUCKLEY","TEXT1829"]
["TEXT1830","JESSIE BUCKLEY","TEXT1830"]
["TEXT1831","JESSIE BUCKLEY","TEXT1831"]
["TEXT1832","JESSIE BUCKLEY","TEXT1832"]
["TEXT1833","JESSIE BUCKLEY","TEXT1833"]
["TEXT1834","JESSIE BUCKLEY","TEXT1834"]
["TEXT1835","JESSIE BUCKLEY","TEXT1835"]
["TEXT1836","MIA WASIKOWSKA","TEXT1836"]
["TEXT1837","MIA WASIKOWSKA","TEXT1837"]
["TEXT1838","MIA WASIKOWSKA","TEXT1838"]
["TEXT1839","MIA WASIKOWSKA","TEXT1839"]
["TEXT1840","MIA WASIKOWSKA","TEXT1840"]
["TEXT1841","MIA WASIKOWSKA","TEXT1841"]
["TEXT1842","MIA WASIKOWSKA","TEXT1842"]
["TEXT1843","MIA WASIKOWSKA","TEXT1843"]
["TEXT1844","MIA WASIKOWSKA","TEXT1844"]
["TEXT1845","MIA WASIKOWSKA","TEXT1845"]
["TEXT1846","MIA WASIKOWSKA","TEXT1846"]
["TEXT1847","MIA WASIKOWSKA","TEXT1847"]
["TEXT1848","MIA WASIKOWSKA","TEXT1848"]
["TEXT1849","MIA WASIKOWSKA","TEXT1849"]
["TEXT1850","MIA WASIKOWSKA","TEXT1850"]
["TEXT1851","MIA WASIKOWSKA","TEXT1851"]
["TEXT1852","MIA WASIKOWSKA","TEXT1852"]
["TEXT1853","MIA WASIKOWSKA","TEXT1853"]
["TEXT1854","MIA WASIKOWSKA","TEXT1854"]
["TEXT1855","MIA WASIKOWSKA","TEXT1855"]
["TEXT1856","MIA WASIKOWSKA","TEXT1856"]
["TEXT1857","MIA WASIKOWSKA","TEXT1857"]
[{"$f":"\"TEXT\"&ROW()","v":"TEXT1858"},"MIA WASIKOWSKA","TEXT1858"]
["TEXT1859","MIA WASIKOWSKA","TEXT1859"]
["TEXT1860","MIA WASIKOWSKA","TEXT1860"]
["TEXT1861","MIA WASIKOWSKA","TEXT1861"]
["TEXT1862","MIA WASIKOWSKA","TEXT1862"]
["TEXT1863","MIA WASIKOWSKA","TEXT1863"]
["TEXT1864","DAKOTA JOHNSON","TEXT1864"]
["TEXT1865","DAKOTA JOHNSON","TEXT1865"]
["TEXT1866","DAKOTA JOHNSON","TEXT1866"]
["TEXT1867","DAKOTA JOHNSON","TEXT1867"]
["TEXT1868","DAKOTA JOHNSON","TEXT1868"]
["TEXT1869","DAKOTA JOHNSON","TEXT1869"]
["TEXT1870","DAKOTA JOHNSON","TEXT1870"]
["TEXT1871","DAKOTA JOHNSON","TEXT1871"]
["TEXT1872","DAKOTA JOHNSON","TEXT1872"]
["TEXT1873","DAKOTA JOHNSON","TEXT1873"]
["TEXT1874","DAKOTA JOHNSON","TEXT1874"]
["TEXT1875","DAKOTA JOHNSON","TEXT1875"]
["TEXT1876","DAKOTA JOHNSON","TEXT1876"]
["TEXT1877","DAKOTA JOHNSON","TEXT1877"]
["TEXT1878","DAKOTA JOHNSON","TEXT1878"]
["TEXT1879","DAKOTA JOHNSON","TEXT1879"]
["TEXT1880","DAKOTA JOHNSON","TEXT1880"]
["TEXT1881","DAKOTA JOHNSON","TEXT1881"]
["TEXT1882","DAKOTA JOHNSON","TEXT1882"]
["TEXT1883","DAKOTA JOHNSON","TEXT1883"]
["TEXT1884","DAKOTA JOHNSON","TEXT1884"]
["TEXT1885","DAKOTA JOHNSON","TEXT1885"]
["TEXT1886","DAKOTA JOHNSON","TEXT1886"]
["TEXT1887","DAKOTA JOHNSON","TEXT1887"]
["TEXT1888","DAKOTA JOHNSON","TEXT1888"]
["TEXT1889","DAKOTA JOHNSON","TEXT1889"]
["TEXT1890","DAKOTA JOHNSON","TEXT1890"]
["TEXT1891","DAKOTA JOHNSON","TEXT1891"]
["TEXT1892","DAKOTA JOHNSON","TEXT1892"]
["TEXT1893","DAKOTA JOHNSON","TEXT1893"]
["TEXT1894","DAKOTA JOHNSON","TEXT1894"]
["TEXT1895","DAKOTA JOHNSON","TEXT1895"]
["TEXT1896","DAKOTA JOHNSON","TEXT1896"]
["TEXT1897","DAKOTA JOHNSON","TEXT1897"]
["TEXT1898","DAKOTA JOHNSON","TEXT1898"]
["TEXT1899","DAKOTA JOHNSON","TEXT1899"]
["TEXT1900","DAKOTA JOHNSON","TEXT1900"]
["TEXT1901","DAKOTA JOHNSON","TEXT1901"]
["TEXT1902","DAKOTA JOHNSON","TEXT1902"]
["TEXT1903","DAKOTA JOHNSON","TEXT1903"]
["TEXT1904","DAKOTA JOHNSON","TEXT1904"]
["TEXT1905","DAKOTA JOHNSON","TEXT1905"]
["TEXT1906","DAKOTA JOHNSON","TEXT1906"]
["TEXT1907","DAKOTA JOHNSON","TEXT1907"]
["TEXT1908","DAKOTA JOHNSON","TEXT1908"]
["TEXT1909","DAKOTA JOHNSON","TEXT1909"]
["TEXT1910","DAKOTA JOHNSON","TEXT1910"]
["TEXT1911","DAKOTA JOHNSON","TEXT1911"]
["TEXT1912","DAKOTA JOHNSON","TEXT1912"]
["TEXT1913","DAKOTA JOHNSON","TEXT1913"]
["TEXT1914","DAKOTA JOHNSON","TEXT1914"]
["TEXT1915","DAKOTA JOHNSON","TEXT1915"]
["TEXT1916","DAKOTA JOHNSON","TEXT1916"]
["TEXT1917","DAKOTA JOHNSON","TEXT1917"]
["TEXT1918","DAKOTA JOHNSON","TEXT1918"]
["TEXT1919","DAKOTA JOHNSON","TEXT1919"]
["TEXT1920","DAKOTA JOHNSON","TEXT1920"]
["TEXT1921","DAKOTA JOHNSON","TEXT1921"]
[{"$f":"\"TEXT\"&ROW()","v":"TEXT1922"},"DAKOTA JOHNSON","TEXT1922"]
["TEXT1923","DAKOTA JOHNSON","TEXT1923"]
["TEXT1924","DAKOTA JOHNSON","TEXT1924"]
["TEXT1925","DAKOTA JOHNSON","TEXT1925"]
["TEXT1926","DAKOTA JOHNSON","TEXT1926"]
["TEXT1927","DAKOTA JOHNSON","TEXT1927"]
["TEXT1928","DAKOTA JOHNSON","TEXT1928"]
["TEXT1929","DAKOTA JOHNSON","TEXT1929"]
["TEXT1930","DAKOTA JOHNSON","TEXT1930"]
["TEXT1931","DAKOTA JOHNSON","TEXT1931"]
["TEXT1932","DAKOTA JOHNSON","TEXT1932"]
["TEXT1933","DAKOTA JOHNSON","TEXT1933"]
["TEXT1934","DAKOTA JOHNSON","TEXT1934"]
["TEXT1935","DAKOTA JOHNSON","TEXT1935"]
["TEXT1936","DAKOTA JOHNSON","TEXT1936"]
["TEXT1937","BRIE LARSON","TEXT1937"]
["TEXT1938","DINA SHIHABI","TEXT1938"]
["TEXT1939","DINA SHIHABI","TEXT1939"]
["TEXT1940","DINA SHIHABI","TEXT1940"]
["TEXT1941","LORENZA IZZO","TEXT1941"]
["TEXT1942","LORENZA IZZO","TEXT1942"]
["TEXT1943","LORENZA IZZO","TEXT1943"]
["TEXT1944","LORENZA IZZO","TEXT1944"]
["TEXT1945","LORENZA IZZO","TEXT1945"]
["TEXT1946","LORENZA IZZO","TEXT1946"]
["TEXT1947","LORENZA IZZO","TEXT1947"]
["TEXT1948","LORENZA IZZO","TEXT1948"]
["TEXT1949","LORENZA IZZO","TEXT1949"]
["TEXT1950","LORENZA IZZO","TEXT1950"]
["TEXT1951","LORENZA IZZO","TEXT1951"]
["TEXT1952","LORENZA IZZO","TEXT1952"]
["TEXT1953","LORENZA IZZO","TEXT1953"]
["TEXT1954","LORENZA IZZO","TEXT1954"]
["TEXT1955","LORENZA IZZO","TEXT1955"]
["TEXT1956","LORENZA IZZO","TEXT1956"]
["TEXT1957","LORENZA IZZO","TEXT1957"]
["TEXT1958","LORENZA IZZO","TEXT1958"]
["TEXT1959","LORENZA IZZO","TEXT1959"]
["TEXT1960","LORENZA IZZO","TEXT1960"]
["TEXT1961","DANIELLE BROOKS","TEXT1961"]
["TEXT1962","DANIELLE BROOKS","TEXT1962"]
["TEXT1963","JESSICA BROWN FINDLAY","TEXT1963"]
["TEXT1964","JESSICA BROWN FINDLAY","TEXT1964"]
["TEXT1965","JESSICA BROWN FINDLAY","TEXT1965"]
["TEXT1966","JESSICA BROWN FINDLAY","TEXT1966"]
["TEXT1967","JESSICA BROWN FINDLAY","TEXT1967"]
["TEXT1968","JESSICA BROWN FINDLAY","TEXT1968"]
["TEXT1969","JESSICA BROWN FINDLAY","TEXT1969"]
["TEXT1970","JESSICA BROWN FINDLAY","TEXT1970"]
["TEXT1971","JESSICA BROWN FINDLAY","TEXT1971"]
["TEXT1972","JESSICA BROWN FINDLAY","TEXT1972"]
["TEXT1973","JESSICA BROWN FINDLAY","TEXT1973"]
["TEXT1974","JESSICA BROWN FINDLAY","TEXT1974"]
["TEXT1975","JESSICA BROWN FINDLAY","TEXT1975"]
["TEXT1976","JESSICA BROWN FINDLAY","TEXT1976"]
["TEXT1977","JESSICA BROWN FINDLAY","TEXT1977"]
["TEXT1978","HANNAH JOHN-KAMEN","TEXT1978"]
["TEXT1979","HANNAH JOHN-KAMEN","TEXT1979"]
["TEXT1980","HANNAH JOHN-KAMEN","TEXT1980"]
["TEXT1981","HANNAH JOHN-KAMEN","TEXT1981"]
["TEXT1982","CHARLOTTE RITCHIE","TEXT1982"]
["TEXT1983","CHARLOTTE RITCHIE","TEXT1983"]
["TEXT1984","CHARLOTTE RITCHIE","TEXT1984"]
["TEXT1985","CHARLOTTE RITCHIE","TEXT1985"]
[{"$f":"\"TEXT\"&ROW()","v":"TEXT1986"},"CHARLOTTE RITCHIE","TEXT1986"]
["TEXT1987","CHARLOTTE RITCHIE","TEXT1987"]
["TEXT1988","CHARLOTTE RITCHIE","TEXT1988"]
["TEXT1989","CHARLOTTE RITCHIE","TEXT1989"]
["TEXT1990","CHARLOTTE RITCHIE","TEXT1990"]
["TEXT1991","CHARLOTTE RITCHIE","TEXT1991"]
["TEXT1992","CHARLOTTE RITCHIE","TEXT1992"]
["TEXT1993","CHARLOTTE RITCHIE","TEXT1993"]
["TEXT1994","CHARLOTTE RITCHIE","TEXT1994"]
["TEXT1995","CHARLOTTE RITCHIE","TEXT1995"]
["TEXT1996","CHARLOTTE RITCHIE","TEXT1996"]
["TEXT1997","CHARLOTTE RITCHIE","TEXT1997"]
["TEXT1998","CHARLOTTE RITCHIE","TEXT1998"]
["TEXT1999","CHARLOTTE RITCHIE","TEXT1999"]
["TEXT2000","HAYDEN PANETTIERE","TEXT2000"]
["TEXT2001","HAYDEN PANETTIERE","TEXT2001"]
["TEXT2002","HAYDEN PANETTIERE","TEXT2002"]
["TEXT2003","HAYDEN PANETTIERE","TEXT2003"]
["TEXT2004","JUNO TEMPLE","TEXT2004"]
["TEXT2005","JUNO TEMPLE","TEXT2005"]
["TEXT2006","JUNO TEMPLE","TEXT2006"]
["TEXT2007","JUNO TEMPLE","TEXT2007"]
["TEXT2008","JUNO TEMPLE","TEXT2008"]
["TEXT2009","JUNO TEMPLE","TEXT2009"]
["TEXT2010","JUNO TEMPLE","TEXT2010"]
["TEXT2011","JUNO TEMPLE","TEXT2011"]
["TEXT2012","JUNO TEMPLE","TEXT2012"]
["TEXT2013","JUNO TEMPLE","TEXT2013"]
["TEXT2014","JUNO TEMPLE","TEXT2014"]
["TEXT2015","JUNO TEMPLE","TEXT2015"]
["TEXT2016","JUNO TEMPLE","TEXT2016"]
["TEXT2017","JUNO TEMPLE","TEXT2017"]
["TEXT2018","JUNO TEMPLE","TEXT2018"]
["TEXT2019","JUNO TEMPLE","TEXT2019"]
["TEXT2020","JUNO TEMPLE","TEXT2020"]
["TEXT2021","JUNO TEMPLE","TEXT2021"]
["TEXT2022","JUNO TEMPLE","TEXT2022"]
["TEXT2023","JUNO TEMPLE","TEXT2023"]
["TEXT2024","JUNO TEMPLE","TEXT2024"]
["TEXT2025","JUNO TEMPLE","TEXT2025"]
["TEXT2026","JUNO TEMPLE","TEXT2026"]
["TEXT2027","JUNO TEMPLE","TEXT2027"]
["TEXT2028","JUNO TEMPLE","TEXT2028"]
["TEXT2029","JUNO TEMPLE","TEXT2029"]
["TEXT2030","JUNO TEMPLE","TEXT2030"]
["TEXT2031","JUNO TEMPLE","TEXT2031"]
["TEXT2032","JUNO TEMPLE","TEXT2032"]
["TEXT2033","JUNO TEMPLE","TEXT2033"]
["TEXT2034","JUNO TEMPLE","TEXT2034"]
["TEXT2035","JUNO TEMPLE","TEXT2035"]
["TEXT2036","JUNO TEMPLE","TEXT2036"]
["TEXT2037","JUNO TEMPLE","TEXT2037"]
["TEXT2038","JUNO TEMPLE","TEXT2038"]
["TEXT2039","JUNO TEMPLE","TEXT2039"]
["TEXT2040","JUNO TEMPLE","TEXT2040"]
["TEXT2041","JUNO TEMPLE","TEXT2041"]
["TEXT2042","JUNO TEMPLE","TEXT2042"]
["TEXT2043","JUNO TEMPLE","TEXT2043"]
["TEXT2044","JUNO TEMPLE","TEXT2044"]
["TEXT2045","JUNO TEMPLE","TEXT2045"]
["TEXT2046","JUNO TEMPLE","TEXT2046"]
["TEXT2047","JUNO TEMPLE","TEXT2047"]
["TEXT2048","JUNO TEMPLE","TEXT2048"]
["TEXT2049","JUNO TEMPLE","TEXT2049"]
[{"$f":"\"TEXT\"&ROW()","v":"TEXT2050"},"JUNO TEMPLE","TEXT2050"]
["TEXT2051","JUNO TEMPLE","TEXT2051"]
["TEXT2052","JUNO TEMPLE","TEXT2052"]
["TEXT2053","JUNO TEMPLE","TEXT2053"]
["TEXT2054","JUNO TEMPLE","TEXT2054"]
["TEXT2055","JUNO TEMPLE","TEXT2055"]
["TEXT2056","JUNO TEMPLE","TEXT2056"]
["TEXT2057","JUNO TEMPLE","TEXT2057"]
["TEXT2058","JUNO TEMPLE","TEXT2058"]
["TEXT2059","JUNO TEMPLE","TEXT2059"]
["TEXT2060","JUNO TEMPLE","TEXT2060"]
["TEXT2061","JUNO TEMPLE","TEXT2061"]
["TEXT2062","JUNO TEMPLE","TEXT2062"]
["TEXT2063","JUNO TEMPLE","TEXT2063"]
["TEXT2064","JUNO TEMPLE","TEXT2064"]
["TEXT2065","JUNO TEMPLE","TEXT2065"]
["TEXT2066","JUNO TEMPLE","TEXT2066"]
["TEXT2067","JUNO TEMPLE","TEXT2067"]
["TEXT2068","JUNO TEMPLE","TEXT2068"]
["TEXT2069","JUNO TEMPLE","TEXT2069"]
["TEXT2070","JUNO TEMPLE","TEXT2070"]
["TEXT2071","JUNO TEMPLE","TEXT2071"]
["TEXT2072","JUNO TEMPLE","TEXT2072"]
["TEXT2073","JUNO TEMPLE","TEXT2073"]
["TEXT2074","JUNO TEMPLE","TEXT2074"]
["TEXT2075","JUNO TEMPLE","TEXT2075"]
["TEXT2076","JUNO TEMPLE","TEXT2076"]
["TEXT2077","JUNO TEMPLE","TEXT2077"]
["TEXT2078","JUNO TEMPLE","TEXT2078"]
["TEXT2079","JUNO TEMPLE","TEXT2079"]
["TEXT2080","JUNO TEMPLE","TEXT2080"]
["TEXT2081","JUNO TEMPLE","TEXT2081"]
["TEXT2082","JUNO TEMPLE","TEXT2082"]
["TEXT2083","JUNO TEMPLE","TEXT2083"]
["TEXT2084","JUNO TEMPLE","TEXT2084"]
["TEXT2085","JUNO TEMPLE","TEXT2085"]
["TEXT2086","JUNO TEMPLE","TEXT2086"]
["TEXT2087","JUNO TEMPLE","TEXT2087"]
["TEXT2088","JUNO TEMPLE","TEXT2088"]
["TEXT2089","JUNO TEMPLE","TEXT2089"]
["TEXT2090","JUNO TEMPLE","TEXT2090"]
["TEXT2091","JUNO TEMPLE","TEXT2091"]
["TEXT2092","JUNO TEMPLE","TEXT2092"]
["TEXT2093","JUNO TEMPLE","TEXT2093"]
["TEXT2094","JUNO TEMPLE","TEXT2094"]
["TEXT2095","JUNO TEMPLE","TEXT2095"]
["TEXT2096","JUNO TEMPLE","TEXT2096"]
["TEXT2097","JUNO TEMPLE","TEXT2097"]
["TEXT2098","JUNO TEMPLE","TEXT2098"]
["TEXT2099","JUNO TEMPLE","TEXT2099"]
["TEXT2100","JUNO TEMPLE","TEXT2100"]
["TEXT2101","JUNO TEMPLE","TEXT2101"]
["TEXT2102","JUNO TEMPLE","TEXT2102"]
["TEXT2103","JUNO TEMPLE","TEXT2103"]
["TEXT2104","JUNO TEMPLE","TEXT2104"]
["TEXT2105","JUNO TEMPLE","TEXT2105"]
["TEXT2106","JUNO TEMPLE","TEXT2106"]
["TEXT2107","JUNO TEMPLE","TEXT2107"]
["TEXT2108","JUNO TEMPLE","TEXT2108"]
["TEXT2109","JUNO TEMPLE","TEXT2109"]
["TEXT2110","JUNO TEMPLE","TEXT2110"]
["TEXT2111","JUNO TEMPLE","TEXT2111"]
["TEXT2112","JUNO TEMPLE","TEXT2112"]
["TEXT2113","JUNO TEMPLE","TEXT2113"]
[{"$f":"\"TEXT\"&ROW()","v":"TEXT2114"},"JUNO TEMPLE","TEXT2114"]
["TEXT2115","JUNO TEMPLE","TEXT2115"]
["TEXT2116","JUNO TEMPLE","TEXT2116"]
["TEXT2117","JUNO TEMPLE","TEXT2117"]
["TEXT2118","JUNO TEMPLE","TEXT2118"]
["TEXT2119","JUNO TEMPLE","TEXT2119"]
["TEXT2120","JUNO TEMPLE","TEXT2120"]
["TEXT2121","LUCY HALE","TEXT2121"]
["TEXT2122","LUCY HALE","TEXT2122"]
["TEXT2123","LUCY HALE","TEXT2123"]
["TEXT2124","LUCY HALE","TEXT2124"]
["TEXT2125","LUCY HALE","TEXT2125"]
["TEXT2126","LUCY HALE","TEXT2126"]
["TEXT2127","IMOGEN POOTS","TEXT2127"]
["TEXT2128","IMOGEN POOTS","TEXT2128"]
["TEXT2129","IMOGEN POOTS","TEXT2129"]
["TEXT2130","IMOGEN POOTS","TEXT2130"]
["TEXT2131","IMOGEN POOTS","TEXT2131"]
["TEXT2132","IMOGEN POOTS","TEXT2132"]
["TEXT2133","IMOGEN POOTS","TEXT2133"]
["TEXT2134","IMOGEN POOTS","TEXT2134"]
["TEXT2135","IMOGEN POOTS","TEXT2135"]
["TEXT2136","IMOGEN POOTS","TEXT2136"]
["TEXT2137","IMOGEN POOTS","TEXT2137"]
["TEXT2138","IMOGEN POOTS","TEXT2138"]
["TEXT2139","IMOGEN POOTS","TEXT2139"]
["TEXT2140","IMOGEN POOTS","TEXT2140"]
["TEXT2141","IMOGEN POOTS","TEXT2141"]
["TEXT2142","IMOGEN POOTS","TEXT2142"]
["TEXT2143","IMOGEN POOTS","TEXT2143"]
["TEXT2144","IMOGEN POOTS","TEXT2144"]
["TEXT2145","IMOGEN POOTS","TEXT2145"]
["TEXT2146","IMOGEN POOTS","TEXT2146"]
["TEXT2147","RILEY KEOUGH","TEXT2147"]
["TEXT2148","RILEY KEOUGH","TEXT2148"]
["TEXT2149","RILEY KEOUGH","TEXT2149"]
["TEXT2150","RILEY KEOUGH","TEXT2150"]
["TEXT2151","RILEY KEOUGH","TEXT2151"]
["TEXT2152","RILEY KEOUGH","TEXT2152"]
["TEXT2153","RILEY KEOUGH","TEXT2153"]
["TEXT2154","RILEY KEOUGH","TEXT2154"]
["TEXT2155","RILEY KEOUGH","TEXT2155"]
["TEXT2156","RILEY KEOUGH","TEXT2156"]
["TEXT2157","RILEY KEOUGH","TEXT2157"]
["TEXT2158","RILEY KEOUGH","TEXT2158"]
["TEXT2159","RILEY KEOUGH","TEXT2159"]
["TEXT2160","RILEY KEOUGH","TEXT2160"]
["TEXT2161","RILEY KEOUGH","TEXT2161"]
["TEXT2162","RILEY KEOUGH","TEXT2162"]
["TEXT2163","RILEY KEOUGH","TEXT2163"]
["TEXT2164","RILEY KEOUGH","TEXT2164"]
["TEXT2165","RILEY KEOUGH","TEXT2165"]
["TEXT2166","RILEY KEOUGH","TEXT2166"]
["TEXT2167","RILEY KEOUGH","TEXT2167"]
["TEXT2168","RILEY KEOUGH","TEXT2168"]
["TEXT2169","RILEY KEOUGH","TEXT2169"]
["TEXT2170","RILEY KEOUGH","TEXT2170"]
["TEXT2171","RILEY KEOUGH","TEXT2171"]
["TEXT2172","RILEY KEOUGH","TEXT2172"]
["TEXT2173","RILEY KEOUGH","TEXT2173"]
["TEXT2174","RILEY KEOUGH","TEXT2174"]
["TEXT2175","RILEY KEOUGH","TEXT2175"]
["TEXT2176","RILEY KEOUGH","TEXT2176"]
["TEXT2177","RILEY KEOUGH","TEXT2177"]
[{"$f":"\"TEXT\"&ROW()","v":"TEXT2178"},"RILEY KEOUGH","TEXT2178"]
["TEXT2179","RILEY KEOUGH","TEXT2179"]
["TEXT2180","RILEY KEOUGH","TEXT2180"]
["TEXT2181","RILEY KEOUGH","TEXT2181"]
["TEXT2182","RILEY KEOUGH","TEXT2182"]
["TEXT2183","RILEY KEOUGH","TEXT2183"]
["TEXT2184","RILEY KEOUGH","TEXT2184"]
["TEXT2185","RILEY KEOUGH","TEXT2185"]
["TEXT2186","RILEY KEOUGH","TEXT2186"]
["TEXT2187","RILEY KEOUGH","TEXT2187"]
["TEXT2188","RILEY KEOUGH","TEXT2188"]
["TEXT2189","RILEY KEOUGH","TEXT2189"]
["TEXT2190","RILEY KEOUGH","TEXT2190"]
["TEXT2191","RILEY KEOUGH","TEXT2191"]
["TEXT2192","RILEY KEOUGH","TEXT2192"]
["TEXT2193","RILEY KEOUGH","TEXT2193"]
["TEXT2194","RILEY KEOUGH","TEXT2194"]
["TEXT2195","RILEY KEOUGH","TEXT2195"]
["TEXT2196","RILEY KEOUGH","TEXT2196"]
["TEXT2197","RILEY KEOUGH","TEXT2197"]
["TEXT2198","RILEY KEOUGH","TEXT2198"]
["TEXT2199","RILEY KEOUGH","TEXT2199"]
["TEXT2200","RILEY KEOUGH","TEXT2200"]
["TEXT2201","RILEY KEOUGH","TEXT2201"]
["TEXT2202","RILEY KEOUGH","TEXT2202"]
["TEXT2203","RILEY KEOUGH","TEXT2203"]
["TEXT2204","RILEY KEOUGH","TEXT2204"]
["TEXT2205","RILEY KEOUGH","TEXT2205"]
["TEXT2206","RILEY KEOUGH","TEXT2206"]
["TEXT2207","RILEY KEOUGH","TEXT2207"]
["TEXT2208","RILEY KEOUGH","TEXT2208"]
["TEXT2209","RILEY KEOUGH","TEXT2209"]
["TEXT2210","RILEY KEOUGH","TEXT2210"]
["TEXT2211","RILEY KEOUGH","TEXT2211"]
["TEXT2212","RILEY KEOUGH","TEXT2212"]
["TEXT2213","RILEY KEOUGH","TEXT2213"]
["TEXT2214","RILEY KEOUGH","TEXT2214"]
["TEXT2215","RILEY KEOUGH","TEXT2215"]
["TEXT2216","RILEY KEOUGH","TEXT2216"]
["TEXT2217","RILEY KEOUGH","TEXT2217"]
["TEXT2218","RILEY KEOUGH","TEXT2218"]
["TEXT2219","RILEY KEOUGH","TEXT2219"]
["TEXT2220","RILEY KEOUGH","TEXT2220"]
["TEXT2221","RILEY KEOUGH","TEXT2221"]
["TEXT2222","RILEY KEOUGH","TEXT2222"]
["TEXT2223","RILEY KEOUGH","TEXT2223"]
["TEXT2224","RILEY KEOUGH","TEXT2224"]
["TEXT2225","RILEY KEOUGH","TEXT2225"]
["TEXT2226","RILEY KEOUGH","TEXT2226"]
["TEXT2227","RILEY KEOUGH","TEXT2227"]
["TEXT2228","RILEY KEOUGH","TEXT2228"]
["TEXT2229","RILEY KEOUGH","TEXT2229"]
["TEXT2230","RILEY KEOUGH","TEXT2230"]
["TEXT2231","RILEY KEOUGH","TEXT2231"]
["TEXT2232","RILEY KEOUGH","TEXT2232"]
["TEXT2233","RILEY KEOUGH","TEXT2233"]
["TEXT2234","RILEY KEOUGH","TEXT2234"]
["TEXT2235","RILEY KEOUGH","TEXT2235"]
["TEXT2236","RILEY KEOUGH","TEXT2236"]
["TEXT2237","RILEY KEOUGH","TEXT2237"]
["TEXT2238","RILEY KEOUGH","TEXT2238"]
["TEXT2239","RILEY KEOUGH","TEXT2239"]
["TEXT2240","RILEY KEOUGH","TEXT2240"]
["TEXT2241","RILEY KEOUGH","TEXT2241"]
[{"$f":"\"TEXT\"&ROW()","v":"TEXT2242"},"RILEY KEOUGH","TEXT2242"]
["TEXT2243","RILEY KEOUGH","TEXT2243"]
["TEXT2244","RILEY KEOUGH","TEXT2244"]
["TEXT2245","RILEY KEOUGH","TEXT2245"]
["TEXT2246","RILEY KEOUGH","TEXT2246"]
["TEXT2247","RILEY KEOUGH","TEXT2247"]
["TEXT2248","RILEY KEOUGH","TEXT2248"]
["TEXT2249","RILEY KEOUGH","TEXT2249"]
["TEXT2250","RILEY KEOUGH","TEXT2250"]
["TEXT2251","RILEY KEOUGH","TEXT2251"]
["TEXT2252","RILEY KEOUGH","TEXT2252"]
["TEXT2253","RILEY KEOUGH","TEXT2253"]
["TEXT2254","RILEY KEOUGH","TEXT2254"]
["TEXT2255","RILEY KEOUGH","TEXT2255"]
["TEXT2256","RILEY KEOUGH","TEXT2256"]
["TEXT2257","RILEY KEOUGH","TEXT2257"]
["TEXT2258","RILEY KEOUGH","TEXT2258"]
["TEXT2259","RILEY KEOUGH","TEXT2259"]
["TEXT2260","RILEY KEOUGH","TEXT2260"]
["TEXT2261","RILEY KEOUGH","TEXT2261"]
["TEXT2262","RILEY KEOUGH","TEXT2262"]
["TEXT2263","RILEY KEOUGH","TEXT2263"]
["TEXT2264","RILEY KEOUGH","TEXT2264"]
["TEXT2265","RILEY KEOUGH","TEXT2265"]
["TEXT2266","RILEY KEOUGH","TEXT2266"]
["TEXT2267","RILEY KEOUGH","TEXT2267"]
["TEXT2268","RILEY KEOUGH","TEXT2268"]
["TEXT2269","RILEY KEOUGH","TEXT2269"]
["TEXT2270","RILEY KEOUGH","TEXT2270"]
["TEXT2271","RILEY KEOUGH","TEXT2271"]
["TEXT2272","RILEY KEOUGH","TEXT2272"]
["TEXT2273","RILEY KEOUGH","TEXT2273"]
["TEXT2274","RILEY KEOUGH","TEXT2274"]
["TEXT2275","RILEY KEOUGH","TEXT2275"]
["TEXT2276","RILEY KEOUGH","TEXT2276"]
["TEXT2277","RILEY KEOUGH","TEXT2277"]
["TEXT2278","RILEY KEOUGH","TEXT2278"]
["TEXT2279","RILEY KEOUGH","TEXT2279"]
["TEXT2280","RILEY KEOUGH","TEXT2280"]
["TEXT2281","RILEY KEOUGH","TEXT2281"]
["TEXT2282","RILEY KEOUGH","TEXT2282"]
["TEXT2283","RILEY KEOUGH","TEXT2283"]
["TEXT2284","RILEY KEOUGH","TEXT2284"]
["TEXT2285","RILEY KEOUGH","TEXT2285"]
["TEXT2286","RILEY KEOUGH","TEXT2286"]
["TEXT2287","RILEY KEOUGH","TEXT2287"]
["TEXT2288","RILEY KEOUGH","TEXT2288"]
["TEXT2289","RILEY KEOUGH","TEXT2289"]
["TEXT2290","RILEY KEOUGH","TEXT2290"]
["TEXT2291","RILEY KEOUGH","TEXT2291"]
["TEXT2292","RILEY KEOUGH","TEXT2292"]
["TEXT2293","RILEY KEOUGH","TEXT2293"]
["TEXT2294","RILEY KEOUGH","TEXT2294"]
["TEXT2295","RILEY KEOUGH","TEXT2295"]
["TEXT2296","RILEY KEOUGH","TEXT2296"]
["TEXT2297","RILEY KEOUGH","TEXT2297"]
["TEXT2298","RILEY KEOUGH","TEXT2298"]
["TEXT2299","RILEY KEOUGH","TEXT2299"]
["TEXT2300","RILEY KEOUGH","TEXT2300"]
["TEXT2301","RILEY KEOUGH","TEXT2301"]
["TEXT2302","RILEY KEOUGH","TEXT2302"]
["TEXT2303","RILEY KEOUGH","TEXT2303"]
["TEXT2304","RILEY KEOUGH","TEXT2304"]
["TEXT2305","RILEY KEOUGH","TEXT2305"]
[{"$f":"\"TEXT\"&ROW()","v":"TEXT2306"},"RILEY KEOUGH","TEXT2306"]
["TEXT2307","RILEY KEOUGH","TEXT2307"]
["TEXT2308","RILEY KEOUGH","TEXT2308"]
["TEXT2309","RILEY KEOUGH","TEXT2309"]
["TEXT2310","RILEY KEOUGH","TEXT2310"]
["TEXT2311","RILEY KEOUGH","TEXT2311"]
["TEXT2312","RILEY KEOUGH","TEXT2312"]
["TEXT2313","RILEY KEOUGH","TEXT2313"]
["TEXT2314","RILEY KEOUGH","TEXT2314"]
["TEXT2315","RILEY KEOUGH","TEXT2315"]
["TEXT2316","RILEY KEOUGH","TEXT2316"]
["TEXT2317","RILEY KEOUGH","TEXT2317"]
["TEXT2318","RILEY KEOUGH","TEXT2318"]
["TEXT2319","RILEY KEOUGH","TEXT2319"]
["TEXT2320","ALIA SHAWKAT","TEXT2320"]
["TEXT2321","ALIA SHAWKAT","TEXT2321"]
["TEXT2322","ALIA SHAWKAT","TEXT2322"]
["TEXT2323","ALIA SHAWKAT","TEXT2323"]
["TEXT2324","ALIA SHAWKAT","TEXT2324"]
["TEXT2325","ALIA SHAWKAT","TEXT2325"]
["TEXT2326","ALIA SHAWKAT","TEXT2326"]
["TEXT2327","ALIA SHAWKAT","TEXT2327"]
["TEXT2328","ALIA SHAWKAT","TEXT2328"]
["TEXT2329","ALIA SHAWKAT","TEXT2329"]
["TEXT2330","ALIA SHAWKAT","TEXT2330"]
["TEXT2331","ALIA SHAWKAT","TEXT2331"]
["TEXT2332","ALIA SHAWKAT","TEXT2332"]
["TEXT2333","ALIA SHAWKAT","TEXT2333"]
["TEXT2334","ALIA SHAWKAT","TEXT2334"]
["TEXT2335","ALIA SHAWKAT","TEXT2335"]
["TEXT2336","ALIA SHAWKAT","TEXT2336"]
["TEXT2337","ALIA SHAWKAT","TEXT2337"]
["TEXT2338","ALIA SHAWKAT","TEXT2338"]
["TEXT2339","ALIA SHAWKAT","TEXT2339"]
["TEXT2340","ALIA SHAWKAT","TEXT2340"]
["TEXT2341","ALIA SHAWKAT","TEXT2341"]
["TEXT2342","ALIA SHAWKAT","TEXT2342"]
["TEXT2343","ALIA SHAWKAT","TEXT2343"]
["TEXT2344","ALIA SHAWKAT","TEXT2344"]
["TEXT2345","ALIA SHAWKAT","TEXT2345"]
["TEXT2346","ALIA SHAWKAT","TEXT2346"]
["TEXT2347","ALIA SHAWKAT","TEXT2347"]
["TEXT2348","ALIA SHAWKAT","TEXT2348"]
["TEXT2349","ALIA SHAWKAT","TEXT2349"]
["TEXT2350","ALIA SHAWKAT","TEXT2350"]
["TEXT2351","ALIA SHAWKAT","TEXT2351"]
["TEXT2352","ALIA SHAWKAT","TEXT2352"]
["TEXT2353","ALIA SHAWKAT","TEXT2353"]
["TEXT2354","ALIA SHAWKAT","TEXT2354"]
["TEXT2355","ALIA SHAWKAT","TEXT2355"]
["TEXT2356","ALIA SHAWKAT","TEXT2356"]
["TEXT2357","ALIA SHAWKAT","TEXT2357"]
["TEXT2358","LILY JAMES","TEXT2358"]
["TEXT2359","LILY JAMES","TEXT2359"]
["TEXT2360","LILY JAMES","TEXT2360"]
["TEXT2361","LILY JAMES","TEXT2361"]
["TEXT2362","LILY JAMES","TEXT2362"]
["TEXT2363","LILY JAMES","TEXT2363"]
["TEXT2364","LILY JAMES","TEXT2364"]
["TEXT2365","LILY JAMES","TEXT2365"]
["TEXT2366","LILY JAMES","TEXT2366"]
["TEXT2367","LILY JAMES","TEXT2367"]
["TEXT2368","LILY JAMES","TEXT2368"]
["TEXT2369","LILY JAMES","TEXT2369"]
[{"$f":"\"TEXT\"&ROW()","v":"TEXT2370"},"LILY JAMES","TEXT2370"]
["TEXT2371","LILY JAMES","TEXT2371"]
["TEXT2372","LILY JAMES","TEXT2372"]
["TEXT2373","LILY JAMES","TEXT2373"]
["TEXT2374","LILY JAMES","TEXT2374"]
["TEXT2375","LILY JAMES","TEXT2375"]
["TEXT2376","LILY JAMES","TEXT2376"]
["TEXT2377","LILY JAMES","TEXT2377"]
["TEXT2378","LILY JAMES","TEXT2378"]
["TEXT2379","LILY JAMES","TEXT2379"]
["TEXT2380","LILY JAMES","TEXT2380"]
["TEXT2381","LILY COLLINS","TEXT2381"]
["TEXT2382","NATHALIE EMMANUEL","TEXT2382"]
["TEXT2383","NATHALIE EMMANUEL","TEXT2383"]
["TEXT2384","NATHALIE EMMANUEL","TEXT2384"]
["TEXT2385","NATHALIE EMMANUEL","TEXT2385"]
["TEXT2386","NATHALIE EMMANUEL","TEXT2386"]
["TEXT2387","NATHALIE EMMANUEL","TEXT2387"]
["TEXT2388","NATHALIE EMMANUEL","TEXT2388"]
["TEXT2389","NATHALIE EMMANUEL","TEXT2389"]
["TEXT2390","NATHALIE EMMANUEL","TEXT2390"]
["TEXT2391","NATHALIE EMMANUEL","TEXT2391"]
["TEXT2392","NATHALIE EMMANUEL","TEXT2392"]
["TEXT2393","NATHALIE EMMANUEL","TEXT2393"]
["TEXT2394","NATHALIE EMMANUEL","TEXT2394"]
["TEXT2395","NATHALIE EMMANUEL","TEXT2395"]
["TEXT2396","NATHALIE EMMANUEL","TEXT2396"]
["TEXT2397","NATHALIE EMMANUEL","TEXT2397"]
["TEXT2398","NATHALIE EMMANUEL","TEXT2398"]
["TEXT2399","NATHALIE EMMANUEL","TEXT2399"]
["TEXT2400","NATHALIE EMMANUEL","TEXT2400"]
["TEXT2401","NATHALIE EMMANUEL","TEXT2401"]
["TEXT2402","NATHALIE EMMANUEL","TEXT2402"]
["TEXT2403","NATHALIE EMMANUEL","TEXT2403"]
["TEXT2404","NATHALIE EMMANUEL","TEXT2404"]
["TEXT2405","NATHALIE EMMANUEL","TEXT2405"]
["TEXT2406","NATHALIE EMMANUEL","TEXT2406"]
["TEXT2407","NATHALIE EMMANUEL","TEXT2407"]
["TEXT2408","NATHALIE EMMANUEL","TEXT2408"]
["TEXT2409","NATHALIE EMMANUEL","TEXT2409"]
["TEXT2410","NATHALIE EMMANUEL","TEXT2410"]
["TEXT2411","NATHALIE EMMANUEL","TEXT2411"]
["TEXT2412","NATHALIE EMMANUEL","TEXT2412"]
["TEXT2413","NATHALIE EMMANUEL","TEXT2413"]
["TEXT2414","NATHALIE EMMANUEL","TEXT2414"]
["TEXT2415","NATHALIE EMMANUEL","TEXT2415"]
["TEXT2416","NATHALIE EMMANUEL","TEXT2416"]
["TEXT2417","NATHALIE EMMANUEL","TEXT2417"]
["TEXT2418","NATHALIE EMMANUEL","TEXT2418"]
["TEXT2419","NATHALIE EMMANUEL","TEXT2419"]
["TEXT2420","ELIZABETH OLSEN","TEXT2420"]
["TEXT2421","ELIZABETH OLSEN","TEXT2421"]
["TEXT2422","ELIZABETH OLSEN","TEXT2422"]
["TEXT2423","ELIZABETH OLSEN","TEXT2423"]
["TEXT2424","ELIZABETH OLSEN","TEXT2424"]
["TEXT2425","ELIZABETH OLSEN","TEXT2425"]
["TEXT2426","ELIZABETH OLSEN","TEXT2426"]
["TEXT2427","ELIZABETH OLSEN","TEXT2427"]
["TEXT2428","ELIZABETH OLSEN","TEXT2428"]
["TEXT2429","ELIZABETH OLSEN","TEXT2429"]
["TEXT2430","ELIZABETH OLSEN","TEXT2430"]
["TEXT2431","ELIZABETH OLSEN","TEXT2431"]
["TEXT2432","ELIZABETH OLSEN","TEXT2432"]
["TEXT2433","ELIZABETH OLSEN","TEXT2433"]
[{"$f":"\"TEXT\"&ROW()","v":"TEXT2434"},"ELIZABETH OLSEN","TEXT2434"]
["TEXT2435","ELIZABETH OLSEN","TEXT2435"]
["TEXT2436","ELIZABETH OLSEN","TEXT2436"]
["TEXT2437","ELIZABETH OLSEN","TEXT2437"]
["TEXT2438","ELIZABETH OLSEN","TEXT2438"]
["TEXT2439","ELIZABETH OLSEN","TEXT2439"]
["TEXT2440","ELIZABETH OLSEN","TEXT2440"]
["TEXT2441","ELIZABETH OLSEN","TEXT2441"]
["TEXT2442","ELIZABETH OLSEN","TEXT2442"]
["TEXT2443","ELIZABETH OLSEN","TEXT2443"]
["TEXT2444","ELIZABETH OLSEN","TEXT2444"]
["TEXT2445","ELIZABETH OLSEN","TEXT2445"]
["TEXT2446","ELIZABETH OLSEN","TEXT2446"]
["TEXT2447","ELIZABETH OLSEN","TEXT2447"]
["TEXT2448","ELIZABETH OLSEN","TEXT2448"]
["TEXT2449","ELIZABETH OLSEN","TEXT2449"]
["TEXT2450","ELIZABETH OLSEN","TEXT2450"]
["TEXT2451","ELIZABETH OLSEN","TEXT2451"]
["TEXT2452","ELIZABETH OLSEN","TEXT2452"]
["TEXT2453","ELIZABETH OLSEN","TEXT2453"]
["TEXT2454","ELIZABETH OLSEN","TEXT2454"]
["TEXT2455","ELIZABETH OLSEN","TEXT2455"]
["TEXT2456","ELIZABETH OLSEN","TEXT2456"]
["TEXT2457","ELIZABETH OLSEN","TEXT2457"]
["TEXT2458","ELIZABETH OLSEN","TEXT2458"]
["TEXT2459","ELIZABETH OLSEN","TEXT2459"]
["TEXT2460","ELIZABETH OLSEN","TEXT2460"]
["TEXT2461","KATY O'BRIAN","TEXT2461"]
["TEXT2462","KATY O'BRIAN","TEXT2462"]
["TEXT2463","KATY O'BRIAN","TEXT2463"]
["TEXT2464","KATY O'BRIAN","TEXT2464"]
["TEXT2465","KATY O'BRIAN","TEXT2465"]
["TEXT2466","VANESSA HUDGENS","TEXT2466"]
["TEXT2467","VANESSA HUDGENS","TEXT2467"]
["TEXT2468","VANESSA HUDGENS","TEXT2468"]
["TEXT2469","EMILY BROWNING","TEXT2469"]
["TEXT2470","EMILY BROWNING","TEXT2470"]
["TEXT2471","EMILY BROWNING","TEXT2471"]
["TEXT2472","EMILY BROWNING","TEXT2472"]
["TEXT2473","EMILY BROWNING","TEXT2473"]
["TEXT2474","EMILY BROWNING","TEXT2474"]
["TEXT2475","EMILY BROWNING","TEXT2475"]
["TEXT2476","EMILY BROWNING","TEXT2476"]
["TEXT2477","EMILY BROWNING","TEXT2477"]
["TEXT2478","EMILY BROWNING","TEXT2478"]
["TEXT2479","EMILY BROWNING","TEXT2479"]
["TEXT2480","EMILY BROWNING","TEXT2480"]
["TEXT2481","EMILY BROWNING","TEXT2481"]
["TEXT2482","EMILY BROWNING","TEXT2482"]
["TEXT2483","EMILY BROWNING","TEXT2483"]
["TEXT2484","EMILY BROWNING","TEXT2484"]
["TEXT2485","EMILY BROWNING","TEXT2485"]
["TEXT2486","EMILY BROWNING","TEXT2486"]
["TEXT2487","EMILY BROWNING","TEXT2487"]
["TEXT2488","EMILY BROWNING","TEXT2488"]
["TEXT2489","EMILY BROWNING","TEXT2489"]
["TEXT2490","EMILY BROWNING","TEXT2490"]
["TEXT2491","EMILY BROWNING","TEXT2491"]
["TEXT2492","EMILY BROWNING","TEXT2492"]
["TEXT2493","EMILY BROWNING","TEXT2493"]
["TEXT2494","EMILY BROWNING","TEXT2494"]
["TEXT2495","EMILY BROWNING","TEXT2495"]
["TEXT2496","EMILY BROWNING","TEXT2496"]
["TEXT2497","EMILY BROWNING","TEXT2497"]
[{"$f":"\"TEXT\"&ROW()","v":"TEXT2498"},"EMILY BROWNING","TEXT2498"]
["TEXT2499","EMILY BROWNING","TEXT2499"]
["TEXT2500","EMILY BROWNING","TEXT2500"]
["TEXT2501","EMILY BROWNING","TEXT2501"]
["TEXT2502","EMILY BROWNING","TEXT2502"]
["TEXT2503","EMILY BROWNING","TEXT2503"]
["TEXT2504","EMILY BROWNING","TEXT2504"]
["TEXT2505","EMILY BROWNING","TEXT2505"]
["TEXT2506","EMILY BROWNING","TEXT2506"]
["TEXT2507","EMILY BROWNING","TEXT2507"]
["TEXT2508","EMILY BROWNING","TEXT2508"]
["TEXT2509","EMILY BROWNING","TEXT2509"]
["TEXT2510","EMILY BROWNING","TEXT2510"]
["TEXT2511","EMILY BROWNING","TEXT2511"]
["TEXT2512","EMILY BROWNING","TEXT2512"]
["TEXT2513","EMILY BROWNING","TEXT2513"]
["TEXT2514","EMILY BROWNING","TEXT2514"]
["TEXT2515","EMILY BROWNING","TEXT2515"]
["TEXT2516","EMILY BROWNING","TEXT2516"]
["TEXT2517","EMILY BROWNING","TEXT2517"]
["TEXT2518","EMILY BROWNING","TEXT2518"]
["TEXT2519","EMMA STONE","TEXT2519"]
["TEXT2520","EMMA STONE","TEXT2520"]
["TEXT2521","EMMA STONE","TEXT2521"]
["TEXT2522","EMMA STONE","TEXT2522"]
["TEXT2523","EMMA STONE","TEXT2523"]
["TEXT2524","EMMA STONE","TEXT2524"]
["TEXT2525","EMMA STONE","TEXT2525"]
["TEXT2526","EMMA STONE","TEXT2526"]
["TEXT2527","EMMA STONE","TEXT2527"]
["TEXT2528","EMMA STONE","TEXT2528"]
["TEXT2529","EMMA STONE","TEXT2529"]
["TEXT2530","EMMA STONE","TEXT2530"]
["TEXT2531","EMMA STONE","TEXT2531"]
["TEXT2532","EMMA STONE","TEXT2532"]
["TEXT2533","EMMA STONE","TEXT2533"]
["TEXT2534","EMMA STONE","TEXT2534"]
["TEXT2535","EMMA STONE","TEXT2535"]
["TEXT2536","EMMA STONE","TEXT2536"]
["TEXT2537","EMMA STONE","TEXT2537"]
["TEXT2538","EMMA STONE","TEXT2538"]
["TEXT2539","EMMA STONE","TEXT2539"]
["TEXT2540","MAY HONG","TEXT2540"]
["TEXT2541","MAY HONG","TEXT2541"]
["TEXT2542","MAY HONG","TEXT2542"]
["TEXT2543","MAY HONG","TEXT2543"]
["TEXT2544","MAY HONG","TEXT2544"]
["TEXT2545","MAY HONG","TEXT2545"]
["TEXT2546","MAY HONG","TEXT2546"]
["TEXT2547","MAY HONG","TEXT2547"]
["TEXT2548","MAY HONG","TEXT2548"]
["TEXT2549","MAY HONG","TEXT2549"]
["TEXT2550","ROSE MCIVER","TEXT2550"]
["TEXT2551","ROSE MCIVER","TEXT2551"]
["TEXT2552","ROSE MCIVER","TEXT2552"]
["TEXT2553","ROSE MCIVER","TEXT2553"]
["TEXT2554","ROSE MCIVER","TEXT2554"]
["TEXT2555","ROSE MCIVER","TEXT2555"]
["TEXT2556","ROSE MCIVER","TEXT2556"]
["TEXT2557","ROSE MCIVER","TEXT2557"]
["TEXT2558","ROSE MCIVER","TEXT2558"]
["TEXT2559","ROSE MCIVER","TEXT2559"]
["TEXT2560","ROSE MCIVER","TEXT2560"]
["TEXT2561","ROSE MCIVER","TEXT2561"]
[{"$f":"\"TEXT\"&ROW()","v":"TEXT2562"},"ROSE MCIVER","TEXT2562"]
["TEXT2563","ROSE MCIVER","TEXT2563"]
["TEXT2564","ROSE MCIVER","TEXT2564"]
["TEXT2565","ROSE MCIVER","TEXT2565"]
["TEXT2566","MELISSA BENOIST","TEXT2566"]
["TEXT2567","MELISSA BENOIST","TEXT2567"]
["TEXT2568","MELISSA BENOIST","TEXT2568"]
["TEXT2569","MELISSA BENOIST","TEXT2569"]
["TEXT2570","MELISSA BENOIST","TEXT2570"]
["TEXT2571","MELISSA BENOIST","TEXT2571"]
["TEXT2572","ALICIA VIKANDER","TEXT2572"]
["TEXT2573","ALICIA VIKANDER","TEXT2573"]
["TEXT2574","ALICIA VIKANDER","TEXT2574"]
["TEXT2575","ALICIA VIKANDER","TEXT2575"]
["TEXT2576","ALICIA VIKANDER","TEXT2576"]
["TEXT2577","ALICIA VIKANDER","TEXT2577"]
["TEXT2578","ALICIA VIKANDER","TEXT2578"]
["TEXT2579","ALICIA VIKANDER","TEXT2579"]
["TEXT2580","ALICIA VIKANDER","TEXT2580"]
["TEXT2581","ALICIA VIKANDER","TEXT2581"]
["TEXT2582","ALICIA VIKANDER","TEXT2582"]
["TEXT2583","ALICIA VIKANDER","TEXT2583"]
["TEXT2584","ALICIA VIKANDER","TEXT2584"]
["TEXT2585","ALICIA VIKANDER","TEXT2585"]
["TEXT2586","ALICIA VIKANDER","TEXT2586"]
["TEXT2587","ALICIA VIKANDER","TEXT2587"]
["TEXT2588","ALICIA VIKANDER","TEXT2588"]
["TEXT2589","ALICIA VIKANDER","TEXT2589"]
["TEXT2590","ALICIA VIKANDER","TEXT2590"]
["TEXT2591","ALICIA VIKANDER","TEXT2591"]
["TEXT2592","ALICIA VIKANDER","TEXT2592"]
["TEXT2593","ALICIA VIKANDER","TEXT2593"]
["TEXT2594","ALICIA VIKANDER","TEXT2594"]
["TEXT2595","ALICIA VIKANDER","TEXT2595"]
["TEXT2596","ALICIA VIKANDER","TEXT2596"]
["TEXT2597","ALICIA VIKANDER","TEXT2597"]
["TEXT2598","ALICIA VIKANDER","TEXT2598"]
["TEXT2599","ALICIA VIKANDER","TEXT2599"]
["TEXT2600","ALICIA VIKANDER","TEXT2600"]
["TEXT2601","ALICIA VIKANDER","TEXT2601"]
["TEXT2602","ALICIA VIKANDER","TEXT2602"]
["TEXT2603","ALICIA VIKANDER","TEXT2603"]
["TEXT2604","ALICIA VIKANDER","TEXT2604"]
["TEXT2605","ALICIA VIKANDER","TEXT2605"]
["TEXT2606","ALICIA VIKANDER","TEXT2606"]
["TEXT2607","ALICIA VIKANDER","TEXT2607"]
["TEXT2608","ALICIA VIKANDER","TEXT2608"]
["TEXT2609","ALICIA VIKANDER","TEXT2609"]
["TEXT2610","ALICIA VIKANDER","TEXT2610"]
["TEXT2611","ALICIA VIKANDER","TEXT2611"]
["TEXT2612","ALICIA VIKANDER","TEXT2612"]
["TEXT2613","ALICIA VIKANDER","TEXT2613"]
["TEXT2614","ALICIA VIKANDER","TEXT2614"]
["TEXT2615","ALICIA VIKANDER","TEXT2615"]
["TEXT2616","ALICIA VIKANDER","TEXT2616"]
["TEXT2617","ALICIA VIKANDER","TEXT2617"]
["TEXT2618","ALICIA VIKANDER","TEXT2618"]
["TEXT2619","ALICIA VIKANDER","TEXT2619"]
["TEXT2620","ALICIA VIKANDER","TEXT2620"]
["TEXT2621","ALICIA VIKANDER","TEXT2621"]
["TEXT2622","ALICIA VIKANDER","TEXT2622"]
["TEXT2623","ALICIA VIKANDER","TEXT2623"]
["TEXT2624","ALICIA VIKANDER","TEXT2624"]
["TEXT2625","ALICIA VIKANDER","TEXT2625"]
[{"$f":"\"TEXT\"&ROW()","v":"TEXT2626"},"ALICIA VIKANDER","TEXT2626"]
["TEXT2627","ALICIA VIKANDER","TEXT2627"]
["TEXT2628","ALICIA VIKANDER","TEXT2628"]
["TEXT2629","ALICIA VIKANDER","TEXT2629"]
["TEXT2630","ALICIA VIKANDER","TEXT2630"]
["TEXT2631","ALICIA VIKANDER","TEXT2631"]
["TEXT2632","ALICIA VIKANDER","TEXT2632"]
["TEXT2633","ALICIA VIKANDER","TEXT2633"]
["TEXT2634","ALICIA VIKANDER","TEXT2634"]
["TEXT2635","ALICIA VIKANDER","TEXT2635"]
["TEXT2636","ALICIA VIKANDER","TEXT2636"]
["TEXT2637","ALICIA VIKANDER","TEXT2637"]
["TEXT2638","ALICIA VIKANDER","TEXT2638"]
["TEXT2639","ALICIA VIKANDER","TEXT2639"]
["TEXT2640","ALICIA VIKANDER","TEXT2640"]
["TEXT2641","ALICIA VIKANDER","TEXT2641"]
["TEXT2642","ALICIA VIKANDER","TEXT2642"]
["TEXT2643","ALICIA VIKANDER","TEXT2643"]
["TEXT2644","ALICIA VIKANDER","TEXT2644"]
["TEXT2645","ALICIA VIKANDER","TEXT2645"]
["TEXT2646","ALICIA VIKANDER","TEXT2646"]
["TEXT2647","ALICIA VIKANDER","TEXT2647"]
["TEXT2648","ALICIA VIKANDER","TEXT2648"]
["TEXT2649","ALICIA VIKANDER","TEXT2649"]
["TEXT2650","ALICIA VIKANDER","TEXT2650"]
["TEXT2651","ALICIA VIKANDER","TEXT2651"]
["TEXT2652","ALICIA VIKANDER","TEXT2652"]
["TEXT2653","ALICIA VIKANDER","TEXT2653"]
["TEXT2654","ALICIA VIKANDER","TEXT2654"]
["TEXT2655","ALICIA VIKANDER","TEXT2655"]
["TEXT2656","ALICIA VIKANDER","TEXT2656"]
["TEXT2657","ALICIA VIKANDER","TEXT2657"]
["TEXT2658","ALICIA VIKANDER","TEXT2658"]
["TEXT2659","KATRINA BOWDEN","TEXT2659"]
["TEXT2660","KATRINA BOWDEN","TEXT2660"]
["TEXT2661","KATRINA BOWDEN","TEXT2661"]
["TEXT2662","RITU ARYA","TEXT2662"]
["TEXT2663","RITU ARYA","TEXT2663"]
["TEXT2664","CLARA PAGET","TEXT2664"]
["TEXT2665","CLARA PAGET","TEXT2665"]
["TEXT2666","CLARA PAGET","TEXT2666"]
["TEXT2667","CLARA PAGET","TEXT2667"]
["TEXT2668","CLARA PAGET","TEXT2668"]
["TEXT2669","CLARA PAGET","TEXT2669"]
["TEXT2670","CLARA PAGET","TEXT2670"]
["TEXT2671","CLARA PAGET","TEXT2671"]
["TEXT2672","MELISSA O'NEIL","TEXT2672"]
["TEXT2673","MELISSA O'NEIL","TEXT2673"]
["TEXT2674","ANA DE ARMAS","TEXT2674"]
["TEXT2675","ANA DE ARMAS","TEXT2675"]
["TEXT2676","ANA DE ARMAS","TEXT2676"]
["TEXT2677","ANA DE ARMAS","TEXT2677"]
["TEXT2678","ANA DE ARMAS","TEXT2678"]
["TEXT2679","ANA DE ARMAS","TEXT2679"]
["TEXT2680","ANA DE ARMAS","TEXT2680"]
["TEXT2681","ANA DE ARMAS","TEXT2681"]
["TEXT2682","ANA DE ARMAS","TEXT2682"]
["TEXT2683","ANA DE ARMAS","TEXT2683"]
["TEXT2684","ANA DE ARMAS","TEXT2684"]
["TEXT2685","ANA DE ARMAS","TEXT2685"]
["TEXT2686","ANA DE ARMAS","TEXT2686"]
["TEXT2687","ANA DE ARMAS","TEXT2687"]
["TEXT2688","ANA DE ARMAS","TEXT2688"]
["TEXT2689","ANA DE ARMAS","TEXT2689"]
[{"$f":"\"TEXT\"&ROW()","v":"TEXT2690"},"ANA DE ARMAS","TEXT2690"]
["TEXT2691","ANA DE ARMAS","TEXT2691"]
["TEXT2692","ANA DE ARMAS","TEXT2692"]
["TEXT2693","ANA DE ARMAS","TEXT2693"]
["TEXT2694","ANA DE ARMAS","TEXT2694"]
["TEXT2695","ANA DE ARMAS","TEXT2695"]
["TEXT2696","ANA DE ARMAS","TEXT2696"]
["TEXT2697","ANA DE ARMAS","TEXT2697"]
["TEXT2698","ANA DE ARMAS","TEXT2698"]
["TEXT2699","ANA DE ARMAS","TEXT2699"]
["TEXT2700","ANA DE ARMAS","TEXT2700"]
["TEXT2701","ANA DE ARMAS","TEXT2701"]
["TEXT2702","ANA DE ARMAS","TEXT2702"]
["TEXT2703","ANA DE ARMAS","TEXT2703"]
["TEXT2704","ANA DE ARMAS","TEXT2704"]
["TEXT2705","ANA DE ARMAS","TEXT2705"]
["TEXT2706","ANA DE ARMAS","TEXT2706"]
["TEXT2707","ANA DE ARMAS","TEXT2707"]
["TEXT2708","ANA DE ARMAS","TEXT2708"]
["TEXT2709","ANA DE ARMAS","TEXT2709"]
["TEXT2710","ANA DE ARMAS","TEXT2710"]
["TEXT2711","ANA DE ARMAS","TEXT2711"]
["TEXT2712","ANA DE ARMAS","TEXT2712"]
["TEXT2713","ANA DE ARMAS","TEXT2713"]
["TEXT2714","ANA DE ARMAS","TEXT2714"]
["TEXT2715","ANA DE ARMAS","TEXT2715"]
["TEXT2716","ANA DE ARMAS","TEXT2716"]
["TEXT2717","ANA DE ARMAS","TEXT2717"]
["TEXT2718","ANA DE ARMAS","TEXT2718"]
["TEXT2719","ANA DE ARMAS","TEXT2719"]
["TEXT2720","ANA DE ARMAS","TEXT2720"]
["TEXT2721","ANA DE ARMAS","TEXT2721"]
["TEXT2722","ANA DE ARMAS","TEXT2722"]
["TEXT2723","ANA DE ARMAS","TEXT2723"]
["TEXT2724","ANA DE ARMAS","TEXT2724"]
["TEXT2725","ANA DE ARMAS","TEXT2725"]
["TEXT2726","ANA DE ARMAS","TEXT2726"]
["TEXT2727","ANA DE ARMAS","TEXT2727"]
["TEXT2728","ANA DE ARMAS","TEXT2728"]
["TEXT2729","ANA DE ARMAS","TEXT2729"]
["TEXT2730","ANA DE ARMAS","TEXT2730"]
["TEXT2731","ANA DE ARMAS","TEXT2731"]
["TEXT2732","ANA DE ARMAS","TEXT2732"]
["TEXT2733","ANA DE ARMAS","TEXT2733"]
["TEXT2734","ANA DE ARMAS","TEXT2734"]
["TEXT2735","ANA DE ARMAS","TEXT2735"]
["TEXT2736","ANA DE ARMAS","TEXT2736"]
["TEXT2737","ANA DE ARMAS","TEXT2737"]
["TEXT2738","ANA DE ARMAS","TEXT2738"]
["TEXT2739","ANA DE ARMAS","TEXT2739"]
["TEXT2740","ANA DE ARMAS","TEXT2740"]
["TEXT2741","ANA DE ARMAS","TEXT2741"]
["TEXT2742","ANA DE ARMAS","TEXT2742"]
["TEXT2743","ANA DE ARMAS","TEXT2743"]
["TEXT2744","ANA DE ARMAS","TEXT2744"]
["TEXT2745","ANA DE ARMAS","TEXT2745"]
["TEXT2746","SARA PAXTON","TEXT2746"]
["TEXT2747","SARA PAXTON","TEXT2747"]
["TEXT2748","SARA PAXTON","TEXT2748"]
["TEXT2749","HOLLIDAY GRAINGER","TEXT2749"]
["TEXT2750","HOLLIDAY GRAINGER","TEXT2750"]
["TEXT2751","HOLLIDAY GRAINGER","TEXT2751"]
["TEXT2752","HOLLIDAY GRAINGER","TEXT2752"]
["TEXT2753","HOLLIDAY GRAINGER","TEXT2753"]
[{"$f":"\"TEXT\"&ROW()","v":"TEXT2754"},"HOLLIDAY GRAINGER","TEXT2754"]
["TEXT2755","HOLLIDAY GRAINGER","TEXT2755"]
["TEXT2756","HOLLIDAY GRAINGER","TEXT2756"]
["TEXT2757","HOLLIDAY GRAINGER","TEXT2757"]
["TEXT2758","HOLLIDAY GRAINGER","TEXT2758"]
["TEXT2759","HOLLIDAY GRAINGER","TEXT2759"]
["TEXT2760","HOLLIDAY GRAINGER","TEXT2760"]
["TEXT2761","HOLLIDAY GRAINGER","TEXT2761"]
["TEXT2762","HOLLIDAY GRAINGER","TEXT2762"]
["TEXT2763","HOLLIDAY GRAINGER","TEXT2763"]
["TEXT2764","HOLLIDAY GRAINGER","TEXT2764"]
["TEXT2765","HOLLIDAY GRAINGER","TEXT2765"]
["TEXT2766","HOLLIDAY GRAINGER","TEXT2766"]
["TEXT2767","HOLLIDAY GRAINGER","TEXT2767"]
["TEXT2768","HOLLIDAY GRAINGER","TEXT2768"]
["TEXT2769","HOLLIDAY GRAINGER","TEXT2769"]
["TEXT2770","HOLLIDAY GRAINGER","TEXT2770"]
["TEXT2771","HOLLIDAY GRAINGER","TEXT2771"]
["TEXT2772","HOLLIDAY GRAINGER","TEXT2772"]
["TEXT2773","HOLLIDAY GRAINGER","TEXT2773"]
["TEXT2774","HOLLIDAY GRAINGER","TEXT2774"]
["TEXT2775","HOLLIDAY GRAINGER","TEXT2775"]
["TEXT2776","HOLLIDAY GRAINGER","TEXT2776"]
["TEXT2777","HOLLIDAY GRAINGER","TEXT2777"]
["TEXT2778","HOLLIDAY GRAINGER","TEXT2778"]
["TEXT2779","HOLLIDAY GRAINGER","TEXT2779"]
["TEXT2780","HOLLIDAY GRAINGER","TEXT2780"]
["TEXT2781","TANIA RAYMONDE","TEXT2781"]
["TEXT2782","TANIA RAYMONDE","TEXT2782"]
["TEXT2783","TANIA RAYMONDE","TEXT2783"]
["TEXT2784","TANIA RAYMONDE","TEXT2784"]
["TEXT2785","TANIA RAYMONDE","TEXT2785"]
["TEXT2786","TANIA RAYMONDE","TEXT2786"]
["TEXT2787","ZOSIA MAMET","TEXT2787"]
["TEXT2788","ZOSIA MAMET","TEXT2788"]
["TEXT2789","ZOSIA MAMET","TEXT2789"]
["TEXT2790","ZOSIA MAMET","TEXT2790"]
["TEXT2791","ZOSIA MAMET","TEXT2791"]
["TEXT2792","HALEY BENNETT","TEXT2792"]
["TEXT2793","HALEY BENNETT","TEXT2793"]
["TEXT2794","HALEY BENNETT","TEXT2794"]
["TEXT2795","HALEY BENNETT","TEXT2795"]
["TEXT2796","HALEY BENNETT","TEXT2796"]
["TEXT2797","HALEY BENNETT","TEXT2797"]
["TEXT2798","HALEY BENNETT","TEXT2798"]
["TEXT2799","HALEY BENNETT","TEXT2799"]
["TEXT2800","HALEY BENNETT","TEXT2800"]
["TEXT2801","HALEY BENNETT","TEXT2801"]
["TEXT2802","HALEY BENNETT","TEXT2802"]
["TEXT2803","HALEY BENNETT","TEXT2803"]
["TEXT2804","HALEY BENNETT","TEXT2804"]
["TEXT2805","HALEY BENNETT","TEXT2805"]
["TEXT2806","HALEY BENNETT","TEXT2806"]
["TEXT2807","HALEY BENNETT","TEXT2807"]
["TEXT2808","HALEY BENNETT","TEXT2808"]
["TEXT2809","HALEY BENNETT","TEXT2809"]
["TEXT2810","HALEY BENNETT","TEXT2810"]
["TEXT2811","HALEY BENNETT","TEXT2811"]
["TEXT2812","CHARLIE MURPHY","TEXT2812"]
["TEXT2813","CHARLIE MURPHY","TEXT2813"]
["TEXT2814","CHARLIE MURPHY","TEXT2814"]
["TEXT2815","CHARLIE MURPHY","TEXT2815"]
["TEXT2816","CHARLIE MURPHY","TEXT2816"]
["TEXT2817","CHARLIE MURPHY","TEXT2817"]
[{"$f":"\"TEXT\"&ROW()","v":"TEXT2818"},"CHARLIE MURPHY","TEXT2818"]
["TEXT2819","CHARLIE MURPHY","TEXT2819"]
["TEXT2820","CHARLIE MURPHY","TEXT2820"]
["TEXT2821","CHARLIE MURPHY","TEXT2821"]
["TEXT2822","CHARLIE MURPHY","TEXT2822"]
["TEXT2823","CHARLIE MURPHY","TEXT2823"]
["TEXT2824","CHARLIE MURPHY","TEXT2824"]
["TEXT2825","CHARLIE MURPHY","TEXT2825"]
["TEXT2826","CHARLIE MURPHY","TEXT2826"]
["TEXT2827","CHARLIE MURPHY","TEXT2827"]
["TEXT2828","CHARLIE MURPHY","TEXT2828"]
["TEXT2829","CHARLIE MURPHY","TEXT2829"]
["TEXT2830","CHARLIE MURPHY","TEXT2830"]
["TEXT2831","KAREN GILLAN","TEXT2831"]
["TEXT2832","KAREN GILLAN","TEXT2832"]
["TEXT2833","KAREN GILLAN","TEXT2833"]
["TEXT2834","KAREN GILLAN","TEXT2834"]
["TEXT2835","KAREN GILLAN","TEXT2835"]
["TEXT2836","KAREN GILLAN","TEXT2836"]
["TEXT2837","RENATE REINSVE","TEXT2837"]
["TEXT2838","RENATE REINSVE","TEXT2838"]
["TEXT2839","RENATE REINSVE","TEXT2839"]
["TEXT2840","RENATE REINSVE","TEXT2840"]
["TEXT2841","RENATE REINSVE","TEXT2841"]
["TEXT2842","RENATE REINSVE","TEXT2842"]
["TEXT2843","RENATE REINSVE","TEXT2843"]
["TEXT2844","RENATE REINSVE","TEXT2844"]
["TEXT2845","RENATE REINSVE","TEXT2845"]
["TEXT2846","RENATE REINSVE","TEXT2846"]
["TEXT2847","RENATE REINSVE","TEXT2847"]
["TEXT2848","RENATE REINSVE","TEXT2848"]
["TEXT2849","RENATE REINSVE","TEXT2849"]
["TEXT2850","RENATE REINSVE","TEXT2850"]
["TEXT2851","RENATE REINSVE","TEXT2851"]
["TEXT2852","RENATE REINSVE","TEXT2852"]
["TEXT2853","AIMEE-FFION EDWARDS","TEXT2853"]
["TEXT2854","AIMEE-FFION EDWARDS","TEXT2854"]
["TEXT2855","AIMEE-FFION EDWARDS","TEXT2855"]
["TEXT2856","AIMEE-FFION EDWARDS","TEXT2856"]
["TEXT2857","JENNIFER HOLLAND","TEXT2857"]
["TEXT2858","JENNIFER HOLLAND","TEXT2858"]
["TEXT2859","JENNIFER HOLLAND","TEXT2859"]
["TEXT2860","JENNIFER HOLLAND","TEXT2860"]
["TEXT2861","JENNIFER HOLLAND","TEXT2861"]
["TEXT2862","JENNIFER HOLLAND","TEXT2862"]
["TEXT2863","CLEOPATRA COLEMAN","TEXT2863"]
["TEXT2864","CLEOPATRA COLEMAN","TEXT2864"]
["TEXT2865","CLEOPATRA COLEMAN","TEXT2865"]
["TEXT2866","CLEOPATRA COLEMAN","TEXT2866"]
["TEXT2867","CLEOPATRA COLEMAN","TEXT2867"]
["TEXT2868","CLEOPATRA COLEMAN","TEXT2868"]
["TEXT2869","CLEOPATRA COLEMAN","TEXT2869"]
["TEXT2870","HILARY DUFF","TEXT2870"]
["TEXT2871","HILARY DUFF","TEXT2871"]
["TEXT2872","HILARY DUFF","TEXT2872"]
["TEXT2873","HILARY DUFF","TEXT2873"]
["TEXT2874","HILARY DUFF","TEXT2874"]
["TEXT2875","HILARY DUFF","TEXT2875"]
["TEXT2876","EVAN RACHEL WOOD","TEXT2876"]
["TEXT2877","EVAN RACHEL WOOD","TEXT2877"]
["TEXT2878","EVAN RACHEL WOOD","TEXT2878"]
["TEXT2879","EVAN RACHEL WOOD","TEXT2879"]
["TEXT2880","EVAN RACHEL WOOD","TEXT2880"]
["TEXT2881","EVAN RACHEL WOOD","TEXT2881"]
[{"$f":"\"TEXT\"&ROW()","v":"TEXT2882"},"EVAN RACHEL WOOD","TEXT2882"]
["TEXT2883","EVAN RACHEL WOOD","TEXT2883"]
["TEXT2884","EVAN RACHEL WOOD","TEXT2884"]
["TEXT2885","EVAN RACHEL WOOD","TEXT2885"]
["TEXT2886","EVAN RACHEL WOOD","TEXT2886"]
["TEXT2887","EVAN RACHEL WOOD","TEXT2887"]
["TEXT2888","EVAN RACHEL WOOD","TEXT2888"]
["TEXT2889","EVAN RACHEL WOOD","TEXT2889"]
["TEXT2890","EVAN RACHEL WOOD","TEXT2890"]
["TEXT2891","EVAN RACHEL WOOD","TEXT2891"]
["TEXT2892","EVAN RACHEL WOOD","TEXT2892"]
["TEXT2893","EVAN RACHEL WOOD","TEXT2893"]
["TEXT2894","EVAN RACHEL WOOD","TEXT2894"]
["TEXT2895","EVAN RACHEL WOOD","TEXT2895"]
["TEXT2896","EVAN RACHEL WOOD","TEXT2896"]
["TEXT2897","EVAN RACHEL WOOD","TEXT2897"]
["TEXT2898","EVAN RACHEL WOOD","TEXT2898"]
["TEXT2899","EVAN RACHEL WOOD","TEXT2899"]
["TEXT2900","EVAN RACHEL WOOD","TEXT2900"]
["TEXT2901","EVAN RACHEL WOOD","TEXT2901"]
["TEXT2902","EVAN RACHEL WOOD","TEXT2902"]
["TEXT2903","EVAN RACHEL WOOD","TEXT2903"]
["TEXT2904","EVAN RACHEL WOOD","TEXT2904"]
["TEXT2905","EVAN RACHEL WOOD","TEXT2905"]
["TEXT2906","EVAN RACHEL WOOD","TEXT2906"]
["TEXT2907","EVAN RACHEL WOOD","TEXT2907"]
["TEXT2908","EVAN RACHEL WOOD","TEXT2908"]
["TEXT2909","EVAN RACHEL WOOD","TEXT2909"]
["TEXT2910","EVAN RACHEL WOOD","TEXT2910"]
["TEXT2911","EVAN RACHEL WOOD","TEXT2911"]
["TEXT2912","EVAN RACHEL WOOD","TEXT2912"]
["TEXT2913","EVAN RACHEL WOOD","TEXT2913"]
["TEXT2914","EVAN RACHEL WOOD","TEXT2914"]
["TEXT2915","EVAN RACHEL WOOD","TEXT2915"]
["TEXT2916","EVAN RACHEL WOOD","TEXT2916"]
["TEXT2917","EVAN RACHEL WOOD","TEXT2917"]
["TEXT2918","EVAN RACHEL WOOD","TEXT2918"]
["TEXT2919","EVAN RACHEL WOOD","TEXT2919"]
["TEXT2920","EVAN RACHEL WOOD","TEXT2920"]
["TEXT2921","EVAN RACHEL WOOD","TEXT2921"]
["TEXT2922","EVAN RACHEL WOOD","TEXT2922"]
["TEXT2923","EVAN RACHEL WOOD","TEXT2923"]
["TEXT2924","EVAN RACHEL WOOD","TEXT2924"]
["TEXT2925","EVAN RACHEL WOOD","TEXT2925"]
["TEXT2926","EVAN RACHEL WOOD","TEXT2926"]
["TEXT2927","EVAN RACHEL WOOD","TEXT2927"]
["TEXT2928","EVAN RACHEL WOOD","TEXT2928"]
["TEXT2929","EVAN RACHEL WOOD","TEXT2929"]
["TEXT2930","EVAN RACHEL WOOD","TEXT2930"]
["TEXT2931","EVAN RACHEL WOOD","TEXT2931"]
["TEXT2932","EVAN RACHEL WOOD","TEXT2932"]
["TEXT2933","EVAN RACHEL WOOD","TEXT2933"]
["TEXT2934","EVAN RACHEL WOOD","TEXT2934"]
["TEXT2935","EVAN RACHEL WOOD","TEXT2935"]
["TEXT2936","EVAN RACHEL WOOD","TEXT2936"]
["TEXT2937","EVAN RACHEL WOOD","TEXT2937"]
["TEXT2938","BLAKE LIVELY","TEXT2938"]
["TEXT2939","BLAKE LIVELY","TEXT2939"]
["TEXT2940","BLAKE LIVELY","TEXT2940"]
["TEXT2941","BLAKE LIVELY","TEXT2941"]
["TEXT2942","BLAKE LIVELY","TEXT2942"]
["TEXT2943","BLAKE LIVELY","TEXT2943"]
["TEXT2944","BLAKE LIVELY","TEXT2944"]
["TEXT2945","BLAKE LIVELY","TEXT2945"]
[{"$f":"\"TEXT\"&ROW()","v":"TEXT2946"},"BLAKE LIVELY","TEXT2946"]
["TEXT2947","BLAKE LIVELY","TEXT2947"]
["TEXT2948","BLAKE LIVELY","TEXT2948"]
["TEXT2949","BLAKE LIVELY","TEXT2949"]
["TEXT2950","BLAKE LIVELY","TEXT2950"]
["TEXT2951","CHLOE PIRRIE","TEXT2951"]
["TEXT2952","CHLOE PIRRIE","TEXT2952"]
["TEXT2953","CHLOE PIRRIE","TEXT2953"]
["TEXT2954","CHLOE PIRRIE","TEXT2954"]
["TEXT2955","CHLOE PIRRIE","TEXT2955"]
["TEXT2956","CHLOE PIRRIE","TEXT2956"]
["TEXT2957","CHLOE PIRRIE","TEXT2957"]
["TEXT2958","CHLOE PIRRIE","TEXT2958"]
["TEXT2959","CHLOE PIRRIE","TEXT2959"]
["TEXT2960","ABBEY LEE","TEXT2960"]
["TEXT2961","ABBEY LEE","TEXT2961"]
["TEXT2962","ABBEY LEE","TEXT2962"]
["TEXT2963","ABBEY LEE","TEXT2963"]
["TEXT2964","ABBEY LEE","TEXT2964"]
["TEXT2965","ABBEY LEE","TEXT2965"]
["TEXT2966","ABBEY LEE","TEXT2966"]
["TEXT2967","ABBEY LEE","TEXT2967"]
["TEXT2968","ABBEY LEE","TEXT2968"]
["TEXT2969","ABBEY LEE","TEXT2969"]
["TEXT2970","ABBEY LEE","TEXT2970"]
["TEXT2971","ABBEY LEE","TEXT2971"]
["TEXT2972","ABBEY LEE","TEXT2972"]
["TEXT2973","ABBEY LEE","TEXT2973"]
["TEXT2974","ABBEY LEE","TEXT2974"]
["TEXT2975","ABBEY LEE","TEXT2975"]
["TEXT2976","ABBEY LEE","TEXT2976"]
["TEXT2977","ABBEY LEE","TEXT2977"]
["TEXT2978","ABBEY LEE","TEXT2978"]
["TEXT2979","ABBEY LEE","TEXT2979"]
["TEXT2980","ABBEY LEE","TEXT2980"]
["TEXT2981","ABBEY LEE","TEXT2981"]
["TEXT2982","ABBEY LEE","TEXT2982"]
["TEXT2983","ABBEY LEE","TEXT2983"]
["TEXT2984","ABBEY LEE","TEXT2984"]
["TEXT2985","ABBEY LEE","TEXT2985"]
["TEXT2986","JAVICIA LESLIE","TEXT2986"]
["TEXT2987","BELLA HEATHCOTE","TEXT2987"]
["TEXT2988","BELLA HEATHCOTE","TEXT2988"]
["TEXT2989","BELLA HEATHCOTE","TEXT2989"]
["TEXT2990","BELLA HEATHCOTE","TEXT2990"]
["TEXT2991","BELLA HEATHCOTE","TEXT2991"]
["TEXT2992","BELLA HEATHCOTE","TEXT2992"]
["TEXT2993","BELLA HEATHCOTE","TEXT2993"]
["TEXT2994","BELLA HEATHCOTE","TEXT2994"]
["TEXT2995","BELLA HEATHCOTE","TEXT2995"]
["TEXT2996","BELLA HEATHCOTE","TEXT2996"]
["TEXT2997","BELLA HEATHCOTE","TEXT2997"]
["TEXT2998","BELLA HEATHCOTE","TEXT2998"]
["TEXT2999","BELLA HEATHCOTE","TEXT2999"]
["TEXT3000","BELLA HEATHCOTE","TEXT3000"]
["TEXT3001","BELLA HEATHCOTE","TEXT3001"]
["TEXT3002","BELLA HEATHCOTE","TEXT3002"]
["TEXT3003","BELLA HEATHCOTE","TEXT3003"]
["TEXT3004","BELLA HEATHCOTE","TEXT3004"]
["TEXT3005","BELLA HEATHCOTE","TEXT3005"]
["TEXT3006","BELLA HEATHCOTE","TEXT3006"]
["TEXT3007","BELLA HEATHCOTE","TEXT3007"]
["TEXT3008","BELLA HEATHCOTE","TEXT3008"]
["TEXT3009","BELLA HEATHCOTE","TEXT3009"]
[{"$f":"\"TEXT\"&ROW()","v":"TEXT3010"},"BELLA HEATHCOTE","TEXT3010"]
["TEXT3011","BELLA HEATHCOTE","TEXT3011"]
["TEXT3012","BELLA HEATHCOTE","TEXT3012"]
["TEXT3013","BELLA HEATHCOTE","TEXT3013"]
["TEXT3014","BELLA HEATHCOTE","TEXT3014"]
["TEXT3015","BELLA HEATHCOTE","TEXT3015"]
["TEXT3016","BELLA HEATHCOTE","TEXT3016"]
["TEXT3017","BELLA HEATHCOTE","TEXT3017"]
["TEXT3018","BELLA HEATHCOTE","TEXT3018"]
["TEXT3019","BELLA HEATHCOTE","TEXT3019"]
["TEXT3020","BELLA HEATHCOTE","TEXT3020"]
["TEXT3021","BELLA HEATHCOTE","TEXT3021"]
["TEXT3022","MAYA ERSKINE","TEXT3022"]
["TEXT3023","MAYA ERSKINE","TEXT3023"]
["TEXT3024","MAYA ERSKINE","TEXT3024"]
["TEXT3025","MAYA ERSKINE","TEXT3025"]
["TEXT3026","MAYA ERSKINE","TEXT3026"]
["TEXT3027","MAYA ERSKINE","TEXT3027"]
["TEXT3028","MAE MARTIN","TEXT3028"]
["TEXT3029","MAE MARTIN","TEXT3029"]
["TEXT3030","MAE MARTIN","TEXT3030"]
["TEXT3031","MAE MARTIN","TEXT3031"]
["TEXT3032","MAE MARTIN","TEXT3032"]
["TEXT3033","MAE MARTIN","TEXT3033"]
["TEXT3034","MAE MARTIN","TEXT3034"]
["TEXT3035","MAE MARTIN","TEXT3035"]
["TEXT3036","MAE MARTIN","TEXT3036"]
["TEXT3037","MAE MARTIN","TEXT3037"]
["TEXT3038","MAE MARTIN","TEXT3038"]
["TEXT3039","MAE MARTIN","TEXT3039"]
["TEXT3040","MAE MARTIN","TEXT3040"]
["TEXT3041","MAE MARTIN","TEXT3041"]
["TEXT3042","MAE MARTIN","TEXT3042"]
["TEXT3043","MAE MARTIN","TEXT3043"]
["TEXT3044","MAE MARTIN","TEXT3044"]
["TEXT3045","MAE MARTIN","TEXT3045"]
["TEXT3046","MAE MARTIN","TEXT3046"]
["TEXT3047","MAE MARTIN","TEXT3047"]
["TEXT3048","MAE MARTIN","TEXT3048"]
["TEXT3049","MAE MARTIN","TEXT3049"]
["TEXT3050","MAE MARTIN","TEXT3050"]
["TEXT3051","MAE MARTIN","TEXT3051"]
["TEXT3052","MAE MARTIN","TEXT3052"]
["TEXT3053","MAE MARTIN","TEXT3053"]
["TEXT3054","MAE MARTIN","TEXT3054"]
["TEXT3055","MAE MARTIN","TEXT3055"]
["TEXT3056","MAE MARTIN","TEXT3056"]
["TEXT3057","MAE MARTIN","TEXT3057"]
["TEXT3058","VANESSA KIRBY","TEXT3058"]
["TEXT3059","VANESSA KIRBY","TEXT3059"]
["TEXT3060","VANESSA KIRBY","TEXT3060"]
["TEXT3061","VANESSA KIRBY","TEXT3061"]
["TEXT3062","VANESSA KIRBY","TEXT3062"]
["TEXT3063","VANESSA KIRBY","TEXT3063"]
["TEXT3064","VANESSA KIRBY","TEXT3064"]
["TEXT3065","VANESSA KIRBY","TEXT3065"]
["TEXT3066","VANESSA KIRBY","TEXT3066"]
["TEXT3067","VANESSA KIRBY","TEXT3067"]
["TEXT3068","VANESSA KIRBY","TEXT3068"]
["TEXT3069","VANESSA KIRBY","TEXT3069"]
["TEXT3070","VANESSA KIRBY","TEXT3070"]
["TEXT3071","VANESSA KIRBY","TEXT3071"]
["TEXT3072","VANESSA KIRBY","TEXT3072"]
["TEXT3073","PHOEBE FOX","TEXT3073"]
[{"$f":"\"TEXT\"&ROW()","v":"TEXT3074"},"PHOEBE FOX","TEXT3074"]
["TEXT3075","PHOEBE FOX","TEXT3075"]
["TEXT3076","PHOEBE FOX","TEXT3076"]
["TEXT3077","PHOEBE FOX","TEXT3077"]
["TEXT3078","SARAH GADON","TEXT3078"]
["TEXT3079","SARAH GADON","TEXT3079"]
["TEXT3080","SARAH GADON","TEXT3080"]
["TEXT3081","SARAH GADON","TEXT3081"]
["TEXT3082","SARAH GADON","TEXT3082"]
["TEXT3083","SARAH GADON","TEXT3083"]
["TEXT3084","SARAH GADON","TEXT3084"]
["TEXT3085","SARAH GADON","TEXT3085"]
["TEXT3086","SARAH GADON","TEXT3086"]
["TEXT3087","SARAH GADON","TEXT3087"]
["TEXT3088","SARAH GADON","TEXT3088"]
["TEXT3089","SARAH GADON","TEXT3089"]
["TEXT3090","SARAH GADON","TEXT3090"]
["TEXT3091","SARAH GADON","TEXT3091"]
["TEXT3092","SARAH GADON","TEXT3092"]
["TEXT3093","SARAH GADON","TEXT3093"]
["TEXT3094","SARAH GADON","TEXT3094"]
["TEXT3095","SARAH GADON","TEXT3095"]
["TEXT3096","SARAH GADON","TEXT3096"]
["TEXT3097","SARAH GADON","TEXT3097"]
["TEXT3098","SARAH GADON","TEXT3098"]
["TEXT3099","SARAH GADON","TEXT3099"]
["TEXT3100","SARAH GADON","TEXT3100"]
["TEXT3101","MACKENZIE DAVIS","TEXT3101"]
["TEXT3102","MACKENZIE DAVIS","TEXT3102"]
["TEXT3103","MACKENZIE DAVIS","TEXT3103"]
["TEXT3104","MACKENZIE DAVIS","TEXT3104"]
["TEXT3105","MACKENZIE DAVIS","TEXT3105"]
["TEXT3106","MACKENZIE DAVIS","TEXT3106"]
["TEXT3107","MACKENZIE DAVIS","TEXT3107"]
["TEXT3108","MACKENZIE DAVIS","TEXT3108"]
["TEXT3109","MACKENZIE DAVIS","TEXT3109"]
["TEXT3110","MACKENZIE DAVIS","TEXT3110"]
["TEXT3111","MACKENZIE DAVIS","TEXT3111"]
["TEXT3112","MACKENZIE DAVIS","TEXT3112"]
["TEXT3113","MACKENZIE DAVIS","TEXT3113"]
["TEXT3114","MACKENZIE DAVIS","TEXT3114"]
["TEXT3115","MACKENZIE DAVIS","TEXT3115"]
["TEXT3116","MACKENZIE DAVIS","TEXT3116"]
["TEXT3117","MACKENZIE DAVIS","TEXT3117"]
["TEXT3118","MACKENZIE DAVIS","TEXT3118"]
["TEXT3119","MACKENZIE DAVIS","TEXT3119"]
["TEXT3120","ASHLEY GREENE","TEXT3120"]
["TEXT3121","ASHLEY GREENE","TEXT3121"]
["TEXT3122","ASHLEY GREENE","TEXT3122"]
["TEXT3123","ASHLEY GREENE","TEXT3123"]
["TEXT3124","ASHLEY GREENE","TEXT3124"]
["TEXT3125","ASHLEY GREENE","TEXT3125"]
["TEXT3126","ASHLEY GREENE","TEXT3126"]
["TEXT3127","ASHLEY GREENE","TEXT3127"]
["TEXT3128","ASHLEY GREENE","TEXT3128"]
["TEXT3129","ASHLEY GREENE","TEXT3129"]
["TEXT3130","ASHLEY GREENE","TEXT3130"]
["TEXT3131","ASHLEY GREENE","TEXT3131"]
["TEXT3132","ASHLEY GREENE","TEXT3132"]
["TEXT3133","ASHLEY GREENE","TEXT3133"]
["TEXT3134","ASHLEY GREENE","TEXT3134"]
["TEXT3135","ASHLEY GREENE","TEXT3135"]
["TEXT3136","ASHLEY GREENE","TEXT3136"]
["TEXT3137","ASHLEY GREENE","TEXT3137"]
[{"$f":"\"TEXT\"&ROW()","v":"TEXT3138"},"ASHLEY GREENE","TEXT3138"]
["TEXT3139","ASHLEY GREENE","TEXT3139"]
["TEXT3140","ASHLEY GREENE","TEXT3140"]
["TEXT3141","ASHLEY GREENE","TEXT3141"]
["TEXT3142","ASHLEY GREENE","TEXT3142"]
["TEXT3143","ASHLEY GREENE","TEXT3143"]
["TEXT3144","ASHLEY GREENE","TEXT3144"]
["TEXT3145","ASHLEY GREENE","TEXT3145"]
["TEXT3146","ROSE LESLIE","TEXT3146"]
["TEXT3147","ROSE LESLIE","TEXT3147"]
["TEXT3148","ROSE LESLIE","TEXT3148"]
["TEXT3149","ROSE LESLIE","TEXT3149"]
["TEXT3150","ROSE LESLIE","TEXT3150"]
["TEXT3151","ROSE LESLIE","TEXT3151"]
["TEXT3152","ROSE LESLIE","TEXT3152"]
["TEXT3153","ROSE LESLIE","TEXT3153"]
["TEXT3154","ROSE LESLIE","TEXT3154"]
["TEXT3155","ROSE LESLIE","TEXT3155"]
["TEXT3156","ROSE LESLIE","TEXT3156"]
["TEXT3157","ROSE LESLIE","TEXT3157"]
["TEXT3158","ROSE LESLIE","TEXT3158"]
["TEXT3159","ROSE LESLIE","TEXT3159"]
["TEXT3160","ROSE LESLIE","TEXT3160"]
["TEXT3161","ROSE LESLIE","TEXT3161"]
["TEXT3162","ROSE LESLIE","TEXT3162"]
["TEXT3163","ROSE LESLIE","TEXT3163"]
["TEXT3164","ROSE LESLIE","TEXT3164"]
["TEXT3165","ROSE LESLIE","TEXT3165"]
["TEXT3166","ROSE LESLIE","TEXT3166"]
["TEXT3167","ROSE LESLIE","TEXT3167"]
["TEXT3168","ROSE LESLIE","TEXT3168"]
["TEXT3169","ROSE LESLIE","TEXT3169"]
["TEXT3170","ROSE LESLIE","TEXT3170"]
["TEXT3171","ROSE LESLIE","TEXT3171"]
["TEXT3172","KIRBY HOWELL-BAPTISTE","TEXT3172"]
["TEXT3173","RUTH BRADLEY","TEXT3173"]
["TEXT3174","RUTH BRADLEY","TEXT3174"]
["TEXT3175","RUTH BRADLEY","TEXT3175"]
["TEXT3176","RUTH BRADLEY","TEXT3176"]
["TEXT3177","RUTH BRADLEY","TEXT3177"]
["TEXT3178","RUTH BRADLEY","TEXT3178"]
["TEXT3179","RUTH BRADLEY","TEXT3179"]
["TEXT3180","RUTH BRADLEY","TEXT3180"]
["TEXT3181","RUTH BRADLEY","TEXT3181"]
["TEXT3182","RUTH BRADLEY","TEXT3182"]
["TEXT3183","CYNTHIA ERIVO","TEXT3183"]
["TEXT3184","CYNTHIA ERIVO","TEXT3184"]
["TEXT3185","CYNTHIA ERIVO","TEXT3185"]
["TEXT3186","CYNTHIA ERIVO","TEXT3186"]
["TEXT3187","CYNTHIA ERIVO","TEXT3187"]
["TEXT3188","FAYE MARSAY","TEXT3188"]
["TEXT3189","FAYE MARSAY","TEXT3189"]
["TEXT3190","FAYE MARSAY","TEXT3190"]
["TEXT3191","FAYE MARSAY","TEXT3191"]
["TEXT3192","FAYE MARSAY","TEXT3192"]
["TEXT3193","FAYE MARSAY","TEXT3193"]
["TEXT3194","FAYE MARSAY","TEXT3194"]
["TEXT3195","FAYE MARSAY","TEXT3195"]
["TEXT3196","FAYE MARSAY","TEXT3196"]
["TEXT3197","FAYE MARSAY","TEXT3197"]
["TEXT3198","FAYE MARSAY","TEXT3198"]
["TEXT3199","FAYE MARSAY","TEXT3199"]
["TEXT3200","FAYE MARSAY","TEXT3200"]
["TEXT3201","KATIE CASSIDY","TEXT3201"]
[{"$f":"\"TEXT\"&ROW()","v":"TEXT3202"},"KATIE CASSIDY","TEXT3202"]
["TEXT3203","KATIE CASSIDY","TEXT3203"]
["TEXT3204","KATIE CASSIDY","TEXT3204"]
["TEXT3205","KATIE CASSIDY","TEXT3205"]
["TEXT3206","KATIE CASSIDY","TEXT3206"]
["TEXT3207","KATIE CASSIDY","TEXT3207"]
["TEXT3208","KATIE CASSIDY","TEXT3208"]
["TEXT3209","KATIE CASSIDY","TEXT3209"]
["TEXT3210","KATIE CASSIDY","TEXT3210"]
["TEXT3211","KANIEHTIIO HORN","TEXT3211"]
["TEXT3212","KANIEHTIIO HORN","TEXT3212"]
["TEXT3213","KANIEHTIIO HORN","TEXT3213"]
["TEXT3214","KANIEHTIIO HORN","TEXT3214"]
["TEXT3215","KANIEHTIIO HORN","TEXT3215"]
["TEXT3216","KANIEHTIIO HORN","TEXT3216"]
["TEXT3217","KANIEHTIIO HORN","TEXT3217"]
["TEXT3218","KANIEHTIIO HORN","TEXT3218"]
["TEXT3219","KANIEHTIIO HORN","TEXT3219"]
["TEXT3220","KANIEHTIIO HORN","TEXT3220"]
["TEXT3221","KANIEHTIIO HORN","TEXT3221"]
["TEXT3222","KANIEHTIIO HORN","TEXT3222"]
["TEXT3223","KANIEHTIIO HORN","TEXT3223"]
["TEXT3224","KANIEHTIIO HORN","TEXT3224"]
["TEXT3225","KANIEHTIIO HORN","TEXT3225"]
["TEXT3226","KANIEHTIIO HORN","TEXT3226"]
["TEXT3227","KANIEHTIIO HORN","TEXT3227"]
["TEXT3228","KANIEHTIIO HORN","TEXT3228"]
["TEXT3229","KANIEHTIIO HORN","TEXT3229"]
["TEXT3230","KANIEHTIIO HORN","TEXT3230"]
["TEXT3231","KANIEHTIIO HORN","TEXT3231"]
["TEXT3232","KANIEHTIIO HORN","TEXT3232"]
["TEXT3233","KANIEHTIIO HORN","TEXT3233"]
["TEXT3234","KANIEHTIIO HORN","TEXT3234"]
["TEXT3235","KANIEHTIIO HORN","TEXT3235"]
["TEXT3236","KANIEHTIIO HORN","TEXT3236"]
["TEXT3237","KANIEHTIIO HORN","TEXT3237"]
["TEXT3238","EMILIA CLARKE","TEXT3238"]
["TEXT3239","EMILIA CLARKE","TEXT3239"]
["TEXT3240","EMILIA CLARKE","TEXT3240"]
["TEXT3241","EMILIA CLARKE","TEXT3241"]
["TEXT3242","EMILIA CLARKE","TEXT3242"]
["TEXT3243","EMILIA CLARKE","TEXT3243"]
["TEXT3244","EMILIA CLARKE","TEXT3244"]
["TEXT3245","EMILIA CLARKE","TEXT3245"]
["TEXT3246","EMILIA CLARKE","TEXT3246"]
["TEXT3247","EMILIA CLARKE","TEXT3247"]
["TEXT3248","EMILIA CLARKE","TEXT3248"]
["TEXT3249","EMILIA CLARKE","TEXT3249"]
["TEXT3250","EMILIA CLARKE","TEXT3250"]
["TEXT3251","EMILIA CLARKE","TEXT3251"]
["TEXT3252","EMILIA CLARKE","TEXT3252"]
["TEXT3253","EMILIA CLARKE","TEXT3253"]
["TEXT3254","EMILIA CLARKE","TEXT3254"]
["TEXT3255","EMILIA CLARKE","TEXT3255"]
["TEXT3256","EMILIA CLARKE","TEXT3256"]
["TEXT3257","EMILIA CLARKE","TEXT3257"]
["TEXT3258","EMILIA CLARKE","TEXT3258"]
["TEXT3259","EMILIA CLARKE","TEXT3259"]
["TEXT3260","EMILIA CLARKE","TEXT3260"]
["TEXT3261","EMILIA CLARKE","TEXT3261"]
["TEXT3262","EMILIA CLARKE","TEXT3262"]
["TEXT3263","EMILIA CLARKE","TEXT3263"]
["TEXT3264","EMILIA CLARKE","TEXT3264"]
["TEXT3265","EMILIA CLARKE","TEXT3265"]
[{"$f":"\"TEXT\"&ROW()","v":"TEXT3266"},"EMILIA CLARKE","TEXT3266"]
["TEXT3267","EMILIA CLARKE","TEXT3267"]
["TEXT3268","EMILIA CLARKE","TEXT3268"]
["TEXT3269","EMILIA CLARKE","TEXT3269"]
["TEXT3270","EMILIA CLARKE","TEXT3270"]
["TEXT3271","EMILIA CLARKE","TEXT3271"]
["TEXT3272","EMILIA CLARKE","TEXT3272"]
["TEXT3273","EMILIA CLARKE","TEXT3273"]
["TEXT3274","EMILIA CLARKE","TEXT3274"]
["TEXT3275","EMILIA CLARKE","TEXT3275"]
["TEXT3276","EMILIA CLARKE","TEXT3276"]
["TEXT3277","EMILIA CLARKE","TEXT3277"]
["TEXT3278","EMILIA CLARKE","TEXT3278"]
["TEXT3279","EMILIA CLARKE","TEXT3279"]
["TEXT3280","EMILIA CLARKE","TEXT3280"]
["TEXT3281","EMILIA CLARKE","TEXT3281"]
["TEXT3282","EMILIA CLARKE","TEXT3282"]
["TEXT3283","EMILIA CLARKE","TEXT3283"]
["TEXT3284","EMILIA CLARKE","TEXT3284"]
["TEXT3285","EMILIA CLARKE","TEXT3285"]
["TEXT3286","EMILIA CLARKE","TEXT3286"]
["TEXT3287","EMILIA CLARKE","TEXT3287"]
["TEXT3288","EMILIA CLARKE","TEXT3288"]
["TEXT3289","EMILIA CLARKE","TEXT3289"]
["TEXT3290","EMILIA CLARKE","TEXT3290"]
["TEXT3291","EMILIA CLARKE","TEXT3291"]
["TEXT3292","EMILIA CLARKE","TEXT3292"]
["TEXT3293","EMILIA CLARKE","TEXT3293"]
["TEXT3294","EMILIA CLARKE","TEXT3294"]
["TEXT3295","EMILIA CLARKE","TEXT3295"]
["TEXT3296","EMILIA CLARKE","TEXT3296"]
["TEXT3297","EMILIA CLARKE","TEXT3297"]
["TEXT3298","EMILIA CLARKE","TEXT3298"]
["TEXT3299","EMILIA CLARKE","TEXT3299"]
["TEXT3300","EMILIA CLARKE","TEXT3300"]
["TEXT3301","EMILIA CLARKE","TEXT3301"]
["TEXT3302","EMILIA CLARKE","TEXT3302"]
["TEXT3303","EMILIA CLARKE","TEXT3303"]
["TEXT3304","EMILIA CLARKE","TEXT3304"]
["TEXT3305","EMILIA CLARKE","TEXT3305"]
["TEXT3306","KEELEY HAZELL","TEXT3306"]
["TEXT3307","MICHELLE JENNER","TEXT3307"]
["TEXT3308","MICHELLE JENNER","TEXT3308"]
["TEXT3309","EMMY ROSSUM","TEXT3309"]
["TEXT3310","EMMY ROSSUM","TEXT3310"]
["TEXT3311","EMMY ROSSUM","TEXT3311"]
["TEXT3312","EMMY ROSSUM","TEXT3312"]
["TEXT3313","EMMY ROSSUM","TEXT3313"]
["TEXT3314","EMMY ROSSUM","TEXT3314"]
["TEXT3315","EMMY ROSSUM","TEXT3315"]
["TEXT3316","EMMY ROSSUM","TEXT3316"]
["TEXT3317","EMMY ROSSUM","TEXT3317"]
["TEXT3318","EMMY ROSSUM","TEXT3318"]
["TEXT3319","EMMY ROSSUM","TEXT3319"]
["TEXT3320","EMMY ROSSUM","TEXT3320"]
["TEXT3321","EMMY ROSSUM","TEXT3321"]
["TEXT3322","EMMY ROSSUM","TEXT3322"]
["TEXT3323","EMMY ROSSUM","TEXT3323"]
["TEXT3324","EMMY ROSSUM","TEXT3324"]
["TEXT3325","EMMY ROSSUM","TEXT3325"]
["TEXT3326","EMMY ROSSUM","TEXT3326"]
["TEXT3327","EMMY ROSSUM","TEXT3327"]
["TEXT3328","EMMY ROSSUM","TEXT3328"]
["TEXT3329","EMMY ROSSUM","TEXT3329"]
[{"$f":"\"TEXT\"&ROW()","v":"TEXT3330"},"EMMY ROSSUM","TEXT3330"]
["TEXT3331","EMMY ROSSUM","TEXT3331"]
["TEXT3332","EMMY ROSSUM","TEXT3332"]
["TEXT3333","EMMY ROSSUM","TEXT3333"]
["TEXT3334","EMMY ROSSUM","TEXT3334"]
["TEXT3335","EMMY ROSSUM","TEXT3335"]
["TEXT3336","EMMY ROSSUM","TEXT3336"]
["TEXT3337","EMMY ROSSUM","TEXT3337"]
["TEXT3338","EMMY ROSSUM","TEXT3338"]
["TEXT3339","EMMY ROSSUM","TEXT3339"]
["TEXT3340","EMMY ROSSUM","TEXT3340"]
["TEXT3341","EMMY ROSSUM","TEXT3341"]
["TEXT3342","EMMY ROSSUM","TEXT3342"]
["TEXT3343","EMMY ROSSUM","TEXT3343"]
["TEXT3344","EMMY ROSSUM","TEXT3344"]
["TEXT3345","EMMY ROSSUM","TEXT3345"]
["TEXT3346","EMMY ROSSUM","TEXT3346"]
["TEXT3347","EMMY ROSSUM","TEXT3347"]
["TEXT3348","EMMY ROSSUM","TEXT3348"]
["TEXT3349","EMMY ROSSUM","TEXT3349"]
["TEXT3350","EMMY ROSSUM","TEXT3350"]
["TEXT3351","EMMY ROSSUM","TEXT3351"]
["TEXT3352","EMMY ROSSUM","TEXT3352"]
["TEXT3353","EMMY ROSSUM","TEXT3353"]
["TEXT3354","EMMY ROSSUM","TEXT3354"]
["TEXT3355","EMMY ROSSUM","TEXT3355"]
["TEXT3356","EMMY ROSSUM","TEXT3356"]
["TEXT3357","EMMY ROSSUM","TEXT3357"]
["TEXT3358","EMMY ROSSUM","TEXT3358"]
["TEXT3359","EMMY ROSSUM","TEXT3359"]
["TEXT3360","EMMY ROSSUM","TEXT3360"]
["TEXT3361","EMMY ROSSUM","TEXT3361"]
["TEXT3362","EMMY ROSSUM","TEXT3362"]
["TEXT3363","EMMY ROSSUM","TEXT3363"]
["TEXT3364","EMMY ROSSUM","TEXT3364"]
["TEXT3365","EMMY ROSSUM","TEXT3365"]
["TEXT3366","EMMY ROSSUM","TEXT3366"]
["TEXT3367","EMMY ROSSUM","TEXT3367"]
["TEXT3368","EMMY ROSSUM","TEXT3368"]
["TEXT3369","EMMY ROSSUM","TEXT3369"]
["TEXT3370","EMMY ROSSUM","TEXT3370"]
["TEXT3371","EMMY ROSSUM","TEXT3371"]
["TEXT3372","EMMY ROSSUM","TEXT3372"]
["TEXT3373","EMMY ROSSUM","TEXT3373"]
["TEXT3374","EMMY ROSSUM","TEXT3374"]
["TEXT3375","EMMY ROSSUM","TEXT3375"]
["TEXT3376","EMMY ROSSUM","TEXT3376"]
["TEXT3377","EMMY ROSSUM","TEXT3377"]
["TEXT3378","EMMY ROSSUM","TEXT3378"]
["TEXT3379","EMMY ROSSUM","TEXT3379"]
["TEXT3380","EMMY ROSSUM","TEXT3380"]
["TEXT3381","EMMY ROSSUM","TEXT3381"]
["TEXT3382","EMMY ROSSUM","TEXT3382"]
["TEXT3383","EMMY ROSSUM","TEXT3383"]
["TEXT3384","EMMY ROSSUM","TEXT3384"]
["TEXT3385","EMMY ROSSUM","TEXT3385"]
["TEXT3386","EMMY ROSSUM","TEXT3386"]
["TEXT3387","EMMY ROSSUM","TEXT3387"]
["TEXT3388","EMMY ROSSUM","TEXT3388"]
["TEXT3389","EMMY ROSSUM","TEXT3389"]
["TEXT3390","EMMY ROSSUM","TEXT3390"]
["TEXT3391","EMMY ROSSUM","TEXT3391"]
["TEXT3392","EMMY ROSSUM","TEXT3392"]
["TEXT3393","EMMY ROSSUM","TEXT3393"]
[{"$f":"\"TEXT\"&ROW()","v":"TEXT3394"},"EMMY ROSSUM","TEXT3394"]
["TEXT3395","EMMY ROSSUM","TEXT3395"]
["TEXT3396","EMMY ROSSUM","TEXT3396"]
["TEXT3397","EMMY ROSSUM","TEXT3397"]
["TEXT3398","EMMY ROSSUM","TEXT3398"]
["TEXT3399","EMMY ROSSUM","TEXT3399"]
["TEXT3400","EMMY ROSSUM","TEXT3400"]
["TEXT3401","EMMY ROSSUM","TEXT3401"]
["TEXT3402","EMMY ROSSUM","TEXT3402"]
["TEXT3403","EMMY ROSSUM","TEXT3403"]
["TEXT3404","EMMY ROSSUM","TEXT3404"]
["TEXT3405","EMMY ROSSUM","TEXT3405"]
["TEXT3406","EMMY ROSSUM","TEXT3406"]
["TEXT3407","EMMY ROSSUM","TEXT3407"]
["TEXT3408","EMMY ROSSUM","TEXT3408"]
["TEXT3409","EMMY ROSSUM","TEXT3409"]
["TEXT3410","EMMY ROSSUM","TEXT3410"]
["TEXT3411","EMMY ROSSUM","TEXT3411"]
["TEXT3412","EMMY ROSSUM","TEXT3412"]
["TEXT3413","EMMY ROSSUM","TEXT3413"]
["TEXT3414","EMMY ROSSUM","TEXT3414"]
["TEXT3415","EMMY ROSSUM","TEXT3415"]
["TEXT3416","EMMY ROSSUM","TEXT3416"]
["TEXT3417","EMMY ROSSUM","TEXT3417"]
["TEXT3418","EMMY ROSSUM","TEXT3418"]
["TEXT3419","EMMY ROSSUM","TEXT3419"]
["TEXT3420","EMMY ROSSUM","TEXT3420"]
["TEXT3421","EMMY ROSSUM","TEXT3421"]
["TEXT3422","EMMY ROSSUM","TEXT3422"]
["TEXT3423","EMMY ROSSUM","TEXT3423"]
["TEXT3424","EMMY ROSSUM","TEXT3424"]
["TEXT3425","EMMY ROSSUM","TEXT3425"]
["TEXT3426","EMMY ROSSUM","TEXT3426"]
["TEXT3427","EMMY ROSSUM","TEXT3427"]
["TEXT3428","EMMY ROSSUM","TEXT3428"]
["TEXT3429","EMMY ROSSUM","TEXT3429"]
["TEXT3430","EMMY ROSSUM","TEXT3430"]
["TEXT3431","EMMY ROSSUM","TEXT3431"]
["TEXT3432","EMMY ROSSUM","TEXT3432"]
["TEXT3433","EMMY ROSSUM","TEXT3433"]
["TEXT3434","EMMY ROSSUM","TEXT3434"]
["TEXT3435","EMMY ROSSUM","TEXT3435"]
["TEXT3436","EMMY ROSSUM","TEXT3436"]
["TEXT3437","EMMY ROSSUM","TEXT3437"]
["TEXT3438","EMMY ROSSUM","TEXT3438"]
["TEXT3439","EMMY ROSSUM","TEXT3439"]
["TEXT3440","EMMY ROSSUM","TEXT3440"]
["TEXT3441","EMMY ROSSUM","TEXT3441"]
["TEXT3442","EMMY ROSSUM","TEXT3442"]
["TEXT3443","EMMY ROSSUM","TEXT3443"]
["TEXT3444","EMMY ROSSUM","TEXT3444"]
["TEXT3445","EMMY ROSSUM","TEXT3445"]
["TEXT3446","EMMY ROSSUM","TEXT3446"]
["TEXT3447","EMMY ROSSUM","TEXT3447"]
["TEXT3448","EMMY ROSSUM","TEXT3448"]
["TEXT3449","EMMY ROSSUM","TEXT3449"]
["TEXT3450","EMMY ROSSUM","TEXT3450"]
["TEXT3451","EMMY ROSSUM","TEXT3451"]
["TEXT3452","EMMY ROSSUM","TEXT3452"]
["TEXT3453","EMMY ROSSUM","TEXT3453"]
["TEXT3454","EMMY ROSSUM","TEXT3454"]
["TEXT3455","EMMY ROSSUM","TEXT3455"]
["TEXT3456","EMMY ROSSUM","TEXT3456"]
["TEXT3457","EMMY ROSSUM","TEXT3457"]
[{"$f":"\"TEXT\"&ROW()","v":"TEXT3458"},"EMMY ROSSUM","TEXT3458"]
["TEXT3459","EMMY ROSSUM","TEXT3459"]
["TEXT3460","EMMY ROSSUM","TEXT3460"]
["TEXT3461","EMMY ROSSUM","TEXT3461"]
["TEXT3462","EMMY ROSSUM","TEXT3462"]
["TEXT3463","EMMY ROSSUM","TEXT3463"]
["TEXT3464","EMMY ROSSUM","TEXT3464"]
["TEXT3465","EMMY ROSSUM","TEXT3465"]
["TEXT3466","EMMY ROSSUM","TEXT3466"]
["TEXT3467","EMMY ROSSUM","TEXT3467"]
["TEXT3468","EMMY ROSSUM","TEXT3468"]
["TEXT3469","EMMY ROSSUM","TEXT3469"]
["TEXT3470","EMMY ROSSUM","TEXT3470"]
["TEXT3471","WUNMI MOSAKU","TEXT3471"]
["TEXT3472","WUNMI MOSAKU","TEXT3472"]
["TEXT3473","WUNMI MOSAKU","TEXT3473"]
["TEXT3474","WUNMI MOSAKU","TEXT3474"]
["TEXT3475","WUNMI MOSAKU","TEXT3475"]
["TEXT3476","WUNMI MOSAKU","TEXT3476"]
["TEXT3477","BETTY GILPIN","TEXT3477"]
["TEXT3478","BETTY GILPIN","TEXT3478"]
["TEXT3479","BETTY GILPIN","TEXT3479"]
["TEXT3480","BETTY GILPIN","TEXT3480"]
["TEXT3481","BETTY GILPIN","TEXT3481"]
["TEXT3482","BETTY GILPIN","TEXT3482"]
["TEXT3483","BETTY GILPIN","TEXT3483"]
["TEXT3484","BETTY GILPIN","TEXT3484"]
["TEXT3485","BETTY GILPIN","TEXT3485"]
["TEXT3486","BETTY GILPIN","TEXT3486"]
["TEXT3487","BETTY GILPIN","TEXT3487"]
["TEXT3488","BETTY GILPIN","TEXT3488"]
["TEXT3489","BETTY GILPIN","TEXT3489"]
["TEXT3490","BETTY GILPIN","TEXT3490"]
["TEXT3491","BETTY GILPIN","TEXT3491"]
["TEXT3492","BETTY GILPIN","TEXT3492"]
["TEXT3493","BETTY GILPIN","TEXT3493"]
["TEXT3494","BETTY GILPIN","TEXT3494"]
["TEXT3495","BETTY GILPIN","TEXT3495"]
["TEXT3496","BETTY GILPIN","TEXT3496"]
["TEXT3497","BETTY GILPIN","TEXT3497"]
["TEXT3498","BETTY GILPIN","TEXT3498"]
["TEXT3499","BETTY GILPIN","TEXT3499"]
["TEXT3500","BETTY GILPIN","TEXT3500"]
["TEXT3501","BETTY GILPIN","TEXT3501"]
["TEXT3502","BETTY GILPIN","TEXT3502"]
["TEXT3503","BETTY GILPIN","TEXT3503"]
["TEXT3504","BETTY GILPIN","TEXT3504"]
["TEXT3505","BETTY GILPIN","TEXT3505"]
["TEXT3506","BETTY GILPIN","TEXT3506"]
["TEXT3507","BETTY GILPIN","TEXT3507"]
["TEXT3508","BETTY GILPIN","TEXT3508"]
["TEXT3509","LINDSAY LOHAN","TEXT3509"]
["TEXT3510","LINDSAY LOHAN","TEXT3510"]
["TEXT3511","LINDSAY LOHAN","TEXT3511"]
["TEXT3512","LINDSAY LOHAN","TEXT3512"]
["TEXT3513","LINDSAY LOHAN","TEXT3513"]
["TEXT3514","LINDSAY LOHAN","TEXT3514"]
["TEXT3515","LINDSAY LOHAN","TEXT3515"]
["TEXT3516","LINDSAY LOHAN","TEXT3516"]
["TEXT3517","LINDSAY LOHAN","TEXT3517"]
["TEXT3518","LINDSAY LOHAN","TEXT3518"]
["TEXT3519","LINDSAY LOHAN","TEXT3519"]
["TEXT3520","LINDSAY LOHAN","TEXT3520"]
["TEXT3521","LINDSAY LOHAN","TEXT3521"]
[{"$f":"\"TEXT\"&ROW()","v":"TEXT3522"},"LINDSAY LOHAN","TEXT3522"]
["TEXT3523","LINDSAY LOHAN","TEXT3523"]
["TEXT3524","LINDSAY LOHAN","TEXT3524"]
["TEXT3525","LINDSAY LOHAN","TEXT3525"]
["TEXT3526","LINDSAY LOHAN","TEXT3526"]
["TEXT3527","LINDSAY LOHAN","TEXT3527"]
["TEXT3528","LINDSAY LOHAN","TEXT3528"]
["TEXT3529","LINDSAY LOHAN","TEXT3529"]
["TEXT3530","LINDSAY LOHAN","TEXT3530"]
["TEXT3531","LINDSAY LOHAN","TEXT3531"]
["TEXT3532","LINDSAY LOHAN","TEXT3532"]
["TEXT3533","LINDSAY LOHAN","TEXT3533"]
["TEXT3534","LINDSAY LOHAN","TEXT3534"]
["TEXT3535","OONA CHAPLIN","TEXT3535"]
["TEXT3536","OONA CHAPLIN","TEXT3536"]
["TEXT3537","OONA CHAPLIN","TEXT3537"]
["TEXT3538","OONA CHAPLIN","TEXT3538"]
["TEXT3539","OONA CHAPLIN","TEXT3539"]
["TEXT3540","OONA CHAPLIN","TEXT3540"]
["TEXT3541","OONA CHAPLIN","TEXT3541"]
["TEXT3542","OONA CHAPLIN","TEXT3542"]
["TEXT3543","OONA CHAPLIN","TEXT3543"]
["TEXT3544","OONA CHAPLIN","TEXT3544"]
["TEXT3545","OONA CHAPLIN","TEXT3545"]
["TEXT3546","OONA CHAPLIN","TEXT3546"]
["TEXT3547","OONA CHAPLIN","TEXT3547"]
["TEXT3548","OONA CHAPLIN","TEXT3548"]
["TEXT3549","OONA CHAPLIN","TEXT3549"]
["TEXT3550","OONA CHAPLIN","TEXT3550"]
["TEXT3551","MOLLY EPHRAIM","TEXT3551"]
["TEXT3552","MEGAN FOX","TEXT3552"]
["TEXT3553","MEGAN FOX","TEXT3553"]
["TEXT3554","MEGAN FOX","TEXT3554"]
["TEXT3555","KAREN PITTMAN","TEXT3555"]
["TEXT3556","KAREN PITTMAN","TEXT3556"]
["TEXT3557","KAREN PITTMAN","TEXT3557"]
["TEXT3558","KAREN PITTMAN","TEXT3558"]
["TEXT3559","GRACE GUMMER","TEXT3559"]
["TEXT3560","GRACE GUMMER","TEXT3560"]
["TEXT3561","GRACE GUMMER","TEXT3561"]
["TEXT3562","GRACE GUMMER","TEXT3562"]
["TEXT3563","GRACE GUMMER","TEXT3563"]
["TEXT3564","GRACE GUMMER","TEXT3564"]
["TEXT3565","POM KLEMENTIEFF","TEXT3565"]
["TEXT3566","POM KLEMENTIEFF","TEXT3566"]
["TEXT3567","POM KLEMENTIEFF","TEXT3567"]
["TEXT3568","POM KLEMENTIEFF","TEXT3568"]
["TEXT3569","POM KLEMENTIEFF","TEXT3569"]
["TEXT3570","POM KLEMENTIEFF","TEXT3570"]
["TEXT3571","POM KLEMENTIEFF","TEXT3571"]
["TEXT3572","DIANNA AGRON","TEXT3572"]
["TEXT3573","DIANNA AGRON","TEXT3573"]
["TEXT3574","DIANNA AGRON","TEXT3574"]
["TEXT3575","DIANNA AGRON","TEXT3575"]
["TEXT3576","DIANNA AGRON","TEXT3576"]
["TEXT3577","DIANNA AGRON","TEXT3577"]
["TEXT3578","DIANNA AGRON","TEXT3578"]
["TEXT3579","DIANNA AGRON","TEXT3579"]
["TEXT3580","DIANNA AGRON","TEXT3580"]
["TEXT3581","DIANNA AGRON","TEXT3581"]
["TEXT3582","DIANNA AGRON","TEXT3582"]
["TEXT3583","AMBER HEARD","TEXT3583"]
["TEXT3584","AMBER HEARD","TEXT3584"]
["TEXT3585","AMBER HEARD","TEXT3585"]
[{"$f":"\"TEXT\"&ROW()","v":"TEXT3586"},"AMBER HEARD","TEXT3586"]
["TEXT3587","AMBER HEARD","TEXT3587"]
["TEXT3588","AMBER HEARD","TEXT3588"]
["TEXT3589","AMBER HEARD","TEXT3589"]
["TEXT3590","AMBER HEARD","TEXT3590"]
["TEXT3591","AMBER HEARD","TEXT3591"]
["TEXT3592","AMBER HEARD","TEXT3592"]
["TEXT3593","AMBER HEARD","TEXT3593"]
["TEXT3594","AMBER HEARD","TEXT3594"]
["TEXT3595","AMBER HEARD","TEXT3595"]
["TEXT3596","AMBER HEARD","TEXT3596"]
["TEXT3597","AMBER HEARD","TEXT3597"]
["TEXT3598","AMBER HEARD","TEXT3598"]
["TEXT3599","AMBER HEARD","TEXT3599"]
["TEXT3600","AMBER HEARD","TEXT3600"]
["TEXT3601","AMBER HEARD","TEXT3601"]
["TEXT3602","AMBER HEARD","TEXT3602"]
["TEXT3603","AMBER HEARD","TEXT3603"]
["TEXT3604","AMBER HEARD","TEXT3604"]
["TEXT3605","AMBER HEARD","TEXT3605"]
["TEXT3606","AMBER HEARD","TEXT3606"]
["TEXT3607","AMBER HEARD","TEXT3607"]
["TEXT3608","AMBER HEARD","TEXT3608"]
["TEXT3609","AMBER HEARD","TEXT3609"]
["TEXT3610","AMBER HEARD","TEXT3610"]
["TEXT3611","AMBER HEARD","TEXT3611"]
["TEXT3612","AMBER HEARD","TEXT3612"]
["TEXT3613","AMBER HEARD","TEXT3613"]
["TEXT3614","AMBER HEARD","TEXT3614"]
["TEXT3615","AMBER HEARD","TEXT3615"]
["TEXT3616","AMBER HEARD","TEXT3616"]
["TEXT3617","AMBER HEARD","TEXT3617"]
["TEXT3618","AMBER HEARD","TEXT3618"]
["TEXT3619","AMBER HEARD","TEXT3619"]
["TEXT3620","AMBER HEARD","TEXT3620"]
["TEXT3621","AMBER HEARD","TEXT3621"]
["TEXT3622","AMBER HEARD","TEXT3622"]
["TEXT3623","AMBER HEARD","TEXT3623"]
["TEXT3624","AMBER HEARD","TEXT3624"]
["TEXT3625","AMBER HEARD","TEXT3625"]
["TEXT3626","AMBER HEARD","TEXT3626"]
["TEXT3627","AMBER HEARD","TEXT3627"]
["TEXT3628","AMBER HEARD","TEXT3628"]
["TEXT3629","LEIGHTON MEESTER","TEXT3629"]
["TEXT3630","LADY GAGA","TEXT3630"]
["TEXT3631","LADY GAGA","TEXT3631"]
["TEXT3632","LADY GAGA","TEXT3632"]
["TEXT3633","LADY GAGA","TEXT3633"]
["TEXT3634","LADY GAGA","TEXT3634"]
["TEXT3635","LADY GAGA","TEXT3635"]
["TEXT3636","LADY GAGA","TEXT3636"]
["TEXT3637","LADY GAGA","TEXT3637"]
["TEXT3638","LADY GAGA","TEXT3638"]
["TEXT3639","LADY GAGA","TEXT3639"]
["TEXT3640","LADY GAGA","TEXT3640"]
["TEXT3641","LADY GAGA","TEXT3641"]
["TEXT3642","LADY GAGA","TEXT3642"]
["TEXT3643","LADY GAGA","TEXT3643"]
["TEXT3644","LADY GAGA","TEXT3644"]
["TEXT3645","LADY GAGA","TEXT3645"]
["TEXT3646","LADY GAGA","TEXT3646"]
["TEXT3647","LADY GAGA","TEXT3647"]
["TEXT3648","LADY GAGA","TEXT3648"]
["TEXT3649","LADY GAGA","TEXT3649"]
[{"$f":"\"TEXT\"&ROW()","v":"TEXT3650"},"LADY GAGA","TEXT3650"]
["TEXT3651","LADY GAGA","TEXT3651"]
["TEXT3652","LADY GAGA","TEXT3652"]
["TEXT3653","LADY GAGA","TEXT3653"]
["TEXT3654","LADY GAGA","TEXT3654"]
["TEXT3655","LADY GAGA","TEXT3655"]
["TEXT3656","LADY GAGA","TEXT3656"]
["TEXT3657","LADY GAGA","TEXT3657"]
["TEXT3658","LADY GAGA","TEXT3658"]
["TEXT3659","LADY GAGA","TEXT3659"]
["TEXT3660","LADY GAGA","TEXT3660"]
["TEXT3661","LADY GAGA","TEXT3661"]
["TEXT3662","LADY GAGA","TEXT3662"]
["TEXT3663","LADY GAGA","TEXT3663"]
["TEXT3664","LADY GAGA","TEXT3664"]
["TEXT3665","LADY GAGA","TEXT3665"]
["TEXT3666","LADY GAGA","TEXT3666"]
["TEXT3667","LADY GAGA","TEXT3667"]
["TEXT3668","LADY GAGA","TEXT3668"]
["TEXT3669","LADY GAGA","TEXT3669"]
["TEXT3670","LADY GAGA","TEXT3670"]
["TEXT3671","LADY GAGA","TEXT3671"]
["TEXT3672","LADY GAGA","TEXT3672"]
["TEXT3673","RUBY ROSE","TEXT3673"]
["TEXT3674","RUBY ROSE","TEXT3674"]
["TEXT3675","RUBY ROSE","TEXT3675"]
["TEXT3676","RUBY ROSE","TEXT3676"]
["TEXT3677","RUBY ROSE","TEXT3677"]
["TEXT3678","RUBY ROSE","TEXT3678"]
["TEXT3679","RUBY ROSE","TEXT3679"]
["TEXT3680","RUBY ROSE","TEXT3680"]
["TEXT3681","RUBY ROSE","TEXT3681"]
["TEXT3682","RUBY ROSE","TEXT3682"]
["TEXT3683","RUBY ROSE","TEXT3683"]
["TEXT3684","RUBY ROSE","TEXT3684"]
["TEXT3685","RUBY ROSE","TEXT3685"]
["TEXT3686","RUBY ROSE","TEXT3686"]
["TEXT3687","RUBY ROSE","TEXT3687"]
["TEXT3688","RUBY ROSE","TEXT3688"]
["TEXT3689","RUBY ROSE","TEXT3689"]
["TEXT3690","ALEXANDRA DADDARIO","TEXT3690"]
["TEXT3691","ALEXANDRA DADDARIO","TEXT3691"]
["TEXT3692","ALEXANDRA DADDARIO","TEXT3692"]
["TEXT3693","ALEXANDRA DADDARIO","TEXT3693"]
["TEXT3694","ALEXANDRA DADDARIO","TEXT3694"]
["TEXT3695","ALEXANDRA DADDARIO","TEXT3695"]
["TEXT3696","ALEXANDRA DADDARIO","TEXT3696"]
["TEXT3697","ALEXANDRA DADDARIO","TEXT3697"]
["TEXT3698","ALEXANDRA DADDARIO","TEXT3698"]
["TEXT3699","ALEXANDRA DADDARIO","TEXT3699"]
["TEXT3700","ALEXANDRA DADDARIO","TEXT3700"]
["TEXT3701","ALEXANDRA DADDARIO","TEXT3701"]
["TEXT3702","ALEXANDRA DADDARIO","TEXT3702"]
["TEXT3703","ALEXANDRA DADDARIO","TEXT3703"]
["TEXT3704","ALEXANDRA DADDARIO","TEXT3704"]
["TEXT3705","ALEXANDRA DADDARIO","TEXT3705"]
["TEXT3706","ALEXANDRA DADDARIO","TEXT3706"]
["TEXT3707","ALEXANDRA DADDARIO","TEXT3707"]
["TEXT3708","ALEXANDRA DADDARIO","TEXT3708"]
["TEXT3709","ALEXANDRA DADDARIO","TEXT3709"]
["TEXT3710","ALEXANDRA DADDARIO","TEXT3710"]
["TEXT3711","ALEXANDRA DADDARIO","TEXT3711"]
["TEXT3712","ALEXANDRA DADDARIO","TEXT3712"]
["TEXT3713","ALEXANDRA DADDARIO","TEXT3713"]
[{"$f":"\"TEXT\"&ROW()","v":"TEXT3714"},"ALEXANDRA DADDARIO","TEXT3714"]
["TEXT3715","ALEXANDRA DADDARIO","TEXT3715"]
["TEXT3716","ALEXANDRA DADDARIO","TEXT3716"]
["TEXT3717","ALEXANDRA DADDARIO","TEXT3717"]
["TEXT3718","ALEXANDRA DADDARIO","TEXT3718"]
["TEXT3719","ALEXANDRA DADDARIO","TEXT3719"]
["TEXT3720","ALEXANDRA DADDARIO","TEXT3720"]
["TEXT3721","ALEXANDRA DADDARIO","TEXT3721"]
["TEXT3722","ALEXANDRA DADDARIO","TEXT3722"]
["TEXT3723","ALEXANDRA DADDARIO","TEXT3723"]
["TEXT3724","ALEXANDRA DADDARIO","TEXT3724"]
["TEXT3725","ALEXANDRA DADDARIO","TEXT3725"]
["TEXT3726","ALEXANDRA DADDARIO","TEXT3726"]
["TEXT3727","ALEXANDRA DADDARIO","TEXT3727"]
["TEXT3728","ALEXANDRA DADDARIO","TEXT3728"]
["TEXT3729","ALEXANDRA DADDARIO","TEXT3729"]
["TEXT3730","BRITTANY SNOW","TEXT3730"]
["TEXT3731","BRITTANY SNOW","TEXT3731"]
["TEXT3732","BRITTANY SNOW","TEXT3732"]
["TEXT3733","BRITTANY SNOW","TEXT3733"]
["TEXT3734","BRITTANY SNOW","TEXT3734"]
["TEXT3735","BRITTANY SNOW","TEXT3735"]
["TEXT3736","BRITTANY SNOW","TEXT3736"]
["TEXT3737","BRITTANY SNOW","TEXT3737"]
["TEXT3738","BRITTANY SNOW","TEXT3738"]
["TEXT3739","BRITTANY SNOW","TEXT3739"]
["TEXT3740","BRITTANY SNOW","TEXT3740"]
["TEXT3741","BRITTANY SNOW","TEXT3741"]
["TEXT3742","TERESA PALMER","TEXT3742"]
["TEXT3743","TERESA PALMER","TEXT3743"]
["TEXT3744","TERESA PALMER","TEXT3744"]
["TEXT3745","TERESA PALMER","TEXT3745"]
["TEXT3746","TERESA PALMER","TEXT3746"]
["TEXT3747","TERESA PALMER","TEXT3747"]
["TEXT3748","TERESA PALMER","TEXT3748"]
["TEXT3749","TERESA PALMER","TEXT3749"]
["TEXT3750","TERESA PALMER","TEXT3750"]
["TEXT3751","TERESA PALMER","TEXT3751"]
["TEXT3752","TERESA PALMER","TEXT3752"]
["TEXT3753","TERESA PALMER","TEXT3753"]
["TEXT3754","TERESA PALMER","TEXT3754"]
["TEXT3755","TERESA PALMER","TEXT3755"]
["TEXT3756","TERESA PALMER","TEXT3756"]
["TEXT3757","TERESA PALMER","TEXT3757"]
["TEXT3758","TERESA PALMER","TEXT3758"]
["TEXT3759","TERESA PALMER","TEXT3759"]
["TEXT3760","TERESA PALMER","TEXT3760"]
["TEXT3761","GEMMA ARTERTON","TEXT3761"]
["TEXT3762","GEMMA ARTERTON","TEXT3762"]
["TEXT3763","GEMMA ARTERTON","TEXT3763"]
["TEXT3764","GEMMA ARTERTON","TEXT3764"]
["TEXT3765","GEMMA ARTERTON","TEXT3765"]
["TEXT3766","GEMMA ARTERTON","TEXT3766"]
["TEXT3767","GEMMA ARTERTON","TEXT3767"]
["TEXT3768","GEMMA ARTERTON","TEXT3768"]
["TEXT3769","GEMMA ARTERTON","TEXT3769"]
["TEXT3770","GEMMA ARTERTON","TEXT3770"]
["TEXT3771","GEMMA ARTERTON","TEXT3771"]
["TEXT3772","GEMMA ARTERTON","TEXT3772"]
["TEXT3773","GEMMA ARTERTON","TEXT3773"]
["TEXT3774","GEMMA ARTERTON","TEXT3774"]
["TEXT3775","GEMMA ARTERTON","TEXT3775"]
["TEXT3776","GEMMA ARTERTON","TEXT3776"]
["TEXT3777","GEMMA ARTERTON","TEXT3777"]
[{"$f":"\"TEXT\"&ROW()","v":"TEXT3778"},"GEMMA ARTERTON","TEXT3778"]
["TEXT3779","GEMMA ARTERTON","TEXT3779"]
["TEXT3780","GEMMA ARTERTON","TEXT3780"]
["TEXT3781","GEMMA ARTERTON","TEXT3781"]
["TEXT3782","GEMMA ARTERTON","TEXT3782"]
["TEXT3783","GEMMA ARTERTON","TEXT3783"]
["TEXT3784","GEMMA ARTERTON","TEXT3784"]
["TEXT3785","GEMMA ARTERTON","TEXT3785"]
["TEXT3786","GEMMA ARTERTON","TEXT3786"]
["TEXT3787","GEMMA ARTERTON","TEXT3787"]
["TEXT3788","GEMMA ARTERTON","TEXT3788"]
["TEXT3789","GEMMA ARTERTON","TEXT3789"]
["TEXT3790","GEMMA ARTERTON","TEXT3790"]
["TEXT3791","GEMMA ARTERTON","TEXT3791"]
["TEXT3792","GEMMA ARTERTON","TEXT3792"]
["TEXT3793","GEMMA ARTERTON","TEXT3793"]
["TEXT3794","GEMMA ARTERTON","TEXT3794"]
["TEXT3795","GEMMA ARTERTON","TEXT3795"]
["TEXT3796","GEMMA ARTERTON","TEXT3796"]
["TEXT3797","GEMMA ARTERTON","TEXT3797"]
["TEXT3798","GEMMA ARTERTON","TEXT3798"]
["TEXT3799","GEMMA ARTERTON","TEXT3799"]
["TEXT3800","AMANDA SEYFRIED","TEXT3800"]
["TEXT3801","AMANDA SEYFRIED","TEXT3801"]
["TEXT3802","AMANDA SEYFRIED","TEXT3802"]
["TEXT3803","AMANDA SEYFRIED","TEXT3803"]
["TEXT3804","AMANDA SEYFRIED","TEXT3804"]
["TEXT3805","AMANDA SEYFRIED","TEXT3805"]
["TEXT3806","AMANDA SEYFRIED","TEXT3806"]
["TEXT3807","AMANDA SEYFRIED","TEXT3807"]
["TEXT3808","AMANDA SEYFRIED","TEXT3808"]
["TEXT3809","AMANDA SEYFRIED","TEXT3809"]
["TEXT3810","AMANDA SEYFRIED","TEXT3810"]
["TEXT3811","AMANDA SEYFRIED","TEXT3811"]
["TEXT3812","AMANDA SEYFRIED","TEXT3812"]
["TEXT3813","AMANDA SEYFRIED","TEXT3813"]
["TEXT3814","AMANDA SEYFRIED","TEXT3814"]
["TEXT3815","AMANDA SEYFRIED","TEXT3815"]
["TEXT3816","AMANDA SEYFRIED","TEXT3816"]
["TEXT3817","AMANDA SEYFRIED","TEXT3817"]
["TEXT3818","AMANDA SEYFRIED","TEXT3818"]
["TEXT3819","AMANDA SEYFRIED","TEXT3819"]
["TEXT3820","AMANDA SEYFRIED","TEXT3820"]
["TEXT3821","AMANDA SEYFRIED","TEXT3821"]
["TEXT3822","AMANDA SEYFRIED","TEXT3822"]
["TEXT3823","AMANDA SEYFRIED","TEXT3823"]
["TEXT3824","AMANDA SEYFRIED","TEXT3824"]
["TEXT3825","AMANDA SEYFRIED","TEXT3825"]
["TEXT3826","AMANDA SEYFRIED","TEXT3826"]
["TEXT3827","AMANDA SEYFRIED","TEXT3827"]
["TEXT3828","AMANDA SEYFRIED","TEXT3828"]
["TEXT3829","AMANDA SEYFRIED","TEXT3829"]
["TEXT3830","AMANDA SEYFRIED","TEXT3830"]
["TEXT3831","AMANDA SEYFRIED","TEXT3831"]
["TEXT3832","AMANDA SEYFRIED","TEXT3832"]
["TEXT3833","AMANDA SEYFRIED","TEXT3833"]
["TEXT3834","AMANDA SEYFRIED","TEXT3834"]
["TEXT3835","AMANDA SEYFRIED","TEXT3835"]
["TEXT3836","AMANDA SEYFRIED","TEXT3836"]
["TEXT3837","ILFENESH HADERA","TEXT3837"]
["TEXT3838","ILFENESH HADERA","TEXT3838"]
["TEXT3839","ILFENESH HADERA","TEXT3839"]
["TEXT3840","ILFENESH HADERA","TEXT3840"]
["TEXT3841","ILFENESH HADERA","TEXT3841"]
[{"$f":"\"TEXT\"&ROW()","v":"TEXT3842"},"ILFENESH HADERA","TEXT3842"]
["TEXT3843","ILFENESH HADERA","TEXT3843"]
["TEXT3844","ILFENESH HADERA","TEXT3844"]
["TEXT3845","KALEY CUOCO","TEXT3845"]
["TEXT3846","ALISON PILL","TEXT3846"]
["TEXT3847","ALISON PILL","TEXT3847"]
["TEXT3848","ALISON PILL","TEXT3848"]
["TEXT3849","ALISON PILL","TEXT3849"]
["TEXT3850","ALISON PILL","TEXT3850"]
["TEXT3851","ALISON PILL","TEXT3851"]
["TEXT3852","ALISON PILL","TEXT3852"]
["TEXT3853","ALISON PILL","TEXT3853"]
["TEXT3854","ALISON PILL","TEXT3854"]
["TEXT3855","ALISON PILL","TEXT3855"]
["TEXT3856","ALISON PILL","TEXT3856"]
["TEXT3857","ALISON PILL","TEXT3857"]
["TEXT3858","ALISON PILL","TEXT3858"]
["TEXT3859","ALISON PILL","TEXT3859"]
["TEXT3860","ALISON PILL","TEXT3860"]
["TEXT3861","MICHELLE TRACHTENBERG","TEXT3861"]
["TEXT3862","MICHELLE TRACHTENBERG","TEXT3862"]
["TEXT3863","KATRINA LAW","TEXT3863"]
["TEXT3864","KATRINA LAW","TEXT3864"]
["TEXT3865","KATRINA LAW","TEXT3865"]
["TEXT3866","KATRINA LAW","TEXT3866"]
["TEXT3867","KATRINA LAW","TEXT3867"]
["TEXT3868","KATRINA LAW","TEXT3868"]
["TEXT3869","KATRINA LAW","TEXT3869"]
["TEXT3870","KATRINA LAW","TEXT3870"]
["TEXT3871","KATRINA LAW","TEXT3871"]
["TEXT3872","KATRINA LAW","TEXT3872"]
["TEXT3873","KATRINA LAW","TEXT3873"]
["TEXT3874","KATRINA LAW","TEXT3874"]
["TEXT3875","KATRINA LAW","TEXT3875"]
["TEXT3876","KATRINA LAW","TEXT3876"]
["TEXT3877","KATRINA LAW","TEXT3877"]
["TEXT3878","KATRINA LAW","TEXT3878"]
["TEXT3879","KATRINA LAW","TEXT3879"]
["TEXT3880","KATRINA LAW","TEXT3880"]
["TEXT3881","KATRINA LAW","TEXT3881"]
["TEXT3882","KATRINA LAW","TEXT3882"]
["TEXT3883","KATRINA LAW","TEXT3883"]
["TEXT3884","KATRINA LAW","TEXT3884"]
["TEXT3885","KIMBERLEY NIXON","TEXT3885"]
["TEXT3886","KIMBERLEY NIXON","TEXT3886"]
["TEXT3887","KIMBERLEY NIXON","TEXT3887"]
["TEXT3888","KIMBERLEY NIXON","TEXT3888"]
["TEXT3889","KIMBERLEY NIXON","TEXT3889"]
["TEXT3890","KIMBERLEY NIXON","TEXT3890"]
["TEXT3891","TATIANA MASLANY","TEXT3891"]
["TEXT3892","TATIANA MASLANY","TEXT3892"]
["TEXT3893","TATIANA MASLANY","TEXT3893"]
["TEXT3894","TATIANA MASLANY","TEXT3894"]
["TEXT3895","TATIANA MASLANY","TEXT3895"]
["TEXT3896","TATIANA MASLANY","TEXT3896"]
["TEXT3897","TATIANA MASLANY","TEXT3897"]
["TEXT3898","TATIANA MASLANY","TEXT3898"]
["TEXT3899","TATIANA MASLANY","TEXT3899"]
["TEXT3900","TATIANA MASLANY","TEXT3900"]
["TEXT3901","TATIANA MASLANY","TEXT3901"]
["TEXT3902","TATIANA MASLANY","TEXT3902"]
["TEXT3903","TATIANA MASLANY","TEXT3903"]
["TEXT3904","TATIANA MASLANY","TEXT3904"]
["TEXT3905","TATIANA MASLANY","TEXT3905"]
[{"$f":"\"TEXT\"&ROW()","v":"TEXT3906"},"TATIANA MASLANY","TEXT3906"]
["TEXT3907","TATIANA MASLANY","TEXT3907"]
["TEXT3908","TATIANA MASLANY","TEXT3908"]
["TEXT3909","TATIANA MASLANY","TEXT3909"]
["TEXT3910","TATIANA MASLANY","TEXT3910"]
["TEXT3911","TATIANA MASLANY","TEXT3911"]
["TEXT3912","TATIANA MASLANY","TEXT3912"]
["TEXT3913","TATIANA MASLANY","TEXT3913"]
["TEXT3914","TATIANA MASLANY","TEXT3914"]
["TEXT3915","TATIANA MASLANY","TEXT3915"]
["TEXT3916","TATIANA MASLANY","TEXT3916"]
["TEXT3917","TATIANA MASLANY","TEXT3917"]
["TEXT3918","TATIANA MASLANY","TEXT3918"]
["TEXT3919","TATIANA MASLANY","TEXT3919"]
["TEXT3920","TATIANA MASLANY","TEXT3920"]
["TEXT3921","TATIANA MASLANY","TEXT3921"]
["TEXT3922","TATIANA MASLANY","TEXT3922"]
["TEXT3923","SEPIDEH MOAFI","TEXT3923"]
["TEXT3924","SEPIDEH MOAFI","TEXT3924"]
["TEXT3925","SEPIDEH MOAFI","TEXT3925"]
["TEXT3926","SEPIDEH MOAFI","TEXT3926"]
["TEXT3927","SEPIDEH MOAFI","TEXT3927"]
["TEXT3928","SEPIDEH MOAFI","TEXT3928"]
["TEXT3929","SEPIDEH MOAFI","TEXT3929"]
["TEXT3930","SEPIDEH MOAFI","TEXT3930"]
["TEXT3931","SEPIDEH MOAFI","TEXT3931"]
["TEXT3932","SEPIDEH MOAFI","TEXT3932"]
["TEXT3933","SEPIDEH MOAFI","TEXT3933"]
["TEXT3934","SEPIDEH MOAFI","TEXT3934"]
["TEXT3935","SEPIDEH MOAFI","TEXT3935"]
["TEXT3936","SEPIDEH MOAFI","TEXT3936"]
["TEXT3937","SEPIDEH MOAFI","TEXT3937"]
["TEXT3938","SEPIDEH MOAFI","TEXT3938"]
["TEXT3939","MADELINE ZIMA","TEXT3939"]
["TEXT3940","MADELINE ZIMA","TEXT3940"]
["TEXT3941","MADELINE ZIMA","TEXT3941"]
["TEXT3942","MADELINE ZIMA","TEXT3942"]
["TEXT3943","MADELINE ZIMA","TEXT3943"]
["TEXT3944","MADELINE ZIMA","TEXT3944"]
["TEXT3945","MADELINE ZIMA","TEXT3945"]
["TEXT3946","MADELINE ZIMA","TEXT3946"]
["TEXT3947","MADELINE ZIMA","TEXT3947"]
["TEXT3948","MADELINE ZIMA","TEXT3948"]
["TEXT3949","MADELINE ZIMA","TEXT3949"]
["TEXT3950","MADELINE ZIMA","TEXT3950"]
["TEXT3951","MADELINE ZIMA","TEXT3951"]
["TEXT3952","MADELINE ZIMA","TEXT3952"]
["TEXT3953","MADELINE ZIMA","TEXT3953"]
["TEXT3954","MADELINE ZIMA","TEXT3954"]
["TEXT3955","MADELINE ZIMA","TEXT3955"]
["TEXT3956","MADELINE ZIMA","TEXT3956"]
["TEXT3957","MADELINE ZIMA","TEXT3957"]
["TEXT3958","MADELINE ZIMA","TEXT3958"]
["TEXT3959","MADELINE ZIMA","TEXT3959"]
["TEXT3960","MADELINE ZIMA","TEXT3960"]
["TEXT3961","MADELINE ZIMA","TEXT3961"]
["TEXT3962","MADELINE ZIMA","TEXT3962"]
["TEXT3963","ELYSE LEVESQUE","TEXT3963"]
["TEXT3964","ELYSE LEVESQUE","TEXT3964"]
["TEXT3965","ELYSE LEVESQUE","TEXT3965"]
["TEXT3966","ELYSE LEVESQUE","TEXT3966"]
["TEXT3967","ELYSE LEVESQUE","TEXT3967"]
["TEXT3968","ELYSE LEVESQUE","TEXT3968"]
["TEXT3969","ELYSE LEVESQUE","TEXT3969"]
[{"$f":"\"TEXT\"&ROW()","v":"TEXT3970"},"ELYSE LEVESQUE","TEXT3970"]
["TEXT3971","ELYSE LEVESQUE","TEXT3971"]
["TEXT3972","ELYSE LEVESQUE","TEXT3972"]
["TEXT3973","ELYSE LEVESQUE","TEXT3973"]
["TEXT3974","ELYSE LEVESQUE","TEXT3974"]
["TEXT3975","ELYSE LEVESQUE","TEXT3975"]
["TEXT3976","ALYSSA DIAZ","TEXT3976"]
["TEXT3977","ALYSSA DIAZ","TEXT3977"]
["TEXT3978","ALYSSA DIAZ","TEXT3978"]
["TEXT3979","ALYSSA DIAZ","TEXT3979"]
["TEXT3980","ALYSSA DIAZ","TEXT3980"]
["TEXT3981","ALYSSA DIAZ","TEXT3981"]
["TEXT3982","ALYSSA DIAZ","TEXT3982"]
["TEXT3983","LAURA HADDOCK","TEXT3983"]
["TEXT3984","LAURA HADDOCK","TEXT3984"]
["TEXT3985","LAURA HADDOCK","TEXT3985"]
["TEXT3986","LAURA HADDOCK","TEXT3986"]
["TEXT3987","LAURA HADDOCK","TEXT3987"]
["TEXT3988","LAURA HADDOCK","TEXT3988"]
["TEXT3989","LAURA HADDOCK","TEXT3989"]
["TEXT3990","LAURA HADDOCK","TEXT3990"]
["TEXT3991","LAURA HADDOCK","TEXT3991"]
["TEXT3992","LAURA HADDOCK","TEXT3992"]
["TEXT3993","LAURA HADDOCK","TEXT3993"]
["TEXT3994","LAURA HADDOCK","TEXT3994"]
["TEXT3995","LAURA HADDOCK","TEXT3995"]
["TEXT3996","LAURA HADDOCK","TEXT3996"]
["TEXT3997","LAURA HADDOCK","TEXT3997"]
["TEXT3998","LAURA HADDOCK","TEXT3998"]
["TEXT3999","LAURA HADDOCK","TEXT3999"]
["TEXT4000","LAURA HADDOCK","TEXT4000"]
["TEXT4001","LAURA HADDOCK","TEXT4001"]
["TEXT4002","LAURA HADDOCK","TEXT4002"]
["TEXT4003","LAURA HADDOCK","TEXT4003"]
["TEXT4004","LAURA HADDOCK","TEXT4004"]
["TEXT4005","LAURA HADDOCK","TEXT4005"]
["TEXT4006","LAURA HADDOCK","TEXT4006"]
["TEXT4007","LAURA HADDOCK","TEXT4007"]
["TEXT4008","LAURA HADDOCK","TEXT4008"]
["TEXT4009","LAURA HADDOCK","TEXT4009"]
["TEXT4010","LAURA HADDOCK","TEXT4010"]
["TEXT4011","LAURA HADDOCK","TEXT4011"]
["TEXT4012","LAURA HADDOCK","TEXT4012"]
["TEXT4013","LAURA HADDOCK","TEXT4013"]
["TEXT4014","LAURA HADDOCK","TEXT4014"]
["TEXT4015","LAURA HADDOCK","TEXT4015"]
["TEXT4016","LAURA HADDOCK","TEXT4016"]
["TEXT4017","LAURA HADDOCK","TEXT4017"]
["TEXT4018","LAURA HADDOCK","TEXT4018"]
["TEXT4019","LAURA HADDOCK","TEXT4019"]
["TEXT4020","LAURA HADDOCK","TEXT4020"]
["TEXT4021","CRISTIN MILIOTI","TEXT4021"]
["TEXT4022","CRISTIN MILIOTI","TEXT4022"]
["TEXT4023","CRISTIN MILIOTI","TEXT4023"]
["TEXT4024","CRISTIN MILIOTI","TEXT4024"]
["TEXT4025","CRISTIN MILIOTI","TEXT4025"]
["TEXT4026","CRISTIN MILIOTI","TEXT4026"]
["TEXT4027","CRISTIN MILIOTI","TEXT4027"]
["TEXT4028","CRISTIN MILIOTI","TEXT4028"]
["TEXT4029","CRISTIN MILIOTI","TEXT4029"]
["TEXT4030","ANNA KENDRICK","TEXT4030"]
["TEXT4031","ANNA KENDRICK","TEXT4031"]
["TEXT4032","ANNA KENDRICK","TEXT4032"]
["TEXT4033","BRITT LOWER","TEXT4033"]
[{"$f":"\"TEXT\"&ROW()","v":"TEXT4034"},"BRITT LOWER","TEXT4034"]
["TEXT4035","BRITT LOWER","TEXT4035"]
["TEXT4036","BRITT LOWER","TEXT4036"]
["TEXT4037","BRITT LOWER","TEXT4037"]
["TEXT4038","BRITT LOWER","TEXT4038"]
["TEXT4039","BRITT LOWER","TEXT4039"]
["TEXT4040","BRITT LOWER","TEXT4040"]
["TEXT4041","BRITT LOWER","TEXT4041"]
["TEXT4042","BRITT LOWER","TEXT4042"]
["TEXT4043","BRITT LOWER","TEXT4043"]
["TEXT4044","BRITT LOWER","TEXT4044"]
["TEXT4045","BRITT LOWER","TEXT4045"]
["TEXT4046","BRITT LOWER","TEXT4046"]
["TEXT4047","BRITT LOWER","TEXT4047"]
["TEXT4048","BRITT LOWER","TEXT4048"]
["TEXT4049","BRITT LOWER","TEXT4049"]
["TEXT4050","BRITT LOWER","TEXT4050"]
["TEXT4051","BRITT LOWER","TEXT4051"]
["TEXT4052","BRITT LOWER","TEXT4052"]
["TEXT4053","BRITT LOWER","TEXT4053"]
["TEXT4054","SARA GIRAUDEAU","TEXT4054"]
["TEXT4055","SARA GIRAUDEAU","TEXT4055"]
["TEXT4056","SARA GIRAUDEAU","TEXT4056"]
["TEXT4057","SARA GIRAUDEAU","TEXT4057"]
["TEXT4058","SARA GIRAUDEAU","TEXT4058"]
["TEXT4059","SARA GIRAUDEAU","TEXT4059"]
["TEXT4060","SARA GIRAUDEAU","TEXT4060"]
["TEXT4061","SARA GIRAUDEAU","TEXT4061"]
["TEXT4062","SARA GIRAUDEAU","TEXT4062"]
["TEXT4063","SARA GIRAUDEAU","TEXT4063"]
["TEXT4064","SARA GIRAUDEAU","TEXT4064"]
["TEXT4065","SARA GIRAUDEAU","TEXT4065"]
["TEXT4066","SARA GIRAUDEAU","TEXT4066"]
["TEXT4067","SARA GIRAUDEAU","TEXT4067"]
["TEXT4068","SARA GIRAUDEAU","TEXT4068"]
["TEXT4069","SHANTEL VANSANTEN","TEXT4069"]
["TEXT4070","SHANTEL VANSANTEN","TEXT4070"]
["TEXT4071","SHANTEL VANSANTEN","TEXT4071"]
["TEXT4072","SHANTEL VANSANTEN","TEXT4072"]
["TEXT4073","SHANTEL VANSANTEN","TEXT4073"]
["TEXT4074","ROSA SALAZAR","TEXT4074"]
["TEXT4075","ROSA SALAZAR","TEXT4075"]
["TEXT4076","ROSA SALAZAR","TEXT4076"]
["TEXT4077","ROSA SALAZAR","TEXT4077"]
["TEXT4078","ROSA SALAZAR","TEXT4078"]
["TEXT4079","ROSA SALAZAR","TEXT4079"]
["TEXT4080","ROSA SALAZAR","TEXT4080"]
["TEXT4081","ROSA SALAZAR","TEXT4081"]
["TEXT4082","ROSA SALAZAR","TEXT4082"]
["TEXT4083","ROSA SALAZAR","TEXT4083"]
["TEXT4084","ROSA SALAZAR","TEXT4084"]
["TEXT4085","ROSA SALAZAR","TEXT4085"]
["TEXT4086","ROSA SALAZAR","TEXT4086"]
["TEXT4087","ROSA SALAZAR","TEXT4087"]
["TEXT4088","ROSA SALAZAR","TEXT4088"]
["TEXT4089","ROSA SALAZAR","TEXT4089"]
["TEXT4090","ROSA SALAZAR","TEXT4090"]
["TEXT4091","ROSA SALAZAR","TEXT4091"]
["TEXT4092","ROSA SALAZAR","TEXT4092"]
["TEXT4093","PHOEBE WALLER-BRIDGE","TEXT4093"]
["TEXT4094","CAREY MULLIGAN","TEXT4094"]
["TEXT4095","CAREY MULLIGAN","TEXT4095"]
["TEXT4096","CAREY MULLIGAN","TEXT4096"]
["TEXT4097","CAREY MULLIGAN","TEXT4097"]
[{"$f":"\"TEXT\"&ROW()","v":"TEXT4098"},"CAREY MULLIGAN","TEXT4098"]
["TEXT4099","CAREY MULLIGAN","TEXT4099"]
["TEXT4100","CAREY MULLIGAN","TEXT4100"]
["TEXT4101","CAREY MULLIGAN","TEXT4101"]
["TEXT4102","CAREY MULLIGAN","TEXT4102"]
["TEXT4103","CAREY MULLIGAN","TEXT4103"]
["TEXT4104","ODETTE ANNABLE","TEXT4104"]
["TEXT4105","GAL GADOT","TEXT4105"]
["TEXT4106","GAL GADOT","TEXT4106"]
["TEXT4107","GAL GADOT","TEXT4107"]
["TEXT4108","GAL GADOT","TEXT4108"]
["TEXT4109","GAL GADOT","TEXT4109"]
["TEXT4110","ROONEY MARA","TEXT4110"]
["TEXT4111","ROONEY MARA","TEXT4111"]
["TEXT4112","ROONEY MARA","TEXT4112"]
["TEXT4113","ROONEY MARA","TEXT4113"]
["TEXT4114","ROONEY MARA","TEXT4114"]
["TEXT4115","ROONEY MARA","TEXT4115"]
["TEXT4116","ROONEY MARA","TEXT4116"]
["TEXT4117","ROONEY MARA","TEXT4117"]
["TEXT4118","ROONEY MARA","TEXT4118"]
["TEXT4119","ROONEY MARA","TEXT4119"]
["TEXT4120","ROONEY MARA","TEXT4120"]
["TEXT4121","ROONEY MARA","TEXT4121"]
["TEXT4122","ROONEY MARA","TEXT4122"]
["TEXT4123","ROONEY MARA","TEXT4123"]
["TEXT4124","ROONEY MARA","TEXT4124"]
["TEXT4125","ROONEY MARA","TEXT4125"]
["TEXT4126","ROONEY MARA","TEXT4126"]
["TEXT4127","ROONEY MARA","TEXT4127"]
["TEXT4128","ROONEY MARA","TEXT4128"]
["TEXT4129","ROONEY MARA","TEXT4129"]
["TEXT4130","ROONEY MARA","TEXT4130"]
["TEXT4131","ROONEY MARA","TEXT4131"]
["TEXT4132","ROONEY MARA","TEXT4132"]
["TEXT4133","ROONEY MARA","TEXT4133"]
["TEXT4134","ROONEY MARA","TEXT4134"]
["TEXT4135","ROONEY MARA","TEXT4135"]
["TEXT4136","ROONEY MARA","TEXT4136"]
["TEXT4137","ROONEY MARA","TEXT4137"]
["TEXT4138","ROONEY MARA","TEXT4138"]
["TEXT4139","ROONEY MARA","TEXT4139"]
["TEXT4140","ROONEY MARA","TEXT4140"]
["TEXT4141","ROONEY MARA","TEXT4141"]
["TEXT4142","ROONEY MARA","TEXT4142"]
["TEXT4143","ROONEY MARA","TEXT4143"]
["TEXT4144","ROONEY MARA","TEXT4144"]
["TEXT4145","ROONEY MARA","TEXT4145"]
["TEXT4146","ROONEY MARA","TEXT4146"]
["TEXT4147","ROONEY MARA","TEXT4147"]
["TEXT4148","ROONEY MARA","TEXT4148"]
["TEXT4149","ROONEY MARA","TEXT4149"]
["TEXT4150","ROONEY MARA","TEXT4150"]
["TEXT4151","KEIRA KNIGHTLEY","TEXT4151"]
["TEXT4152","KEIRA KNIGHTLEY","TEXT4152"]
["TEXT4153","KEIRA KNIGHTLEY","TEXT4153"]
["TEXT4154","KEIRA KNIGHTLEY","TEXT4154"]
["TEXT4155","KEIRA KNIGHTLEY","TEXT4155"]
["TEXT4156","KEIRA KNIGHTLEY","TEXT4156"]
["TEXT4157","KEIRA KNIGHTLEY","TEXT4157"]
["TEXT4158","KEIRA KNIGHTLEY","TEXT4158"]
["TEXT4159","KEIRA KNIGHTLEY","TEXT4159"]
["TEXT4160","KEIRA KNIGHTLEY","TEXT4160"]
["TEXT4161","KEIRA KNIGHTLEY","TEXT4161"]
[{"$f":"\"TEXT\"&ROW()","v":"TEXT4162"},"KEIRA KNIGHTLEY","TEXT4162"]
["TEXT4163","KEIRA KNIGHTLEY","TEXT4163"]
["TEXT4164","KEIRA KNIGHTLEY","TEXT4164"]
["TEXT4165","KEIRA KNIGHTLEY","TEXT4165"]
["TEXT4166","KEIRA KNIGHTLEY","TEXT4166"]
["TEXT4167","KEIRA KNIGHTLEY","TEXT4167"]
["TEXT4168","KEIRA KNIGHTLEY","TEXT4168"]
["TEXT4169","KEIRA KNIGHTLEY","TEXT4169"]
["TEXT4170","KEIRA KNIGHTLEY","TEXT4170"]
["TEXT4171","KEIRA KNIGHTLEY","TEXT4171"]
["TEXT4172","KEIRA KNIGHTLEY","TEXT4172"]
["TEXT4173","KEIRA KNIGHTLEY","TEXT4173"]
["TEXT4174","KEIRA KNIGHTLEY","TEXT4174"]
["TEXT4175","KEIRA KNIGHTLEY","TEXT4175"]
["TEXT4176","KEIRA KNIGHTLEY","TEXT4176"]
["TEXT4177","KEIRA KNIGHTLEY","TEXT4177"]
["TEXT4178","KEIRA KNIGHTLEY","TEXT4178"]
["TEXT4179","KEIRA KNIGHTLEY","TEXT4179"]
["TEXT4180","KEIRA KNIGHTLEY","TEXT4180"]
["TEXT4181","KEIRA KNIGHTLEY","TEXT4181"]
["TEXT4182","KEIRA KNIGHTLEY","TEXT4182"]
["TEXT4183","KEIRA KNIGHTLEY","TEXT4183"]
["TEXT4184","KEIRA KNIGHTLEY","TEXT4184"]
["TEXT4185","KEIRA KNIGHTLEY","TEXT4185"]
["TEXT4186","KEIRA KNIGHTLEY","TEXT4186"]
["TEXT4187","KEIRA KNIGHTLEY","TEXT4187"]
["TEXT4188","KEIRA KNIGHTLEY","TEXT4188"]
["TEXT4189","KEIRA KNIGHTLEY","TEXT4189"]
["TEXT4190","KEIRA KNIGHTLEY","TEXT4190"]
["TEXT4191","KEIRA KNIGHTLEY","TEXT4191"]
["TEXT4192","KEIRA KNIGHTLEY","TEXT4192"]
["TEXT4193","KEIRA KNIGHTLEY","TEXT4193"]
["TEXT4194","KEIRA KNIGHTLEY","TEXT4194"]
["TEXT4195","KEIRA KNIGHTLEY","TEXT4195"]
["TEXT4196","KEIRA KNIGHTLEY","TEXT4196"]
["TEXT4197","KEIRA KNIGHTLEY","TEXT4197"]
["TEXT4198","KEIRA KNIGHTLEY","TEXT4198"]
["TEXT4199","KEIRA KNIGHTLEY","TEXT4199"]
["TEXT4200","ARIELLE KEBBEL","TEXT4200"]
["TEXT4201","ARIELLE KEBBEL","TEXT4201"]
["TEXT4202","ARIELLE KEBBEL","TEXT4202"]
["TEXT4203","ARIELLE KEBBEL","TEXT4203"]
["TEXT4204","ARIELLE KEBBEL","TEXT4204"]
["TEXT4205","ARIELLE KEBBEL","TEXT4205"]
["TEXT4206","ARIELLE KEBBEL","TEXT4206"]
["TEXT4207","NATALIE MORALES","TEXT4207"]
["TEXT4208","NATALIE MORALES","TEXT4208"]
["TEXT4209","NATALIE MORALES","TEXT4209"]
["TEXT4210","NATALIE MORALES","TEXT4210"]
["TEXT4211","NATALIE MORALES","TEXT4211"]
["TEXT4212","NATALIE MORALES","TEXT4212"]
["TEXT4213","NATALIE MORALES","TEXT4213"]
["TEXT4214","NATALIE MORALES","TEXT4214"]
["TEXT4215","DEBORAH ANN WOLL","TEXT4215"]
["TEXT4216","DEBORAH ANN WOLL","TEXT4216"]
["TEXT4217","TATTIAWNA JONES","TEXT4217"]
["TEXT4218","TATTIAWNA JONES","TEXT4218"]
["TEXT4219","TATTIAWNA JONES","TEXT4219"]
["TEXT4220","TATTIAWNA JONES","TEXT4220"]
["TEXT4221","TATTIAWNA JONES","TEXT4221"]
["TEXT4222","TATTIAWNA JONES","TEXT4222"]
["TEXT4223","TATTIAWNA JONES","TEXT4223"]
["TEXT4224","MARY ELIZABETH WINSTEAD","TEXT4224"]
["TEXT4225","MARY ELIZABETH WINSTEAD","TEXT4225"]
[{"$f":"\"TEXT\"&ROW()","v":"TEXT4226"},"MARY ELIZABETH WINSTEAD","TEXT4226"]
["TEXT4227","MARY ELIZABETH WINSTEAD","TEXT4227"]
["TEXT4228","MARY ELIZABETH WINSTEAD","TEXT4228"]
["TEXT4229","MARY ELIZABETH WINSTEAD","TEXT4229"]
["TEXT4230","MARY ELIZABETH WINSTEAD","TEXT4230"]
["TEXT4231","MARY ELIZABETH WINSTEAD","TEXT4231"]
["TEXT4232","MARY ELIZABETH WINSTEAD","TEXT4232"]
["TEXT4233","MARY ELIZABETH WINSTEAD","TEXT4233"]
["TEXT4234","MARY ELIZABETH WINSTEAD","TEXT4234"]
["TEXT4235","MARY ELIZABETH WINSTEAD","TEXT4235"]
["TEXT4236","MARY ELIZABETH WINSTEAD","TEXT4236"]
["TEXT4237","MARY ELIZABETH WINSTEAD","TEXT4237"]
["TEXT4238","MARY ELIZABETH WINSTEAD","TEXT4238"]
["TEXT4239","MARY ELIZABETH WINSTEAD","TEXT4239"]
["TEXT4240","SCARLETT JOHANSSON","TEXT4240"]
["TEXT4241","SCARLETT JOHANSSON","TEXT4241"]
["TEXT4242","SCARLETT JOHANSSON","TEXT4242"]
["TEXT4243","SCARLETT JOHANSSON","TEXT4243"]
["TEXT4244","SCARLETT JOHANSSON","TEXT4244"]
["TEXT4245","SCARLETT JOHANSSON","TEXT4245"]
["TEXT4246","SCARLETT JOHANSSON","TEXT4246"]
["TEXT4247","SCARLETT JOHANSSON","TEXT4247"]
["TEXT4248","SCARLETT JOHANSSON","TEXT4248"]
["TEXT4249","SCARLETT JOHANSSON","TEXT4249"]
["TEXT4250","SCARLETT JOHANSSON","TEXT4250"]
["TEXT4251","SCARLETT JOHANSSON","TEXT4251"]
["TEXT4252","SCARLETT JOHANSSON","TEXT4252"]
["TEXT4253","SCARLETT JOHANSSON","TEXT4253"]
["TEXT4254","SCARLETT JOHANSSON","TEXT4254"]
["TEXT4255","SCARLETT JOHANSSON","TEXT4255"]
["TEXT4256","SCARLETT JOHANSSON","TEXT4256"]
["TEXT4257","SCARLETT JOHANSSON","TEXT4257"]
["TEXT4258","SCARLETT JOHANSSON","TEXT4258"]
["TEXT4259","JENA MALONE","TEXT4259"]
["TEXT4260","JENA MALONE","TEXT4260"]
["TEXT4261","JENA MALONE","TEXT4261"]
["TEXT4262","JENA MALONE","TEXT4262"]
["TEXT4263","JENA MALONE","TEXT4263"]
["TEXT4264","JENA MALONE","TEXT4264"]
["TEXT4265","JENA MALONE","TEXT4265"]
["TEXT4266","JENA MALONE","TEXT4266"]
["TEXT4267","JENA MALONE","TEXT4267"]
["TEXT4268","JENA MALONE","TEXT4268"]
["TEXT4269","JENA MALONE","TEXT4269"]
["TEXT4270","JENA MALONE","TEXT4270"]
["TEXT4271","JENA MALONE","TEXT4271"]
["TEXT4272","JENA MALONE","TEXT4272"]
["TEXT4273","JENA MALONE","TEXT4273"]
["TEXT4274","JENA MALONE","TEXT4274"]
["TEXT4275","JENA MALONE","TEXT4275"]
["TEXT4276","JENA MALONE","TEXT4276"]
["TEXT4277","JENA MALONE","TEXT4277"]
["TEXT4278","JENA MALONE","TEXT4278"]
["TEXT4279","JENA MALONE","TEXT4279"]
["TEXT4280","JENA MALONE","TEXT4280"]
["TEXT4281","JENA MALONE","TEXT4281"]
["TEXT4282","JENA MALONE","TEXT4282"]
["TEXT4283","JENA MALONE","TEXT4283"]
["TEXT4284","JENA MALONE","TEXT4284"]
["TEXT4285","JENA MALONE","TEXT4285"]
["TEXT4286","JENA MALONE","TEXT4286"]
["TEXT4287","JENA MALONE","TEXT4287"]
["TEXT4288","JENA MALONE","TEXT4288"]
["TEXT4289","JENA MALONE","TEXT4289"]
[{"$f":"\"TEXT\"&ROW()","v":"TEXT4290"},"JENA MALONE","TEXT4290"]
["TEXT4291","JENA MALONE","TEXT4291"]
["TEXT4292","JENA MALONE","TEXT4292"]
["TEXT4293","ANNABELLE WALLIS","TEXT4293"]
["TEXT4294","ANNABELLE WALLIS","TEXT4294"]
["TEXT4295","ANNABELLE WALLIS","TEXT4295"]
["TEXT4296","ANNABELLE WALLIS","TEXT4296"]
["TEXT4297","ANNABELLE WALLIS","TEXT4297"]
["TEXT4298","ANNABELLE WALLIS","TEXT4298"]
["TEXT4299","ANNABELLE WALLIS","TEXT4299"]
["TEXT4300","ANNABELLE WALLIS","TEXT4300"]
["TEXT4301","MELISSA NAVIA","TEXT4301"]
["TEXT4302","SARAH GREENE","TEXT4302"]
["TEXT4303","SARAH GREENE","TEXT4303"]
["TEXT4304","SARAH GREENE","TEXT4304"]
["TEXT4305","SARAH GREENE","TEXT4305"]
["TEXT4306","SARAH GREENE","TEXT4306"]
["TEXT4307","SARAH GREENE","TEXT4307"]
["TEXT4308","SARAH GREENE","TEXT4308"]
["TEXT4309","SARAH GREENE","TEXT4309"]
["TEXT4310","SARAH GREENE","TEXT4310"]
["TEXT4311","SARAH GREENE","TEXT4311"]
["TEXT4312","SARAH GREENE","TEXT4312"]
["TEXT4313","SARAH GREENE","TEXT4313"]
["TEXT4314","SARAH GREENE","TEXT4314"]
["TEXT4315","SARAH GREENE","TEXT4315"]
["TEXT4316","SARAH GREENE","TEXT4316"]
["TEXT4317","SARAH GREENE","TEXT4317"]
["TEXT4318","SARAH GREENE","TEXT4318"]
["TEXT4319","SARAH GREENE","TEXT4319"]
["TEXT4320","SARAH GREENE","TEXT4320"]
["TEXT4321","SARAH GREENE","TEXT4321"]
["TEXT4322","SARAH GREENE","TEXT4322"]
["TEXT4323","SARAH GREENE","TEXT4323"]
["TEXT4324","SARAH GREENE","TEXT4324"]
["TEXT4325","SARAH GREENE","TEXT4325"]
["TEXT4326","SARAH GREENE","TEXT4326"]
["TEXT4327","SARAH GREENE","TEXT4327"]
["TEXT4328","SARAH GREENE","TEXT4328"]
["TEXT4329","SARAH GREENE","TEXT4329"]
["TEXT4330","SARAH GREENE","TEXT4330"]
["TEXT4331","SARAH GREENE","TEXT4331"]
["TEXT4332","SARAH GREENE","TEXT4332"]
["TEXT4333","SARAH GREENE","TEXT4333"]
["TEXT4334","SARAH GREENE","TEXT4334"]
["TEXT4335","SARAH GREENE","TEXT4335"]
["TEXT4336","SARAH GREENE","TEXT4336"]
["TEXT4337","SARAH GREENE","TEXT4337"]
["TEXT4338","SARAH GREENE","TEXT4338"]
["TEXT4339","SARAH GREENE","TEXT4339"]
["TEXT4340","SARAH GREENE","TEXT4340"]
["TEXT4341","SARAH GREENE","TEXT4341"]
["TEXT4342","SARAH GREENE","TEXT4342"]
["TEXT4343","SARAH GREENE","TEXT4343"]
["TEXT4344","SARAH GREENE","TEXT4344"]
["TEXT4345","SARAH GREENE","TEXT4345"]
["TEXT4346","SARAH GREENE","TEXT4346"]
["TEXT4347","SARAH GREENE","TEXT4347"]
["TEXT4348","SARAH GREENE","TEXT4348"]
["TEXT4349","SARAH GREENE","TEXT4349"]
["TEXT4350","SARAH GREENE","TEXT4350"]
["TEXT4351","SARAH GREENE","TEXT4351"]
["TEXT4352","SARAH GREENE","TEXT4352"]
["TEXT4353","SARAH GREENE","TEXT4353"]
[{"$f":"\"TEXT\"&ROW()","v":"TEXT4354"},"AUBREY PLAZA","TEXT4354"]
["TEXT4355","AUBREY PLAZA","TEXT4355"]
["TEXT4356","AUBREY PLAZA","TEXT4356"]
["TEXT4357","AUBREY PLAZA","TEXT4357"]
["TEXT4358","AUBREY PLAZA","TEXT4358"]
["TEXT4359","AUBREY PLAZA","TEXT4359"]
["TEXT4360","AUBREY PLAZA","TEXT4360"]
["TEXT4361","AUBREY PLAZA","TEXT4361"]
["TEXT4362","AUBREY PLAZA","TEXT4362"]
["TEXT4363","AUBREY PLAZA","TEXT4363"]
["TEXT4364","AUBREY PLAZA","TEXT4364"]
["TEXT4365","AUBREY PLAZA","TEXT4365"]
["TEXT4366","AUBREY PLAZA","TEXT4366"]
["TEXT4367","AUBREY PLAZA","TEXT4367"]
["TEXT4368","AUBREY PLAZA","TEXT4368"]
["TEXT4369","AUBREY PLAZA","TEXT4369"]
["TEXT4370","AUBREY PLAZA","TEXT4370"]
["TEXT4371","AUBREY PLAZA","TEXT4371"]
["TEXT4372","AUBREY PLAZA","TEXT4372"]
["TEXT4373","AUBREY PLAZA","TEXT4373"]
["TEXT4374","AUBREY PLAZA","TEXT4374"]
["TEXT4375","AUBREY PLAZA","TEXT4375"]
["TEXT4376","AUBREY PLAZA","TEXT4376"]
["TEXT4377","AUBREY PLAZA","TEXT4377"]
["TEXT4378","AUBREY PLAZA","TEXT4378"]
["TEXT4379","AUBREY PLAZA","TEXT4379"]
["TEXT4380","AUBREY PLAZA","TEXT4380"]
["TEXT4381","AUBREY PLAZA","TEXT4381"]
["TEXT4382","AUBREY PLAZA","TEXT4382"]
["TEXT4383","AUBREY PLAZA","TEXT4383"]
["TEXT4384","AUBREY PLAZA","TEXT4384"]
["TEXT4385","AUBREY PLAZA","TEXT4385"]
["TEXT4386","AUBREY PLAZA","TEXT4386"]
["TEXT4387","AUBREY PLAZA","TEXT4387"]
["TEXT4388","AUBREY PLAZA","TEXT4388"]
["TEXT4389","AUBREY PLAZA","TEXT4389"]
["TEXT4390","AUBREY PLAZA","TEXT4390"]
["TEXT4391","AUBREY PLAZA","TEXT4391"]
["TEXT4392","AUBREY PLAZA","TEXT4392"]
["TEXT4393","AUBREY PLAZA","TEXT4393"]
["TEXT4394","EMILY BEECHAM","TEXT4394"]
["TEXT4395","EMILY BEECHAM","TEXT4395"]
["TEXT4396","EMILY BEECHAM","TEXT4396"]
["TEXT4397","EMILY BEECHAM","TEXT4397"]
["TEXT4398","EMILY BEECHAM","TEXT4398"]
["TEXT4399","EMILY BEECHAM","TEXT4399"]
["TEXT4400","EMILY BEECHAM","TEXT4400"]
["TEXT4401","CLAIRE FOY","TEXT4401"]
["TEXT4402","CLAIRE FOY","TEXT4402"]
["TEXT4403","CLAIRE FOY","TEXT4403"]
["TEXT4404","CLAIRE FOY","TEXT4404"]
["TEXT4405","CLAIRE FOY","TEXT4405"]
["TEXT4406","CLAIRE FOY","TEXT4406"]
["TEXT4407","CLAIRE FOY","TEXT4407"]
["TEXT4408","CLAIRE FOY","TEXT4408"]
["TEXT4409","CLAIRE FOY","TEXT4409"]
["TEXT4410","CLAIRE FOY","TEXT4410"]
["TEXT4411","CLAIRE FOY","TEXT4411"]
["TEXT4412","CLAIRE FOY","TEXT4412"]
["TEXT4413","CLAIRE FOY","TEXT4413"]
["TEXT4414","CLAIRE FOY","TEXT4414"]
["TEXT4415","MANDY MOORE","TEXT4415"]
["TEXT4416","MANDY MOORE","TEXT4416"]
["TEXT4417","MANDY MOORE","TEXT4417"]
[{"$f":"\"TEXT\"&ROW()","v":"TEXT4418"},"JAIMIE ALEXANDER","TEXT4418"]
["TEXT4419","JAIMIE ALEXANDER","TEXT4419"]
["TEXT4420","JAIMIE ALEXANDER","TEXT4420"]
["TEXT4421","JAIMIE ALEXANDER","TEXT4421"]
["TEXT4422","OLIVIA WILDE","TEXT4422"]
["TEXT4423","OLIVIA WILDE","TEXT4423"]
["TEXT4424","OLIVIA WILDE","TEXT4424"]
["TEXT4425","OLIVIA WILDE","TEXT4425"]
["TEXT4426","OLIVIA WILDE","TEXT4426"]
["TEXT4427","OLIVIA WILDE","TEXT4427"]
["TEXT4428","OLIVIA WILDE","TEXT4428"]
["TEXT4429","OLIVIA WILDE","TEXT4429"]
["TEXT4430","OLIVIA WILDE","TEXT4430"]
["TEXT4431","OLIVIA WILDE","TEXT4431"]
["TEXT4432","OLIVIA WILDE","TEXT4432"]
["TEXT4433","OLIVIA WILDE","TEXT4433"]
["TEXT4434","OLIVIA WILDE","TEXT4434"]
["TEXT4435","OLIVIA WILDE","TEXT4435"]
["TEXT4436","OLIVIA WILDE","TEXT4436"]
["TEXT4437","OLIVIA WILDE","TEXT4437"]
["TEXT4438","OLIVIA WILDE","TEXT4438"]
["TEXT4439","OLIVIA WILDE","TEXT4439"]
["TEXT4440","OLIVIA WILDE","TEXT4440"]
["TEXT4441","OLIVIA WILDE","TEXT4441"]
["TEXT4442","OLIVIA WILDE","TEXT4442"]
["TEXT4443","OLIVIA WILDE","TEXT4443"]
["TEXT4444","OLIVIA WILDE","TEXT4444"]
["TEXT4445","OLIVIA WILDE","TEXT4445"]
["TEXT4446","OLIVIA WILDE","TEXT4446"]
["TEXT4447","OLIVIA WILDE","TEXT4447"]
["TEXT4448","OLIVIA WILDE","TEXT4448"]
["TEXT4449","OLIVIA WILDE","TEXT4449"]
["TEXT4450","OLIVIA WILDE","TEXT4450"]
["TEXT4451","OLIVIA WILDE","TEXT4451"]
["TEXT4452","OLIVIA WILDE","TEXT4452"]
["TEXT4453","OLIVIA WILDE","TEXT4453"]
["TEXT4454","OLIVIA WILDE","TEXT4454"]
["TEXT4455","OLIVIA WILDE","TEXT4455"]
["TEXT4456","OLIVIA WILDE","TEXT4456"]
["TEXT4457","OLIVIA WILDE","TEXT4457"]
["TEXT4458","OLIVIA WILDE","TEXT4458"]
["TEXT4459","OLIVIA WILDE","TEXT4459"]
["TEXT4460","OLIVIA WILDE","TEXT4460"]
["TEXT4461","OLIVIA WILDE","TEXT4461"]
["TEXT4462","OLIVIA WILDE","TEXT4462"]
["TEXT4463","OLIVIA WILDE","TEXT4463"]
["TEXT4464","OLIVIA WILDE","TEXT4464"]
["TEXT4465","OLIVIA WILDE","TEXT4465"]
["TEXT4466","OLIVIA WILDE","TEXT4466"]
["TEXT4467","OLIVIA WILDE","TEXT4467"]
["TEXT4468","OLIVIA WILDE","TEXT4468"]
["TEXT4469","OLIVIA WILDE","TEXT4469"]
["TEXT4470","OLIVIA WILDE","TEXT4470"]
["TEXT4471","OLIVIA WILDE","TEXT4471"]
["TEXT4472","OLIVIA WILDE","TEXT4472"]
["TEXT4473","OLIVIA WILDE","TEXT4473"]
["TEXT4474","OLIVIA WILDE","TEXT4474"]
["TEXT4475","OLIVIA WILDE","TEXT4475"]
["TEXT4476","OLIVIA WILDE","TEXT4476"]
["TEXT4477","OLIVIA WILDE","TEXT4477"]
["TEXT4478","OLIVIA WILDE","TEXT4478"]
["TEXT4479","OLIVIA WILDE","TEXT4479"]
["TEXT4480","STEPHANIE LEONIDAS","TEXT4480"]
["TEXT4481","STEPHANIE LEONIDAS","TEXT4481"]
[{"$f":"\"TEXT\"&ROW()","v":"TEXT4482"},"STEPHANIE LEONIDAS","TEXT4482"]
["TEXT4483","STEPHANIE LEONIDAS","TEXT4483"]
["TEXT4484","STEPHANIE LEONIDAS","TEXT4484"]
["TEXT4485","STEPHANIE LEONIDAS","TEXT4485"]
["TEXT4486","MICKEY SUMNER","TEXT4486"]
["TEXT4487","MICKEY SUMNER","TEXT4487"]
["TEXT4488","MICKEY SUMNER","TEXT4488"]
["TEXT4489","MICKEY SUMNER","TEXT4489"]
["TEXT4490","KATE MCKINNON","TEXT4490"]
["TEXT4491","KATE MCKINNON","TEXT4491"]
["TEXT4492","KATE MCKINNON","TEXT4492"]
["TEXT4493","KATE MCKINNON","TEXT4493"]
["TEXT4494","KATE MCKINNON","TEXT4494"]
["TEXT4495","KATE MCKINNON","TEXT4495"]
["TEXT4496","REBECCA FERGUSON","TEXT4496"]
["TEXT4497","REBECCA FERGUSON","TEXT4497"]
["TEXT4498","REBECCA FERGUSON","TEXT4498"]
["TEXT4499","REBECCA FERGUSON","TEXT4499"]
["TEXT4500","REBECCA FERGUSON","TEXT4500"]
["TEXT4501","REBECCA FERGUSON","TEXT4501"]
["TEXT4502","REBECCA FERGUSON","TEXT4502"]
["TEXT4503","REBECCA FERGUSON","TEXT4503"]
["TEXT4504","REBECCA FERGUSON","TEXT4504"]
["TEXT4505","REBECCA FERGUSON","TEXT4505"]
["TEXT4506","REBECCA FERGUSON","TEXT4506"]
["TEXT4507","REBECCA FERGUSON","TEXT4507"]
["TEXT4508","REBECCA FERGUSON","TEXT4508"]
["TEXT4509","REBECCA FERGUSON","TEXT4509"]
["TEXT4510","REBECCA FERGUSON","TEXT4510"]
["TEXT4511","REBECCA FERGUSON","TEXT4511"]
["TEXT4512","REBECCA FERGUSON","TEXT4512"]
["TEXT4513","REBECCA FERGUSON","TEXT4513"]
["TEXT4514","REBECCA FERGUSON","TEXT4514"]
["TEXT4515","REBECCA FERGUSON","TEXT4515"]
["TEXT4516","REBECCA FERGUSON","TEXT4516"]
["TEXT4517","REBECCA FERGUSON","TEXT4517"]
["TEXT4518","REBECCA FERGUSON","TEXT4518"]
["TEXT4519","REBECCA FERGUSON","TEXT4519"]
["TEXT4520","REBECCA FERGUSON","TEXT4520"]
["TEXT4521","REBECCA FERGUSON","TEXT4521"]
["TEXT4522","REBECCA FERGUSON","TEXT4522"]
["TEXT4523","FELICITY JONES","TEXT4523"]
["TEXT4524","FELICITY JONES","TEXT4524"]
["TEXT4525","FELICITY JONES","TEXT4525"]
["TEXT4526","FELICITY JONES","TEXT4526"]
["TEXT4527","FELICITY JONES","TEXT4527"]
["TEXT4528","FELICITY JONES","TEXT4528"]
["TEXT4529","TESSA THOMPSON","TEXT4529"]
["TEXT4530","TESSA THOMPSON","TEXT4530"]
["TEXT4531","TESSA THOMPSON","TEXT4531"]
["TEXT4532","TESSA THOMPSON","TEXT4532"]
["TEXT4533","TESSA THOMPSON","TEXT4533"]
["TEXT4534","TESSA THOMPSON","TEXT4534"]
["TEXT4535","TESSA THOMPSON","TEXT4535"]
["TEXT4536","TESSA THOMPSON","TEXT4536"]
["TEXT4537","TESSA THOMPSON","TEXT4537"]
["TEXT4538","TESSA THOMPSON","TEXT4538"]
["TEXT4539","TESSA THOMPSON","TEXT4539"]
["TEXT4540","TESSA THOMPSON","TEXT4540"]
["TEXT4541","TESSA THOMPSON","TEXT4541"]
["TEXT4542","TESSA THOMPSON","TEXT4542"]
["TEXT4543","TESSA THOMPSON","TEXT4543"]
["TEXT4544","TESSA THOMPSON","TEXT4544"]
["TEXT4545","TESSA THOMPSON","TEXT4545"]
[{"$f":"\"TEXT\"&ROW()","v":"TEXT4546"},"TESSA THOMPSON","TEXT4546"]
["TEXT4547","TESSA THOMPSON","TEXT4547"]
["TEXT4548","TESSA THOMPSON","TEXT4548"]
["TEXT4549","TESSA THOMPSON","TEXT4549"]
["TEXT4550","MAGGIE GRACE","TEXT4550"]
["TEXT4551","MAGGIE GRACE","TEXT4551"]
["TEXT4552","MAGGIE GRACE","TEXT4552"]
["TEXT4553","MAGGIE GRACE","TEXT4553"]
["TEXT4554","MAGGIE GRACE","TEXT4554"]
["TEXT4555","MAGGIE GRACE","TEXT4555"]
["TEXT4556","MAGGIE GRACE","TEXT4556"]
["TEXT4557","MAGGIE GRACE","TEXT4557"]
["TEXT4558","MAGGIE GRACE","TEXT4558"]
["TEXT4559","MAGGIE GRACE","TEXT4559"]
["TEXT4560","MAGGIE GRACE","TEXT4560"]
["TEXT4561","MAGGIE GRACE","TEXT4561"]
["TEXT4562","MAGGIE GRACE","TEXT4562"]
["TEXT4563","MAGGIE GRACE","TEXT4563"]
["TEXT4564","MAGGIE GRACE","TEXT4564"]
["TEXT4565","MAGGIE GRACE","TEXT4565"]
["TEXT4566","MAGGIE GRACE","TEXT4566"]
["TEXT4567","MAGGIE GRACE","TEXT4567"]
["TEXT4568","MAGGIE GRACE","TEXT4568"]
["TEXT4569","MAGGIE GRACE","TEXT4569"]
["TEXT4570","MAGGIE GRACE","TEXT4570"]
["TEXT4571","MAGGIE GRACE","TEXT4571"]
["TEXT4572","MAGGIE GRACE","TEXT4572"]
["TEXT4573","MAGGIE GRACE","TEXT4573"]
["TEXT4574","ZOE KAZAN","TEXT4574"]
["TEXT4575","ZOE KAZAN","TEXT4575"]
["TEXT4576","ZOE KAZAN","TEXT4576"]
["TEXT4577","ZOE KAZAN","TEXT4577"]
["TEXT4578","MILA KUNIS","TEXT4578"]
["TEXT4579","MILA KUNIS","TEXT4579"]
["TEXT4580","MILA KUNIS","TEXT4580"]
["TEXT4581","MILA KUNIS","TEXT4581"]
["TEXT4582","MILA KUNIS","TEXT4582"]
["TEXT4583","MILA KUNIS","TEXT4583"]
["TEXT4584","MILA KUNIS","TEXT4584"]
["TEXT4585","GRETA GERWIG","TEXT4585"]
["TEXT4586","GRETA GERWIG","TEXT4586"]
["TEXT4587","GRETA GERWIG","TEXT4587"]
["TEXT4588","GRETA GERWIG","TEXT4588"]
["TEXT4589","GRETA GERWIG","TEXT4589"]
["TEXT4590","GRETA GERWIG","TEXT4590"]
["TEXT4591","GRETA GERWIG","TEXT4591"]
["TEXT4592","GRETA GERWIG","TEXT4592"]
["TEXT4593","GRETA GERWIG","TEXT4593"]
["TEXT4594","GRETA GERWIG","TEXT4594"]
["TEXT4595","GRETA GERWIG","TEXT4595"]
["TEXT4596","GRETA GERWIG","TEXT4596"]
["TEXT4597","GRETA GERWIG","TEXT4597"]
["TEXT4598","GRETA GERWIG","TEXT4598"]
["TEXT4599","GRETA GERWIG","TEXT4599"]
["TEXT4600","GRETA GERWIG","TEXT4600"]
["TEXT4601","GRETA GERWIG","TEXT4601"]
["TEXT4602","GRETA GERWIG","TEXT4602"]
["TEXT4603","GRETA GERWIG","TEXT4603"]
["TEXT4604","GRETA GERWIG","TEXT4604"]
["TEXT4605","GRETA GERWIG","TEXT4605"]
["TEXT4606","GRETA GERWIG","TEXT4606"]
["TEXT4607","GRETA GERWIG","TEXT4607"]
["TEXT4608","GRETA GERWIG","TEXT4608"]
["TEXT4609","GRETA GERWIG","TEXT4609"]
[{"$f":"\"TEXT\"&ROW()","v":"TEXT4610"},"GRETA GERWIG","TEXT4610"]
["TEXT4611","GRETA GERWIG","TEXT4611"]
["TEXT4612","GRETA GERWIG","TEXT4612"]
["TEXT4613","GRETA GERWIG","TEXT4613"]
["TEXT4614","GRETA GERWIG","TEXT4614"]
["TEXT4615","GRETA GERWIG","TEXT4615"]
["TEXT4616","GRETA GERWIG","TEXT4616"]
["TEXT4617","CARMEN VILLALOBOS","TEXT4617"]
["TEXT4618","CARMEN VILLALOBOS","TEXT4618"]
["TEXT4619","CARMEN VILLALOBOS","TEXT4619"]
["TEXT4620","CARMEN VILLALOBOS","TEXT4620"]
["TEXT4621","CARMEN VILLALOBOS","TEXT4621"]
["TEXT4622","CARMEN VILLALOBOS","TEXT4622"]
["TEXT4623","CARMEN VILLALOBOS","TEXT4623"]
["TEXT4624","CARMEN VILLALOBOS","TEXT4624"]
["TEXT4625","CARMEN VILLALOBOS","TEXT4625"]
["TEXT4626","CARMEN VILLALOBOS","TEXT4626"]
["TEXT4627","CARMEN VILLALOBOS","TEXT4627"]
["TEXT4628","CARMEN VILLALOBOS","TEXT4628"]
["TEXT4629","CARMEN VILLALOBOS","TEXT4629"]
["TEXT4630","CARMEN VILLALOBOS","TEXT4630"]
["TEXT4631","CARMEN VILLALOBOS","TEXT4631"]
["TEXT4632","CARMEN VILLALOBOS","TEXT4632"]
["TEXT4633","CARMEN VILLALOBOS","TEXT4633"]
["TEXT4634","GOLSHIFTEH FARAHANI","TEXT4634"]
["TEXT4635","GOLSHIFTEH FARAHANI","TEXT4635"]
["TEXT4636","GOLSHIFTEH FARAHANI","TEXT4636"]
["TEXT4637","GOLSHIFTEH FARAHANI","TEXT4637"]
["TEXT4638","GOLSHIFTEH FARAHANI","TEXT4638"]
["TEXT4639","GOLSHIFTEH FARAHANI","TEXT4639"]
["TEXT4640","GOLSHIFTEH FARAHANI","TEXT4640"]
["TEXT4641","GOLSHIFTEH FARAHANI","TEXT4641"]
["TEXT4642","GOLSHIFTEH FARAHANI","TEXT4642"]
["TEXT4643","ANGELA SARAFYAN","TEXT4643"]
["TEXT4644","ANGELA SARAFYAN","TEXT4644"]
["TEXT4645","ANGELA SARAFYAN","TEXT4645"]
["TEXT4646","ANGELA SARAFYAN","TEXT4646"]
["TEXT4647","ANGELA SARAFYAN","TEXT4647"]
["TEXT4648","ANGELA SARAFYAN","TEXT4648"]
["TEXT4649","ANGELA SARAFYAN","TEXT4649"]
["TEXT4650","ANGELA SARAFYAN","TEXT4650"]
["TEXT4651","ANGELA SARAFYAN","TEXT4651"]
["TEXT4652","ANGELA SARAFYAN","TEXT4652"]
["TEXT4653","ANGELA SARAFYAN","TEXT4653"]
["TEXT4654","ANGELA SARAFYAN","TEXT4654"]
["TEXT4655","ANGELA SARAFYAN","TEXT4655"]
["TEXT4656","ANGELA SARAFYAN","TEXT4656"]
["TEXT4657","ANGELA SARAFYAN","TEXT4657"]
["TEXT4658","ANGELA SARAFYAN","TEXT4658"]
["TEXT4659","ANGELA SARAFYAN","TEXT4659"]
["TEXT4660","ANGELA SARAFYAN","TEXT4660"]
["TEXT4661","AMBER TAMBLYN","TEXT4661"]
["TEXT4662","AMBER TAMBLYN","TEXT4662"]
["TEXT4663","GUGU MBATHA-RAW","TEXT4663"]
["TEXT4664","GUGU MBATHA-RAW","TEXT4664"]
["TEXT4665","GUGU MBATHA-RAW","TEXT4665"]
["TEXT4666","GUGU MBATHA-RAW","TEXT4666"]
["TEXT4667","GUGU MBATHA-RAW","TEXT4667"]
["TEXT4668","GRETA LEE","TEXT4668"]
["TEXT4669","GRETA LEE","TEXT4669"]
["TEXT4670","LUPITA NYONG'O","TEXT4670"]
["TEXT4671","LUPITA NYONG'O","TEXT4671"]
["TEXT4672","LUPITA NYONG'O","TEXT4672"]
["TEXT4673","LUPITA NYONG'O","TEXT4673"]
[{"$f":"\"TEXT\"&ROW()","v":"TEXT4674"},"KATE MARA","TEXT4674"]
["TEXT4675","KATE MARA","TEXT4675"]
["TEXT4676","KATE MARA","TEXT4676"]
["TEXT4677","KATE MARA","TEXT4677"]
["TEXT4678","KATE MARA","TEXT4678"]
["TEXT4679","KATE MARA","TEXT4679"]
["TEXT4680","KATE MARA","TEXT4680"]
["TEXT4681","KATE MARA","TEXT4681"]
["TEXT4682","KATE MARA","TEXT4682"]
["TEXT4683","KATE MARA","TEXT4683"]
["TEXT4684","KATE MARA","TEXT4684"]
["TEXT4685","KATE MARA","TEXT4685"]
["TEXT4686","KATE MARA","TEXT4686"]
["TEXT4687","KATE MARA","TEXT4687"]
["TEXT4688","EMILY BLUNT","TEXT4688"]
["TEXT4689","EMILY BLUNT","TEXT4689"]
["TEXT4690","EMILY BLUNT","TEXT4690"]
["TEXT4691","EMILY BLUNT","TEXT4691"]
["TEXT4692","EMILY BLUNT","TEXT4692"]
["TEXT4693","EMILY BLUNT","TEXT4693"]
["TEXT4694","EMILY BLUNT","TEXT4694"]
["TEXT4695","EMILY BLUNT","TEXT4695"]
["TEXT4696","EMILY BLUNT","TEXT4696"]
["TEXT4697","EMILY BLUNT","TEXT4697"]
["TEXT4698","EMILY BLUNT","TEXT4698"]
["TEXT4699","EMILY BLUNT","TEXT4699"]
["TEXT4700","EMILY BLUNT","TEXT4700"]
["TEXT4701","EMILY BLUNT","TEXT4701"]
["TEXT4702","EMILY BLUNT","TEXT4702"]
["TEXT4703","KERRY CONDON","TEXT4703"]
["TEXT4704","KERRY CONDON","TEXT4704"]
["TEXT4705","KERRY CONDON","TEXT4705"]
["TEXT4706","KERRY CONDON","TEXT4706"]
["TEXT4707","KERRY CONDON","TEXT4707"]
["TEXT4708","KERRY CONDON","TEXT4708"]
["TEXT4709","KERRY CONDON","TEXT4709"]
["TEXT4710","KERRY CONDON","TEXT4710"]
["TEXT4711","KERRY CONDON","TEXT4711"]
["TEXT4712","KERRY CONDON","TEXT4712"]
["TEXT4713","KERRY CONDON","TEXT4713"]
["TEXT4714","KERRY CONDON","TEXT4714"]
["TEXT4715","KERRY CONDON","TEXT4715"]
["TEXT4716","KERRY CONDON","TEXT4716"]
["TEXT4717","KERRY CONDON","TEXT4717"]
["TEXT4718","KERRY CONDON","TEXT4718"]
["TEXT4719","KERRY CONDON","TEXT4719"]
["TEXT4720","KERRY CONDON","TEXT4720"]
["TEXT4721","KERRY CONDON","TEXT4721"]
["TEXT4722","KERRY CONDON","TEXT4722"]
["TEXT4723","KERRY CONDON","TEXT4723"]
["TEXT4724","KERRY CONDON","TEXT4724"]
["TEXT4725","KERRY CONDON","TEXT4725"]
["TEXT4726","KERRY CONDON","TEXT4726"]
["TEXT4727","KERRY CONDON","TEXT4727"]
["TEXT4728","KERRY CONDON","TEXT4728"]
["TEXT4729","KERRY CONDON","TEXT4729"]
["TEXT4730","KERRY CONDON","TEXT4730"]
["TEXT4731","KERRY CONDON","TEXT4731"]
["TEXT4732","KERRY CONDON","TEXT4732"]
["TEXT4733","KERRY CONDON","TEXT4733"]
["TEXT4734","KERRY CONDON","TEXT4734"]
["TEXT4735","KERRY CONDON","TEXT4735"]
["TEXT4736","KERRY CONDON","TEXT4736"]
["TEXT4737","KERRY CONDON","TEXT4737"]
[{"$f":"\"TEXT\"&ROW()","v":"TEXT4738"},"KERRY CONDON","TEXT4738"]
["TEXT4739","KERRY CONDON","TEXT4739"]
["TEXT4740","KERRY CONDON","TEXT4740"]
["TEXT4741","KERRY CONDON","TEXT4741"]
["TEXT4742","KERRY CONDON","TEXT4742"]
["TEXT4743","KERRY CONDON","TEXT4743"]
["TEXT4744","KERRY CONDON","TEXT4744"]
["TEXT4745","KERRY CONDON","TEXT4745"]
["TEXT4746","KERRY CONDON","TEXT4746"]
["TEXT4747","KATE BOSWORTH","TEXT4747"]
["TEXT4748","KATE BOSWORTH","TEXT4748"]
["TEXT4749","KATE BOSWORTH","TEXT4749"]
["TEXT4750","KATE BOSWORTH","TEXT4750"]
["TEXT4751","KATE BOSWORTH","TEXT4751"]
["TEXT4752","KATE BOSWORTH","TEXT4752"]
["TEXT4753","KATE BOSWORTH","TEXT4753"]
["TEXT4754","KATE BOSWORTH","TEXT4754"]
["TEXT4755","KATE BOSWORTH","TEXT4755"]
["TEXT4756","KATE BOSWORTH","TEXT4756"]
["TEXT4757","KATE BOSWORTH","TEXT4757"]
["TEXT4758","KATE BOSWORTH","TEXT4758"]
["TEXT4759","KATE BOSWORTH","TEXT4759"]
["TEXT4760","KATE BOSWORTH","TEXT4760"]
["TEXT4761","KATE BOSWORTH","TEXT4761"]
["TEXT4762","KATE BOSWORTH","TEXT4762"]
["TEXT4763","ALISON BRIE","TEXT4763"]
["TEXT4764","ALISON BRIE","TEXT4764"]
["TEXT4765","ALISON BRIE","TEXT4765"]
["TEXT4766","ALISON BRIE","TEXT4766"]
["TEXT4767","ALISON BRIE","TEXT4767"]
["TEXT4768","ALISON BRIE","TEXT4768"]
["TEXT4769","ALISON BRIE","TEXT4769"]
["TEXT4770","ALISON BRIE","TEXT4770"]
["TEXT4771","ALISON BRIE","TEXT4771"]
["TEXT4772","ALISON BRIE","TEXT4772"]
["TEXT4773","ALISON BRIE","TEXT4773"]
["TEXT4774","ALISON BRIE","TEXT4774"]
["TEXT4775","ALISON BRIE","TEXT4775"]
["TEXT4776","ALISON BRIE","TEXT4776"]
["TEXT4777","ALISON BRIE","TEXT4777"]
["TEXT4778","ALISON BRIE","TEXT4778"]
["TEXT4779","ALISON BRIE","TEXT4779"]
["TEXT4780","ALISON BRIE","TEXT4780"]
["TEXT4781","ALISON BRIE","TEXT4781"]
["TEXT4782","ALISON BRIE","TEXT4782"]
["TEXT4783","ALISON BRIE","TEXT4783"]
["TEXT4784","ALISON BRIE","TEXT4784"]
["TEXT4785","ALISON BRIE","TEXT4785"]
["TEXT4786","ALISON BRIE","TEXT4786"]
["TEXT4787","ALISON BRIE","TEXT4787"]
["TEXT4788","ALISON BRIE","TEXT4788"]
["TEXT4789","ALISON BRIE","TEXT4789"]
["TEXT4790","ALISON BRIE","TEXT4790"]
["TEXT4791","ALISON BRIE","TEXT4791"]
["TEXT4792","ALISON BRIE","TEXT4792"]
["TEXT4793","ALISON BRIE","TEXT4793"]
["TEXT4794","ALISON BRIE","TEXT4794"]
["TEXT4795","ALISON BRIE","TEXT4795"]
["TEXT4796","ALISON BRIE","TEXT4796"]
["TEXT4797","ALISON BRIE","TEXT4797"]
["TEXT4798","ELISHA CUTHBERT","TEXT4798"]
["TEXT4799","ELISHA CUTHBERT","TEXT4799"]
["TEXT4800","ELISHA CUTHBERT","TEXT4800"]
["TEXT4801","ELISHA CUTHBERT","TEXT4801"]
[{"$f":"\"TEXT\"&ROW()","v":"TEXT4802"},"GEMMA CHAN","TEXT4802"]
["TEXT4803","GEMMA CHAN","TEXT4803"]
["TEXT4804","GEMMA CHAN","TEXT4804"]
["TEXT4805","GEMMA CHAN","TEXT4805"]
["TEXT4806","ANNE HATHAWAY","TEXT4806"]
["TEXT4807","ANNE HATHAWAY","TEXT4807"]
["TEXT4808","ANNE HATHAWAY","TEXT4808"]
["TEXT4809","ANNE HATHAWAY","TEXT4809"]
["TEXT4810","ANNE HATHAWAY","TEXT4810"]
["TEXT4811","ANNE HATHAWAY","TEXT4811"]
["TEXT4812","ANNE HATHAWAY","TEXT4812"]
["TEXT4813","ANNE HATHAWAY","TEXT4813"]
["TEXT4814","ANNE HATHAWAY","TEXT4814"]
["TEXT4815","ANNE HATHAWAY","TEXT4815"]
["TEXT4816","ANNE HATHAWAY","TEXT4816"]
["TEXT4817","ANNE HATHAWAY","TEXT4817"]
["TEXT4818","ANNE HATHAWAY","TEXT4818"]
["TEXT4819","ANNE HATHAWAY","TEXT4819"]
["TEXT4820","ANNE HATHAWAY","TEXT4820"]
["TEXT4821","ANNE HATHAWAY","TEXT4821"]
["TEXT4822","ANNE HATHAWAY","TEXT4822"]
["TEXT4823","ANNE HATHAWAY","TEXT4823"]
["TEXT4824","ANNE HATHAWAY","TEXT4824"]
["TEXT4825","ANNE HATHAWAY","TEXT4825"]
["TEXT4826","ANNE HATHAWAY","TEXT4826"]
["TEXT4827","ANNE HATHAWAY","TEXT4827"]
["TEXT4828","ANNE HATHAWAY","TEXT4828"]
["TEXT4829","ANNE HATHAWAY","TEXT4829"]
["TEXT4830","ANNE HATHAWAY","TEXT4830"]
["TEXT4831","ANNE HATHAWAY","TEXT4831"]
["TEXT4832","ANNE HATHAWAY","TEXT4832"]
["TEXT4833","ANNE HATHAWAY","TEXT4833"]
["TEXT4834","ANNE HATHAWAY","TEXT4834"]
["TEXT4835","ANNE HATHAWAY","TEXT4835"]
["TEXT4836","ANNE HATHAWAY","TEXT4836"]
["TEXT4837","ANNE HATHAWAY","TEXT4837"]
["TEXT4838","ANNE HATHAWAY","TEXT4838"]
["TEXT4839","ANNE HATHAWAY","TEXT4839"]
["TEXT4840","ANNE HATHAWAY","TEXT4840"]
["TEXT4841","ANNE HATHAWAY","TEXT4841"]
["TEXT4842","ANNE HATHAWAY","TEXT4842"]
["TEXT4843","ANNE HATHAWAY","TEXT4843"]
["TEXT4844","ANNE HATHAWAY","TEXT4844"]